Workbook

Sheet 분기재무제표DB
B1: 7번.현금흐름
B2: 10번.당순.영업현금
A4: home
B5: 16.1Q | C5: 16.2Q | D5: 16.3Q | E5: 16.4Q | F5: 17.1Q | G5: 17.2Q | H5: 17.3Q | I5: 17.4Q | J5: 18.1Q | K5: 18.2Q | L5: 18.3Q | M5: 18.4Q | N5: 19.1Q | O5: 19.2Q | P5: 19.3Q | Q5: 19.4Q | R5: 20.1Q | S5: 20.2Q | T5: 20.3Q | U5: 20.4Q | V5: 21.1Q | W5: 21.2Q | X5: 21.3Q | Y5: 21.4Q | Z5: 22.1Q | AA5: 22.2Q | AB5: 22.3Q
A6: 자산총계 | B6: 138304236710 | C6: 137057516999 | D6: 134940852584 | E6: 141234468637 | F6: 136514444951 | G6: 144740959225 | H6: 147683314529 | I6: 133860274911 | J6: 138370186901 | K6: 139978670668 | L6: 153321098105 | M6: 173395377410 | N6: 176772817110 | O6: 177291024805 | P6: 186162527518 | Q6: 191226386788 | R6: 195637517290 | S6: 200928251688 | T6: 205284150857 | U6: 206009387091 | V6: 215755428625 | W6: 228759357362 | X6: 238341595003 | Y6: 298387221700 | Z6: 303556017573 | AA6: 299189630722 | AB6: 294088293302
A7: 유동자산 | B7: 39933003301 | C7: 37816190360 | D7: 36430096922 | E7: 42773820025 | F7: 38783479935 | G7: 46053670724 | H7: 48119050962 | I7: 42246907740 | J7: 45438847481 | K7: 46118500808 | L7: 54663485400 | M7: 55049228629 | N7: 54542225399 | O7: 51537000840 | P7: 58842831189 | Q7: 61613274560 | R7: 64379955275 | S7: 66592837238 | T7: 68523384073 | U7: 69476701372 | V7: 76378833279 | W7: 84576363416 | X7: 85693435019 | Y7: 116634646697 | Z7: 115524705436 | AA7: 111251021047 | AB7: 97501340658
A8: 현금성자산 | B8: 9679162073 | C8: 9050839224 | D8: 7579258513 | E8: 10945110545 | F8: 4170949425 | G8: 11378795485 | H8: 9340326685 | I8: 6812883512 | J8: 9252083798 | K8: 8652375059 | L8: 16779106630 | M8: 15143262419 | N8: 7898744168 | O8: 5674323832 | P8: 6843856474 | Q8: 11420713307 | R8: 11565675034 | S8: 11261644357 | T8: 16206298107 | U8: 18819723334 | V8: 15345148462 | W8: 19689167311 | X8: 18394548093 | Y8: 34262742362 | Z8: 19366774144 | AA8: 27183732608 | AB8: 21711014995
A9: 단기금융 | B9: 1621520000 | C9: 2034035000 | D9: 1296300000 | E9: 2126723039 | F9: 3978733807 | G9: 702252104 | H9: 1046952104 | I9: 897846721 | J9: 411812548 | K9: 440446426 | L9: 473447888 | M9: 4211657086 | N9: 3348316674 | O9: 2388401672 | P9: 1859704631 | Q9: 1821482584 | R9: 657819493 | S9: 660409455 | T9: 670424983 | U9: 712803977 | V9: 670446008 | W9: 459813803 | X9: 1492324322 | Y9: 13555831200 | Z9: 28564431200 | AA9: 16071731200 | AB9: 9547631200
A10: 단기투자
A11: 매출채권 | B11: 14826624543 | C11: 15188189630 | D11: 15739789938 | E11: 17005140485 | F11: 16249229914 | G11: 17535692679 | H11: 19366231535 | I11: 16585115028 | J11: 19608344911 | K11: 19093605081 | L11: 18633898289 | M11: 17651206331 | N11: 17801797323 | O11: 18763657689 | P11: 23507357230 | Q11: 22962482173 | R11: 25473006549 | S11: 28900913918 | T11: 27327745584 | U11: 27708135246 | V11: 34214562024 | W11: 35005038959 | X11: 36608248153 | Y11: 36433393581 | Z11: 35817766816 | AA11: 36440575369 | AB11: 35259145836
A12: 계약자산
A13: 재고자산 | B13: 10281089853 | C13: 9482782704 | D13: 9576984892 | E13: 10242268052 | F13: 11573805628 | G13: 13491874195 | H13: 15031933664 | I13: 14896885003 | J13: 13955316404 | K13: 15815084408 | L13: 16408560837 | M13: 16025911265 | N13: 22419607769 | O13: 21780492293 | P13: 23665520843 | Q13: 22466779484 | R13: 23799400341 | S13: 22745809706 | T13: 21282131403 | U13: 19518515174 | V13: 22779365270 | W13: 22365262704 | X13: 21350547285 | Y13: 23579720373 | Z13: 26173551317 | AA13: 24879046307 | AB13: 26282283838
A14: 선급금
A15: 미수금
A16: 비유동자산 | B16: 98371233409 | C16: 99241326639 | D16: 98510755662 | E16: 98460648612 | F16: 97730965016 | G16: 98687288501 | H16: 99564263567 | I16: 91613367171 | J16: 92931339420 | K16: 93860169860 | L16: 98657612705 | M16: 118346148781 | N16: 122230591711 | O16: 125754023965 | P16: 127319696329 | Q16: 129613112228 | R16: 131257562015 | S16: 134335414450 | T16: 136760766784 | U16: 136532685719 | V16: 139376595346 | W16: 144182993946 | X16: 152648159984 | Y16: 181752575003 | Z16: 188031312137 | AA16: 187938609675 | AB16: 196586952644
A17: 유형자산 | B17: 87376605186 | C17: 88444390062 | D17: 87307321430 | E17: 87413455611 | F17: 86692000232 | G17: 87655882003 | H17: 88392044793 | I17: 88193690121 | J17: 89550231347 | K17: 90627558226 | L17: 95488826946 | M17: 114913337416 | N17: 118851054168 | O17: 122464223446 | P17: 124072731688 | Q17: 127401881870 | R17: 128762672664 | S17: 131915529857 | T17: 134305805480 | U17: 134096595745 | V17: 136946459548 | W17: 141851038546 | X17: 148247324250 | Y17: 172161328931 | Z17: 178312045993 | AA17: 183108089797 | AB17: 190398600779
A18: 무형자산 | B18: 9905600889 | C18: 10104863153 | D18: 10209714143 | E18: 9915725685 | F18: 9986038711 | G18: 9995209606 | H18: 9946462925 | I18: 2722241288 | J18: 2675806146 | K18: 2566540636 | L18: 2388529942 | M18: 2298888947 | N18: 2248103854 | O18: 2145858442 | P18: 2084435370 | Q18: 1385383271 | R18: 1339471432 | S18: 1484087747 | T18: 1435292639 | U18: 1407949516 | V18: 1365507763 | W18: 1323952334 | X18: 1299823468 | Y18: 1259671886 | Z18: 1211553426 | AA18: 1135858473 | AB18: 1742604377
A19: 투자자산 | B19: 70057306 | C19: 70057306 | D19: 70057306 | E19: 70057306 | F19: 70057306 | G19: 70057306 | H19: 70057306 | I19: 70057306 | J19: 70057306 | K19: 70057306 | L19: 70057306 | M19: 435570327 | N19: 435570327 | O19: 435570327 | P19: 435570327 | Q19: 70057306 | R19: 70057306 | S19: 70057306 | T19: 70057306 | U19: 70057306 | V19: 70057306 | W19: 282868228 | X19: 282868228 | Y19: 244810886 | Z19: 244810886 | AA19: 244810886 | AB19: 244810886
A20: 부채총계 | B20: 83523138158 | C20: 83641581620 | D20: 81936874576 | E20: 82763178179 | F20: 78927538290 | G20: 82926100691 | H20: 85518366801 | I20: 79398696853 | J20: 83251747394 | K20: 84520235494 | L20: 79152206375 | M20: 89812840256 | N20: 92490575937 | O20: 94388807473 | P20: 103214749143 | Q20: 109060209500 | R20: 111049650385 | S20: 115412083371 | T20: 117178413339 | U20: 118766378477 | V20: 123712009191 | W20: 132459454348 | X20: 136642977966 | Y20: 166476198434 | Z20: 170520774915 | AA20: 165322523331 | AB20: 163477241844
A21: 유동부채 | B21: 49029312560 | C21: 49521585045 | D21: 49115304333 | E21: 55183489555 | F21: 52389765797 | G21: 54618226903 | H21: 55946718131 | I21: 51580365257 | J21: 56697520395 | K21: 58310967858 | L21: 43138673780 | M21: 43315086562 | N21: 46920088141 | O21: 49178704211 | P21: 58217530788 | Q21: 58773715747 | R21: 61125951771 | S21: 66160625079 | T21: 67449178085 | U21: 64808541827 | V21: 72039549852 | W21: 77689610868 | X21: 81746848097 | Y21: 80529391692 | Z21: 82972891706 | AA21: 75457542198 | AB21: 75572409783
A22: 단기차입금 | B22: 1794058837 | C22: 2009537227 | D22: 1936402772 | E22: 1992642452 | F22: 2028642790 | G22: 3039605626 | H22: 2556417648 | I22: 3014794655 | J22: 3117089152 | K22: 3269435539 | L22: 4231758500 | M22: 5026660205 | N22: 4413002792 | O22: 3734814880 | P22: 4261468260 | Q22: 5082607895 | R22: 4836117950 | S22: 4819640537 | T22: 4469275369 | U22: 4320768920 | V22: 5221104463 | W22: 6016067582 | X22: 5450590473 | Y22: 7451055179 | Z22: 7834965550 | AA22: 5540984265 | AB22: 5871602550
A23: 유동성장기차입금
A24: 유동성사채 | B24: 0 | C24: 0 | D24: 0 | E24: 0 | F24: 0 | G24: 0 | H24: 1863403188 | I24: 0 | J24: 0 | K24: 0 | L24: 0 | M24: 0
A25: 매입채무 | B25: 1469853476 | C25: 2477620771 | D25: 2886773542 | E25: 2978008692 | F25: 2441540082 | G25: 4640713555 | H25: 6873148580 | I25: 4307438046 | J25: 3612502866 | K25: 4793071423 | L25: 3752991890 | M25: 3835541662 | N25: 6108523434 | O25: 5305201906 | P25: 5426469216 | Q25: 4747484354 | R25: 5160498876 | S25: 5230647761 | T25: 5344244667 | U25: 6496857615 | V25: 5283472846 | W25: 6180479822 | X25: 6476555904 | Y25: 6681752160 | Z25: 6395254308 | AA25: 4878869441 | AB25: 4383604817
A26: 선수금
A27: 비유동부채 | B27: 34493825598 | C27: 34119996575 | D27: 32821570243 | E27: 27579688624 | F27: 26537772493 | G27: 28307873788 | H27: 29571648670 | I27: 27818331596 | J27: 26554226999 | K27: 26209267636 | L27: 36013532595 | M27: 46497753694 | N27: 45570487796 | O27: 45210103262 | P27: 44997218355 | Q27: 50286493753 | R27: 49923698614 | S27: 49251458292 | T27: 49729235254 | U27: 53957836650 | V27: 51672459339 | W27: 54769843480 | X27: 54896129869 | Y27: 85946806742 | Z27: 87547883209 | AA27: 89864981133 | AB27: 87904832061
A28: 장기차입금 | B28: 45296695775 | C28: 44636824002 | D28: 43829452393 | E28: 44419871044 | F28: 42014779561 | G28: 44454991548 | H28: 22744132850 | I28: 20432500139 | J28: 19002177940 | K28: 49623201263 | L28: 34666622090 | M28: 1208630671 | N28: 1225468466 | O28: 38978460490 | P28: 1155388214 | Q28: 1173757874 | R28: 1141253938 | S28: 54726772943 | T28: 1154285883 | U28: 1130454742 | V28: 794906752 | W28: 62388924704 | X28: 66861330963 | Y28: 64498022879 | Z28: 66053846210 | AA28: 62963042481 | AB28: 62743825882
A29: 자본총계 | B29: 54781098552 | C29: 53415935379 | D29: 53003978008 | E29: 58471290458 | F29: 57586906661 | G29: 61814858534 | H29: 62164947728 | I29: 54461578058 | J29: 55118439507 | K29: 55458435174 | L29: 74168891730 | M29: 83582537154 | N29: 84282241173 | O29: 82902217332 | P29: 82947778375 | Q29: 82166177288 | R29: 84587866905 | S29: 85516168317 | T29: 88105737518 | U29: 87243008614 | V29: 92043419434 | W29: 96299903014 | X29: 101698617037 | Y29: 131911023266 | Z29: 133035242658 | AA29: 133867107391 | AB29: 130611051458
A30: 지배기업자본 | B30: 54781098552 | C30: 53415935379 | D30: 53003978008 | E30: 58471290458 | F30: 57586906661 | G30: 61814858534 | H30: 60872483194 | I30: 53178736486 | J30: 53762852181 | K30: 54113681582 | L30: 72879242826 | M30: 82231656387 | N30: 82834793827 | O30: 81388309655 | P30: 81356375289 | Q30: 80590841982 | R30: 82939449517 | S30: 83853324692 | T30: 86318276408 | U30: 85488625904 | V30: 90155673898 | W30: 94392929290 | X30: 99717367312 | Y30: 129852851168 | Z30: 130942458019 | AA30: 131826059978 | AB30: 128591493593
A31: 자본금 | B31: 4740642500 | C31: 4740642500 | D31: 4740642500 | E31: 6629622500 | F31: 6629622500 | G31: 7017215000 | H31: 7017215000 | I31: 7275612500 | J31: 7275612500 | K31: 7275612500 | L31: 7647414500 | M31: 7647414500 | N31: 7647414500 | O31: 7647414500 | P31: 7647414500 | Q31: 7647414500 | R31: 7666003500 | S31: 7675298000 | T31: 7712413000 | U31: 7731002000 | V31: 7731002000 | W31: 7731002000 | X31: 7740296500 | Y31: 7740296500 | Z31: 7740296500 | AA31: 7740296500 | AB31: 7740296500
A32: 자본잉여금 | B32: 15972300675 | C32: 15972300675 | D32: 15816348189 | E32: 18824279881 | F32: 18824279881 | G32: 21578401150 | H32: 21378076090 | I32: 23538776297 | J32: 23538776297 | K32: 23683630057 | L32: 43123818601 | M32: 43103818601 | N32: 43103818601 | O32: 43103818601 | P32: 43103818601 | Q32: 43103818601 | R32: 43083603110 | S32: 43072973704 | T32: 43026925633 | U32: 43007710900 | V32: 43005460900 | W32: 43005460900 | X32: 43117126993 | Y32: 52593779857 | Z32: 52593779857 | AA32: 52593779857 | AB32: 52593779857
A33: 이익잉여금 | B33: 13184357538 | C33: 13108857262 | D33: 13461949033 | E33: 13752985599 | F33: 13955955766 | G33: 14293140906 | H33: 14395033744 | I33: 5742089056 | J33: 5746453210 | K33: 6048993534 | L33: 5751307741 | M33: 6136526831 | N33: 6186473912 | O33: 5728801248 | P33: 5663912372 | Q33: 5213798152 | R33: 6941907582 | S33: 8099206639 | T33: 10365102915 | U33: 11617882048 | V33: 15765336179 | W33: 19760840758 | X33: 24195226838 | Y33: 33728051677 | Z33: 34477915828 | AA33: 37672370819 | AB33: 40999369458
A34: 매출액 | B34: 15822345226 | C34: 17221230956 | D34: 16553546405 | E34: 18314341329 | F34: 20768748193 | G34: 24144900535 | H34: 25107734305 | I34: 23369387969 | J34: 25976235895 | K34: 25565285801 | L34: 24714908077 | M34: 26679248369 | N34: 25742675313 | O34: 26572734935 | P34: 31357084815 | Q34: 32711811360 | R34: 37830648963 | S34: 37727091595 | T34: 39689716584 | U34: 39296011683 | V34: 45994002425 | W34: 50260344124 | X34: 52538173569 | Y34: 49915179201 | Z34: 38292102371 | AA34: 58614626091 | AB34: 40151858473
A35: 매출원가 | B35: 11802122251 | C35: 12361038593 | D35: 11854574880 | E35: 13379387068 | F35: 16066045599 | G35: 19403274450 | H35: 20561076863 | I35: 18344703253 | J35: 20634586404 | K35: 20139751289 | L35: 19720071787 | M35: 20627111562 | N35: 20620204063 | O35: 21002255372 | P35: 25080353457 | Q35: 26837063465 | R35: 30282268333 | S35: 30496770978 | T35: 31801211180 | U35: 32704435187 | V35: 35446247851 | W35: 39802830374 | X35: 41286334072 | Y35: 40488680635 | Z35: 30293655722 | AA35: 46972060648 | AB35: 30543953444
A36: 매출총이익 | B36: 4020222975 | C36: 4860192363 | D36: 4698971525 | E36: 4934954261 | F36: 4702702594 | G36: 4741626085 | H36: 4546657442 | I36: 5024684716 | J36: 5341649491 | K36: 5425534512 | L36: 4994836290 | M36: 6052136807 | N36: 5122471250 | O36: 5570479563 | P36: 6276731358 | Q36: 5874747895 | R36: 7548380630 | S36: 7230320617 | T36: 7888505404 | U36: 6591576496 | V36: 10547754574 | W36: 10457513750 | X36: 11251839497 | Y36: 9426498566 | Z36: 7998446649 | AA36: 11642565443 | AB36: 9607905029
A37: 판관비 | B37: 3505187225 | C37: 4144882678 | D37: 3610691001 | E37: 3218487515 | F37: 3814363342 | G37: 3812422687 | H37: 4037225801 | I37: 4374195388 | J37: 4421661170 | K37: 4243270101 | L37: 4437962609 | M37: 4970599497 | N37: 4561768601 | O37: 4644163481 | P37: 5343512318 | Q37: 5631780103 | R37: 5041405251 | S37: 5053099076 | T37: 4863435894 | U37: 5279409263 | V37: 5461634054 | W37: 5816914181 | X37: 6381870136 | Y37: 6427105448 | Z37: 4505536048 | AA37: 6587574077 | AB37: 6020624915
A38: 영업이익 | B38: 515035750 | C38: 715309685 | D38: 1088280524 | E38: 1716466746 | F38: 888339252 | G38: 929203398 | H38: 509431641 | I38: 650489328 | J38: 919988321 | K38: 1132452737 | L38: 470157866 | M38: 1218064799 | N38: 560702649 | O38: 872563491 | P38: 898348557 | Q38: 331590866 | R38: 2506975379 | S38: 2087025834 | T38: 3025069510 | U38: 1402362940 | V38: 5086120520 | W38: 4640599569 | X38: 4869969361 | Y38: 2999393118 | Z38: 3492910601 | AA38: 5054991366 | AB38: 3587280114
A39: 금융수익 | B39: 351893694 | C39: 209187214 | D39: 551562861 | E39: 215460688 | F39: 794436003 | G39: 54315738 | H39: 240787689 | I39: 544421816 | J39: 280695919 | K39: 544004912 | L39: 87992972 | M39: 166038525 | N39: 482300217 | O39: 405275477 | P39: 499860571 | Q39: 246543280 | R39: 1219567172 | S39: 177377452 | T39: 263893743 | U39: 803277563 | V39: 1234291578 | W39: 531764454 | X39: 1594495061 | Y39: 289806072 | Z39: 1211430744 | AA39: 2114859180 | AB39: 3438723999
A40: 금융비용 | B40: 839537267 | C40: 777685926 | D40: 1189693079 | E40: 866914570 | F40: 1593845556 | G40: 543894098 | H40: 720355918 | I40: 5572358593 | J40: 749923618 | K40: 1285729396 | L40: 765593905 | M40: 931922781 | N40: 811032306 | O40: 1432380106 | P40: 1507596620 | Q40: 632506724 | R40: 2016651082 | S40: 1033554255 | T40: 838645730 | U40: 2322107541 | V40: 1182490181 | W40: 1101374207 | X40: 1232783424 | Y40: 1238012854 | Z40: 2355800756 | AA40: 2523727879 | AB40: 3070458437
A41: 기타수익 | B41: 288207531 | C41: 483074616 | D41: 419569992 | E41: 166037219 | F41: 229085670 | G41: 218142476 | H41: 231531701 | I41: 172552594 | J41: 152654277 | K41: 217019696 | L41: 151772940 | M41: 265340842 | N41: 252160617 | O41: 21064426 | P41: 202423657 | Q41: -26960924 | R41: 181445690 | S41: 151148035 | T41: 137336681 | U41: 177764695 | V41: 865392677 | W41: 221625440 | X41: 13446501 | Y41: 58960052 | Z41: 14249957 | AA41: 30117502 | AB41: 48566555
A42: 기타손실 | B42: 190257825 | C42: 713737330 | D42: 412005961 | E42: 814179937 | F42: 97204471 | G42: 279343181 | H42: 142807597 | I42: 9396861861 | J42: 563606264 | K42: 281863220 | L42: 230330373 | M42: 252293150 | N42: 370629785 | O42: 236026374 | P42: 64295558 | Q42: 325201412 | R42: 80491750 | S42: 37095495 | T42: 37771292 | U42: 69210977 | V42: 244649512 | W42: 22612167 | X42: 501461336 | Y42: 343889790 | Z42: 21039601 | AA42: 14265761 | AB42: 85364647
A43: 관계기업손익 | B43: 0 | C43: 0 | D43: 0 | E43: 0 | F43: 0 | G43: 0 | H43: 0 | I43: 0 | J43: 0 | K43: 0 | L43: 0 | M43: 0 | N43: 0 | O43: 0 | P43: 0 | Q43: 0 | R43: 0 | S43: 0 | T43: 0 | U43: 0 | V43: 0 | W43: 0 | X43: 0 | Y43: 0 | Z43: 0 | AA43: 0 | AB43: 0
A44: 법인세 | B44: 9516053 | C44: 42122972 | D44: 83914680 | E44: -345916324 | F44: -10156665 | G44: 15002971 | H44: 25490883 | I44: 31482132 | J44: 10144937 | K44: 31947538 | L44: -6070335 | M44: 37781821 | N44: -1347508 | O44: 15168490 | P44: 19480925 | Q44: 33857290 | R44: 73372492 | S44: 146239076 | T44: 181543653 | U44: 45552419 | V44: 771652031 | W44: 282097791 | X44: 322907081 | Y44: -7807371186 | Z44: 109887433 | AA44: 1548230650 | AB44: -682724740
A45: 당기순이익 | B45: 115825830 | C45: -125974713 | D45: 373799657 | E45: 342061232 | F45: 210654233 | G45: 363421362 | H45: 93096633 | I45: -8584350906 | J45: 29663698 | K45: 293937191 | L45: -292070835 | M45: 439587084 | N45: 114848900 | O45: -384671576 | P45: 9259682 | Q45: -440392204 | R45: 1737472917 | S45: 1198662495 | T45: 2368339259 | U45: -53465739 | V45: 4987013051 | W45: 3987905298 | X45: 4420759082 | Y45: 9573627784 | Z45: 2231863512 | AA45: 3113743758 | AB45: 3236022844
A46: 주주당기순이익 | B46: 137669441 | C46: -75500277 | D46: 353091771 | E46: 291036566 | F46: 202970167 | G46: 337185140 | H46: 101892837 | I46: -8652944687 | J46: 4354456 | K46: 293937191 | L46: -292070835 | M46: 388216963 | N46: 68537178 | O46: -384671576 | P46: -64888875 | Q46: -523115308 | R46: 1728109429 | S46: 1198662495 | T46: 2265896277 | U46: -113000775 | V46: 4910469081 | W46: 3995504579 | X46: 4434386080 | Y46: 9532824838 | Z46: 2238814349 | AA46: 3194454991 | AB46: 3326998640
A47: 누적매출액 | B47: 15822345226 | C47: 33043576182 | D47: 49597122587 | E47: 67911463916 | F47: 20768748193 | G47: 44913648728 | H47: 70021383033 | I47: 93390771002 | J47: 25976235895 | K47: 51541521696 | L47: 76256429773 | M47: 102935678142 | N47: 25742675313 | O47: 52315410248 | P47: 83672495063 | Q47: 116384306423 | R47: 37830648963 | S47: 75557740558 | T47: 115247457142 | U47: 154543468825 | V47: 45994002425 | W47: 96254346549 | X47: 148792520118 | Y47: 198707699319 | Z47: 38292102371 | AA47: 96906728462 | AB47: 137058586935
A48: 누적영업이익 | B48: 515035750 | C48: 1230345435 | D48: 2318625959 | E48: 4035092705 | F48: 888339252 | G48: 1817542650 | H48: 2326974291 | I48: 2977463619 | J48: 919988321 | K48: 2052441058 | L48: 2522598924 | M48: 3740663723 | N48: 560702649 | O48: 1433266140 | P48: 2331614697 | Q48: 2663205563 | R48: 2506975379 | S48: 4594001213 | T48: 7619070723 | U48: 9021433663 | V48: 5086120520 | W48: 9726720089 | X48: 14596689450 | Y48: 17596082568 | Z48: 3492910601 | AA48: 8547901967 | AB48: 12135182081
A49: 누적당기순이익 | B49: 137669441 | C49: 62169164 | D49: 415260935 | E49: 706297501 | F49: 202970167 | G49: 540155307 | H49: 642048144 | I49: -8010896543 | J49: 4354456 | K49: 323600889 | L49: 31530054 | M49: 394437775 | N49: 68537178 | O49: -269822676 | P49: -454024359 | Q49: -904138581 | R49: 1728109429 | S49: 2936135412 | T49: 5151304763 | U49: 5079667426 | V49: 4910469081 | W49: 8905973660 | X49: 13340359739 | Y49: 22873184578 | Z49: 2238814349 | AA49: 5433269340 | AB49: 8760267980
A50: 주당이익 | B50: 16 | C50: -9 | D50: 40 | E50: 80 | F50: 16 | G50: 16 | H50: 7 | I50: -604 | J50: 0.3 | K50: 21 | L50: -21 | M50: 27 | N50: 5 | O50: -33 | P50: -5 | Q50: -65 | R50: 122 | S50: 82 | T50: 157 | U50: 345 | V50: 331 | W50: 270 | X50: 298 | Y50: 1540 | Z50: 150 | AA50: 215 | AB50: 225
A51: 영업활동현금흐름 | B51: -1557416080 | C51: 2483265971 | D51: 2481868803 | E51: 4120711719 | F51: -1054960521 | G51: 757727061 | H51: 579765738 | I51: 934095849 | J51: -1144594079 | K51: 875516519 | L51: 1477100605 | M51: 2593611487 | N51: -5480627155 | O51: -4074001479 | P51: -8205701382 | Q51: -6475448368 | R51: 2710213536 | S51: 703707837 | T51: 7402034255 | U51: 10103631570 | V51: -4395727355 | W51: 230303325 | X51: 6913710592 | Y51: 7542102891 | Z51: 7955937406 | AA51: 12347514278 | AB51: 21252803203
A52: 투자활동현금흐름 | B52: -2676712068 | C52: -5303553951 | D52: -4941497818 | E52: -6856446228 | F52: -2817886826 | G52: -1396416318 | H52: -3485023168 | I52: -4947831882 | J52: -567072470 | K52: -2494402019 | L52: -8802867521 | M52: -15942806709 | N52: -2262267291 | O52: -8795755583 | P52: -11189784999 | Q52: -13608766284 | R52: -2168853518 | S52: -5936951083 | T52: -9417660523 | U52: -11065608014 | V52: -2256911946 | W52: -8220310348 | X52: -19773312184 | Y52: -44432167432 | Z52: -23761185669 | AA52: -12477709156 | AB52: -14817583252
A53: 재무활동현금흐름 | B53: 4028395061 | C53: 1938540324 | D53: 500437763 | E53: 3930547699 | F53: -2765458780 | G53: 1248930310 | H53: 1382659674 | I53: 26889610 | J53: 4127318766 | K53: 3372891944 | L53: 17349257790 | M53: 21727961713 | N53: 435947413 | O53: 3353600731 | P53: 11026915277 | Q53: 16363637058 | R53: -425979139 | S53: 5095922964 | T53: 6844838804 | U53: 8601072237 | V53: 3081805543 | W53: 8746969275 | X53: 12198480294 | Y53: 52116995573 | Z53: 921784439 | AA53: -7099571735 | AB53: -19700170193
A54: 기말현금성자산 | B54: 9679162073 | C54: 9050839224 | D54: 7579258513 | E54: 10945110545 | F54: 4170949425 | G54: 11378795485 | H54: 9340326685 | I54: 6812883512 | J54: 9252083798 | K54: 8652375059 | L54: 16779106630 | M54: 15143262419 | N54: 7898744168 | O54: 5674323832 | P54: 6843856474 | Q54: 11420713307 | R54: 11565675034 | S54: 11261644357 | T54: 16206298107 | U54: 18819723334 | V54: 15345148462 | W54: 19689167311 | X54: 18394548093 | Y54: 34262742362 | Z54: 19366774144 | AA54: 27183732608 | AB54: 21711014995
A55: 이자비용 | B55: -501212112 | C55: -1152647362 | D55: -1288623480 | E55: -2394515766 | F55: -646991669 | G55: -1282207695 | H55: -2814532287 | I55: -4109313240 | J55: -694849184 | K55: -1221809055 | L55: -1851214144 | M55: -2561587033 | N55: -559381161 | O55: -1106917566 | P55: -1715872685 | Q55: -2422950967 | R55: -709795413 | S55: -1348719760 | T55: -2073260073 | U55: -2613453989 | V55: -591495035 | W55: -1243477194 | X55: -1929521740 | Y55: -2572596611 | Z55: -476148190 | AA55: -710670424 | AB55: -1649530695
A56: 유형자산취득 | B56: 607901585 | C56: 2672955787 | D56: 3771568030 | E56: 4486074112 | F56: 421290794 | G56: 2042187347 | H56: -3664424352 | I56: -5532836116 | J56: -1322990818 | K56: -3327422009 | L56: -9227860953 | M56: -12651346132 | N56: -3256974752 | O56: -10671584034 | P56: -13155222339 | Q56: -15179521950 | R56: -2839664642 | S56: -6408311847 | T56: -10028888911 | U56: -11642864013 | V56: -2936778136 | W56: -9253936164 | X56: -17654560376 | Y56: -25282718676 | Z56: -8245786605 | AA56: -14457523193 | AB56: -22529588914
A57: 무형자산취득 | B57: 585768340 | C57: 935902454 | D57: 1344884446 | E57: 1594150797 | F57: 548802725 | G57: 981164007 | H57: -1170372466 | I57: -1195460673 | J57: -11781428 | K57: -20949211 | L57: -31806253 | M57: -53747944 | N57: -6406800 | O57: -27126386 | P57: -78665718 | Q57: -752375818 | R57: -21634071 | S57: -244122443 | T57: -273187188 | U57: -323539936 | V57: -34574000 | W57: -58473228 | X57: -69927212 | Y57: -34242921 | Z57: -11278662 | AA57: -20683196 | AB57: -561825833
A58: 유형자산처분 | B58: 113184453 | C58: 18251976 | D58: 1464784009 | E58: 1466823259 | F58: 71754915 | G58: 102193677 | H58: 351671248 | I58: 297451511 | J58: 74852485 | K58: 112453189 | L58: 153859256 | M58: 176933850 | N58: 113607101 | O58: 119138513 | P58: 68846329 | Q58: 218839100 | R58: 0 | S58: 5764230 | T58: 12944456 | U58: 132979320 | V58: 790181819 | W58: 1021270917 | X58: 1071819441 | Y58: 1215198071 | Z58: 22935919 | AA58: 23539280 | AB58: 70289510
A59: 무형자산처분 | B59: 0 | C59: 0 | D59: 0 | E59: 0 | F59: 0 | G59: 0 | H59: 0 | I59: 0 | J59: 0 | K59: 0 | L59: 0 | M59: 0 | N59: 0 | O59: 0 | P59: 0 | Q59: 0 | R59: 0 | S59: 0 | T59: 0 | U59: 0 | V59: 0 | W59: 0 | X59: 0 | Y59: 0 | Z59: 0 | AA59: 0 | AB59: 0
A60: 단기 현금+금융+투자 | B60: =B8+B9+B10 -> 11300682073 | C60: =C8+C9+C10 -> 11084874224 | D60: 8875558513 | E60: 13071833584 | F60: 8149683232 | G60: 12081047589 | H60: 10387278789 | I60: 7710730233 | J60: 9663896346 | K60: 9092821485 | L60: 17252554518 | M60: =E10+M9+M10 -> 4211657086 | N60: 11247060842 | O60: 8062725504 | P60: 8703561105 | Q60: 13242195891 | R60: 12223494527 | S60: 11922053812 | T60: 16876723090 | U60: 19532527311 | V60: =V8+V9+V10 -> 16015594470 | W60: 20148981114 | X60: 19886872415 | Y60: 47818573562 | Z60: 47931205344 | AA60: 43255463808 | AB60: 31258646195 | AC60: 0
A61: 매출채권+계약자산 | B61: =B11+B12 -> 14826624543 | C61: =C11+C12 -> 15188189630 | D61: 15739789938 | E61: 17005140485 | F61: 16249229914 | G61: 17535692679 | H61: 19366231535 | I61: 16585115028 | J61: 19608344911 | K61: 19093605081 | L61: 18633898289 | M61: =M11+M12 -> 17651206331 | N61: 17801797323 | O61: 18763657689 | P61: 23507357230 | Q61: 22962482173 | R61: 25473006549 | S61: 28900913918 | T61: 27327745584 | U61: 27708135246 | V61: =V11+V12 -> 34214562024 | W61: 35005038959 | X61: 36608248153 | Y61: 36433393581 | Z61: 35817766816 | AA61: 36440575369 | AB61: 35259145836 | AC61: 0
A62: 단기차입금+유동성사채 | B62: =B22+B23+B24 -> 1794058837 | C62: =C22+C23+C24 -> 2009537227 | D62: 1936402772 | E62: 1992642452 | F62: 2028642790 | G62: 3039605626 | H62: 4419820836 | I62: 3014794655 | J62: 3117089152 | K62: 3269435539 | L62: 4231758500 | M62: 5026660205 | N62: 4413002792 | O62: 3734814880 | P62: 4261468260 | Q62: 5082607895 | R62: 4836117950 | S62: 4819640537 | T62: 4469275369 | U62: 4320768920 | V62: =V22+V23+V24 -> 5221104463 | W62: 6016067582 | X62: 5450590473 | Y62: 7451055179 | Z62: 7834965550 | AA62: 5540984265 | AB62: 5871602550 | AC62: 0
A63: 자본+이익 잉여금 | B63: =B32+B33 -> 29156658213 | C63: =C32+C33 -> 29081157937 | D63: 29278297222 | E63: 32577265480 | F63: 32780235647 | G63: 35871542056 | H63: 35773109834 | I63: 29280865353 | J63: 29285229507 | K63: 29732623591 | L63: 48875126342 | M63: 49240345432 | N63: 49290292513 | O63: 48832619849 | P63: 48767730973 | Q63: 48317616753 | R63: 50025510692 | S63: 51172180343 | T63: 53392028548 | U63: 54625592948 | V63: =V32+V33 -> 58770797079 | W63: 62766301658 | X63: 67312353831 | Y63: 86321831534 | Z63: 87071695685 | AA63: 90266150676 | AB63: 93593149315 | AC63: 0
A64: 영업외수익 | B64: =B39+B41 -> 640101225 | C64: 692261830 | D64: 971132853 | E64: 381497907 | F64: 1023521673 | G64: 272458214 | H64: 472319390 | I64: 716974410 | J64: 433350196 | K64: 761024608 | L64: 239765912 | M64: 431379367 | N64: 734460834 | O64: 426339903 | P64: 702284228 | Q64: 219582356 | R64: 1401012862 | S64: 328525487 | T64: 401230424 | U64: 981042258 | V64: =V39+V41 -> 2099684255 | W64: 753389894 | X64: 1607941562 | Y64: 348766124 | Z64: 1225680701 | AA64: 2144976682 | AB64: 3487290554 | AC64: 0
A65: 영업외비용 | B65: =B40+B42 -> 1029795092 | C65: 1491423256 | D65: 1601699040 | E65: 1681094507 | F65: 1691050027 | G65: 823237279 | H65: 863163515 | I65: 14969220454 | J65: 1313529882 | K65: 1567592616 | L65: 995924278 | M65: 1184215931 | N65: 1181662091 | O65: 1668406480 | P65: 1571892178 | Q65: 957708136 | R65: 2097142832 | S65: 1070649750 | T65: 876417022 | U65: 2391318518 | V65: 1427139693 | W65: 1123986374 | X65: 1734244760 | Y65: 1581902644 | Z65: 2376840357 | AA65: 2537993640 | AB65: 3155823084 | AC65: 0
A66: 유형자산(분기) | B66: =B17/4 -> 2.18441513e+10 | C66: =C17/4 -> 2.211109752e+10 | D66: 2.182683036e+10 | E66: 2.18533639e+10 | F66: 21673000058 | G66: 2.19139705e+10 | H66: 2.20980112e+10 | I66: 2.204842253e+10 | J66: 2.238755784e+10 | K66: 2.265688956e+10 | L66: 2.387220674e+10 | M66: 28728334354 | N66: 29712763542 | O66: 3.061605586e+10 | P66: 31018182922 | Q66: 3.185047047e+10 | R66: 32190668166 | S66: 3.297888246e+10 | T66: 33576451370 | U66: 3.352414894e+10 | V66: =V17/4 -> 34236614887 | W66: 3.546275964e+10 | X66: 3.706183106e+10 | Y66: 4.304033223e+10 | Z66: 4.45780115e+10 | AA66: 4.577702245e+10 | AB66: 4.759965019e+10 | AC66: 0
A67: CAPEX | B67: =B56+B57+B58+B59 -> 1306854378 | C67: =C56+C57+C58+C59 -> 3627110217 | D67: 6581236485 | E67: 7547048168 | F67: 1041848434 | G67: 3125545031 | H67: -4483125570 | I67: -6430845278 | J67: -1259919761 | K67: -3235918031 | L67: =L56+L57+L58+L59 -> -9105807950 | M67: -12528160226 | N67: -3149774451 | O67: -10579571907 | P67: -13165041728 | Q67: -15713058668 | R67: -2861298713 | S67: -6646670060 | T67: =T56+T57+T58+T59 -> -10289131643 | U67: -11833424629 | V67: =V56+V57+V58+V59 -> -2181170317 | W67: -8291138475 | X67: -16652668147 | Y67: -24101763526 | Z67: -8234129348 | AA67: -14454667109 | AB67: -23021125237 | AC67: 0
A68: CAPEX(분기)0양수전환 | B68: =-(B67) -> -1306854378 | C68: =-(C67-B67) -> -2320255839 | D68: =-(D67-C67) -> -2954126268 | E68: =-(E67-D67) -> -965811683 | F68: =-(F67) -> -1041848434 | G68: =-(G67-F67) -> -2083696597 | H68: =-(H67-G67) -> 7608670601 | I68: =-(I67-H67) -> 1947719708 | J68: =-(J67) -> 1259919761 | K68: =-(K67-J67) -> 1975998270 | L68: =-(L67-K67) -> 5869889919 | M68: =-(M67-L67) -> 3422352276 | N68: =-(N67) -> 3149774451 | O68: =-(O67-N67) -> 7429797456 | P68: =-(P67-O67) -> 2585469821 | Q68: =-(Q67-P67) -> 2548016940 | R68: =-(R67) -> 2861298713 | S68: =-(S67-R67) -> 3785371347 | T68: =-(T67-S67) -> 3642461583 | U68: =-(U67-T67) -> 1544292986 | V68: =-(V67) -> 2181170317 | W68: =-(W67-V67) -> 6109968158 | X68: =-(X67-W67) -> 8361529672 | Y68: =-(Y67-X67) -> 7449095379 | Z68: =-(Z67) -> 8234129348 | AA68: =-(AA67-Z67) -> 6220537761 | AB68: =-(AB67-AA67) -> 8566458128 | AC68: =-(AC67-AB67) -> -23021125237
A69: 매출액 연간환산 | B69: =B34*4/1 -> 63289380904 | C69: =(B34+C34)*4/2 -> 66087152364 | D69: =(B34+C34+D34)*4/3 -> 6.612949678e+10 | E69: =(B34+C34+D34+E34)*4/4 -> 67911463916 | F69: =F34*4/1 -> 83074992772 | G69: =(F34+G34)*4/2 -> 89827297456 | H69: =(F34+G34+H34)*4/3 -> 93361844044 | I69: =(F34+G34+H34+I34)*4/4 -> 93390771002 | J69: =J34*4/1 -> 103904943580 | K69: =(J34+K34)*4/2 -> 103083043392 | L69: =(J34+K34+L34)*4/3 -> 1.016752397e+11 | M69: =(J34+K34+L34+M34)*4/4 -> 102935678142 | N69: =N34*4/1 -> 102970701252 | O69: =(N34+O34)*4/2 -> 104630820496 | P69: =(N34+O34+P34)*4/3 -> 1.115633268e+11 | Q69: =(N34+O34+P34+Q34)*4/4 -> 116384306423 | R69: =R34*4/1 -> 151322595852 | S69: =(R34+S34)*4/2 -> 151115481116 | T69: =(R34+S34+T34)*4/3 -> 1.536632762e+11 | U69: =(R34+S34+T34+U34)*4/4 -> 154543468825 | V69: =V34*4/1 -> 183976009700 | W69: =(V34+W34)*4/2 -> 192508693098 | X69: =(V34+W34+X34)*4/3 -> 198390026824 | Y69: =(V34+W34+X34+Y34)*4/4 -> 198707699319 | Z69: =Z34*4/1 -> 153168409484 | AA69: =(Z34+AA34)*4/2 -> 193813456924 | AB69: =(Z34+AA34+AB34)*4/3 -> 182744782580 | AC69: =(Z34+AA34+AB34+AC34)*4/4 -> 137058586935
A70: 영업이익 연간환산 | B70: =B38*4/1 -> 2060143000 | C70: =(B38+C38)*4/2 -> 2460690870 | D70: =(B38+C38+D38)*4/3 -> 3091501279 | E70: =(B38+C38+D38+E38)*4/4 -> 4035092705 | F70: =F38*4/1 -> 3553357008 | G70: =(F38+G38)*4/2 -> 3635085300 | H70: =(F38+G38+H38)*4/3 -> 3102632388 | I70: =(F38+G38+H38+I38)*4/4 -> 2977463619 | J70: =J38*4/1 -> 3679953284 | K70: =(J38+K38)*4/2 -> 4104882116 | L70: =(J38+K38+L38)*4/3 -> 3363465232 | M70: =(J38+K38+L38+M38)*4/4 -> 3740663723 | N70: =N38*4/1 -> 2242810596 | O70: =(N38+O38)*4/2 -> 2866532280 | P70: =(N38+O38+P38)*4/3 -> 3108819596 | Q70: =(N38+O38+P38+Q38)*4/4 -> 2663205563 | R70: =R38*4/1 -> 10027901516 | S70: =(R38+S38)*4/2 -> 9188002426 | T70: =(R38+S38+T38)*4/3 -> 10158760964 | U70: =(R38+S38+T38+U38)*4/4 -> 9021433663 | V70: =V38*4/1 -> 20344482080 | W70: =(V38+W38)*4/2 -> 19453440178 | X70: =(V38+W38+X38)*4/3 -> 19462252600 | Y70: =(V38+W38+X38+Y38)*4/4 -> 17596082568 | Z70: =Z38*4/1 -> 13971642404 | AA70: =(Z38+AA38)*4/2 -> 17095803934 | AB70: =(Z38+AA38+AB38)*4/3 -> 1.618024277e+10 | AC70: =(Z38+AA38+AB38+AC38)*4/4 -> 12135182081
A71: 당기순이익 연간환산 | B71: =B46*4/1 -> 550677764 | C71: =(B46+C46)*4/2 -> 124338328 | D71: =(B46+C46+D46)*4/3 -> 553681246.7 | E71: =(B46+C46+D46+E46)*4/4 -> 706297501 | F71: =F46*4/1 -> 811880668 | G71: =(F46+G46)*4/2 -> 1080310614 | H71: =(F46+G46+H46)*4/3 -> 856064192 | I71: =(F46+G46+H46+I46)*4/4 -> -8010896543 | J71: =J46*4/1 -> 17417824 | K71: =(J46+K46)*4/2 -> 596583294 | L71: =(J46+K46+L46)*4/3 -> 8294416 | M71: =(J46+K46+L46+M46)*4/4 -> 394437775 | N71: =N46*4/1 -> 274148712 | O71: =(N46+O46)*4/2 -> -632268796 | P71: =(N46+O46+P46)*4/3 -> -508031030.7 | Q71: =(N46+O46+P46+Q46)*4/4 -> -904138581 | R71: =R46*4/1 -> 6912437716 | S71: =(R46+S46)*4/2 -> 5853543848 | T71: =(R46+S46+T46)*4/3 -> 6923557601 | U71: =(R46+S46+T46+U46)*4/4 -> 5079667426 | V71: =V46*4/1 -> 19641876324 | W71: =(V46+W46)*4/2 -> 17811947320 | X71: =(V46+W46+X46)*4/3 -> 17787146320 | Y71: =(V46+W46+X46+Y46)*4/4 -> 22873184578 | Z71: =Z46*4/1 -> 8955257396 | AA71: =(Z46+AA46)*4/2 -> 10866538680 | AB71: =(Z46+AA46+AB46)*4/3 -> 1.168035731e+10 | AC71: =(Z46+AA46+AB46+AC46)*4/4 -> 8760267980
A72: 영업활동현금흐름(분기) | B72: =B51 -> -1557416080 | C72: =C51-B51 -> 4040682051 | D72: -1397168 | E72: 1638842916 | F72: =F51 -> -1054960521 | G72: =G51-F51 -> 1812687582 | H72: -177961323 | I72: 354330111 | J72: =J51 -> -1144594079 | K72: =K51-J51 -> 2020110598 | L72: 601584086 | M72: 1116510882 | N72: =N51 -> -5480627155 | O72: =O51-N51 -> 1406625676 | P72: -4131699903 | Q72: 1730253014 | R72: =R51 -> 2710213536 | S72: =S51-R51 -> -2006505699 | T72: 6698326418 | U72: 2701597315 | V72: =V51 -> -4395727355 | W72: =W51-V51 -> 4626030680 | X72: 6683407267 | Y72: 628392299 | Z72: =Z51 -> 7955937406 | AA72: =AA51-Z51 -> 4391576872 | AB72: 8905288925 | AC72: -21252803203
A73: 투자활동현금흐름(분기) | B73: =B52 -> -2676712068 | C73: -2626841883 | D73: 362056133 | E73: -1914948410 | F73: =F52 -> -2817886826 | G73: 1421470508 | H73: -2088606850 | I73: -1462808714 | J73: =J52 -> -567072470 | K73: -1927329549 | L73: -6308465502 | M73: -7139939188 | N73: =N52 -> -2262267291 | O73: -6533488292 | P73: -2394029416 | Q73: -2418981285 | R73: =R52 -> -2168853518 | S73: -3768097565 | T73: -3480709440 | U73: -1647947491 | V73: =V52 -> -2256911946 | W73: -5963398402 | X73: -11553001836 | Y73: -24658855248 | Z73: =Z52 -> -23761185669 | AA73: 11283476513 | AB73: -2339874096 | AC73: 14817583252
A74: 재무활동현금흐름(분기) | B74: =B53 -> 4028395061 | C74: -2089854737 | D74: -1438102561 | E74: 3430109936 | F74: =F53 -> -2765458780 | G74: 4014389090 | H74: 133729364 | I74: -1355770064 | J74: =J53 -> 4127318766 | K74: -754426822 | L74: 13976365846 | M74: 4378703923 | N74: =N53 -> 435947413 | O74: 2917653318 | P74: 7673314546 | Q74: 5336721781 | R74: =R53 -> -425979139 | S74: 5521902103 | T74: 1748915840 | U74: 1756233433 | V74: =V53 -> 3081805543 | W74: 5665163732 | X74: 3451511019 | Y74: 39918515279 | Z74: =Z53 -> 921784439 | AA74: -8021356174 | AB74: -12600598458 | AC74: 19700170193
A75: (보통주)발행주식총수 | B75: 9481285 | C75: 9481285 | D75: 9481285 | E75: 13259245 | F75: 13259245 | G75: 14034430 | H75: 14034430 | I75: 14551225 | J75: 14551225 | K75: 14551225 | L75: 14551225 | M75: 14551225 | N75: 14551225 | O75: 14551225 | P75: 14551225 | Q75: 14551225 | R75: 14737126 | S75: 14830076 | T75: 15201745 | U75: 15387644 | V75: 15387644 | W75: 15387644 | X75: 15480593 | Y75: 15480593 | Z75: 15480593 | AA75: 15480593 | AB75: 15480593
A76: (보통주)자기주식수 | B76: 603844 | C76: 676101 | D76: 611455 | E76: 612307 | F76: 612307 | G76: 580307 | H76: 580307 | I76: 580307 | J76: 580307 | K76: 573507 | L76: 573507 | M76: 573507 | N76: 573507 | O76: 573507 | P76: 573507 | Q76: 573507 | R76: 573507 | S76: 573507 | T76: 573507 | U76: 573507 | V76: 573507 | W76: 573507 | X76: 570587 | Y76: 591091 | Z76: 591091 | AA76: 624096 | AB76: 723989
A77: (보통주)유통주식수 | B77: 8877441 | C77: 8805184 | D77: 8869830 | E77: 12646938 | F77: 12646938 | G77: 13454123 | H77: 13454123 | I77: 13970918 | J77: 13970918 | K77: 13977718 | L77: 13977718 | M77: 13977718 | N77: 13977718 | O77: 13977718 | P77: 13977718 | Q77: 13977718 | R77: 14163619 | S77: 14256569 | T77: 14628238 | U77: 14814137 | V77: 14814137 | W77: 14814137 | X77: 14910006 | Y77: 14889502 | Z77: 14889502 | AA77: 14856497 | AB77: 14756604
A78: (우선주)발행주식총수 | B78: - | C78: - | D78: - | E78: - | F78: - | G78: - | H78: - | I78: - | J78: - | K78: - | L78: 743604 | M78: 743604 | N78: 743604 | O78: 743604 | P78: 743604 | Q78: 743604 | R78: 594881 | S78: 520520 | T78: 223081 | U78: 74360 | V78: 74360 | W78: 74360 | X78: - | Y78: - | Z78: - | AA78: - | AB78: -
A79: (우선주)자기주식수 | B79: - | C79: - | D79: - | E79: - | F79: - | G79: - | H79: - | I79: - | J79: - | K79: - | L79: - | M79: - | N79: - | O79: - | P79: - | Q79: - | R79: - | S79: - | T79: - | U79: - | V79: - | W79: - | X79: - | Y79: - | Z79: - | AA79: - | AB79: -
A80: (우선주)유통주식수 | B80: - | C80: - | D80: - | E80: - | F80: - | G80: - | H80: - | I80: - | J80: - | K80: - | L80: 743604 | M80: 743604 | N80: 743604 | O80: 743604 | P80: 743604 | Q80: 743604 | R80: 594881 | S80: 520520 | T80: 223081 | U80: 74360 | V80: 74360 | W80: 74360 | X80: - | Y80: - | Z80: - | AA80: - | AB80: -
A81: 현금배당성향% | B81: - | C81: - | D81: - | E81: - | F81: - | G81: - | H81: - | I81: - | J81: - | K81: - | L81: - | M81: - | N81: - | O81: - | P81: - | Q81: - | R81: 15 | S81: 15 | T81: 15 | U81: 15 | V81: 6.5 | W81: 6.5 | X81: 6.5 | Y81: 6.5 | Z81: - | AA81: - | AB81: -
A82: 현금배당금 | B82: - | C82: - | D82: - | E82: - | F82: - | G82: - | H82: - | I82: - | J82: - | K82: - | L82: - | M82: - | N82: - | O82: - | P82: - | Q82: - | R82: 50 | S82: 50 | T82: 50 | U82: 50 | V82: 100 | W82: 100 | X82: 100 | Y82: 100 | Z82: 100 | AA82: 100 | AB82: 100
A83: 최대주주 | B83: 9.98 | C83: 9.98 | D83: 9.98 | E83: 8.88 | F83: 9.12 | G83: 8.62 | H83: 8.66 | I83: 8.35 | J83: 8.35 | K83: 8.35 | L83: 8.35 | M83: 8.35 | N83: 8.35 | O83: 8.35 | P83: 8.35 | Q83: 8.47 | R83: 8.37 | S83: 5.21 | T83: 4.77 | U83: 4.72 | V83: 4.72 | W83: 4.72 | X83: 4.69 | Y83: 4.69 | Z83: 4.69 | AA83: 4.69 | AB83: 4.69
A84: 최대 및 특수관계인 | B84: 35.98 | C84: 35.98 | D84: 35.92 | E84: 32.9 | F84: 33.22 | G84: 31.61 | H84: 31.61 | I84: 30.4 | J84: 30.4 | K84: 30.39 | L84: 30.39 | M84: 30.36 | N84: 30.36 | O84: 30.36 | P84: 30.36 | Q84: 30.48 | R84: 30.31 | S84: 29.3 | T84: 28.3 | U84: 27.79 | V84: 27.79 | W84: 27.79 | X84: 27.56 | Y84: 27.56 | Z84: 27.43 | AA84: 27.43 | AB84: 27.43
A85: 직원수 | B85: 162 | C85: 152 | D85: 152 | E85: 175 | F85: 180 | G85: 192 | H85: 190 | I85: 185 | J85: 195 | K85: 203 | L85: 214 | M85: 220 | N85: 237 | O85: 241 | P85: 235 | Q85: 242 | R85: 251 | S85: 250 | T85: 239 | U85: 267 | V85: 274 | W85: 295 | X85: 313 | Y85: 290 | Z85: 287 | AA85: 287 | AB85: 295
A86: 근속연수 | B86: 5 | C86: 5.6 | D86: 5 | E86: 5.2 | F86: 4 | G86: 4.166667 | H86: 4 | I86: 4 | J86: 4.333333 | K86: 4.5 | L86: 4 | M86: 4.833333 | N86: 5 | O86: 5.166667 | P86: 5.5 | Q86: 5.5 | R86: 6.333333 | S86: 6.833333 | T86: 6.833333 | U86: 7 | V86: 7.333333 | W86: 7.5 | X86: 7.333333 | Y86: 5.72 | Z86: 6.333333 | AA86: 6.333333 | AB86: 6.666667
A87: 평균연봉 | B87: 9950617.284 | C87: 20085526.32 | D87: 31671052.63 | E87: 40188571.43 | F87: 11355555.56 | G87: 21218750 | H87: 30000000 | I87: 45189189.19 | J87: 11717948.72 | K87: 22650246.31 | L87: 33883177.57 | M87: 44563636.36 | N87: 12375527.43 | O87: 23601659.75 | P87: 37063829.79 | Q87: 47119834.71 | R87: 13820717.13 | S87: 25300000 | T87: 40146443.51 | U87: 48838951.31 | V87: 14959854.01 | W87: 25949152.54 | X87: 37996805.11 | Y87: 54348275.86 | Z87: 17689895.47 | AA87: 31278745.64 | AB87: 44362711.86
A88: 임원수 | B88: 8 | C88: 8 | D88: 8 | E88: 8 | F88: 5 | G88: 5 | H88: 5 | I88: 5 | J88: 5 | K88: 5 | L88: 5 | M88: 5 | N88: 6 | O88: 6 | P88: 6 | Q88: 6 | R88: 6 | S88: 6 | T88: 6 | U88: 6 | V88: 6 | W88: 6 | X88: 6 | Y88: 6 | Z88: 6 | AA88: 6 | AB88: 6
A89: 임원평균연봉 | B89: 33000000 | C89: 54000000 | D89: 75000000 | E89: 109000000 | F89: 53000000 | G89: 103000000 | H89: 170000000 | I89: 227000000 | J89: 41000000 | K89: 90000000 | L89: 142000000 | M89: 202000000 | N89: 46000000 | O89: 91000000 | P89: 174000000 | Q89: 217000000 | R89: 54000000 | S89: 112000000 | T89: 166000000 | U89: 246000000 | V89: 66000000 | W89: 122000000 | X89: 181000000 | Y89: 243000000 | Z89: 81000000 | AA89: 143000000 | AB89: 208000000
A90: 주가 | B90: 4274 | C90: 4112 | D90: 3198 | E90: 4170 | F90: 4755 | G90: 7560 | H90: 7870 | I90: 14500 | J90: 20400 | K90: 31700 | L90: 17000 | M90: 20700 | N90: 16250 | O90: 18800 | P90: 18300 | Q90: 16900 | R90: 18300 | S90: 44250 | T90: 36500 | U90: 40300 | V90: 49700 | W90: 57400 | X90: 104700 | Y90: 88700 | Z90: 81900 | AA90: 75400 | AB90: 90400
A91: 시가총액 | B91: =B90*B75 -> 40523012090 | C91: =C90*C75 -> 38987043920 | D91: 30321149430 | E91: 55291051650 | F91: 63047709975 | G91: 106100290800 | H91: 110450964100 | I91: =I90*I75 -> 210992762500 | J91: 296844990000 | K91: 461273832500 | L91: 247370825000 | M91: 301210357500 | N91: 236457406250 | O91: 273563030000 | P91: 266287417500 | Q91: 245915702500 | R91: 269689405800 | S91: 656230863000 | T91: 554863692500 | U91: 620122053200 | V91: =V90*V75 -> 764765906800 | W91: 883250765600 | X91: 1620818087100 | Y91: 1373128599100 | Z91: 1267860566700 | AA91: 1167236712200 | AB91: 1399445607200
A92: 자사주비율 | B92: =IFERROR(B76/B75,0) -> 0.06368799166 | C92: =IFERROR(C76/C75,0) -> 0.07130900506 | D92: 0.06449073095 | E92: 0.04617962787 | F92: 0.04617962787 | G92: 0.04134881146 | H92: 0.04134881146 | I92: 0.03988028499 | J92: 0.03988028499 | K92: 0.03941297039 | L92: 0.03941297039 | M92: 0.03941297039 | N92: 0.03941297039 | O92: 0.03941297039 | P92: 0.03941297039 | Q92: 0.03941297039 | R92: 0.03891579674 | S92: 0.03867188543 | T92: 0.0377263926 | U92: 0.03727061791 | V92: 0.03727061791 | W92: 0.03727061791 | X92: 0.03685821338 | Y92: =IFERROR(Y76/Y75,0) -> 0.03818271044 | Z92: =IFERROR(Z76/Z75,0) -> 0.03818271044 | AA92: =IFERROR(AA76/AA75,0) -> 0.04031473471 | AB92: =IFERROR(AB76/AB75,0) -> 0.0467675237
A93: 배당률 | B93: =IFERROR((B82/B90)*100,0) -> 0 | C93: =IFERROR((C82/C90)*100,0) -> 0 | D93: 0 | E93: 0 | F93: 0 | G93: 0 | H93: 0 | I93: 0 | J93: 0 | K93: 0 | L93: 0 | M93: 0 | N93: 0 | O93: 0 | P93: 0 | Q93: 0 | R93: 0.2732240437 | S93: 0.1129943503 | T93: 0.1369863014 | U93: 0.1240694789 | V93: 0.2012072435 | W93: 0.1742160279 | X93: 0.09551098376 | Y93: =IFERROR((Y82/Y90)*100,0) -> 0.1127395716 | Z93: =IFERROR((Z82/Z90)*100,0) -> 0.1221001221 | AA93: =IFERROR((AA82/AA90)*100,0) -> 0.1326259947 | AB93: =IFERROR((AB82/AB90)*100,0) -> 0.110619469
A94: EPS(주당순이익) | B94: =B71/B75 -> 58.080499 | C94: =C71/C75 -> 13.11407979 | D94: 58.39727913 | E94: =E71/E75 -> 53.26830457 | F94: 61.23128941 | G94: 76.97573852 | H94: 60.99743217 | I94: =I71/I75 -> -550.5307315 | J94: 1.197000527 | K94: 40.99883646 | L94: 0.5700149644 | M94: 27.10684324 | N94: 18.84024967 | O94: -43.4512418 | P94: -34.9132826 | Q94: -62.13487737 | R94: 469.0492377 | S94: 394.7076096 | T94: 455.4449243 | U94: 330.1133966 | V94: =V71/V75 -> 1276.470675 | W94: 1157.548701 | X94: 1148.996445 | Y94: 1477.539302 | Z94: 578.4828395 | AA94: 701.9458932 | AB94: 754.516142
A95: ROE(자본대비순이익) | B95: =B71*100/B30 -> 1.005233153 | C95: =C71*100/C30 -> 0.2327738476 | D95: 1.044603193 | E95: 1.207938965 | F95: 1.409835525 | G95: 1.74765524 | H95: 1.406323756 | I95: =I71*100/I30 -> -15.06409718 | J95: 0.03239750737 | K95: 1.102462957 | L95: 0.0113810403 | M95: 0.4796665814 | N95: 0.3309584045 | O95: -0.7768545614 | P95: -0.6244514076 | Q95: -1.121887498 | R95: 8.334318296 | S95: 6.980693812 | T95: 8.020963682 | U95: 5.941921948 | V95: =V71*100/V30 -> 21.78662249 | W95: 18.87000166 | X95: 17.8375611 | Y95: 17.61469569 | Z95: 6.839078425 | AA95: 8.243088417 | AB95: 9.083304797
A96: 영업이익율 | B96: =B38*100/B34 -> 3.255116373 | C96: =C38*100/C34 -> 4.153650147 | D96: 6.574304366 | E96: 9.372254864 | F96: 4.277288375 | G96: 3.848445748 | H96: 2.028982921 | I96: =I38*100/I34 -> 2.783510329 | J96: 3.541653705 | K96: 4.429650213 | L96: 1.902324963 | M96: 4.565588888 | N96: 2.178105586 | O96: 3.283679656 | P96: 2.864898195 | Q96: 1.013673203 | R96: 6.626836831 | S96: 5.531902264 | T96: 7.621796703 | U96: 3.568715704 | V96: =V38*100/V34 -> 11.05822553 | W96: 9.23312335 | X96: 9.269392197 | Y96: 6.008979966 | Z96: 9.121751966 | AA96: 8.62411262 | AB96: 8.934281626
A97: PER(시총/당기순이익) | B97: =B91/B71 -> 73.58752203 | C97: =C91/C71 -> 313.5561218 | D97: 54.76282538 | E97: 78.28294957 | F97: 77.65637545 | G97: 98.21276346 | H97: 129.0218247 | I97: =I91/I71 -> -26.33822087 | J97: 17042.59901 | K97: 773.1926742 | L97: 29823.77843 | M97: 763.6448043 | N97: 862.5151091 | O97: -432.6688771 | P97: -524.1558122 | Q97: -271.9889491 | R97: 39.01509379 | S97: 112.1083023 | T97: 80.14141348 | U97: 122.0792625 | V97: =V91/V71 -> 38.93548122 | W97: 49.58754648 | X97: 91.12299736 | Y97: 60.03224406 | Z97: 141.5772334 | AA97: 107.4156865 | AB97: 119.8118834
A98: 당기순이익/영업이익 | B98: =B46*100/B38 -> 26.73007476 | C98: =C46*100/C38 -> -10.5549077 | D98: 32.44492235 | E98: 16.95556099 | F98: 22.84827182 | G98: 36.28754918 | H98: 20.00127766 | I98: =I46*100/I38 -> -1330.220853 | J98: 0.4733164433 | K98: 25.95580207 | L98: -62.12186504 | M98: 31.87161827 | N98: 12.22344466 | O98: -44.08522474 | P98: -7.223128984 | Q98: -157.7592635 | R98: 68.9320463 | S98: 57.43400371 | T98: 74.90394087 | U98: -8.057883717 | V98: =V46*100/V38 -> 96.54645543 | W98: 86.098887 | X98: 91.05572851 | Y98: 317.825122 | Z98: 64.09595334 | AA98: 63.19407413 | AB98: 92.74432256
A99: 주당순자산(자본/1주당) | B99: =B30/B75 -> 5777.81372 | C99: =C30/C75 -> 5633.828682 | D99: 5590.379153 | E99: 4409.850671 | F99: 4343.151262 | G99: 4404.515077 | H99: 4337.367687 | I99: =I30/I75 -> 3654.58829 | J99: 3694.730319 | K99: 3718.840275 | L99: 5008.460994 | M99: 5651.184446 | N99: 5692.633701 | O99: 5593.227351 | P99: 5591.032734 | Q99: 5538.42319 | R99: 5627.925656 | S99: 5654.274779 | T99: 5678.182104 | U99: 5555.666995 | V99: =V30/V75 -> 5858.965407 | W99: 6134.332799 | X99: 6441.443639 | Y99: 8388.105751 | Z99: 8458.491094 | AA99: 8515.569137 | AB99: 8306.625825
A100: PBR(주가/주당순자산) | B100: =B90/B99 -> 0.7397261676 | C100: =C90/C99 -> 0.729876649 | D100: 0.5720542225 | E100: 0.9456102511 | F100: 1.094827169 | G100: 1.716420507 | H100: 1.814464571 | I100: =I90/I99 -> 3.967615187 | J100: 5.52137727 | K100: 8.524162818 | L100: 3.394256244 | M100: 3.662948927 | N100: 2.854566244 | O100: 3.361207908 | P100: 3.273098347 | Q100: 3.051410017 | R100: 3.2516421 | S100: 7.825937319 | T100: 6.428113669 | U100: 7.253854494 | V100: =V90/V99 -> 8.482726308 | W100: 9.357170842 | X100: 16.25412033 | Y100: 10.57449711 | Z100: 9.682578026 | AA100: 8.854370011 | AB100: 10.88287855
A101: EPS증가율(%) | B101: =(B94-#REF!)*100/ABS(#REF!) ->  | C101: =(C94-#REF!)*100/ABS(#REF!) ->  | D101: =(D94-#REF!)*100/ABS(#REF!) ->  | E101: =(E94-A94)*100/ABS(A94) ->  | F101: =(F94-B94)*100/ABS(B94) -> 5.424868008 | G101: =(G94-C94)*100/ABS(C94) -> 486.9701859 | H101: =(H94-D94)*100/ABS(D94) -> 4.452524295 | I101: =(I94-E94)*100/ABS(E94) -> -1133.505263 | J101: =(J94-F94)*100/ABS(F94) -> -98.04511625 | K101: -46.73797583 | L101: -99.0655099 | M101: 104.9237657 | N101: 1473.955001 | O101: -205.9816462 | P101: -6224.976498 | Q101: -329.2221076 | R101: 2389.612643 | S101: 1008.392012 | T101: 1404.503302 | U101: 631.2851824 | V101: =(V94-R94)*100/ABS(R94) -> 172.140017 | W101: 193.267389 | X101: 152.2799977 | Y101: 347.5853805 | Z101: -54.68107095 | AA101: -39.3592777 | AB101: -34.33259559
A102: PEG(PER/EPS) | F102: =F97/F101 -> 14.31488754 | G102: =G97/G101 -> 0.2016812657 | H102: =H97/H101 -> 28.97723092 | I102: =I97/I101 -> 0.02323608166 | J102: -173.8240481 | K102: -16.54313565 | L102: -301.0510768 | M102: 7.278091854 | N102: 0.5851705841 | O102: 2.100521503 | P102: 0.08420205479 | Q102: 0.8261563936 | R102: 0.0163269532 | S102: 0.1111753177 | T102: 0.05706032402 | U102: 0.1933821131 | V102: =V97/V101 -> 0.2261849505 | W102: 0.2565748249 | X102: 0.5983911132 | Y102: 0.1727122239 | Z102: -2.589145219 | AA102: -2.729107158 | AB102: -3.489741492
A103: 매출원가율 | B103: =B35*100/B34 -> 74.59148491 | C103: =C35*100/C34 -> 71.77790382 | D103: 71.61350559 | E103: 73.05415372 | F103: 77.35683176 | G103: 80.36179077 | H103: 81.8914069 | I103: =I35*100/I34 -> 78.49886046 | J103: 79.43639905 | K103: 78.77772791 | L103: 79.79018868 | M103: 77.31518998 | N103: 80.10124749 | O103: 79.03686024 | P103: 79.98305201 | Q103: 82.040897 | R103: 80.04691742 | S103: 80.83520274 | T103: 80.12456101 | U103: 83.22583842 | V103: =V35*100/V34 -> 77.06710871 | W103: 79.19331049 | X103: 78.58349704 | Y103: 81.11496599 | Z103: 79.11202009 | AA103: 80.1370985 | AB103: 76.07108265
A104: 판관비율 | B104: =B37*100/B34 -> 22.15339872 | C104: =C37*100/C34 -> 24.06844603 | D104: 21.81219004 | E104: 17.57359141 | F104: 18.36587986 | G104: 15.78976348 | H104: 16.07961018 | I104: =I37*100/I34 -> 18.71762921 | J104: 17.02194724 | K104: 16.59778081 | L104: 17.95662195 | M104: 18.63095777 | N104: 17.72064692 | O104: 17.47717535 | P104: 17.04084531 | Q104: 17.21635051 | R104: 13.32624575 | S104: 13.39382089 | T104: 12.25364228 | U104: 13.43497479 | V104: =V37*100/V34 -> 11.87466575 | W104: 11.57356616 | X104: 12.14711076 | Y104: 12.87605404 | Z104: 11.76622794 | AA104: 11.23878888 | AB104: 14.99463573
A105: 임원급여/직원급여 | B105: =B89/B87 -> 3.316377171 | C105: =C89/C87 -> 2.688503112 | D105: 2.368093062 | E105: 2.712213849 | F105: 4.667318982 | G105: 4.854197349 | H105: 5.666666667 | I105: =I89/I87 -> 5.023325359 | J105: 3.498905908 | K105: 3.973466725 | L105: 4.190870225 | M105: 4.532843737 | N105: 3.717013297 | O105: 3.855661041 | P105: 4.694603904 | Q105: 4.605279312 | R105: 3.907177861 | S105: 4.42687747 | T105: 4.134861907 | U105: 5.03696319 | V105: =V89/V87 -> 4.411807758 | W105: 4.701502286 | X105: 4.763558396 | Y105: 4.471162997 | Z105: 4.578885168 | AA105: 4.571794586 | AB105: 4.688622297
A106: 영업이익/직원수 | B106: =B70/B85 -> 12716932.1 | C106: =C70/C85 -> 16188755.72 | D106: 20338824.2 | E106: 23057672.6 | F106: 19740872.27 | G106: 18932735.94 | H106: 16329644.15 | I106: =I70/I85 -> 16094397.94 | J106: 18871555.3 | K106: 20221094.17 | L106: 15717127.25 | M106: 17003016.92 | N106: 9463335.848 | O106: 11894324.81 | P106: 13229019.56 | Q106: 11004981.67 | R106: 39951798.87 | S106: 36752009.7 | T106: 42505276 | U106: 33788141.06 | V106: =V70/V85 -> 74249934.6 | W106: 65943865.01 | X106: 62179720.77 | Y106: 60676146.79 | Z106: 48681680.85 | AA106: 59567261.09 | AB106: 54848280.59
A107: 매출액3년 GAGR | J107: =IFERROR(RATE(2,0,-B34,J34),0) -> 0.2813054745 | K107: 0.2184093708 | L107: 0.2218952441 | M107: 0.2069551802 | N107: 0.1133242764 | O107: 0.04907229381 | P107: 0.1175425771 | Q107: 0.1831195404 | R107: 0.2067957886 | S107: 0.2147903607 | T107: 0.2672418274 | U107: 0.2136331822 | V107: 0.3366686502 | W107: 0.3752910008 | X107: 0.2944034003 | Y107: 0.2352760486 | Z107: 0.006080449988 | AA107: 0.2464542313 | AB107: 0.00580508535
A108: 매출액5년 GAGR | R108: =IFERROR(RATE(4,0,-B34,R34),0) -> 0.2434926822 | S108: 0.2165985201 | T108: 0.24436199 | U108: 0.2102895753 | V108: 0.2198957569 | W108: 0.2011576436 | X108: 0.2027264493 | Y108: 0.2089165525 | Z108: 0.1018773299 | AA108: 0.230520453 | AB108: 0.128981078
A109: 자본3년 GAGR | J109: =IFERROR(RATE(2,0,-B29,J29),0) -> 0.003074264865 | K109: 0.01893947275 | L109: 0.1829235072 | M109: 0.195601457 | N109: 0.2097793369 | O109: 0.1580748588 | P109: 0.1551266216 | Q109: 0.228291455 | R109: 0.2388125029 | S109: 0.2417675627 | T109: 0.08991141388 | U109: 0.02166270944 | V109: 0.0450289807 | W109: 0.07777933327 | X109: 0.1072741069 | Y109: 0.2670507302 | Z109: 0.254091766 | AA109: 0.2511599179 | AB109: 0.2175529783
A110: 자본5년 GAGR | R110: =IFERROR(RATE(4,0,-B29,R29),0) -> 0.1147290885 | S110: 0.1248493168 | T110: 0.1354654694 | U110: 0.1052155554 | V110: 0.1243907094 | W110: 0.1172059565 | X110: 0.1309473013 | Y110: 0.247520575 | Z110: 0.2464287222 | AA110: 0.2464548936 | AB110: 0.1519656627
A111: 영익3년 GAGR | J111: =IFERROR(RATE(2,0,-B38,J38),0) -> 0.3365107899 | K111: 0.2582385594 | L111: -0.3427184758 | M111: -0.1576016659 | N111: -0.2055311426 | O111: -0.03095683161 | P111: 0.327943139 | Q111: -0.2860279815 | R111: 0.6507597738 | S111: 0.3575438593 | T111: 1.536564008 | U111: 0.07298837509 | V111: 2.011806176 | W111: 1.306155188 | X111: 1.328309323 | Y111: 2.007567726 | Z111: 0.1803714614 | AA111: 0.5563106758 | AB111: 0.08896761869
A112: 영익5년 GAGR | R112: =IFERROR(RATE(4,0,-B38,R38),0) -> 0.4853478546 | S112: 0.3069483654 | T112: 0.2912151865 | U112: -0.04927205803 | V112: 0.5468633461 | W112: 0.494912683 | X112: 0.758369242 | Y112: 0.4653733997 | Z112: 0.3958902989 | AA112: 0.4535336257 | AB112: 0.6619976137
A113: 현금흐름 3년 GAGR | J113: =IFERROR(RATE(2,0,-B72,J72),0) -> -0.1427185622 | K113: -0.2929335441 | L113: 0 | M113: -0.1746031331 | N113: 1.279276565 | O113: -0.1190976055 | P113: 3.81838582 | Q113: 1.209788846 | R113: 0 | S113: 0 | T113: 2.336836936 | U113: 0.5555315635 | V113: -0.1044285409 | W113: 0.8134892439 | X113: 0 | Y113: -0.3973563014 | Z113: 0.7133414584 | AA113: 0 | AB113: 0.1530306541
A114: 현금흐름 5년 GAGR | R114: =IFERROR(RATE(4,0,-B72,R72),0) -> 0 | S114: 0 | T114: 0 | U114: 0.1331067377 | V114: 0.4287249698 | W114: 0.263925242 | X114: 0 | Y114: 0.1539997067 | Z114: 0 | AA114: 0.2142590124 | AB114: 0.961498222

Sheet 분기재무제표분석
A1: home | C1: PBR | D1: 6.6
C2: 매출원가 | D2: 81.7
A3: go to score | C3: PER | D3: 41
C4: PSR | D4: 5.1 | E4: 평균 | G4: =분기재무제표DB!B5 -> 16.1Q | H4: =분기재무제표DB!C5 -> 16.2Q | I4: =분기재무제표DB!D5 -> 16.3Q | J4: =분기재무제표DB!E5 -> 16.4Q | K4: =분기재무제표DB!F5 -> 17.1Q | L4: =분기재무제표DB!G5 -> 17.2Q | M4: =분기재무제표DB!H5 -> 17.3Q | N4: =분기재무제표DB!I5 -> 17.4Q | O4: =분기재무제표DB!J5 -> 18.1Q | P4: =분기재무제표DB!K5 -> 18.2Q | Q4: =분기재무제표DB!L5 -> 18.3Q | R4: =분기재무제표DB!M5 -> 18.4Q | S4: =분기재무제표DB!N5 -> 19.1Q | T4: =분기재무제표DB!O5 -> 19.2Q | U4: =분기재무제표DB!P5 -> 19.3Q | V4: =분기재무제표DB!Q5 -> 19.4Q | W4: =분기재무제표DB!R5 -> 20.1Q | X4: =분기재무제표DB!S5 -> 20.2Q | Y4: =분기재무제표DB!T5 -> 20.3Q | Z4: =분기재무제표DB!U5 -> 20.4Q | AA4: =분기재무제표DB!V5 -> 21.1Q | AB4: =분기재무제표DB!W5 -> 21.2Q | AC4: =분기재무제표DB!X5 -> 21.3Q | AD4: =분기재무제표DB!Y5 -> 21.4Q | AE4: =분기재무제표DB!Z5 -> 22.1Q | AF4: =분기재무제표DB!AA5 -> 22.2Q | AG4: =분기재무제표DB!AB5 -> 22.3Q
A5: 안정성 | C5: 자산총계 우상향 | F5: 자산총계 | K5: =(분기재무제표DB!F6-분기재무제표DB!B6)/분기재무제표DB!B6 -> -0.01294097565 | L5: =(분기재무제표DB!G6-분기재무제표DB!C6)/분기재무제표DB!C6 -> 0.05605998412 | M5: =(분기재무제표DB!H6-분기재무제표DB!D6)/분기재무제표DB!D6 -> 0.09442997951 | N5: =(분기재무제표DB!I6-분기재무제표DB!E6)/분기재무제표DB!E6 -> -0.05221242234 | O5: =(분기재무제표DB!J6-분기재무제표DB!F6)/분기재무제표DB!F6 -> 0.01359374058 | P5: =(분기재무제표DB!K6-분기재무제표DB!G6)/분기재무제표DB!G6 -> -0.03290214866 | Q5: =(분기재무제표DB!L6-분기재무제표DB!H6)/분기재무제표DB!H6 -> 0.03817481747 | R5: =(분기재무제표DB!M6-분기재무제표DB!I6)/분기재무제표DB!I6 -> 0.2953460429 | S5: =(분기재무제표DB!N6-분기재무제표DB!J6)/분기재무제표DB!J6 -> 0.2775354364 | T5: =(분기재무제표DB!O6-분기재무제표DB!K6)/분기재무제표DB!K6 -> 0.2665574259 | U5: =(분기재무제표DB!P6-분기재무제표DB!L6)/분기재무제표DB!L6 -> 0.2142003274 | V5: =(분기재무제표DB!Q6-분기재무제표DB!M6)/분기재무제표DB!M6 -> 0.1028343987 | W5: =(분기재무제표DB!R6-분기재무제표DB!N6)/분기재무제표DB!N6 -> 0.1067172006 | X5: =(분기재무제표DB!S6-분기재무제표DB!O6)/분기재무제표DB!O6 -> 0.1333244416 | Y5: =(분기재무제표DB!T6-분기재무제표DB!P6)/분기재무제표DB!P6 -> 0.1027146741 | Z5: =(분기재무제표DB!U6-분기재무제표DB!Q6)/분기재무제표DB!Q6 -> 0.07730627844 | AA5: =(분기재무제표DB!V6-분기재무제표DB!R6)/분기재무제표DB!R6 -> 0.1028325835 | AB5: =(분기재무제표DB!W6-분기재무제표DB!S6)/분기재무제표DB!S6 -> 0.1385126553 | AC5: =(분기재무제표DB!X6-분기재무제표DB!T6)/분기재무제표DB!T6 -> 0.1610326175 | AD5: =(분기재무제표DB!Y6-분기재무제표DB!U6)/분기재무제표DB!U6 -> 0.4484156567 | AE5: =(분기재무제표DB!Z6-분기재무제표DB!V6)/분기재무제표DB!V6 -> 0.4069449817 | AF5: =(분기재무제표DB!AA6-분기재무제표DB!W6)/분기재무제표DB!W6 -> 0.3078793111 | AG5: =(분기재무제표DB!AB6-분기재무제표DB!X6)/분기재무제표DB!X6 -> 0.2338941228
B6: 1) | C6: -우상향(↑) | D6: 5 | F6: . | O6: =5-(COUNTIF(K5:O5,"<0")) -> 3 | P6: 3 | Q6: 3 | R6: 3 | S6: 4 | T6: 4 | U6: 5 | V6: 5 | W6: 5 | X6: 5 | Y6: 5 | Z6: 5 | AA6: 5 | AB6: 5 | AC6: 5 | AD6: 5 | AE6: 5 | AF6: 5 | AG6: 5
C7: 자본총계 우상향 | F7: 자본총계 | K7: =(분기재무제표DB!F29-분기재무제표DB!B29)/분기재무제표DB!B29 -> 0.05121854404 | L7: =(분기재무제표DB!G29-분기재무제표DB!C29)/분기재무제표DB!C29 -> 0.1572362834 | M7: =(분기재무제표DB!H29-분기재무제표DB!D29)/분기재무제표DB!D29 -> 0.1728355128 | N7: =(분기재무제표DB!I29-분기재무제표DB!E29)/분기재무제표DB!E29 -> -0.06857574664 | O7: =(분기재무제표DB!J29-분기재무제표DB!F29)/분기재무제표DB!F29 -> -0.04286507641 | P7: =(분기재무제표DB!K29-분기재무제표DB!G29)/분기재무제표DB!G29 -> -0.1028300236 | Q7: =(분기재무제표DB!L29-분기재무제표DB!H29)/분기재무제표DB!H29 -> 0.1930982723 | R7: =(분기재무제표DB!M29-분기재무제표DB!I29)/분기재무제표DB!I29 -> 0.5347064873 | S7: =(분기재무제표DB!N29-분기재무제표DB!J29)/분기재무제표DB!J29 -> 0.5291115265 | T7: =(분기재무제표DB!O29-분기재무제표DB!K29)/분기재무제표DB!K29 -> 0.4948531648 | U7: =(분기재무제표DB!P29-분기재무제표DB!L29)/분기재무제표DB!L29 -> 0.1183634599 | V7: =(분기재무제표DB!Q29-분기재무제표DB!M29)/분기재무제표DB!M29 -> -0.01694564336 | W7: =(분기재무제표DB!R29-분기재무제표DB!N29)/분기재무제표DB!N29 -> 0.00362621743 | X7: =(분기재무제표DB!S29-분기재무제표DB!O29)/분기재무제표DB!O29 -> 0.03153053162 | Y7: =(분기재무제표DB!T29-분기재무제표DB!P29)/분기재무제표DB!P29 -> 0.06218321026 | Z7: =(분기재무제표DB!U29-분기재무제표DB!Q29)/분기재무제표DB!Q29 -> 0.06178736183 | AA7: =(분기재무제표DB!V29-분기재무제표DB!R29)/분기재무제표DB!R29 -> 0.08813973921 | AB7: =(분기재무제표DB!W29-분기재무제표DB!S29)/분기재무제표DB!S29 -> 0.1261017058 | AC7: =(분기재무제표DB!X29-분기재무제표DB!T29)/분기재무제표DB!T29 -> 0.1542791639 | AD7: =(분기재무제표DB!Y29-분기재무제표DB!U29)/분기재무제표DB!U29 -> 0.5119953491 | AE7: =(분기재무제표DB!Z29-분기재무제표DB!V29)/분기재무제표DB!V29 -> 0.4453531113 | AF7: =(분기재무제표DB!AA29-분기재무제표DB!W29)/분기재무제표DB!W29 -> 0.3901063573 | AG7: =(분기재무제표DB!AB29-분기재무제표DB!X29)/분기재무제표DB!X29 -> 0.2842952565
B8: 2) | C8: -우상향(↑) | D8: 5 | F8: . | O8: =5-(COUNTIF(K7:O7,"<0")) -> 3 | P8: 2 | Q8: 2 | R8: 2 | S8: 3 | T8: 4 | U8: 5 | V8: 4 | W8: 4 | X8: 4 | Y8: 4 | Z8: 4 | AA8: 5 | AB8: 5 | AC8: 5 | AD8: 5 | AE8: 5 | AF8: 5 | AG8: 5
C9: 유보율(잉여금/자본) | F9: .
B10: 3) | C10: -유보율(↑) | D10: 2 | F10: 유보율(+) | G10: =분기재무제표DB!B63/분기재무제표DB!B30 -> 0.5322393852 | H10: =분기재무제표DB!C63/분기재무제표DB!C30 -> 0.5444285068 | I10: =분기재무제표DB!D63/분기재무제표DB!D30 -> 0.5523792425 | J10: =분기재무제표DB!E63/분기재무제표DB!E30 -> 0.5571497606 | K10: =분기재무제표DB!F63/분기재무제표DB!F30 -> 0.5692307079 | L10: =분기재무제표DB!G63/분기재무제표DB!G30 -> 0.5803061417 | M10: =분기재무제표DB!H63/분기재무제표DB!H30 -> 0.5876729182 | N10: =분기재무제표DB!I63/분기재무제표DB!I30 -> 0.5506122802 | O10: =분기재무제표DB!J63/분기재무제표DB!J30 -> 0.5447112331 | P10: =분기재무제표DB!K63/분기재무제표DB!K30 -> 0.5494474359 | Q10: =분기재무제표DB!L63/분기재무제표DB!L30 -> 0.6706316428 | R10: =분기재무제표DB!M63/분기재무제표DB!M30 -> 0.5988003598 | S10: =분기재무제표DB!N63/분기재무제표DB!N30 -> 0.5950433415 | T10: =분기재무제표DB!O63/분기재무제표DB!O30 -> 0.5999955037 | U10: =분기재무제표DB!P63/분기재무제표DB!P30 -> 0.5994334285 | V10: =분기재무제표DB!Q63/분기재무제표DB!Q30 -> 0.5995422751 | W10: =분기재무제표DB!R63/분기재무제표DB!R30 -> 0.6031570137 | X10: =분기재무제표DB!S63/분기재무제표DB!S30 -> 0.6102582161 | Y10: =분기재무제표DB!T63/분기재무제표DB!T30 -> 0.6185483628 | Z10: =분기재무제표DB!U63/분기재무제표DB!U30 -> 0.6389808278 | AA10: =분기재무제표DB!V63/분기재무제표DB!V30 -> 0.6518812909 | AB10: =분기재무제표DB!W63/분기재무제표DB!W30 -> 0.6649470689 | AC10: =분기재무제표DB!X63/분기재무제표DB!X30 -> 0.6750313977 | AD10: =분기재무제표DB!Y63/분기재무제표DB!Y30 -> 0.6647665473 | AE10: =분기재무제표DB!Z63/분기재무제표DB!Z30 -> 0.6649615182 | AF10: =분기재무제표DB!AA63/분기재무제표DB!AA30 -> 0.6847367713 | AG10: =분기재무제표DB!AB63/분기재무제표DB!AB30 -> 0.7278331303
B11: 4) | C11: -일정유지금액 유지(↔) | D11: 0 | F11: 일정유지 | K11: =(K10-G10)/G10 -> 0.06950128794 | L11: =(L10-H10)/H10 -> 0.06589962589 | M11: 0.06389392094 | N11: -0.01173379383 | O11: -0.04307475773 | P11: -0.053176597 | Q11: 0.141164791 | R11: 0.08751726283 | S11: 0.09240145118 | T11: =(T10-P10)/P10 -> 0.09199800482 | U11: -0.1061659035 | V11: 0.001239002729 | W11: 0.01363543066 | X11: 0.01710464885 | Y11: 0.03188833539 | Z11: 0.06578110395 | AA11: 0.08078207831 | AB11: 0.08961592215 | AC11: 0.09131547077 | AD11: 0.04035444949 | AE11: 0.0200653517 | AF11: 0.02976131975 | AG11: 0.07822115062
C12: 자기자본비율(자본/자산) | F12: .
B13: 5) | C13: -60%이상 유지(↑) | D13: 4 | F13: 자기자본비율(60이상) | G13: =분기재무제표DB!B30/분기재무제표DB!B6 -> 0.396091254 | H13: =분기재무제표DB!C30/분기재무제표DB!C6 -> 0.3897337158 | I13: =분기재무제표DB!D30/분기재무제표DB!D6 -> 0.3927941538 | J13: =분기재무제표DB!E30/분기재무제표DB!E6 -> 0.4140015608 | K13: =분기재무제표DB!F30/분기재무제표DB!F6 -> 0.4218374596 | L13: =분기재무제표DB!G30/분기재무제표DB!G6 -> 0.4270723288 | M13: =분기재무제표DB!H30/분기재무제표DB!H6 -> 0.4121825366 | N13: =분기재무제표DB!I30/분기재무제표DB!I6 -> 0.3972704861 | O13: =분기재무제표DB!J30/분기재무제표DB!J6 -> 0.3885436118 | P13: =분기재무제표DB!K30/분기재무제표DB!K6 -> 0.3865851942 | Q13: =분기재무제표DB!L30/분기재무제표DB!L6 -> 0.4753373393 | R13: =분기재무제표DB!M30/분기재무제표DB!M6 -> 0.4742436483 | S13: =분기재무제표DB!N30/분기재무제표DB!N6 -> 0.4685946357 | T13: =분기재무제표DB!O30/분기재무제표DB!O6 -> 0.4590661583 | U13: =분기재무제표DB!P30/분기재무제표DB!P6 -> 0.4370179991 | V13: =분기재무제표DB!Q30/분기재무제표DB!Q6 -> 0.4214420579 | W13: =분기재무제표DB!R30/분기재무제표DB!R6 -> 0.4239445003 | X13: =분기재무제표DB!S30/분기재무제표DB!S6 -> 0.4173296885 | Y13: =분기재무제표DB!T30/분기재무제표DB!T6 -> 0.4204819322 | Z13: =분기재무제표DB!U30/분기재무제표DB!U6 -> 0.4149744199 | AA13: =분기재무제표DB!V30/분기재무제표DB!V6 -> 0.4178605121 | AB13: =분기재무제표DB!W30/분기재무제표DB!W6 -> 0.4126298062 | AC13: =분기재무제표DB!X30/분기재무제표DB!X6 -> 0.4183800453 | AD13: =분기재무제표DB!Y30/분기재무제표DB!Y6 -> 0.435182346 | AE13: =분기재무제표DB!Z30/분기재무제표DB!Z6 -> 0.4313617601 | AF13: =분기재무제표DB!AA30/분기재무제표DB!AA6 -> 0.4406103903 | AG13: =분기재무제표DB!AB30/분기재무제표DB!AB6 -> 0.4372547174
C14: 부채비율 | F14: .
B15: 6) | C15: -100%이하로 일정금액 유지(↓) | D15: 2 | F15: 부채비율(100%이하) | G15: =분기재무제표DB!B20/분기재무제표DB!B30 -> 1.524670742 | H15: =분기재무제표DB!C20/분기재무제표DB!C30 -> 1.565854478 | I15: =분기재무제표DB!D20/분기재무제표DB!D30 -> 1.545862738 | J15: =분기재무제표DB!E20/분기재무제표DB!E30 -> 1.415449831 | K15: =분기재무제표DB!F20/분기재무제표DB!F30 -> 1.370581316 | L15: =분기재무제표DB!G20/분기재무제표DB!G30 -> 1.341523748 | M15: =분기재무제표DB!H20/분기재무제표DB!H30 -> 1.40487725 | N15: =분기재무제표DB!I20/분기재무제표DB!I30 -> 1.493053466 | O15: =분기재무제표DB!J20/분기재무제표DB!J30 -> 1.548499457 | P15: =분기재무제표DB!K20/분기재무제표DB!K30 -> 1.561901409 | Q15: =분기재무제표DB!L20/분기재무제표DB!L30 -> 1.086073391 | R15: =분기재무제표DB!M20/분기재무제표DB!M30 -> 1.092193009 | S15: =분기재무제표DB!N20/분기재무제표DB!N30 -> 1.116566743 | T15: =분기재무제표DB!O20/분기재무제표DB!O30 -> 1.159734216 | U15: =분기재무제표DB!P20/분기재무제표DB!P30 -> 1.268674382 | V15: =분기재무제표DB!Q20/분기재무제표DB!Q30 -> 1.353258098 | W15: =분기재무제표DB!R20/분기재무제표DB!R30 -> 1.338924372 | X15: =분기재무제표DB!S20/분기재무제표DB!S30 -> 1.376356678 | Y15: =분기재무제표DB!T20/분기재무제표DB!T30 -> 1.357515676 | Z15: =분기재무제표DB!U20/분기재무제표DB!U30 -> 1.389265264 | AA15: =분기재무제표DB!V20/분기재무제표DB!V30 -> 1.372204364 | AB15: =분기재무제표DB!W20/분기재무제표DB!W30 -> 1.403277294 | AC15: =분기재무제표DB!X20/분기재무제표DB!X30 -> 1.370302703 | AD15: =분기재무제표DB!Y20/분기재무제표DB!Y30 -> 1.282037298 | AE15: =분기재무제표DB!Z20/분기재무제표DB!Z30 -> 1.302257324 | AF15: =분기재무제표DB!AA20/분기재무제표DB!AA30 -> 1.254095915 | AG15: =분기재무제표DB!AB20/분기재무제표DB!AB30 -> 1.271291259
B16: 7) | C16: -차입금의존도 30%(↓) | D16: 2 | F16: 차입금(30%이하) | G16: =(분기재무제표DB!B28+분기재무제표DB!B62)/분기재무제표DB!B6 -> 0.3404867105 | H16: =(분기재무제표DB!C28+분기재무제표DB!C62)/분기재무제표DB!C6 -> 0.3403415022 | I16: =(분기재무제표DB!D28+분기재무제표DB!D62)/분기재무제표DB!D6 -> 0.3391549282 | J16: =(분기재무제표DB!E28+분기재무제표DB!E62)/분기재무제표DB!E6 -> 0.3286203003 | K16: =(분기재무제표DB!F28+분기재무제표DB!F62)/분기재무제표DB!F6 -> 0.322628293 | L16: =(분기재무제표DB!G28+분기재무제표DB!G62)/분기재무제표DB!G6 -> 0.3281351556 | M16: =(분기재무제표DB!H28+분기재무제표DB!H62)/분기재무제표DB!H6 -> 0.183933803 | N16: =(분기재무제표DB!I28+분기재무제표DB!I62)/분기재무제표DB!I6 -> 0.1751624581 | O16: =(분기재무제표DB!J28+분기재무제표DB!J62)/분기재무제표DB!J6 -> 0.1598557289 | P16: =(분기재무제표DB!K28+분기재무제표DB!K62)/분기재무제표DB!K6 -> 0.3778621168 | Q16: =(분기재무제표DB!L28+분기재무제표DB!L62)/분기재무제표DB!L6 -> 0.2537053352 | R16: =(분기재무제표DB!M28+분기재무제표DB!M62)/분기재무제표DB!M6 -> 0.03595996023 | S16: =(분기재무제표DB!N28+분기재무제표DB!N62)/분기재무제표DB!N6 -> 0.03189670986 | T16: =(분기재무제표DB!O28+분기재무제표DB!O62)/분기재무제표DB!O6 -> 0.2409218144 | U16: =(분기재무제표DB!P28+분기재무제표DB!P62)/분기재무제표DB!P6 -> 0.0290974588 | V16: =(분기재무제표DB!Q28+분기재무제표DB!Q62)/분기재무제표DB!Q6 -> 0.03271706313 | W16: =(분기재무제표DB!R28+분기재무제표DB!R62)/분기재무제표DB!R6 -> 0.03055330067 | X16: =(분기재무제표DB!S28+분기재무제표DB!S62)/분기재무제표DB!S6 -> 0.2963565998 | Y16: =(분기재무제표DB!T28+분기재무제표DB!T62)/분기재무제표DB!T6 -> 0.02739403519 | Z16: =(분기재무제표DB!U28+분기재무제표DB!U62)/분기재무제표DB!U6 -> 0.026461045 | AA16: =(분기재무제표DB!V28+분기재무제표DB!V62)/분기재무제표DB!V6 -> 0.02788347553 | AB16: =(분기재무제표DB!W28+분기재무제표DB!W62)/분기재무제표DB!W6 -> 0.2990259855 | AC16: =(분기재무제표DB!X28+분기재무제표DB!X62)/분기재무제표DB!X6 -> 0.3033961463 | AD16: =(분기재무제표DB!Y28+분기재무제표DB!Y62)/분기재무제표DB!Y6 -> 0.241126539 | AE16: =(분기재무제표DB!Z28+분기재무제표DB!Z62)/분기재무제표DB!Z6 -> 0.2434107956 | AF16: =(분기재무제표DB!AA28+분기재무제표DB!AA62)/분기재무제표DB!AA6 -> 0.2289652438 | AG16: =(분기재무제표DB!AB28+분기재무제표DB!AB62)/분기재무제표DB!AB6 -> 0.2333157422
C17: PBR | F17: .
B18: 8) | C18: -1.5이하 (저평가 or 성장끝)(↓) | D18: 0 | E18: 5.34 | F18: PBR(1.5이하) | G18: =분기재무제표DB!B100 -> 0.7397261676 | H18: =분기재무제표DB!C100 -> 0.729876649 | I18: =분기재무제표DB!D100 -> 0.5720542225 | J18: =분기재무제표DB!E100 -> 0.9456102511 | K18: =분기재무제표DB!F100 -> 1.094827169 | L18: =분기재무제표DB!G100 -> 1.716420507 | M18: =분기재무제표DB!H100 -> 1.814464571 | N18: =분기재무제표DB!I100 -> 3.967615187 | O18: =분기재무제표DB!J100 -> 5.52137727 | P18: =분기재무제표DB!K100 -> 8.524162818 | Q18: =분기재무제표DB!L100 -> 3.394256244 | R18: =분기재무제표DB!M100 -> 3.662948927 | S18: =분기재무제표DB!N100 -> 2.854566244 | T18: =분기재무제표DB!O100 -> 3.361207908 | U18: =분기재무제표DB!P100 -> 3.273098347 | V18: =분기재무제표DB!Q100 -> 3.051410017 | W18: =분기재무제표DB!R100 -> 3.2516421 | X18: =분기재무제표DB!S100 -> 7.825937319 | Y18: =분기재무제표DB!T100 -> 6.428113669 | Z18: =분기재무제표DB!U100 -> 7.253854494 | AA18: =분기재무제표DB!V100 -> 8.482726308 | AB18: =분기재무제표DB!W100 -> 9.357170842 | AC18: =분기재무제표DB!X100 -> 16.25412033 | AD18: =분기재무제표DB!Y100 -> 10.57449711 | AE18: =분기재무제표DB!Z100 -> 9.682578026 | AF18: =분기재무제표DB!AA100 -> 8.854370011 | AG18: =분기재무제표DB!AB100 -> 10.88287855
B19: 9) | C19: -역대평균PBR 대비 낮은가?(↓) | D19: 0 | F19: . | G19: =(G18/$E$18)-1 -> -0.8614745004 | H19: =(H18/$E$18)-1 -> -0.8633189796 | I19: -0.8928737411 | J19: -0.8229194286 | K19: -0.7949761856 | L19: -0.6785729388 | M19: -0.6602126272 | N19: -0.2570009013 | O19: 0.03396578089 | P19: 0.596285172 | Q19: -0.3643714899 | R19: -0.3140545081 | S19: -0.465437033 | T19: =(T18/$E$18)-1 -> -0.3705603169 | U19: -0.3870602346 | V19: -0.4285749032 | W19: -0.3910782584 | X19: 0.4655313331 | Y19: 0.2037666048 | Z19: 0.358399718 | AA19: 0.5885255259 | AB19: 0.7522791838 | AC19: 2.043842758 | AD19: 0.9802429041 | AE19: 0.8132168588 | AF19: 0.658121725 | AG19: 1.037992238
B20: 10) | C20: -업종평균PBR 대비 낮은가?(↓) | D20: 0 | E20: =D1 -> 6.6 | F20: . | G20: =(G18/$E$20)-1 -> -0.8879202776 | H20: =(H18/$E$20)-1 -> -0.8894126289 | I20: -0.9133251178 | J20: -0.8567257195 | K20: -0.8341170956 | L20: -0.7399362869 | M20: -0.7250811256 | N20: -0.3988461838 | O20: -0.1634276864 | P20: 0.2915398209 | Q20: -0.485718751 | R20: -0.4450077384 | S20: -0.5674899631 | T20: =(T18/$E$20)-1 -> -0.4907260746 | U20: -0.504076008 | V20: -0.5376651489 | W20: -0.5073269545 | X20: 0.1857480786 | Y20: -0.02604338342 | Z20: 0.09906886273 | AA20: 0.2852615618 | AB20: 0.4177531578 | AC20: 1.462745504 | AD20: 0.6021965315 | AE20: 0.4670572767 | AF20: 0.3415712139 | AG20: 0.6489209923
C21: 매출원가율 (매출원가/매출액) | F21: .
B22: 11) | C22: -50% 이하(↓) | D22: 1 | F22: 매출원가율(50%이하) | G22: =분기재무제표DB!B35/분기재무제표DB!B34 -> 0.7459148491 | H22: =분기재무제표DB!C35/분기재무제표DB!C34 -> 0.7177790382 | I22: =분기재무제표DB!D35/분기재무제표DB!D34 -> 0.7161350559 | J22: =분기재무제표DB!E35/분기재무제표DB!E34 -> 0.7305415372 | K22: =분기재무제표DB!F35/분기재무제표DB!F34 -> 0.7735683176 | L22: =분기재무제표DB!G35/분기재무제표DB!G34 -> 0.8036179077 | M22: =분기재무제표DB!H35/분기재무제표DB!H34 -> 0.818914069 | N22: =분기재무제표DB!I35/분기재무제표DB!I34 -> 0.7849886046 | O22: =분기재무제표DB!J35/분기재무제표DB!J34 -> 0.7943639905 | P22: =분기재무제표DB!K35/분기재무제표DB!K34 -> 0.7877772791 | Q22: =분기재무제표DB!L35/분기재무제표DB!L34 -> 0.7979018868 | R22: =분기재무제표DB!M35/분기재무제표DB!M34 -> 0.7731518998 | S22: =분기재무제표DB!N35/분기재무제표DB!N34 -> 0.8010124749 | T22: =분기재무제표DB!O35/분기재무제표DB!O34 -> 0.7903686024 | U22: =분기재무제표DB!P35/분기재무제표DB!P34 -> 0.7998305201 | V22: =분기재무제표DB!Q35/분기재무제표DB!Q34 -> 0.82040897 | W22: =분기재무제표DB!R35/분기재무제표DB!R34 -> 0.8004691742 | X22: =분기재무제표DB!S35/분기재무제표DB!S34 -> 0.8083520274 | Y22: =분기재무제표DB!T35/분기재무제표DB!T34 -> 0.8012456101 | Z22: =분기재무제표DB!U35/분기재무제표DB!U34 -> 0.8322583842 | AA22: =분기재무제표DB!V35/분기재무제표DB!V34 -> 0.7706710871 | AB22: =분기재무제표DB!W35/분기재무제표DB!W34 -> 0.7919331049 | AC22: =분기재무제표DB!X35/분기재무제표DB!X34 -> 0.7858349704 | AD22: =분기재무제표DB!Y35/분기재무제표DB!Y34 -> 0.8111496599 | AE22: =분기재무제표DB!Z35/분기재무제표DB!Z34 -> 0.7911202009 | AF22: =분기재무제표DB!AA35/분기재무제표DB!AA34 -> 0.801370985 | AG22: =분기재무제표DB!AB35/분기재무제표DB!AB34 -> 0.7607108265
B23: 12) | C23: -업종평균대비 낮은가?(↓) | D23: 2 | E23: =D2/100 -> 0.817 | F23: . | G23: =(G22/$E$23)-1 -> -0.08700752869 | H23: -0.1214454856 | I23: -0.1234577039 | J23: -0.1058243118 | K23: -0.05315995394 | L23: -0.01637954992 | M23: 0.00234280171 | N23: -0.03918163447 | O23: -0.02770625396 | P23: -0.03576832417 | Q23: -0.02337590354 | R23: -0.05366964528 | S23: -0.01956857417 | T23: =(T22/$E$23)-1 -> -0.03259656991 | U23: -0.02101527525 | V23: 0.004172545911 | W23: -0.02023356897 | X23: -0.01058503381 | Y23: -0.01928321894 | Z23: 0.0186761128 | AA23: -0.05670613569 | AB23: -0.03068163418 | AC23: -0.03814569105 | AD23: -0.007160758941 | AE23: -0.03167662064 | AF23: -0.01912976128 | AG23: -0.0688973972
C24: 자산 구성 | F24: .
B25: 13) | C25: -현금성자산(↑) | D25: 1 | F25: 현금성자산(50%이상) | G25: =(분기재무제표DB!B6-(분기재무제표DB!B11+분기재무제표DB!B12+분기재무제표DB!B13+분기재무제표DB!B17+분기재무제표DB!B18))/분기재무제표DB!B6 -> 0.1150674529 | H25: =(분기재무제표DB!C6-(분기재무제표DB!C11+분기재무제표DB!C12+분기재무제표DB!C13+분기재무제표DB!C17+분기재무제표DB!C18))/분기재무제표DB!C6 -> 0.1009597412 | I25: =(분기재무제표DB!D6-(분기재무제표DB!D11+분기재무제표DB!D12+분기재무제표DB!D13+분기재무제표DB!D17+분기재무제표DB!D18))/분기재무제표DB!D6 -> 0.08972110335 | J25: =(분기재무제표DB!E6-(분기재무제표DB!E11+분기재무제표DB!E12+분기재무제표DB!E13+분기재무제표DB!E17+분기재무제표DB!E18))/분기재무제표DB!E6 -> 0.1179448541 | K25: =(분기재무제표DB!F6-(분기재무제표DB!F11+분기재무제표DB!F12+분기재무제표DB!F13+분기재무제표DB!F17+분기재무제표DB!F18))/분기재무제표DB!F6 -> 0.08800072747 | L25: =(분기재무제표DB!G6-(분기재무제표DB!G11+분기재무제표DB!G12+분기재무제표DB!G13+분기재무제표DB!G17+분기재무제표DB!G18))/분기재무제표DB!G6 -> 0.1109727394 | M25: =(분기재무제표DB!H6-(분기재무제표DB!H11+분기재무제표DB!H12+분기재무제표DB!H13+분기재무제표DB!H17+분기재무제표DB!H18))/분기재무제표DB!H6 -> 0.1012073819 | N25: =(분기재무제표DB!I6-(분기재무제표DB!I11+분기재무제표DB!I12+분기재무제표DB!I13+분기재무제표DB!I17+분기재무제표DB!I18))/분기재무제표DB!I6 -> 0.08562916428 | O25: =(분기재무제표DB!J6-(분기재무제표DB!J11+분기재무제표DB!J12+분기재무제표DB!J13+분기재무제표DB!J17+분기재무제표DB!J18))/분기재무제표DB!J6 -> 0.09091906555 | P25: =(분기재무제표DB!K6-(분기재무제표DB!K11+분기재무제표DB!K12+분기재무제표DB!K13+분기재무제표DB!K17+분기재무제표DB!K18))/분기재무제표DB!K6 -> 0.08484065651 | Q25: =(분기재무제표DB!L6-(분기재무제표DB!L11+분기재무제표DB!L12+분기재무제표DB!L13+분기재무제표DB!L17+분기재무제표DB!L18))/분기재무제표DB!L6 -> 0.1330624574 | R25: =(분기재무제표DB!M6-(분기재무제표DB!M11+분기재무제표DB!M12+분기재무제표DB!M13+분기재무제표DB!M17+분기재무제표DB!M18))/분기재무제표DB!M6 -> 0.1297960406 | S25: =(분기재무제표DB!N6-(분기재무제표DB!N11+분기재무제표DB!N12+분기재무제표DB!N13+분기재무제표DB!N17+분기재무제표DB!N18))/분기재무제표DB!N6 -> 0.08741306638 | T25: =(분기재무제표DB!O6-(분기재무제표DB!O11+분기재무제표DB!O12+분기재무제표DB!O13+분기재무제표DB!O17+분기재무제표DB!O18))/분기재무제표DB!O6 -> 0.06845689424 | U25: =(분기재무제표DB!P6-(분기재무제표DB!P11+분기재무제표DB!P12+분기재무제표DB!P13+분기재무제표DB!P17+분기재무제표DB!P18))/분기재무제표DB!P6 -> 0.06893160809 | V25: =(분기재무제표DB!Q6-(분기재무제표DB!Q11+분기재무제표DB!Q12+분기재무제표DB!Q13+분기재무제표DB!Q17+분기재무제표DB!Q18))/분기재무제표DB!Q6 -> 0.08895142703 | W25: =(분기재무제표DB!R6-(분기재무제표DB!R11+분기재무제표DB!R12+분기재무제표DB!R13+분기재무제표DB!R17+분기재무제표DB!R18))/분기재무제표DB!R6 -> 0.08312805503 | X25: =(분기재무제표DB!S6-(분기재무제표DB!S11+분기재무제표DB!S12+분기재무제표DB!S13+분기재무제표DB!S17+분기재무제표DB!S18))/분기재무제표DB!S6 -> 0.07904269473 | Y25: =(분기재무제표DB!T6-(분기재무제표DB!T11+분기재무제표DB!T12+분기재무제표DB!T13+분기재무제표DB!T17+분기재무제표DB!T18))/분기재무제표DB!T6 -> 0.1019717093 | Z25: =(분기재무제표DB!U6-(분기재무제표DB!U11+분기재무제표DB!U12+분기재무제표DB!U13+분기재무제표DB!U17+분기재무제표DB!U18))/분기재무제표DB!U6 -> 0.1129957801 | AA25: =(분기재무제표DB!V6-(분기재무제표DB!V11+분기재무제표DB!V12+분기재무제표DB!V13+분기재무제표DB!V17+분기재무제표DB!V18))/분기재무제표DB!V6 -> 0.09478108686 | AB25: =(분기재무제표DB!W6-(분기재무제표DB!W11+분기재무제표DB!W12+분기재무제표DB!W13+분기재무제표DB!W17+분기재무제표DB!W18))/분기재무제표DB!W6 -> 0.1233351289 | AC25: =(분기재무제표DB!X6-(분기재무제표DB!X11+분기재무제표DB!X12+분기재무제표DB!X13+분기재무제표DB!X17+분기재무제표DB!X18))/분기재무제표DB!X6 -> 0.1293758727 | AD25: =(분기재무제표DB!Y6-(분기재무제표DB!Y11+분기재무제표DB!Y12+분기재무제표DB!Y13+분기재무제표DB!Y17+분기재무제표DB!Y18))/분기재무제표DB!Y6 -> 0.2176805915 | AE25: =(분기재무제표DB!Z6-(분기재무제표DB!Z11+분기재무제표DB!Z12+분기재무제표DB!Z13+분기재무제표DB!Z17+분기재무제표DB!Z18))/분기재무제표DB!Z6 -> 0.204381058 | AF25: =(분기재무제표DB!AA6-(분기재무제표DB!AA11+분기재무제표DB!AA12+분기재무제표DB!AA13+분기재무제표DB!AA17+분기재무제표DB!AA18))/분기재무제표DB!AA6 -> 0.1792376983 | AG25: =(분기재무제표DB!AB6-(분기재무제표DB!AB11+분기재무제표DB!AB12+분기재무제표DB!AB13+분기재무제표DB!AB17+분기재무제표DB!AB18))/분기재무제표DB!AB6 -> 0.137392951
B26: 14) | C26: -사업자산통한 영업이익 창출(↑) | D26: 1 | F26: 영익/사업자산(60%이상) | G26: =분기재무제표DB!B38/((분기재무제표DB!B11+분기재무제표DB!B12+분기재무제표DB!B13+분기재무제표DB!B17+분기재무제표DB!B18)/4) -> 0.01683261981 | H26: =분기재무제표DB!C38/((분기재무제표DB!C11+분기재무제표DB!C12+분기재무제표DB!C13+분기재무제표DB!C17+분기재무제표DB!C18)/4) -> 0.02322052834 | I26: =분기재무제표DB!D38/((분기재무제표DB!D11+분기재무제표DB!D12+분기재무제표DB!D13+분기재무제표DB!D17+분기재무제표DB!D18)/4) -> 0.03543911959 | J26: =분기재무제표DB!E38/((분기재무제표DB!E11+분기재무제표DB!E12+분기재무제표DB!E13+분기재무제표DB!E17+분기재무제표DB!E18)/4) -> 0.05511362121 | K26: =분기재무제표DB!F38/((분기재무제표DB!F11+분기재무제표DB!F12+분기재무제표DB!F13+분기재무제표DB!F17+분기재무제표DB!F18)/4) -> 0.02854077383 | L26: =분기재무제표DB!G38/((분기재무제표DB!G11+분기재무제표DB!G12+분기재무제표DB!G13+분기재무제표DB!G17+분기재무제표DB!G18)/4) -> 0.02888446022 | M26: =분기재무제표DB!H38/((분기재무제표DB!H11+분기재무제표DB!H12+분기재무제표DB!H13+분기재무제표DB!H17+분기재무제표DB!H18)/4) -> 0.01535164713 | N26: =분기재무제표DB!I38/((분기재무제표DB!I11+분기재무제표DB!I12+분기재무제표DB!I13+분기재무제표DB!I17+분기재무제표DB!I18)/4) -> 0.02125818044 | O26: =분기재무제표DB!J38/((분기재무제표DB!J11+분기재무제표DB!J12+분기재무제표DB!J13+분기재무제표DB!J17+분기재무제표DB!J18)/4) -> 0.02925480639 | P26: =분기재무제표DB!K38/((분기재무제표DB!K11+분기재무제표DB!K12+분기재무제표DB!K13+분기재무제표DB!K17+분기재무제표DB!K18)/4) -> 0.03536075215 | Q26: =분기재무제표DB!L38/((분기재무제표DB!L11+분기재무제표DB!L12+분기재무제표DB!L13+분기재무제표DB!L17+분기재무제표DB!L18)/4) -> 0.01414861621 | R26: =분기재무제표DB!M38/((분기재무제표DB!M11+분기재무제표DB!M12+분기재무제표DB!M13+분기재무제표DB!M17+분기재무제표DB!M18)/4) -> 0.0322902802 | S26: =분기재무제표DB!N38/((분기재무제표DB!N11+분기재무제표DB!N12+분기재무제표DB!N13+분기재무제표DB!N17+분기재무제표DB!N18)/4) -> 0.01390281904 | T26: =분기재무제표DB!O38/((분기재무제표DB!O11+분기재무제표DB!O12+분기재무제표DB!O13+분기재무제표DB!O17+분기재무제표DB!O18)/4) -> 0.02113330022 | U26: =분기재무제표DB!P38/((분기재무제표DB!P11+분기재무제표DB!P12+분기재무제표DB!P13+분기재무제표DB!P17+분기재무제표DB!P18)/4) -> 0.02073151383 | V26: =분기재무제표DB!Q38/((분기재무제표DB!Q11+분기재무제표DB!Q12+분기재무제표DB!Q13+분기재무제표DB!Q17+분기재무제표DB!Q18)/4) -> 0.00761330448 | W26: =분기재무제표DB!R38/((분기재무제표DB!R11+분기재무제표DB!R12+분기재무제표DB!R13+분기재무제표DB!R17+분기재무제표DB!R18)/4) -> 0.05590481738 | X26: =분기재무제표DB!S38/((분기재무제표DB!S11+분기재무제표DB!S12+분기재무제표DB!S13+분기재무제표DB!S17+분기재무제표DB!S18)/4) -> 0.04511358226 | Y26: =분기재무제표DB!T38/((분기재무제표DB!T11+분기재무제표DB!T12+분기재무제표DB!T13+분기재무제표DB!T17+분기재무제표DB!T18)/4) -> 0.06563717948 | Z26: =분기재무제표DB!U38/((분기재무제표DB!U11+분기재무제표DB!U12+분기재무제표DB!U13+분기재무제표DB!U17+분기재무제표DB!U18)/4) -> 0.03069783317 | AA26: =분기재무제표DB!V38/((분기재무제표DB!V11+분기재무제표DB!V12+분기재무제표DB!V13+분기재무제표DB!V17+분기재무제표DB!V18)/4) -> 0.1041672711 | AB26: =분기재무제표DB!W38/((분기재무제표DB!W11+분기재무제표DB!W12+분기재무제표DB!W13+분기재무제표DB!W17+분기재무제표DB!W18)/4) -> 0.092559631 | AC26: =분기재무제표DB!X38/((분기재무제표DB!X11+분기재무제표DB!X12+분기재무제표DB!X13+분기재무제표DB!X17+분기재무제표DB!X18)/4) -> 0.09387623866 | AD26: =분기재무제표DB!Y38/((분기재무제표DB!Y11+분기재무제표DB!Y12+분기재무제표DB!Y13+분기재무제표DB!Y17+분기재무제표DB!Y18)/4) -> 0.05139596877 | AE26: =분기재무제표DB!Z38/((분기재무제표DB!Z11+분기재무제표DB!Z12+분기재무제표DB!Z13+분기재무제표DB!Z17+분기재무제표DB!Z18)/4) -> 0.05785001832 | AF26: =분기재무제표DB!AA38/((분기재무제표DB!AA11+분기재무제표DB!AA12+분기재무제표DB!AA13+분기재무제표DB!AA17+분기재무제표DB!AA18)/4) -> 0.08234106333 | AG26: =분기재무제표DB!AB38/((분기재무제표DB!AB11+분기재무제표DB!AB12+분기재무제표DB!AB13+분기재무제표DB!AB17+분기재무제표DB!AB18)/4) -> 0.05656327429
C27: 잉여금/당기순이익 | F27: .
B28: 15) | C28: -높은비율로 잉여금 축척 (↑) | D28: 10 | F28: 잉여금축척 | G28: . | H28: =(분기재무제표DB!C63-분기재무제표DB!B63)/분기재무제표DB!C46 -> 0.9999999868 | I28: =(분기재무제표DB!D63-분기재무제표DB!C63)/분기재무제표DB!D46 -> 0.5583230797 | J28: =(분기재무제표DB!E63-분기재무제표DB!D63)/분기재무제표DB!E46 -> 11.33523634 | K28: =(분기재무제표DB!F63-분기재무제표DB!E63)/분기재무제표DB!F46 -> 1 | L28: =(분기재무제표DB!G63-분기재무제표DB!F63)/분기재무제표DB!G46 -> 9.167979375 | M28: =(분기재무제표DB!H63-분기재무제표DB!G63)/분기재무제표DB!H46 -> -0.9660367195 | N28: =(분기재무제표DB!I63-분기재무제표DB!H63)/분기재무제표DB!I46 -> 0.7502930755 | O28: =(분기재무제표DB!J63-분기재무제표DB!I63)/분기재무제표DB!J46 -> 1.002227144 | P28: =(분기재무제표DB!K63-분기재무제표DB!J63)/분기재무제표DB!K46 -> 1.522073755 | Q28: 0 | R28: =(분기재무제표DB!M63-분기재무제표DB!L63)/분기재무제표DB!M46 -> 0.9407602573 | S28: =(분기재무제표DB!N63-분기재무제표DB!M63)/분기재무제표DB!N46 -> 0.7287589372 | T28: =(분기재무제표DB!O63-분기재무제표DB!N63)/분기재무제표DB!O46 -> 1.189775103 | U28: =(분기재무제표DB!P63-분기재무제표DB!O63)/분기재무제표DB!P46 -> 1.000000015 | V28: =(분기재무제표DB!Q63-분기재무제표DB!P63)/분기재무제표DB!Q46 -> 0.8604493371 | W28: =(분기재무제표DB!R63-분기재무제표DB!Q63)/분기재무제표DB!R46 -> 0.9883019619 | X28: =(분기재무제표DB!S63-분기재무제표DB!R63)/분기재무제표DB!S46 -> 0.956624284 | Y28: =(분기재무제표DB!T63-분기재무제표DB!S63)/분기재무제표DB!T46 -> 0.979677767 | Z28: 0 | AA28: =(분기재무제표DB!V63-분기재무제표DB!U63)/분기재무제표DB!V46 -> 0.8441564467 | AB28: =(분기재무제표DB!W63-분기재무제표DB!V63)/분기재무제표DB!W46 -> 1 | AC28: =(분기재무제표DB!X63-분기재무제표DB!W63)/분기재무제표DB!X46 -> 1.025181861 | AD28: =(분기재무제표DB!Y63-분기재무제표DB!X63)/분기재무제표DB!Y46 -> 1.994107521 | AE28: =(분기재무제표DB!Z63-분기재무제표DB!Y63)/분기재무제표DB!Z46 -> 0.3349380673 | AF28: =(분기재무제표DB!AA63-분기재무제표DB!Z63)/분기재무제표DB!AA46 -> 1 | AG28: =(분기재무제표DB!AB63-분기재무제표DB!AA63)/분기재무제표DB!AB46 -> 0.9999999997
C29: 비용 부담율 | F29: .
B30: 16) | C30: -금융비용 부담율(↓) | D30: 0 | F30: 금융비용부담(3%이하) | G30: =분기재무제표DB!B40/분기재무제표DB!B34 -> 0.05306022938 | H30: =분기재무제표DB!C40/분기재무제표DB!C34 -> 0.0451585562 | I30: =분기재무제표DB!D40/분기재무제표DB!D34 -> 0.07186937771 | J30: =분기재무제표DB!E40/분기재무제표DB!E34 -> 0.0473352852 | K30: =분기재무제표DB!F40/분기재무제표DB!F34 -> 0.07674249508 | L30: =분기재무제표DB!G40/분기재무제표DB!G34 -> 0.02252625134 | M30: =분기재무제표DB!H40/분기재무제표DB!H34 -> 0.02869059825 | N30: =분기재무제표DB!I40/분기재무제표DB!I34 -> 0.2384469204 | O30: =분기재무제표DB!J40/분기재무제표DB!J34 -> 0.02886960301 | P30: =분기재무제표DB!K40/분기재무제표DB!K34 -> 0.05029200166 | Q30: =분기재무제표DB!L40/분기재무제표DB!L34 -> 0.03097700799 | R30: =분기재무제표DB!M40/분기재무제표DB!M34 -> 0.03493062354 | S30: =분기재무제표DB!N40/분기재무제표DB!N34 -> 0.03150536205 | T30: =분기재무제표DB!O40/분기재무제표DB!O34 -> 0.05390412803 | U30: =분기재무제표DB!P40/분기재무제표DB!P34 -> 0.04807834111 | V30: =분기재무제표DB!Q40/분기재무제표DB!Q34 -> 0.01933572914 | W30: =분기재무제표DB!R40/분기재무제표DB!R34 -> 0.05330733512 | X30: =분기재무제표DB!S40/분기재무제표DB!S34 -> 0.02739554552 | Y30: =분기재무제표DB!T40/분기재무제표DB!T34 -> 0.02113005086 | Z30: =분기재무제표DB!U40/분기재무제표DB!U34 -> 0.05909270284 | AA30: =분기재무제표DB!V40/분기재무제표DB!V34 -> 0.02570966036 | AB30: =분기재무제표DB!W40/분기재무제표DB!W34 -> 0.02191338373 | AC30: =분기재무제표DB!X40/분기재무제표DB!X34 -> 0.0234645276 | AD30: =분기재무제표DB!Y40/분기재무제표DB!Y34 -> 0.02480233215 | AE30: =분기재무제표DB!Z40/분기재무제표DB!Z34 -> 0.0615218442 | AF30: =분기재무제표DB!AA40/분기재무제표DB!AA34 -> 0.04305628215 | AG30: =분기재무제표DB!AB40/분기재무제표DB!AB34 -> 0.07647114116
B31: 17) | C31: -영업현금/이자비용 > 100(↑) | D31: 1 | F31: 영업현금/이자(1이상) | G31: =IFERROR(분기재무제표DB!B51/ABS(분기재무제표DB!B55),500) -> -3.10729937 | H31: =IFERROR(분기재무제표DB!C51/ABS(분기재무제표DB!C55),500) -> 2.154402164 | I31: =IFERROR(분기재무제표DB!D51/ABS(분기재무제표DB!D55),500) -> 1.925984464 | J31: =IFERROR(분기재무제표DB!E51/ABS(분기재무제표DB!E55),500) -> 1.720895631 | K31: =IFERROR(분기재무제표DB!F51/ABS(분기재무제표DB!F55),500) -> -1.630562759 | L31: =IFERROR(분기재무제표DB!G51/ABS(분기재무제표DB!G55),500) -> 0.5909550098 | M31: =IFERROR(분기재무제표DB!H51/ABS(분기재무제표DB!H55),500) -> 0.2059900825 | N31: =IFERROR(분기재무제표DB!I51/ABS(분기재무제표DB!I55),500) -> 0.2273119119 | O31: =IFERROR(분기재무제표DB!J51/ABS(분기재무제표DB!J55),500) -> -1.647255412 | P31: =IFERROR(분기재무제표DB!K51/ABS(분기재무제표DB!K55),500) -> 0.7165739322 | Q31: =IFERROR(분기재무제표DB!L51/ABS(분기재무제표DB!L55),500) -> 0.7979090965 | R31: =IFERROR(분기재무제표DB!M51/ABS(분기재무제표DB!M55),500) -> 1.012501802 | S31: =IFERROR(분기재무제표DB!N51/ABS(분기재무제표DB!N55),500) -> -9.797661303 | T31: =IFERROR(분기재무제표DB!O51/ABS(분기재무제표DB!O55),500) -> -3.68049221 | U31: =IFERROR(분기재무제표DB!P51/ABS(분기재무제표DB!P55),500) -> -4.78223207 | V31: =IFERROR(분기재무제표DB!Q51/ABS(분기재무제표DB!Q55),500) -> -2.672546187 | W31: =IFERROR(분기재무제표DB!R51/ABS(분기재무제표DB!R55),500) -> 3.81830241 | X31: =IFERROR(분기재무제표DB!S51/ABS(분기재무제표DB!S55),500) -> 0.5217598628 | Y31: =IFERROR(분기재무제표DB!T51/ABS(분기재무제표DB!T55),500) -> 3.570239138 | Z31: =IFERROR(분기재무제표DB!U51/ABS(분기재무제표DB!U55),500) -> 3.866007059 | AA31: =IFERROR(분기재무제표DB!V51/ABS(분기재무제표DB!V55),500) -> -7.431554104 | AB31: =IFERROR(분기재무제표DB!W51/ABS(분기재무제표DB!W55),500) -> 0.1852091266 | AC31: =IFERROR(분기재무제표DB!X51/ABS(분기재무제표DB!X55),500) -> 3.583121376 | AD31: =IFERROR(분기재무제표DB!Y51/ABS(분기재무제표DB!Y55),500) -> 2.931708321 | AE31: =IFERROR(분기재무제표DB!Z51/ABS(분기재무제표DB!Z55),500) -> 16.70895232 | AF31: =IFERROR(분기재무제표DB!AA51/ABS(분기재무제표DB!AA55),500) -> 17.37445919 | AG31: =IFERROR(분기재무제표DB!AB51/ABS(분기재무제표DB!AB55),500) -> 12.88415139
B32: 18) | C32: -영업이익/이자비용 > 1000(↑) | D32: 0 | F32: 영업이익/이자(10이상) | G32: =IFERROR(분기재무제표DB!B48/ABS(분기재무제표DB!B55),1600) -> 1.027580415 | H32: =IFERROR(분기재무제표DB!C48/ABS(분기재무제표DB!C55),1600) -> 1.067408364 | I32: =IFERROR(분기재무제표DB!D48/ABS(분기재무제표DB!D55),1600) -> 1.799304448 | J32: =IFERROR(분기재무제표DB!E48/ABS(분기재무제표DB!E55),1600) -> 1.685139335 | K32: =IFERROR(분기재무제표DB!F48/ABS(분기재무제표DB!F55),1600) -> 1.373030434 | L32: =IFERROR(분기재무제표DB!G48/ABS(분기재무제표DB!G55),1600) -> 1.417510328 | M32: =IFERROR(분기재무제표DB!H48/ABS(분기재무제표DB!H55),1600) -> 0.8267712194 | N32: =IFERROR(분기재무제표DB!I48/ABS(분기재무제표DB!I55),1600) -> 0.724564774 | O32: =IFERROR(분기재무제표DB!J48/ABS(분기재무제표DB!J55),1600) -> 1.324011515 | P32: =IFERROR(분기재무제표DB!K48/ABS(분기재무제표DB!K55),1600) -> 1.679837819 | Q32: =IFERROR(분기재무제표DB!L48/ABS(분기재무제표DB!L55),1600) -> 1.362672672 | R32: =IFERROR(분기재무제표DB!M48/ABS(분기재무제표DB!M55),1600) -> 1.460291481 | S32: =IFERROR(분기재무제표DB!N48/ABS(분기재무제표DB!N55),1600) -> 1.002362411 | T32: =IFERROR(분기재무제표DB!O48/ABS(분기재무제표DB!O55),1600) -> 1.294826448 | U32: =IFERROR(분기재무제표DB!P48/ABS(분기재무제표DB!P55),1600) -> 1.35885064 | V32: =IFERROR(분기재무제표DB!Q48/ABS(분기재무제표DB!Q55),1600) -> 1.099157845 | W32: =IFERROR(분기재무제표DB!R48/ABS(분기재무제표DB!R55),1600) -> 3.531968977 | X32: =IFERROR(분기재무제표DB!S48/ABS(분기재무제표DB!S55),1600) -> 3.406194044 | Y32: =IFERROR(분기재무제표DB!T48/ABS(분기재무제표DB!T55),1600) -> 3.674922805 | Z32: =IFERROR(분기재무제표DB!U48/ABS(분기재무제표DB!U55),1600) -> 3.451919835 | AA32: =IFERROR(분기재무제표DB!V48/ABS(분기재무제표DB!V55),1600) -> 8.598754375 | AB32: =IFERROR(분기재무제표DB!W48/ABS(분기재무제표DB!W55),1600) -> 7.822194195 | AC32: =IFERROR(분기재무제표DB!X48/ABS(분기재무제표DB!X55),1600) -> 7.564926141 | AD32: =IFERROR(분기재무제표DB!Y48/ABS(분기재무제표DB!Y55),1600) -> 6.839814098 | AE32: =IFERROR(분기재무제표DB!Z48/ABS(분기재무제표DB!Z55),1600) -> 7.335763685 | AF32: =IFERROR(분기재무제표DB!AA48/ABS(분기재무제표DB!AA55),1600) -> 12.02794105 | AG32: =IFERROR(분기재무제표DB!AB48/ABS(분기재무제표DB!AB55),1600) -> 7.356748267
A33: 유동성 | C33: 유동비율(유동자산/유동부채) | F33: .
B34: 19) | C34: -120%이상 유지(↑) | D34: 4 | F34: 유동비율(120%이상) | G34: =분기재무제표DB!B7/분기재무제표DB!B21 -> 0.8144720212 | H34: =분기재무제표DB!C7/분기재무제표DB!C21 -> 0.7636304518 | I34: =분기재무제표DB!D7/분기재무제표DB!D21 -> 0.7417259735 | J34: =분기재무제표DB!E7/분기재무제표DB!E21 -> 0.775119884 | K34: =분기재무제표DB!F7/분기재무제표DB!F21 -> 0.7402873318 | L34: =분기재무제표DB!G7/분기재무제표DB!G21 -> 0.8431923432 | M34: =분기재무제표DB!H7/분기재무제표DB!H21 -> 0.8600871073 | N34: =분기재무제표DB!I7/분기재무제표DB!I21 -> 0.8190501857 | O34: =분기재무제표DB!J7/분기재무제표DB!J21 -> 0.8014256561 | P34: =분기재무제표DB!K7/분기재무제표DB!K21 -> 0.7909061108 | Q34: =분기재무제표DB!L7/분기재무제표DB!L21 -> 1.2671573 | R34: =분기재무제표DB!M7/분기재무제표DB!M21 -> 1.270901965 | S34: =분기재무제표DB!N7/분기재무제표DB!N21 -> 1.162449338 | T34: =분기재무제표DB!O7/분기재무제표DB!O21 -> 1.047953615 | U34: =분기재무제표DB!P7/분기재무제표DB!P21 -> 1.010740758 | V34: =분기재무제표DB!Q7/분기재무제표DB!Q21 -> 1.048313413 | W34: =분기재무제표DB!R7/분기재무제표DB!R21 -> 1.053234402 | X34: =분기재무제표DB!S7/분기재무제표DB!S21 -> 1.00653277 | Y34: =분기재무제표DB!T7/분기재무제표DB!T21 -> 1.015926154 | Z34: =분기재무제표DB!U7/분기재무제표DB!U21 -> 1.072030004 | AA34: =분기재무제표DB!V7/분기재무제표DB!V21 -> 1.060234738 | AB34: =분기재무제표DB!W7/분기재무제표DB!W21 -> 1.088644446 | AC34: =분기재무제표DB!X7/분기재무제표DB!X21 -> 1.048278154 | AD34: =분기재무제표DB!Y7/분기재무제표DB!Y21 -> 1.448348786 | AE34: =분기재무제표DB!Z7/분기재무제표DB!Z21 -> 1.39231866 | AF34: =분기재무제표DB!AA7/분기재무제표DB!AA21 -> 1.474352567 | AG34: =분기재무제표DB!AB7/분기재무제표DB!AB21 -> 1.290171121
C35: 당좌비율(당좌자산/유동부채) | F35: .
B36: 20) | C36: -70%이상 유지(↑) | D36: 2 | F36: 당좌비율(70%이상) | G36: =(분기재무제표DB!B60+분기재무제표DB!B61)/분기재무제표DB!B21 -> 0.5328915551 | H36: =(분기재무제표DB!C60+분기재무제표DB!C61)/분기재무제표DB!C21 -> 0.5305376197 | I36: =(분기재무제표DB!D60+분기재무제표DB!D61)/분기재무제표DB!D21 -> 0.5011747109 | J36: =(분기재무제표DB!E60+분기재무제표DB!E61)/분기재무제표DB!E21 -> 0.5450357401 | K36: =(분기재무제표DB!F60+분기재무제표DB!F61)/분기재무제표DB!F21 -> 0.4657190727 | L36: =(분기재무제표DB!G60+분기재무제표DB!G61)/분기재무제표DB!G21 -> 0.5422501232 | M36: =(분기재무제표DB!H60+분기재무제표DB!H61)/분기재무제표DB!H21 -> 0.5318186896 | N36: =(분기재무제표DB!I60+분기재무제표DB!I61)/분기재무제표DB!I21 -> 0.4710289495 | O36: =(분기재무제표DB!J60+분기재무제표DB!J61)/분기재무제표DB!J21 -> 0.5162878562 | P36: =(분기재무제표DB!K60+분기재무제표DB!K61)/분기재무제표DB!K21 -> 0.4833812163 | Q36: =(분기재무제표DB!L60+분기재무제표DB!L61)/분기재무제표DB!L21 -> 0.8318858616 | R36: =(분기재무제표DB!M60+분기재무제표DB!M61)/분기재무제표DB!M21 -> 0.504740153 | S36: =(분기재무제표DB!N60+분기재무제표DB!N61)/분기재무제표DB!N21 -> 0.6191134611 | T36: =(분기재무제표DB!O60+분기재무제표DB!O61)/분기재무제표DB!O21 -> 0.5454878005 | U36: =(분기재무제표DB!P60+분기재무제표DB!P61)/분기재무제표DB!P21 -> 0.5532855464 | V36: =(분기재무제표DB!Q60+분기재무제표DB!Q61)/분기재무제표DB!Q21 -> 0.6160011768 | W36: =(분기재무제표DB!R60+분기재무제표DB!R61)/분기재무제표DB!R21 -> 0.6167020714 | X36: =(분기재무제표DB!S60+분기재무제표DB!S61)/분기재무제표DB!S21 -> 0.6170281445 | Y36: =(분기재무제표DB!T60+분기재무제표DB!T61)/분기재무제표DB!T21 -> 0.6553744601 | Z36: =(분기재무제표DB!U60+분기재무제표DB!U61)/분기재무제표DB!U21 -> 0.7289264845 | AA36: =(분기재무제표DB!V60+분기재무제표DB!V61)/분기재무제표DB!V21 -> 0.6972580561 | AB36: =(분기재무제표DB!W60+분기재무제표DB!W61)/분기재무제표DB!W21 -> 0.7099278714 | AC36: =(분기재무제표DB!X60+분기재무제표DB!X61)/분기재무제표DB!X21 -> 0.6910984568 | AD36: =(분기재무제표DB!Y60+분기재무제표DB!Y61)/분기재무제표DB!Y21 -> 1.046226295 | AE36: =(분기재무제표DB!Z60+분기재무제표DB!Z61)/분기재무제표DB!Z21 -> 1.009353422 | AF36: =(분기재무제표DB!AA60+분기재무제표DB!AA61)/분기재무제표DB!AA21 -> 1.056170621 | AG36: =(분기재무제표DB!AB60+분기재무제표DB!AB61)/분기재무제표DB!AB21 -> 0.8801861979
C37: 현금비율(현금/유동자산) | F37: .
B38: 21) | C38: -20%이상 유지(↑) | D38: 4 | F38: 현금비율(20%이상) | G38: =분기재무제표DB!B60/분기재무제표DB!B7 -> 0.2829910385 | H38: =분기재무제표DB!C60/분기재무제표DB!C7 -> 0.2931250906 | I38: =분기재무제표DB!D60/분기재무제표DB!D7 -> 0.2436325803 | J38: =분기재무제표DB!E60/분기재무제표DB!E7 -> 0.3056036046 | K38: =분기재무제표DB!F60/분기재무제표DB!F7 -> 0.2101328516 | L38: =분기재무제표DB!G60/분기재무제표DB!G7 -> 0.2623253999 | M38: =분기재무제표DB!H60/분기재무제표DB!H7 -> 0.2158662439 | N38: =분기재무제표DB!I60/분기재무제표DB!I7 -> 0.182515849 | O38: =분기재무제표DB!J60/분기재무제표DB!J7 -> 0.2126791695 | P38: =분기재무제표DB!K60/분기재무제표DB!K7 -> 0.197162122 | Q38: =분기재무제표DB!L60/분기재무제표DB!L7 -> 0.3156138763 | R38: =분기재무제표DB!M60/분기재무제표DB!M7 -> 0.07650710448 | S38: =분기재무제표DB!N60/분기재무제표DB!N7 -> 0.2062083232 | T38: =분기재무제표DB!O60/분기재무제표DB!O7 -> 0.1564453766 | U38: =분기재무제표DB!P60/분기재무제표DB!P7 -> 0.1479120044 | V38: =분기재무제표DB!Q60/분기재무제표DB!Q7 -> 0.2149243971 | W38: =분기재무제표DB!R60/분기재무제표DB!R7 -> 0.1898649118 | X38: =분기재무제표DB!S60/분기재무제표DB!S7 -> 0.1790290714 | Y38: =분기재무제표DB!T60/분기재무제표DB!T7 -> 0.2462914422 | Z38: =분기재무제표DB!U60/분기재무제표DB!U7 -> 0.2811378048 | AA38: =분기재무제표DB!V60/분기재무제표DB!V7 -> 0.2096862937 | AB38: =분기재무제표DB!W60/분기재무제표DB!W7 -> 0.2382341862 | AC38: =분기재무제표DB!X60/분기재무제표DB!X7 -> 0.2320699644 | AD38: =분기재무제표DB!Y60/분기재무제표DB!Y7 -> 0.4099860112 | AE38: =분기재무제표DB!Z60/분기재무제표DB!Z7 -> 0.4149000438 | AF38: =분기재무제표DB!AA60/분기재무제표DB!AA7 -> 0.3888095893 | AG38: =분기재무제표DB!AB60/분기재무제표DB!AB7 -> 0.3205970911
C39: 단기차입금 비율(단기차입금/유동부채) | F39: .
B40: 22) | C40: -40%이하로 유지(↓) | D40: 10 | F40: 단기차입금(40%이하) | G40: =분기재무제표DB!B62/분기재무제표DB!B21 -> 0.03659155602 | H40: =분기재무제표DB!C62/분기재무제표DB!C21 -> 0.04057901671 | I40: =분기재무제표DB!D62/분기재무제표DB!D21 -> 0.03942564947 | J40: =분기재무제표DB!E62/분기재무제표DB!E21 -> 0.03610939555 | K40: =분기재무제표DB!F62/분기재무제표DB!F21 -> 0.03872211985 | L40: =분기재무제표DB!G62/분기재무제표DB!G21 -> 0.05565185467 | M40: =분기재무제표DB!H62/분기재무제표DB!H21 -> 0.07900053808 | N40: =분기재무제표DB!I62/분기재무제표DB!I21 -> 0.05844849372 | O40: =분기재무제표DB!J62/분기재무제표DB!J21 -> 0.0549775216 | P40: =분기재무제표DB!K62/분기재무제표DB!K21 -> 0.05606896368 | Q40: =분기재무제표DB!L62/분기재무제표DB!L21 -> 0.09809662953 | R40: =분기재무제표DB!M62/분기재무제표DB!M21 -> 0.1160487166 | S40: =분기재무제표DB!N62/분기재무제표DB!N21 -> 0.09405359126 | T40: =분기재무제표DB!O62/분기재무제표DB!O21 -> 0.07594374313 | U40: =분기재무제표DB!P62/분기재무제표DB!P21 -> 0.07319905538 | V40: =분기재무제표DB!Q62/분기재무제표DB!Q21 -> 0.08647756621 | W40: =분기재무제표DB!R62/분기재무제표DB!R21 -> 0.07911726214 | X40: =분기재무제표DB!S62/분기재무제표DB!S21 -> 0.07284756653 | Y40: =분기재무제표DB!T62/분기재무제표DB!T21 -> 0.06626137628 | Z40: =분기재무제표DB!U62/분기재무제표DB!U21 -> 0.06666974442 | AA40: =분기재무제표DB!V62/분기재무제표DB!V21 -> 0.0724755287 | AB40: =분기재무제표DB!W62/분기재무제표DB!W21 -> 0.0774372212 | AC40: =분기재무제표DB!X62/분기재무제표DB!X21 -> 0.06667646031 | AD40: =분기재무제표DB!Y62/분기재무제표DB!Y21 -> 0.09252590914 | AE40: =분기재무제표DB!Z62/분기재무제표DB!Z21 -> 0.09442801605 | AF40: =분기재무제표DB!AA62/분기재무제표DB!AA21 -> 0.07343181481 | AG40: =분기재무제표DB!AB62/분기재무제표DB!AB21 -> 0.0776950552
C41: 보유현금과 시가총액비교 | F41: .
B42: 23) | C42: -80~120% (↔) | D42: 0 | F42: 현금/시총(80~120) | G42: =분기재무제표DB!B60/분기재무제표DB!B91 -> 0.2788707327 | H42: =분기재무제표DB!C60/분기재무제표DB!C91 -> 0.284321998 | I42: =분기재무제표DB!D60/분기재무제표DB!D91 -> 0.2927184055 | J42: =분기재무제표DB!E60/분기재무제표DB!E91 -> 0.2364186101 | K42: =분기재무제표DB!F60/분기재무제표DB!F91 -> 0.1292621609 | L42: =분기재무제표DB!G60/분기재무제표DB!G91 -> 0.1138644154 | M42: =분기재무제표DB!H60/분기재무제표DB!H91 -> 0.09404425641 | N42: =분기재무제표DB!I60/분기재무제표DB!I91 -> 0.03654499871 | O42: =분기재무제표DB!J60/분기재무제표DB!J91 -> 0.0325553628 | P42: =분기재무제표DB!K60/분기재무제표DB!K91 -> 0.01971241559 | Q42: =분기재무제표DB!L60/분기재무제표DB!L91 -> 0.06974369155 | R42: =분기재무제표DB!M60/분기재무제표DB!M91 -> 0.01398244443 | S42: =분기재무제표DB!N60/분기재무제표DB!N91 -> 0.04756484908 | T42: =분기재무제표DB!O60/분기재무제표DB!O91 -> 0.02947300848 | U42: =분기재무제표DB!P60/분기재무제표DB!P91 -> 0.03268483801 | V42: =분기재무제표DB!Q60/분기재무제표DB!Q91 -> 0.05384851702 | W42: =분기재무제표DB!R60/분기재무제표DB!R91 -> 0.04532434076 | X42: =분기재무제표DB!S60/분기재무제표DB!S91 -> 0.01816746893 | Y42: =분기재무제표DB!T60/분기재무제표DB!T91 -> 0.03041598021 | Z42: =분기재무제표DB!U60/분기재무제표DB!U91 -> 0.03149787564 | AA42: =분기재무제표DB!V60/분기재무제표DB!V91 -> 0.02094182589 | AB42: =분기재무제표DB!W60/분기재무제표DB!W91 -> 0.02281229963 | AC42: =분기재무제표DB!X60/분기재무제표DB!X91 -> 0.01226965109 | AD42: =분기재무제표DB!Y60/분기재무제표DB!Y91 -> 0.03482454127 | AE42: =분기재무제표DB!Z60/분기재무제표DB!Z91 -> 0.03780479226 | AF42: =분기재무제표DB!AA60/분기재무제표DB!AA91 -> 0.03705800491 | AG42: =분기재무제표DB!AB60/분기재무제표DB!AB91 -> 0.02233644954
C43: 유동현금과 시가총액비교 | F43: .
B44: 24) | C44: -80~120% (↔) | D44: 0 | F44: 유동현금/시총(80~120) | G44: =(분기재무제표DB!B7-분기재무제표DB!B21)/분기재무제표DB!B91 -> -0.2244726833 | H44: =(분기재무제표DB!C7-분기재무제표DB!C21)/분기재무제표DB!C91 -> -0.3002380665 | I44: =(분기재무제표DB!D7-분기재무제표DB!D21)/분기재무제표DB!D91 -> -0.4183616931 | J44: =(분기재무제표DB!E7-분기재무제표DB!E21)/분기재무제표DB!E91 -> -0.2244426387 | K44: =(분기재무제표DB!F7-분기재무제표DB!F21)/분기재무제표DB!F91 -> -0.2158093588 | L44: =(분기재무제표DB!G7-분기재무제표DB!G21)/분기재무제표DB!G91 -> -0.08072132616 | M44: =(분기재무제표DB!H7-분기재무제표DB!H21)/분기재무제표DB!H91 -> -0.07087006648 | N44: =(분기재무제표DB!I7-분기재무제표DB!I21)/분기재무제표DB!I91 -> -0.04423591315 | O44: =(분기재무제표DB!J7-분기재무제표DB!J21)/분기재무제표DB!J91 -> -0.03792778485 | P44: =(분기재무제표DB!K7-분기재무제표DB!K21)/분기재무제표DB!K91 -> -0.02643216717 | Q44: =(분기재무제표DB!L7-분기재무제표DB!L21)/분기재무제표DB!L91 -> 0.04658921124 | R44: =(분기재무제표DB!M7-분기재무제표DB!M21)/분기재무제표DB!M91 -> 0.03895663537 | S44: =(분기재무제표DB!N7-분기재무제표DB!N21)/분기재무제표DB!N91 -> 0.03223471567 | T44: =(분기재무제표DB!O7-분기재무제표DB!O21)/분기재무제표DB!O91 -> 0.008620670085 | U44: =(분기재무제표DB!P7-분기재무제표DB!P21)/분기재무제표DB!P91 -> 0.0023482161 | V44: =(분기재무제표DB!Q7-분기재무제표DB!Q21)/분기재무제표DB!Q91 -> 0.0115468788 | W44: =(분기재무제표DB!R7-분기재무제표DB!R21)/분기재무제표DB!R91 -> 0.01206574465 | X44: =(분기재무제표DB!S7-분기재무제표DB!S21)/분기재무제표DB!S91 -> 0.0006586282105 | Y44: =(분기재무제표DB!T7-분기재무제표DB!T21)/분기재무제표DB!T91 -> 0.00193598176 | Z44: =(분기재무제표DB!U7-분기재무제표DB!U21)/분기재무제표DB!U91 -> 0.007527807664 | AA44: =(분기재무제표DB!V7-분기재무제표DB!V21)/분기재무제표DB!V91 -> 0.005674002186 | AB44: =(분기재무제표DB!W7-분기재무제표DB!W21)/분기재무제표DB!W91 -> 0.007797052452 | AC44: =(분기재무제표DB!X7-분기재무제표DB!X21)/분기재무제표DB!X91 -> 0.002434935144 | AD44: =(분기재무제표DB!Y7-분기재무제표DB!Y21)/분기재무제표DB!Y91 -> 0.02629415412 | AE44: =(분기재무제표DB!Z7-분기재무제표DB!Z21)/분기재무제표DB!Z91 -> 0.02567460065 | AF44: =(분기재무제표DB!AA7-분기재무제표DB!AA21)/분기재무제표DB!AA91 -> 0.03066514142 | AG44: =(분기재무제표DB!AB7-분기재무제표DB!AB21)/분기재무제표DB!AB91 -> 0.01566972718
C45: 차입금과 시가총액비교 | F45: .
B46: 25) | C46: -5% 이하(↓) | D46: 10 | F46: 차입금/시총(5%이하) | G46: =분기재무제표DB!B62/분기재무제표DB!B91 -> 0.04427259339 | H46: =분기재무제표DB!C62/분기재무제표DB!C91 -> 0.05154371876 | I46: =분기재무제표DB!D62/분기재무제표DB!D91 -> 0.06386310573 | J46: =분기재무제표DB!E62/분기재무제표DB!E91 -> 0.03603914906 | K46: =분기재무제표DB!F62/분기재무제표DB!F91 -> 0.03217631205 | L46: =분기재무제표DB!G62/분기재무제표DB!G91 -> 0.02864841937 | M46: =분기재무제표DB!H62/분기재무제표DB!H91 -> 0.04001613632 | N46: =분기재무제표DB!I62/분기재무제표DB!I91 -> 0.01428861644 | O46: =분기재무제표DB!J62/분기재무제표DB!J91 -> 0.0105007302 | P46: =분기재무제표DB!K62/분기재무제표DB!K91 -> 0.007087840906 | Q46: =분기재무제표DB!L62/분기재무제표DB!L91 -> 0.01710694258 | R46: =분기재무제표DB!M62/분기재무제표DB!M91 -> 0.01668820504 | S46: =분기재무제표DB!N62/분기재무제표DB!N91 -> 0.01866299247 | T46: =분기재무제표DB!O62/분기재무제표DB!O91 -> 0.01365248396 | U46: =분기재무제표DB!P62/분기재무제표DB!P91 -> 0.01600326557 | V46: =분기재무제표DB!Q62/분기재무제표DB!Q91 -> 0.02066809009 | W46: =분기재무제표DB!R62/분기재무제표DB!R91 -> 0.01793217622 | X46: =분기재무제표DB!S62/분기재무제표DB!S91 -> 0.007344428324 | Y46: =분기재무제표DB!T62/분기재무제표DB!T91 -> 0.008054726646 | Z46: =분기재무제표DB!U62/분기재무제표DB!U91 -> 0.006967610485 | AA46: =분기재무제표DB!V62/분기재무제표DB!V91 -> 0.006827062264 | AB46: =분기재무제표DB!W62/분기재무제표DB!W91 -> 0.006811279216 | AC46: =분기재무제표DB!X62/분기재무제표DB!X91 -> 0.003362863801 | AD46: =분기재무제표DB!Y62/분기재무제표DB!Y91 -> 0.005426334565 | AE46: =분기재무제표DB!Z62/분기재무제표DB!Z91 -> 0.00617967445 | AF46: =분기재무제표DB!AA62/분기재무제표DB!AA91 -> 0.004747095604 | AG46: =분기재무제표DB!AB62/분기재무제표DB!AB91 -> 0.004195663283
C47: 현금흐름 관련 부석 | F47: .
C48: -영업활동현금흐름 (+) | F48: . | G48: - | H48: - | I48: =IF(분기재무제표DB!D72>0,"+","-") -> - | J48: =IF(분기재무제표DB!E72>0,"+","-") -> + | K48: =IF(분기재무제표DB!F72>0,"+","-") -> - | L48: =IF(분기재무제표DB!G72>0,"+","-") -> + | M48: =IF(분기재무제표DB!H72>0,"+","-") -> - | N48: =IF(분기재무제표DB!I72>0,"+","-") -> + | O48: =IF(분기재무제표DB!J72>0,"+","-") -> - | P48: =IF(분기재무제표DB!K72>0,"+","-") -> + | Q48: =IF(분기재무제표DB!L72>0,"+","-") -> + | R48: =IF(분기재무제표DB!M72>0,"+","-") -> + | S48: =IF(분기재무제표DB!N72>0,"+","-") -> - | T48: =IF(분기재무제표DB!O72>0,"+","-") -> + | U48: =IF(분기재무제표DB!P72>0,"+","-") -> - | V48: =IF(분기재무제표DB!Q72>0,"+","-") -> + | W48: =IF(분기재무제표DB!R72>0,"+","-") -> + | X48: =IF(분기재무제표DB!S72>0,"+","-") -> - | Y48: =IF(분기재무제표DB!T72>0,"+","-") -> + | Z48: =IF(분기재무제표DB!U72>0,"+","-") -> + | AA48: =IF(분기재무제표DB!V72>0,"+","-") -> - | AB48: =IF(분기재무제표DB!W72>0,"+","-") -> + | AC48: =IF(분기재무제표DB!X72>0,"+","-") -> + | AD48: =IF(분기재무제표DB!Y72>0,"+","-") -> + | AE48: =IF(분기재무제표DB!Z72>0,"+","-") -> + | AF48: =IF(분기재무제표DB!AA72>0,"+","-") -> + | AG48: =IF(분기재무제표DB!AB72>0,"+","-") -> +
C49: -투자활동현금흐흠 (-) | F49: . | G49: - | H49: - | I49: =IF(분기재무제표DB!D73>0,"+","-") -> + | J49: =IF(분기재무제표DB!E73>0,"+","-") -> - | K49: =IF(분기재무제표DB!F73>0,"+","-") -> - | L49: =IF(분기재무제표DB!G73>0,"+","-") -> + | M49: =IF(분기재무제표DB!H73>0,"+","-") -> - | N49: =IF(분기재무제표DB!I73>0,"+","-") -> - | O49: =IF(분기재무제표DB!J73>0,"+","-") -> - | P49: =IF(분기재무제표DB!K73>0,"+","-") -> - | Q49: =IF(분기재무제표DB!L73>0,"+","-") -> - | R49: =IF(분기재무제표DB!M73>0,"+","-") -> - | S49: =IF(분기재무제표DB!N73>0,"+","-") -> - | T49: =IF(분기재무제표DB!O73>0,"+","-") -> - | U49: =IF(분기재무제표DB!P73>0,"+","-") -> - | V49: =IF(분기재무제표DB!Q73>0,"+","-") -> - | W49: =IF(분기재무제표DB!R73>0,"+","-") -> - | X49: =IF(분기재무제표DB!S73>0,"+","-") -> - | Y49: =IF(분기재무제표DB!T73>0,"+","-") -> - | Z49: =IF(분기재무제표DB!U73>0,"+","-") -> - | AA49: =IF(분기재무제표DB!V73>0,"+","-") -> - | AB49: =IF(분기재무제표DB!W73>0,"+","-") -> - | AC49: =IF(분기재무제표DB!X73>0,"+","-") -> - | AD49: =IF(분기재무제표DB!Y73>0,"+","-") -> - | AE49: =IF(분기재무제표DB!Z73>0,"+","-") -> - | AF49: =IF(분기재무제표DB!AA73>0,"+","-") -> + | AG49: =IF(분기재무제표DB!AB73>0,"+","-") -> -
C50: -재무활동현금흐름 (+ or -) | F50: . | G50: + | H50: + | I50: =IF(분기재무제표DB!D74>0,"+","-") -> - | J50: =IF(분기재무제표DB!E74>0,"+","-") -> + | K50: =IF(분기재무제표DB!F74>0,"+","-") -> - | L50: =IF(분기재무제표DB!G74>0,"+","-") -> + | M50: =IF(분기재무제표DB!H74>0,"+","-") -> + | N50: =IF(분기재무제표DB!I74>0,"+","-") -> - | O50: =IF(분기재무제표DB!J74>0,"+","-") -> + | P50: =IF(분기재무제표DB!K74>0,"+","-") -> - | Q50: =IF(분기재무제표DB!L74>0,"+","-") -> + | R50: =IF(분기재무제표DB!M74>0,"+","-") -> + | S50: - | T50: - | U50: - | V50: - | W50: - | X50: - | Y50: - | Z50: - | AA50: - | AB50: - | AC50: - | AD50: - | AE50: - | AF50: - | AG50: -
B51: 26) | C51: : (+,-,+):성장기업 / (+,-,-)우량기업 | D51: 8 | F51: . | G51: =IF(AND(G48="+",G49="+",G50="+"),"전환",IF(AND(G48="+",G49="+",G50="-"),"성숙",IF(AND(G48="+",G49="-",G50="+"),"성장",IF(AND(G48="+",G49="-",G50="-"),"우량",IF(AND(G48="-",G49="-",G50="+"),"초기"))))) -> 초기 | H51: =IF(AND(H48="+",H49="+",H50="+"),"전환",IF(AND(H48="+",H49="+",H50="-"),"성숙",IF(AND(H48="+",H49="-",H50="+"),"성장",IF(AND(H48="+",H49="-",H50="-"),"우량",IF(AND(H48="-",H49="-",H50="+"),"초기"))))) -> 초기 | I51: FALSE | J51: 성장 | K51: FALSE | L51: 전환 | M51: 초기 | N51: 우량 | O51: 초기 | P51: 우량 | Q51: 성장 | R51: 성장 | S51: FALSE | T51: =IF(AND(T48="+",T49="+",T50="+"),"전환",IF(AND(T48="+",T49="+",T50="-"),"성숙",IF(AND(T48="+",T49="-",T50="+"),"성장",IF(AND(T48="+",T49="-",T50="-"),"우량",IF(AND(T48="-",T49="-",T50="+"),"초기"))))) -> 우량 | U51: FALSE | V51: 우량 | W51: 우량 | X51: FALSE | Y51: 우량 | Z51: 우량 | AA51: FALSE | AB51: 우량 | AC51: 우량 | AD51: 우량 | AE51: 우량 | AF51: 성숙 | AG51: 우량
B52: 27) | C52: -영업현금/당기순이익(↑) | D52: 3 | F52: 당순/영업현금(150%이상) | G52: =분기재무제표DB!B72/분기재무제표DB!B46 -> -11.31272175 | H52: =분기재무제표DB!C72/분기재무제표DB!C46 -> -53.51877121 | I52: =분기재무제표DB!D72/분기재무제표DB!D46 -> -0.003956954296 | J52: =분기재무제표DB!E72/분기재무제표DB!E46 -> 5.63105502 | K52: =분기재무제표DB!F72/분기재무제표DB!F46 -> -5.197613702 | L52: =분기재무제표DB!G72/분기재무제표DB!G46 -> 5.375941484 | M52: =분기재무제표DB!H72/분기재무제표DB!H46 -> -1.746553813 | N52: =분기재무제표DB!I72/분기재무제표DB!I46 -> -0.04094907847 | O52: =분기재무제표DB!J72/분기재무제표DB!J46 -> -262.8558146 | P52: =분기재무제표DB!K72/분기재무제표DB!K46 -> 6.872592717 | Q52: =분기재무제표DB!L72/분기재무제표DB!L46 -> -2.059719814 | R52: =분기재무제표DB!M72/분기재무제표DB!M46 -> 2.875997157 | S52: =분기재무제표DB!N72/분기재무제표DB!N46 -> -79.96575457 | T52: =분기재무제표DB!O72/분기재무제표DB!O46 -> -3.656692524 | U52: =분기재무제표DB!P72/분기재무제표DB!P46 -> 63.67347104 | V52: =분기재무제표DB!Q72/분기재무제표DB!Q46 -> -3.307593923 | W52: =분기재무제표DB!R72/분기재무제표DB!R46 -> 1.568311295 | X52: =분기재무제표DB!S72/분기재무제표DB!S46 -> -1.673953851 | Y52: =분기재무제표DB!T72/분기재무제표DB!T46 -> 2.956148737 | Z52: =분기재무제표DB!U72/분기재무제표DB!U46 -> -23.90777687 | AA52: =분기재무제표DB!V72/분기재무제표DB!V46 -> -0.8951746325 | AB52: =분기재무제표DB!W72/분기재무제표DB!W46 -> 1.15780888 | AC52: =분기재무제표DB!X72/분기재무제표DB!X46 -> 1.507177577 | AD52: =분기재무제표DB!Y72/분기재무제표DB!Y46 -> 0.06591879214 | AE52: =분기재무제표DB!Z72/분기재무제표DB!Z46 -> 3.553638742 | AF52: =분기재무제표DB!AA72/분기재무제표DB!AA46 -> 1.37474996 | AG52: =분기재무제표DB!AB72/분기재무제표DB!AB46 -> 2.676673449
B53: 28) | C53: -영업현금/매출액 비율(↑) | D53: 3 | F53: 매출/영업현금(15%이상) | G53: =분기재무제표DB!B72/분기재무제표DB!B34 -> -0.09843143085 | H53: =분기재무제표DB!C72/분기재무제표DB!C34 -> 0.234633753 | I53: =분기재무제표DB!D72/분기재무제표DB!D34 -> -8.440294097e-05 | J53: =분기재무제표DB!E72/분기재무제표DB!E34 -> 0.08948413085 | K53: =분기재무제표DB!F72/분기재무제표DB!F34 -> -0.0507955757 | L53: =분기재무제표DB!G72/분기재무제표DB!G34 -> 0.07507537997 | M53: =분기재무제표DB!H72/분기재무제표DB!H34 -> -0.007087908484 | N53: =분기재무제표DB!I72/분기재무제표DB!I34 -> 0.01516214766 | O53: =분기재무제표DB!J72/분기재무제표DB!J34 -> -0.04406312306 | P53: =분기재무제표DB!K72/분기재무제표DB!K34 -> 0.07901772011 | Q53: =분기재무제표DB!L72/분기재무제표DB!L34 -> 0.02434093965 | R53: =분기재무제표DB!M72/분기재무제표DB!M34 -> 0.04184941294 | S53: =분기재무제표DB!N72/분기재무제표DB!N34 -> -0.2129004499 | T53: =분기재무제표DB!O72/분기재무제표DB!O34 -> 0.05293492294 | U53: =분기재무제표DB!P72/분기재무제표DB!P34 -> -0.1317628832 | V53: =분기재무제표DB!Q72/분기재무제표DB!Q34 -> 0.05289383076 | W53: =분기재무제표DB!R72/분기재무제표DB!R34 -> 0.07164068316 | X53: =분기재무제표DB!S72/분기재무제표DB!S34 -> -0.05318474375 | Y53: =분기재무제표DB!T72/분기재무제표DB!T34 -> 0.1687673028 | Z53: =분기재무제표DB!U72/분기재무제표DB!U34 -> 0.06874991123 | AA53: =분기재무제표DB!V72/분기재무제표DB!V34 -> -0.09557175117 | AB53: =분기재무제표DB!W72/분기재무제표DB!W34 -> 0.09204136503 | AC53: =분기재무제표DB!X72/분기재무제표DB!X34 -> 0.1272104988 | AD53: =분기재무제표DB!Y72/분기재무제표DB!Y34 -> 0.0125892025 | AE53: =분기재무제표DB!Z72/분기재무제표DB!Z34 -> 0.2077696682 | AF53: =분기재무제표DB!AA72/분기재무제표DB!AA34 -> 0.07492288469 | AG53: =분기재무제표DB!AB72/분기재무제표DB!AB34 -> 0.2217902051
B54: 29) | C54: -영업현금/유동부채 비율(↑) | D54: 2 | F54: 영업현금/부채(80%이상) | G54: =분기재무제표DB!B72/(분기재무제표DB!B21/4) -> -0.1270599973 | H54: =분기재무제표DB!C72/(분기재무제표DB!C21/4) -> 0.3263774411 | I54: =분기재무제표DB!D72/(분기재무제표DB!D21/4) -> -0.0001137867733 | J54: =분기재무제표DB!E72/(분기재무제표DB!E21/4) -> 0.1187922641 | K54: =분기재무제표DB!F72/(분기재무제표DB!F21/4) -> -0.08054706907 | L54: =분기재무제표DB!G72/(분기재무제표DB!G21/4) -> 0.1327533085 | M54: =분기재무제표DB!H72/(분기재무제표DB!H21/4) -> -0.01272362912 | N54: =분기재무제표DB!I72/(분기재무제표DB!I21/4) -> 0.02747790631 | O54: =분기재무제표DB!J72/(분기재무제표DB!J21/4) -> -0.08075090911 | P54: =분기재무제표DB!K72/(분기재무제표DB!K21/4) -> 0.1385750004 | Q54: =분기재무제표DB!L72/(분기재무제표DB!L21/4) -> 0.05578141684 | R54: =분기재무제표DB!M72/(분기재무제표DB!M21/4) -> 0.1031059587 | S54: =분기재무제표DB!N72/(분기재무제표DB!N21/4) -> -0.4672307638 | T54: =분기재무제표DB!O72/(분기재무제표DB!O21/4) -> 0.1144093321 | U54: =분기재무제표DB!P72/(분기재무제표DB!P21/4) -> -0.2838801198 | V54: =분기재무제표DB!Q72/(분기재무제표DB!Q21/4) -> 0.1177569253 | W54: =분기재무제표DB!R72/(분기재무제표DB!R21/4) -> 0.1773527255 | X54: =분기재무제표DB!S72/(분기재무제표DB!S21/4) -> -0.1213111694 | Y54: =분기재무제표DB!T72/(분기재무제표DB!T21/4) -> 0.3972369484 | Z54: =분기재무제표DB!U72/(분기재무제표DB!U21/4) -> 0.1667432865 | AA54: =분기재무제표DB!V72/(분기재무제표DB!V21/4) -> -0.2440730051 | AB54: =분기재무제표DB!W72/(분기재무제표DB!W21/4) -> 0.2381801442 | AC54: =분기재무제표DB!X72/(분기재무제표DB!X21/4) -> 0.3270294781 | AD54: =분기재무제표DB!Y72/(분기재무제표DB!Y21/4) -> 0.03121306573 | AE54: =분기재무제표DB!Z72/(분기재무제표DB!Z21/4) -> 0.3835439379 | AF54: =분기재무제표DB!AA72/(분기재무제표DB!AA21/4) -> 0.232797239 | AG54: =분기재무제표DB!AB72/(분기재무제표DB!AB21/4) -> 0.4713513278
A55: 활동성 | C55: 총 자산 회전율 | F55: .
B56: 30) | C56: -매출액/총자산, 80%이상(↑) | D56: 4 | F56: 자산회전율(80%이상) | G56: . | H56: . | I56: . | J56: . | K56: =(분기재무제표DB!F34+분기재무제표DB!E34+분기재무제표DB!D34+분기재무제표DB!C34)/((분기재무제표DB!F6+분기재무제표DB!B6)/2) -> 0.5302249937 | L56: =(분기재무제표DB!G34+분기재무제표DB!F34+분기재무제표DB!E34+분기재무제표DB!D34)/((분기재무제표DB!G6+분기재무제표DB!C6)/2) -> 0.5662311417 | M56: =(분기재무제표DB!H34+분기재무제표DB!G34+분기재무제표DB!F34+분기재무제표DB!E34)/((분기재무제표DB!H6+분기재무제표DB!D6)/2) -> 0.6251109045 | N56: =(분기재무제표DB!I34+분기재무제표DB!H34+분기재무제표DB!G34+분기재무제표DB!F34)/((분기재무제표DB!I6+분기재무제표DB!E6)/2) -> 0.6789716866 | O56: =(분기재무제표DB!J34+분기재무제표DB!I34+분기재무제표DB!H34+분기재무제표DB!G34)/((분기재무제표DB!J6+분기재무제표DB!F6)/2) -> 0.7173792004 | P56: =(분기재무제표DB!K34+분기재무제표DB!J34+분기재무제표DB!I34+분기재무제표DB!H34)/((분기재무제표DB!K6+분기재무제표DB!G6)/2) -> 0.7025763837 | Q56: =(분기재무제표DB!L34+분기재무제표DB!K34+분기재무제표DB!J34+분기재무제표DB!I34)/((분기재무제표DB!L6+분기재무제표DB!H6)/2) -> 0.6619558622 | R56: =(분기재무제표DB!M34+분기재무제표DB!L34+분기재무제표DB!K34+분기재무제표DB!J34)/((분기재무제표DB!M6+분기재무제표DB!I6)/2) -> 0.6700327715 | S56: =(분기재무제표DB!N34+분기재무제표DB!M34+분기재무제표DB!L34+분기재무제표DB!K34)/((분기재무제표DB!N6+분기재무제표DB!J6)/2) -> 0.6517810407 | T56: =(분기재무제표DB!O34+분기재무제표DB!N34+분기재무제표DB!M34+분기재무제표DB!L34)/((분기재무제표DB!O6+분기재무제표DB!K6)/2) -> 0.6537628281 | U56: =(분기재무제표DB!P34+분기재무제표DB!O34+분기재무제표DB!N34+분기재무제표DB!M34)/((분기재무제표DB!P6+분기재무제표DB!L6)/2) -> 0.6501152639 | V56: =(분기재무제표DB!Q34+분기재무제표DB!P34+분기재무제표DB!O34+분기재무제표DB!N34)/((분기재무제표DB!Q6+분기재무제표DB!M6)/2) -> 0.6383837601 | W56: =(분기재무제표DB!R34+분기재무제표DB!Q34+분기재무제표DB!P34+분기재무제표DB!O34)/((분기재무제표DB!R6+분기재무제표DB!N6)/2) -> 0.6899501341 | X56: =(분기재무제표DB!S34+분기재무제표DB!R34+분기재무제표DB!Q34+분기재무제표DB!P34)/((분기재무제표DB!S6+분기재무제표DB!O6)/2) -> 0.738336967 | Y56: =(분기재무제표DB!T34+분기재무제표DB!S34+분기재무제표DB!R34+분기재무제표DB!Q34)/((분기재무제표DB!T6+분기재무제표DB!P6)/2) -> 0.7559612927 | Z56: =(분기재무제표DB!U34+분기재무제표DB!T34+분기재무제표DB!S34+분기재무제표DB!R34)/((분기재무제표DB!U6+분기재무제표DB!Q6)/2) -> 0.7780944164 | AA56: =(분기재무제표DB!V34+분기재무제표DB!U34+분기재무제표DB!T34+분기재무제표DB!S34)/((분기재무제표DB!V6+분기재무제표DB!R6)/2) -> 0.7910044346 | AB56: =(분기재무제표DB!W34+분기재무제표DB!V34+분기재무제표DB!U34+분기재무제표DB!T34)/((분기재무제표DB!W6+분기재무제표DB!S6)/2) -> 0.8156626867 | AC56: =(분기재무제표DB!X34+분기재무제표DB!W34+분기재무제표DB!V34+분기재무제표DB!U34)/((분기재무제표DB!X6+분기재무제표DB!T6)/2) -> 0.8479603971 | AD56: =(분기재무제표DB!Y34+분기재무제표DB!X34+분기재무제표DB!W34+분기재무제표DB!V34)/((분기재무제표DB!Y6+분기재무제표DB!U6)/2) -> 0.7879025983 | AE56: =(분기재무제표DB!Z34+분기재무제표DB!Y34+분기재무제표DB!X34+분기재무제표DB!W34)/((분기재무제표DB!Z6+분기재무제표DB!V6)/2) -> 0.7356117438 | AF56: =(분기재무제표DB!AA34+분기재무제표DB!Z34+분기재무제표DB!Y34+분기재무제표DB!X34)/((분기재무제표DB!AA6+분기재무제표DB!W6)/2) -> 0.7552247877 | AG56: =(분기재무제표DB!AB34+분기재무제표DB!AA34+분기재무제표DB!Z34+분기재무제표DB!Y34)/((분기재무제표DB!AB6+분기재무제표DB!X6)/2) -> 0.7023413608
C57: 총 자본 회전율 | F57: .
B58: 31) | C58: -매출액/총자본, 160%이상(↑) | D58: 4 | F58: 자본회전율(160%이상) | G58: . | H58: . | I58: . | J58: . | K58: =(분기재무제표DB!F34+분기재무제표DB!E34+분기재무제표DB!D34+분기재무제표DB!C34)/((분기재무제표DB!F29+분기재무제표DB!B29)/2) -> 1.296772453 | L58: =(분기재무제표DB!G34+분기재무제표DB!F34+분기재무제표DB!E34+분기재무제표DB!D34)/((분기재무제표DB!G29+분기재무제표DB!C29)/2) -> 1.38472597 | M58: =(분기재무제표DB!H34+분기재무제표DB!G34+분기재무제표DB!F34+분기재무제표DB!E34)/((분기재무제표DB!H29+분기재무제표DB!D29)/2) -> 1.534020115 | N58: =(분기재무제표DB!I34+분기재무제표DB!H34+분기재무제표DB!G34+분기재무제표DB!F34)/((분기재무제표DB!I29+분기재무제표DB!E29)/2) -> 1.653916565 | O58: =(분기재무제표DB!J34+분기재무제표DB!I34+분기재무제표DB!H34+분기재무제표DB!G34)/((분기재무제표DB!J29+분기재무제표DB!F29)/2) -> 1.749664272 | P58: =(분기재무제표DB!K34+분기재무제표DB!J34+분기재무제표DB!I34+분기재무제표DB!H34)/((분기재무제표DB!K29+분기재무제표DB!G29)/2) -> 1.705736077 | Q58: =(분기재무제표DB!L34+분기재무제표DB!K34+분기재무제표DB!J34+분기재무제표DB!I34)/((분기재무제표DB!L29+분기재무제표DB!H29)/2) -> 1.461498013 | R58: =(분기재무제표DB!M34+분기재무제표DB!L34+분기재무제표DB!K34+분기재무제표DB!J34)/((분기재무제표DB!M29+분기재무제표DB!I29)/2) -> 1.491344676 | S58: =(분기재무제표DB!N34+분기재무제표DB!M34+분기재무제표DB!L34+분기재무제표DB!K34)/((분기재무제표DB!N29+분기재무제표DB!J29)/2) -> 1.473480862 | T58: =(분기재무제표DB!O34+분기재무제표DB!N34+분기재무제표DB!M34+분기재무제표DB!L34)/((분기재무제표DB!O29+분기재무제표DB!K29)/2) -> 1.499119364 | U58: =(분기재무제표DB!P34+분기재무제표DB!O34+분기재무제표DB!N34+분기재무제표DB!M34)/((분기재무제표DB!P29+분기재무제표DB!L29)/2) -> 1.404710822 | V58: =(분기재무제표DB!Q34+분기재무제표DB!P34+분기재무제표DB!O34+분기재무제표DB!N34)/((분기재무제표DB!Q29+분기재무제표DB!M29)/2) -> 1.404346415 | W58: =(분기재무제표DB!R34+분기재무제표DB!Q34+분기재무제표DB!P34+분기재무제표DB!O34)/((분기재무제표DB!R29+분기재무제표DB!N29)/2) -> 1.521551464 | X58: =(분기재무제표DB!S34+분기재무제표DB!R34+분기재무제표DB!Q34+분기재무제표DB!P34)/((분기재무제표DB!S29+분기재무제표DB!O29)/2) -> 1.658092567 | Y58: =(분기재무제표DB!T34+분기재무제표DB!S34+분기재무제표DB!R34+분기재무제표DB!Q34)/((분기재무제표DB!T29+분기재무제표DB!P29)/2) -> 1.72997635 | Z58: =(분기재무제표DB!U34+분기재무제표DB!T34+분기재무제표DB!S34+분기재무제표DB!R34)/((분기재무제표DB!U29+분기재무제표DB!Q29)/2) -> 1.82449928 | AA58: =(분기재무제표DB!V34+분기재무제표DB!U34+분기재무제표DB!T34+분기재무제표DB!S34)/((분기재무제표DB!V29+분기재무제표DB!R29)/2) -> 1.842332983 | AB58: =(분기재무제표DB!W34+분기재무제표DB!V34+분기재무제표DB!U34+분기재무제표DB!T34)/((분기재무제표DB!W29+분기재무제표DB!S29)/2) -> 1.927663199 | AC58: =(분기재무제표DB!X34+분기재무제표DB!W34+분기재무제표DB!V34+분기재무제표DB!U34)/((분기재무제표DB!X29+분기재무제표DB!T29)/2) -> 1.981920091 | AD58: =(분기재무제표DB!Y34+분기재무제표DB!X34+분기재무제표DB!W34+분기재무제표DB!V34)/((분기재무제표DB!Y29+분기재무제표DB!U29)/2) -> 1.813406741 | AE58: =(분기재무제표DB!Z34+분기재무제표DB!Y34+분기재무제표DB!X34+분기재무제표DB!W34)/((분기재무제표DB!Z29+분기재무제표DB!V29)/2) -> 1.697235957 | AF58: =(분기재무제표DB!AA34+분기재무제표DB!Z34+분기재무제표DB!Y34+분기재무제표DB!X34)/((분기재무제표DB!AA29+분기재무제표DB!W29)/2) -> 1.732308039 | AG58: =(분기재무제표DB!AB34+분기재무제표DB!AA34+분기재무제표DB!Z34+분기재무제표DB!Y34)/((분기재무제표DB!AB29+분기재무제표DB!X29)/2) -> 1.609694227
C59: 순 운전자본 회전율 | F59: .
B60: 32) | C60: -매출액/순운전자본, 300%이상(↑) | D60: 4 | F60: 운전회전율(300%이상) | G60: . | H60: . | I60: . | J60: . | K60: =(분기재무제표DB!F34+분기재무제표DB!E34+분기재무제표DB!D34+분기재무제표DB!C34)/((분기재무제표DB!F60+분기재무제표DB!B60+분기재무제표DB!F61+분기재무제표DB!B61+분기재무제표DB!F13+분기재무제표DB!B13-분기재무제표DB!F25-분기재무제표DB!B25)/2) -> 2.128177685 | L60: =(분기재무제표DB!G34+분기재무제표DB!F34+분기재무제표DB!E34+분기재무제표DB!D34)/((분기재무제표DB!G60+분기재무제표DB!C60+분기재무제표DB!G61+분기재무제표DB!C61+분기재무제표DB!G13+분기재무제표DB!C13-분기재무제표DB!G25-분기재무제표DB!C25)/2) -> 2.22399564 | M60: =(분기재무제표DB!H34+분기재무제표DB!G34+분기재무제표DB!F34+분기재무제표DB!E34)/((분기재무제표DB!H60+분기재무제표DB!D60+분기재무제표DB!H61+분기재무제표DB!D61+분기재무제표DB!H13+분기재무제표DB!D13-분기재무제표DB!H25-분기재무제표DB!D25)/2) -> 2.55239704 | N60: =(분기재무제표DB!I34+분기재무제표DB!H34+분기재무제표DB!G34+분기재무제표DB!F34)/((분기재무제표DB!I60+분기재무제표DB!E60+분기재무제표DB!I61+분기재무제표DB!E61+분기재무제표DB!I13+분기재무제표DB!E13-분기재무제표DB!I25-분기재무제표DB!E25)/2) -> 2.586051874 | O60: =(분기재무제표DB!J34+분기재무제표DB!I34+분기재무제표DB!H34+분기재무제표DB!G34)/((분기재무제표DB!J60+분기재무제표DB!F60+분기재무제표DB!J61+분기재무제표DB!F61+분기재무제표DB!J13+분기재무제표DB!F13-분기재무제표DB!J25-분기재무제표DB!F25)/2) -> 2.69592169 | P60: =(분기재무제표DB!K34+분기재무제표DB!J34+분기재무제표DB!I34+분기재무제표DB!H34)/((분기재무제표DB!K60+분기재무제표DB!G60+분기재무제표DB!K61+분기재무제표DB!G61+분기재무제표DB!K13+분기재무제표DB!G13-분기재무제표DB!K25-분기재무제표DB!G25)/2) -> 2.575266635 | Q60: =(분기재무제표DB!L34+분기재무제표DB!K34+분기재무제표DB!J34+분기재무제표DB!I34)/((분기재무제표DB!L60+분기재무제표DB!H60+분기재무제표DB!L61+분기재무제표DB!H61+분기재무제표DB!L13+분기재무제표DB!H13-분기재무제표DB!L25-분기재무제표DB!H25)/2) -> 2.304704288 | R60: =(분기재무제표DB!M34+분기재무제표DB!L34+분기재무제표DB!K34+분기재무제표DB!J34)/((분기재무제표DB!M60+분기재무제표DB!I60+분기재무제표DB!M61+분기재무제표DB!I61+분기재무제표DB!M13+분기재무제표DB!I13-분기재무제표DB!M25-분기재무제표DB!I25)/2) -> 2.986303458 | S60: =(분기재무제표DB!N34+분기재무제표DB!M34+분기재무제표DB!L34+분기재무제표DB!K34)/((분기재무제표DB!N60+분기재무제표DB!J60+분기재무제표DB!N61+분기재무제표DB!J61+분기재무제표DB!N13+분기재무제표DB!J13-분기재무제표DB!N25-분기재무제표DB!J25)/2) -> 2.417231441 | T60: =(분기재무제표DB!O34+분기재무제표DB!N34+분기재무제표DB!M34+분기재무제표DB!L34)/((분기재무제표DB!O60+분기재무제표DB!K60+분기재무제표DB!O61+분기재무제표DB!K61+분기재무제표DB!O13+분기재무제표DB!K13-분기재무제표DB!O25-분기재무제표DB!K25)/2) -> 2.513863156 | U60: =(분기재무제표DB!P34+분기재무제표DB!O34+분기재무제표DB!N34+분기재무제표DB!M34)/((분기재무제표DB!P60+분기재무제표DB!L60+분기재무제표DB!P61+분기재무제표DB!L61+분기재무제표DB!P13+분기재무제표DB!L13-분기재무제표DB!P25-분기재무제표DB!L25)/2) -> 2.229508499 | V60: =(분기재무제표DB!Q34+분기재무제표DB!P34+분기재무제표DB!O34+분기재무제표DB!N34)/((분기재무제표DB!Q60+분기재무제표DB!M60+분기재무제표DB!Q61+분기재무제표DB!M61+분기재무제표DB!Q13+분기재무제표DB!M13-분기재무제표DB!Q25-분기재무제표DB!M25)/2) -> 2.645783185 | W60: =(분기재무제표DB!R34+분기재무제표DB!Q34+분기재무제표DB!P34+분기재무제표DB!O34)/((분기재무제표DB!R60+분기재무제표DB!N60+분기재무제표DB!R61+분기재무제표DB!N61+분기재무제표DB!R13+분기재무제표DB!N13-분기재무제표DB!R25-분기재무제표DB!N25)/2) -> 2.52661083 | X60: =(분기재무제표DB!S34+분기재무제표DB!R34+분기재무제표DB!Q34+분기재무제표DB!P34)/((분기재무제표DB!S60+분기재무제표DB!O60+분기재무제표DB!S61+분기재무제표DB!O61+분기재무제표DB!S13+분기재무제표DB!O13-분기재무제표DB!S25-분기재무제표DB!O25)/2) -> 2.747479477 | Y60: =(분기재무제표DB!T34+분기재무제표DB!S34+분기재무제표DB!R34+분기재무제표DB!Q34)/((분기재무제표DB!T60+분기재무제표DB!P60+분기재무제표DB!T61+분기재무제표DB!P61+분기재무제표DB!T13+분기재무제표DB!P13-분기재무제표DB!T25-분기재무제표DB!P25)/2) -> 2.675760149 | Z60: =(분기재무제표DB!U34+분기재무제표DB!T34+분기재무제표DB!S34+분기재무제표DB!R34)/((분기재무제표DB!U60+분기재무제표DB!Q60+분기재무제표DB!U61+분기재무제표DB!Q61+분기재무제표DB!U13+분기재무제표DB!Q13-분기재무제표DB!U25-분기재무제표DB!Q25)/2) -> 2.706865498 | AA60: =(분기재무제표DB!V34+분기재무제표DB!U34+분기재무제표DB!T34+분기재무제표DB!S34)/((분기재무제표DB!V60+분기재무제표DB!R60+분기재무제표DB!V61+분기재무제표DB!R61+분기재무제표DB!V13+분기재무제표DB!R13-분기재무제표DB!V25-분기재무제표DB!R25)/2) -> 2.623003687 | AB60: =(분기재무제표DB!W34+분기재무제표DB!V34+분기재무제표DB!U34+분기재무제표DB!T34)/((분기재무제표DB!W60+분기재무제표DB!S60+분기재무제표DB!W61+분기재무제표DB!S61+분기재무제표DB!W13+분기재무제표DB!S13-분기재무제표DB!W25-분기재무제표DB!S25)/2) -> 2.702717766 | AC60: =(분기재무제표DB!X34+분기재무제표DB!W34+분기재무제표DB!V34+분기재무제표DB!U34)/((분기재무제표DB!X60+분기재무제표DB!T60+분기재무제표DB!X61+분기재무제표DB!T61+분기재무제표DB!X13+분기재무제표DB!T13-분기재무제표DB!X25-분기재무제표DB!T25)/2) -> 2.86041264 | AD60: =(분기재무제표DB!Y34+분기재무제표DB!X34+분기재무제표DB!W34+분기재무제표DB!V34)/((분기재무제표DB!Y60+분기재무제표DB!U60+분기재무제표DB!Y61+분기재무제표DB!U61+분기재무제표DB!Y13+분기재무제표DB!U13-분기재무제표DB!Y25-분기재무제표DB!U25)/2) -> 2.462114153 | AE60: =(분기재무제표DB!Z34+분기재무제표DB!Y34+분기재무제표DB!X34+분기재무제표DB!W34)/((분기재무제표DB!Z60+분기재무제표DB!V60+분기재무제표DB!Z61+분기재무제표DB!V61+분기재무제표DB!Z13+분기재무제표DB!V13-분기재무제표DB!Z25-분기재무제표DB!V25)/2) -> 2.230681442 | AF60: =(분기재무제표DB!AA34+분기재무제표DB!Z34+분기재무제표DB!Y34+분기재무제표DB!X34)/((분기재무제표DB!AA60+분기재무제표DB!W60+분기재무제표DB!AA61+분기재무제표DB!W61+분기재무제표DB!AA13+분기재무제표DB!W13-분기재무제표DB!AA25-분기재무제표DB!W25)/2) -> 2.331219447 | AG60: =(분기재무제표DB!AB34+분기재무제표DB!AA34+분기재무제표DB!Z34+분기재무제표DB!Y34)/((분기재무제표DB!AB60+분기재무제표DB!X60+분기재무제표DB!AB61+분기재무제표DB!X61+분기재무제표DB!AB13+분기재무제표DB!X13-분기재무제표DB!AB25-분기재무제표DB!X25)/2) -> 2.340308339
C61: 유형자산 회전율 (산업비교) | F61: .
B62: 33) | C62: -매출액/유형자산, 280%이상(↑) | D62: 2 | F62: 유형자산회전율(280%이상) | G62: . | H62: . | I62: . | J62: . | K62: =(분기재무제표DB!F34+분기재무제표DB!E34+분기재무제표DB!D34+분기재무제표DB!C34)/((분기재무제표DB!F17+분기재무제표DB!B17)/2) -> 0.8371166841 | L62: =(분기재무제표DB!G34+분기재무제표DB!F34+분기재무제표DB!E34+분기재무제표DB!D34)/((분기재무제표DB!G17+분기재무제표DB!C17)/2) -> 0.9060921431 | M62: =(분기재무제표DB!H34+분기재무제표DB!G34+분기재무제표DB!F34+분기재무제표DB!E34)/((분기재무제표DB!H17+분기재무제표DB!D17)/2) -> 1.005532647 | N62: =(분기재무제표DB!I34+분기재무제표DB!H34+분기재무제표DB!G34+분기재무제표DB!F34)/((분기재무제표DB!I17+분기재무제표DB!E17)/2) -> 1.063632925 | O62: =(분기재무제표DB!J34+분기재무제표DB!I34+분기재무제표DB!H34+분기재무제표DB!G34)/((분기재무제표DB!J17+분기재무제표DB!F17)/2) -> 1.118894805 | P62: =(분기재무제표DB!K34+분기재무제표DB!J34+분기재무제표DB!I34+분기재무제표DB!H34)/((분기재무제표DB!K17+분기재무제표DB!G17)/2) -> 1.12201833 | Q62: =(분기재무제표DB!L34+분기재무제표DB!K34+분기재무제표DB!J34+분기재무제표DB!I34)/((분기재무제표DB!L17+분기재무제표DB!H17)/2) -> 1.083590879 | R62: =(분기재무제표DB!M34+분기재무제표DB!L34+분기재무제표DB!K34+분기재무제표DB!J34)/((분기재무제표DB!M17+분기재무제표DB!I17)/2) -> 1.013610207 | S62: =(분기재무제표DB!N34+분기재무제표DB!M34+분기재무제표DB!L34+분기재무제표DB!K34)/((분기재무제표DB!N17+분기재무제표DB!J17)/2) -> 0.9856188488 | T62: =(분기재무제표DB!O34+분기재무제표DB!N34+분기재무제표DB!M34+분기재무제표DB!L34)/((분기재무제표DB!O17+분기재무제표DB!K17)/2) -> 0.9733793193 | U62: =(분기재무제표DB!P34+분기재무제표DB!O34+분기재무제표DB!N34+분기재무제표DB!M34)/((분기재무제표DB!P17+분기재무제표DB!L17)/2) -> 1.005200948 | V62: =(분기재무제표DB!Q34+분기재무제표DB!P34+분기재무제표DB!O34+분기재무제표DB!N34)/((분기재무제표DB!Q17+분기재무제표DB!M17)/2) -> 0.9606025306 | W62: =(분기재무제표DB!R34+분기재무제표DB!Q34+분기재무제표DB!P34+분기재무제표DB!O34)/((분기재무제표DB!R17+분기재무제표DB!N17)/2) -> 1.037683021 | X62: =(분기재무제표DB!S34+분기재무제표DB!R34+분기재무제표DB!Q34+분기재무제표DB!P34)/((분기재무제표DB!S17+분기재무제표DB!O17)/2) -> 1.097781053 | Y62: =(분기재무제표DB!T34+분기재무제표DB!S34+분기재무제표DB!R34+분기재무제표DB!Q34)/((분기재무제표DB!T17+분기재무제표DB!P17)/2) -> 1.145290705 | Z62: =(분기재무제표DB!U34+분기재무제표DB!T34+분기재무제표DB!S34+분기재무제표DB!R34)/((분기재무제표DB!U17+분기재무제표DB!Q17)/2) -> 1.181983698 | AA62: =(분기재무제표DB!V34+분기재무제표DB!U34+분기재무제표DB!T34+분기재무제표DB!S34)/((분기재무제표DB!V17+분기재무제표DB!R17)/2) -> 1.224698759 | AB62: =(분기재무제표DB!W34+분기재무제표DB!V34+분기재무제표DB!U34+분기재무제표DB!T34)/((분기재무제표DB!W17+분기재무제표DB!S17)/2) -> 1.2802153 | AC62: =(분기재무제표DB!X34+분기재무제표DB!W34+분기재무제표DB!V34+분기재무제표DB!U34)/((분기재무제표DB!X17+분기재무제표DB!T17)/2) -> 1.331349838 | AD62: =(분기재무제표DB!Y34+분기재무제표DB!X34+분기재무제표DB!W34+분기재무제표DB!V34)/((분기재무제표DB!Y17+분기재무제표DB!U17)/2) -> 1.297649356 | AE62: =(분기재무제표DB!Z34+분기재무제표DB!Y34+분기재무제표DB!X34+분기재무제표DB!W34)/((분기재무제표DB!Z17+분기재무제표DB!V17)/2) -> 1.211740815 | AF62: =(분기재무제표DB!AA34+분기재무제표DB!Z34+분기재무제표DB!Y34+분기재무제표DB!X34)/((분기재무제표DB!AA17+분기재무제표DB!W17)/2) -> 1.226985574 | AG62: =(분기재무제표DB!AB34+분기재무제표DB!AA34+분기재무제표DB!Z34+분기재무제표DB!Y34)/((분기재무제표DB!AB17+분기재무제표DB!X17)/2) -> 1.104243414
C63: 시가총액<운전자본 | F63: .
B64: 34) | C64: - 1보다 작으면 저평가(↓) | D64: 0 | F64: 시총/운전자본(1이하) | G64: =분기재무제표DB!B91/(분기재무제표DB!B60+분기재무제표DB!B61+분기재무제표DB!B11-분기재무제표DB!B25) -> 1.026312743 | H64: =분기재무제표DB!C91/(분기재무제표DB!C60+분기재무제표DB!C61+분기재무제표DB!C11-분기재무제표DB!C25) -> 1.000087504 | I64: =분기재무제표DB!D91/(분기재무제표DB!D60+분기재무제표DB!D61+분기재무제표DB!D11-분기재무제표DB!D25) -> 0.8092466686 | J64: =분기재무제표DB!E91/(분기재무제표DB!E60+분기재무제표DB!E61+분기재무제표DB!E11-분기재무제표DB!E25) -> 1.253648625 | K64: =분기재무제표DB!F91/(분기재무제표DB!F60+분기재무제표DB!F61+분기재무제표DB!F11-분기재무제표DB!F25) -> 1.650178374 | L64: =분기재무제표DB!G91/(분기재무제표DB!G60+분기재무제표DB!G61+분기재무제표DB!G11-분기재무제표DB!G25) -> 2.495789216 | M64: =분기재무제표DB!H91/(분기재무제표DB!H60+분기재무제표DB!H61+분기재무제표DB!H11-분기재무제표DB!H25) -> 2.614434811 | N64: =분기재무제표DB!I91/(분기재무제표DB!I60+분기재무제표DB!I61+분기재무제표DB!I11-분기재무제표DB!I25) -> 5.769003081 | O64: =분기재무제표DB!J91/(분기재무제표DB!J60+분기재무제표DB!J61+분기재무제표DB!J11-분기재무제표DB!J25) -> 6.5574897 | P64: =분기재무제표DB!K91/(분기재무제표DB!K60+분기재무제표DB!K61+분기재무제표DB!K11-분기재무제표DB!K25) -> 10.85683302 | Q64: =분기재무제표DB!L91/(분기재무제표DB!L60+분기재무제표DB!L61+분기재무제표DB!L11-분기재무제표DB!L25) -> 4.872635269 | R64: =분기재무제표DB!M91/(분기재무제표DB!M60+분기재무제표DB!M61+분기재무제표DB!M11-분기재무제표DB!M25) -> 8.442342598 | S64: =분기재무제표DB!N91/(분기재무제표DB!N60+분기재무제표DB!N61+분기재무제표DB!N11-분기재무제표DB!N25) -> 5.803756316 | T64: =분기재무제표DB!O91/(분기재무제표DB!O60+분기재무제표DB!O61+분기재무제표DB!O11-분기재무제표DB!O25) -> 6.790719212 | U64: =분기재무제표DB!P91/(분기재무제표DB!P60+분기재무제표DB!P61+분기재무제표DB!P11-분기재무제표DB!P25) -> 5.294846951 | V64: =분기재무제표DB!Q91/(분기재무제표DB!Q60+분기재무제표DB!Q61+분기재무제표DB!Q11-분기재무제표DB!Q25) -> 4.51887481 | W64: =분기재무제표DB!R91/(분기재무제표DB!R60+분기재무제표DB!R61+분기재무제표DB!R11-분기재무제표DB!R25) -> 4.649095229 | X64: =분기재무제표DB!S91/(분기재무제표DB!S60+분기재무제표DB!S61+분기재무제표DB!S11-분기재무제표DB!S25) -> 10.17518929 | Y64: =분기재무제표DB!T91/(분기재무제표DB!T60+분기재무제표DB!T61+분기재무제표DB!T11-분기재무제표DB!T25) -> 8.38315023 | Z64: =분기재무제표DB!U91/(분기재무제표DB!U60+분기재무제표DB!U61+분기재무제표DB!U11-분기재무제표DB!U25) -> 9.059232675 | AA64: =분기재무제표DB!V91/(분기재무제표DB!V60+분기재무제표DB!V61+분기재무제표DB!V11-분기재무제표DB!V25) -> 9.660862463 | AB64: =분기재무제표DB!W91/(분기재무제표DB!W60+분기재무제표DB!W61+분기재무제표DB!W11-분기재무제표DB!W25) -> 10.51757215 | AC64: =분기재무제표DB!X91/(분기재무제표DB!X60+분기재무제표DB!X61+분기재무제표DB!X11-분기재무제표DB!X25) -> 18.71035115 | AD64: =분기재무제표DB!Y91/(분기재무제표DB!Y60+분기재무제표DB!Y61+분기재무제표DB!Y11-분기재무제표DB!Y25) -> 12.04460645 | AE64: =분기재무제표DB!Z91/(분기재무제표DB!Z60+분기재무제표DB!Z61+분기재무제표DB!Z11-분기재무제표DB!Z25) -> 11.20300375 | AF64: =분기재무제표DB!AA91/(분기재무제표DB!AA60+분기재무제표DB!AA61+분기재무제표DB!AA11-분기재무제표DB!AA25) -> 10.491285 | AG64: =분기재무제표DB!AB91/(분기재무제표DB!AB60+분기재무제표DB!AB61+분기재무제표DB!AB11-분기재무제표DB!AB25) -> 14.36900826
C65: 매출채권(외상판매) 빨리 (산업비교) | F65: .
B66: 35) | C66: -매출채권/매출액 대비 (↑) | D66: 3 | F66: 매출채권(20%이상) | G66: . | H66: . | I66: . | J66: . | K66: =(분기재무제표DB!F61)/(분기재무제표DB!F34+분기재무제표DB!E34+분기재무제표DB!D34+분기재무제표DB!C34) -> 0.2230264295 | L66: =(분기재무제표DB!G61)/(분기재무제표DB!G34+분기재무제표DB!F34+분기재무제표DB!E34+분기재무제표DB!D34) -> 0.2197963772 | M66: =(분기재무제표DB!H61)/(분기재무제표DB!H34+분기재무제표DB!G34+분기재무제표DB!F34+분기재무제표DB!E34) -> 0.2192344227 | N66: =(분기재무제표DB!I61)/(분기재무제표DB!I34+분기재무제표DB!H34+분기재무제표DB!G34+분기재무제표DB!F34) -> 0.1775883725 | O66: =(분기재무제표DB!J61)/(분기재무제표DB!J34+분기재무제표DB!I34+분기재무제표DB!H34+분기재무제표DB!G34) -> 0.1988711076 | P66: =(분기재무제표DB!K61)/(분기재무제표DB!K34+분기재무제표DB!J34+분기재무제표DB!I34+분기재무제표DB!H34) -> 0.1909004594 | Q66: =(분기재무제표DB!L61)/(분기재무제표DB!L34+분기재무제표DB!K34+분기재무제표DB!J34+분기재무제표DB!I34) -> 0.1870388491 | R66: =(분기재무제표DB!M61)/(분기재무제표DB!M34+분기재무제표DB!L34+분기재무제표DB!K34+분기재무제표DB!J34) -> 0.1714780205 | S66: =(분기재무제표DB!N61)/(분기재무제표DB!N34+분기재무제표DB!M34+분기재무제표DB!L34+분기재무제표DB!K34) -> 0.1733342773 | T66: =(분기재무제표DB!O61)/(분기재무제표DB!O34+분기재무제표DB!N34+분기재무제표DB!M34+분기재무제표DB!L34) -> 0.1809250418 | U66: =(분기재무제표DB!P61)/(분기재무제표DB!P34+분기재무제표DB!O34+분기재무제표DB!N34+분기재무제표DB!M34) -> 0.2130220738 | V66: =(분기재무제표DB!Q61)/(분기재무제표DB!Q34+분기재무제표DB!P34+분기재무제표DB!O34+분기재무제표DB!N34) -> 0.1972987843 | W66: =(분기재무제표DB!R61)/(분기재무제표DB!R34+분기재무제표DB!Q34+분기재무제표DB!P34+분기재무제표DB!O34) -> 0.198276286 | X66: =(분기재무제표DB!S61)/(분기재무제표DB!S34+분기재무제표DB!R34+분기재무제표DB!Q34+분기재무제표DB!P34) -> 0.2069871093 | Y66: =(분기재무제표DB!T61)/(분기재무제표DB!T34+분기재무제표DB!S34+분기재무제표DB!R34+분기재무제표DB!Q34) -> 0.1846977608 | Z66: =(분기재무제표DB!U61)/(분기재무제표DB!U34+분기재무제표DB!T34+분기재무제표DB!S34+분기재무제표DB!R34) -> 0.1792902376 | AA66: =(분기재무제표DB!V61)/(분기재무제표DB!V34+분기재무제표DB!U34+분기재무제표DB!T34+분기재무제표DB!S34) -> 0.210283512 | AB66: =(분기재무제표DB!W61)/(분기재무제표DB!W34+분기재무제표DB!V34+분기재무제표DB!U34+분기재무제표DB!T34) -> 0.1997547593 | AC66: =(분기재무제표DB!X61)/(분기재무제표DB!X34+분기재무제표DB!W34+분기재무제표DB!V34+분기재무제표DB!U34) -> 0.1946330688 | AD66: =(분기재무제표DB!Y61)/(분기재무제표DB!Y34+분기재무제표DB!X34+분기재무제표DB!W34+분기재무제표DB!V34) -> 0.1833516955 | AE66: =(분기재무제표DB!Z61)/(분기재무제표DB!Z34+분기재무제표DB!Y34+분기재무제표DB!X34+분기재무제표DB!W34) -> 0.1875218813 | AF66: =(분기재무제표DB!AA61)/(분기재무제표DB!AA34+분기재무제표DB!Z34+분기재무제표DB!Y34+분기재무제표DB!X34) -> 0.1827877233 | AG66: =(분기재무제표DB!AB61)/(분기재무제표DB!AB34+분기재무제표DB!AA34+분기재무제표DB!Z34+분기재무제표DB!Y34) -> 0.1885780373
B67: 36) | C67: -일정유지금액 유지(↔) | D67: 2 | O67: =(O66-K66)/K66 -> -0.1083069932 | P67: -0.131466761 | Q67: -0.1468545552 | R67: -0.03440738751 | S67: -0.1284089508 | T67: -0.05225454993 | U67: 0.1389188654 | V67: 0.1505776875 | W67: 0.1438954206 | X67: 0.1440489787 | Y67: -0.1329642157 | Z67: -0.09127550781 | AA67: 0.06055805396 | AB67: -0.03494106494 | AC67: 0.05379224932 | AD67: 0.02265297854 | AE67: -0.1082425842 | AF67: -0.08493933267 | AG67: -0.0311099835
B68: 37) | C68: -매출채권회수기간(산업비교)(일)(↓) | D68: 2 | F68: 매출채권회수(빨리) | G68: . | H68: . | I68: . | J68: . | K68: =365/((분기재무제표DB!F34+분기재무제표DB!E34+분기재무제표DB!D34+분기재무제표DB!C34)/((분기재무제표DB!F61+분기재무제표DB!B61)/2)) -> 77.84119521 | L68: =365/((분기재무제표DB!G34+분기재무제표DB!F34+분기재무제표DB!E34+분기재무제표DB!D34)/((분기재무제표DB!G61+분기재무제표DB!C61)/2)) -> 74.85577223 | M68: =365/((분기재무제표DB!H34+분기재무제표DB!G34+분기재무제표DB!F34+분기재무제표DB!E34)/((분기재무제표DB!H61+분기재무제표DB!D61)/2)) -> 72.5284019 | N68: =365/((분기재무제표DB!I34+분기재무제표DB!H34+분기재무제표DB!G34+분기재무제표DB!F34)/((분기재무제표DB!I61+분기재무제표DB!E61)/2)) -> 65.64055062 | O68: =365/((분기재무제표DB!J34+분기재무제표DB!I34+분기재무제표DB!H34+분기재무제표DB!G34)/((분기재무제표DB!J61+분기재무제표DB!F61)/2)) -> 66.37041558 | P68: =365/((분기재무제표DB!K34+분기재무제표DB!J34+분기재무제표DB!I34+분기재무제표DB!H34)/((분기재무제표DB!K61+분기재무제표DB!G61)/2)) -> 66.83600753 | Q68: =365/((분기재무제표DB!L34+분기재무제표DB!K34+분기재무제표DB!J34+분기재무제표DB!I34)/((분기재무제표DB!L61+분기재무제표DB!H61)/2)) -> 69.61070785 | R68: =365/((분기재무제표DB!M34+분기재무제표DB!L34+분기재무제표DB!K34+분기재무제표DB!J34)/((분기재무제표DB!M61+분기재무제표DB!I61)/2)) -> 60.69934896 | S68: =365/((분기재무제표DB!N34+분기재무제표DB!M34+분기재무제표DB!L34+분기재무제표DB!K34)/((분기재무제표DB!N61+분기재무제표DB!J61)/2)) -> 66.47721702 | T68: =365/((분기재무제표DB!O34+분기재무제표DB!N34+분기재무제표DB!M34+분기재무제표DB!L34)/((분기재무제표DB!O61+분기재무제표DB!K61)/2)) -> 66.61825592 | U68: =365/((분기재무제표DB!P34+분기재무제표DB!O34+분기재무제표DB!N34+분기재무제표DB!M34)/((분기재무제표DB!P61+분기재무제표DB!L61)/2)) -> 69.69331787 | V68: =365/((분기재무제표DB!Q34+분기재무제표DB!P34+분기재무제표DB!O34+분기재무제표DB!N34)/((분기재무제표DB!Q61+분기재무제표DB!M61)/2)) -> 63.68554644 | W68: =365/((분기재무제표DB!R34+분기재무제표DB!Q34+분기재무제표DB!P34+분기재무제표DB!O34)/((분기재무제표DB!R61+분기재무제표DB!N61)/2)) -> 61.4735856 | X68: =365/((분기재무제표DB!S34+분기재무제표DB!R34+분기재무제표DB!Q34+분기재무제표DB!P34)/((분기재무제표DB!S61+분기재무제표DB!O61)/2)) -> 62.30032121 | Y68: =365/((분기재무제표DB!T34+분기재무제표DB!S34+분기재무제표DB!R34+분기재무제표DB!Q34)/((분기재무제표DB!T61+분기재무제표DB!P61)/2)) -> 62.70243397 | Z68: =365/((분기재무제표DB!U34+분기재무제표DB!T34+분기재무제표DB!S34+분기재무제표DB!R34)/((분기재무제표DB!U61+분기재무제표DB!Q61)/2)) -> 59.83680675 | AA68: =365/((분기재무제표DB!V34+분기재무제표DB!U34+분기재무제표DB!T34+분기재무제표DB!S34)/((분기재무제표DB!V61+분기재무제표DB!R61)/2)) -> 66.94852196 | AB68: =365/((분기재무제표DB!W34+분기재무제표DB!V34+분기재무제표DB!U34+분기재무제표DB!T34)/((분기재무제표DB!W61+분기재무제표DB!S61)/2)) -> 66.55347764 | AC68: =365/((분기재무제표DB!X34+분기재무제표DB!W34+분기재무제표DB!V34+분기재무제표DB!U34)/((분기재무제표DB!X61+분기재무제표DB!T61)/2)) -> 62.03631208 | AD68: =365/((분기재무제표DB!Y34+분기재무제표DB!X34+분기재무제표DB!W34+분기재무제표DB!V34)/((분기재무제표DB!Y61+분기재무제표DB!U61)/2)) -> 58.90979087 | AE68: =365/((분기재무제표DB!Z34+분기재무제표DB!Y34+분기재무제표DB!X34+분기재무제표DB!W34)/((분기재무제표DB!Z61+분기재무제표DB!V61)/2)) -> 66.9136752 | AF68: =365/((분기재무제표DB!AA34+분기재무제표DB!Z34+분기재무제표DB!Y34+분기재무제표DB!X34)/((분기재무제표DB!AA61+분기재무제표DB!W61)/2)) -> 65.40338735 | AG68: =365/((분기재무제표DB!AB34+분기재무제표DB!AA34+분기재무제표DB!Z34+분기재무제표DB!Y34)/((분기재무제표DB!AB61+분기재무제표DB!X61)/2)) -> 70.14780562
C69: 매입채무(외상구입) 늦게 (산업비교) | F69: .
B70: 38) | C70: -매입채무/매출액 대비 (↔) | D70: 5 | F70: 매입채무(5~10/45~50) | G70: . | H70: . | I70: . | J70: . | K70: =(분기재무제표DB!F25)/((분기재무제표DB!F34+분기재무제표DB!E34+분기재무제표DB!D34+분기재무제표DB!C34)) -> 0.03351100144 | L70: =(분기재무제표DB!G25)/((분기재무제표DB!G34+분기재무제표DB!F34+분기재무제표DB!E34+분기재무제표DB!D34)) -> 0.05816776363 | M70: =(분기재무제표DB!H25)/((분기재무제표DB!H34+분기재무제표DB!G34+분기재무제표DB!F34+분기재무제표DB!E34)) -> 0.0778071231 | N70: =(분기재무제표DB!I25)/((분기재무제표DB!I34+분기재무제표DB!H34+분기재무제표DB!G34+분기재무제표DB!F34)) -> 0.04612273782 | O70: =(분기재무제표DB!J25)/((분기재무제표DB!J34+분기재무제표DB!I34+분기재무제표DB!H34+분기재무제표DB!G34)) -> 0.03663860715 | P70: =(분기재무제표DB!K25)/((분기재무제표DB!K34+분기재무제표DB!J34+분기재무제표DB!I34+분기재무제표DB!H34)) -> 0.04792177971 | Q70: =(분기재무제표DB!L25)/((분기재무제표DB!L34+분기재무제표DB!K34+분기재무제표DB!J34+분기재무제표DB!I34)) -> 0.03767087664 | R70: =(분기재무제표DB!M25)/((분기재무제표DB!M34+분기재무제표DB!L34+분기재무제표DB!K34+분기재무제표DB!J34)) -> 0.0372615378 | S70: =(분기재무제표DB!N25)/((분기재무제표DB!N34+분기재무제표DB!M34+분기재무제표DB!L34+분기재무제표DB!K34)) -> 0.05947806705 | T70: =(분기재무제표DB!O25)/((분기재무제표DB!O34+분기재무제표DB!N34+분기재무제표DB!M34+분기재무제표DB!L34)) -> 0.05115441203 | U70: =(분기재무제표DB!P25)/((분기재무제표DB!P34+분기재무제표DB!O34+분기재무제표DB!N34+분기재무제표DB!M34)) -> 0.04917429528 | V70: =(분기재무제표DB!Q25)/((분기재무제표DB!Q34+분기재무제표DB!P34+분기재무제표DB!O34+분기재무제표DB!N34)) -> 0.04079144775 | W70: =(분기재무제표DB!R25)/((분기재무제표DB!R34+분기재무제표DB!Q34+분기재무제표DB!P34+분기재무제표DB!O34)) -> 0.04016818938 | X70: =(분기재무제표DB!S25)/((분기재무제표DB!S34+분기재무제표DB!R34+분기재무제표DB!Q34+분기재무제표DB!P34)) -> 0.03746167553 | Y70: =(분기재무제표DB!T25)/((분기재무제표DB!T34+분기재무제표DB!S34+분기재무제표DB!R34+분기재무제표DB!Q34)) -> 0.03611970187 | Z70: =(분기재무제표DB!U25)/((분기재무제표DB!U34+분기재무제표DB!T34+분기재무제표DB!S34+분기재무제표DB!R34)) -> 0.0420390306 | AA70: =(분기재무제표DB!V25)/((분기재무제표DB!V34+분기재무제표DB!U34+분기재무제표DB!T34+분기재무제표DB!S34)) -> 0.03247234979 | AB70: =(분기재무제표DB!W25)/((분기재무제표DB!W34+분기재무제표DB!V34+분기재무제표DB!U34+분기재무제표DB!T34)) -> 0.03526864405 | AC70: =(분기재무제표DB!X25)/((분기재무제표DB!X34+분기재무제표DB!W34+분기재무제표DB!V34+분기재무제표DB!U34)) -> 0.03443355021 | AD70: =(분기재무제표DB!Y25)/((분기재무제표DB!Y34+분기재무제표DB!X34+분기재무제표DB!W34+분기재무제표DB!V34)) -> 0.03362603554 | AE70: =(분기재무제표DB!Z25)/((분기재무제표DB!Z34+분기재무제표DB!Y34+분기재무제표DB!X34+분기재무제표DB!W34)) -> 0.03348199025 | AF70: =(분기재무제표DB!AA25)/((분기재무제표DB!AA34+분기재무제표DB!Z34+분기재무제표DB!Y34+분기재무제표DB!X34)) -> 0.02447264974 | AG70: =(분기재무제표DB!AB25)/((분기재무제표DB!AB34+분기재무제표DB!AA34+분기재무제표DB!Z34+분기재무제표DB!Y34)) -> 0.02344502605
B71: 39) | C71: -일정유지금액 유지(↔) | D71: 0 | O71: =(O70-K70)/K70 -> 0.09333071447 | P71: -0.1761453988 | Q71: -0.5158428286 | R71: -0.1921221602 | S71: 0.6233714019 | T71: 0.06745643298 | U71: 0.3053663644 | V71: 0.09473334048 | W71: -0.3246554339 | X71: -0.2676745945 | Y71: -0.2654759633 | Z71: 0.03058442204 | AA71: -0.191590403 | AB71: -0.05854066726 | AC71: -0.04668232488 | AD71: -0.2001234314 | AE71: 0.03109231288 | AF71: -0.306107439 | AG71: -0.3191226028
B72: 40) | C72: -매입채무결제기간(산업비교)(일)(↑) | D72: 1 | F72: 매입채무결제(늦게) | G72: . | H72: . | I72: . | J72: . | K72: =365/((분기재무제표DB!F35+분기재무제표DB!E35+분기재무제표DB!D35+분기재무제표DB!C35+분기재무제표DB!F13-분기재무제표DB!B13)/((분기재무제표DB!F25+분기재무제표DB!B25)/2)) -> 12.98963528 | L72: =365/((분기재무제표DB!G35+분기재무제표DB!F35+분기재무제표DB!E35+분기재무제표DB!D35+분기재무제표DB!G13-분기재무제표DB!C13)/((분기재무제표DB!G25+분기재무제표DB!C25)/2)) -> 20.07492454 | M72: =365/((분기재무제표DB!H35+분기재무제표DB!G35+분기재무제표DB!F35+분기재무제표DB!E35+분기재무제표DB!H13-분기재무제표DB!D13)/((분기재무제표DB!H25+분기재무제표DB!D25)/2)) -> 23.79205431 | N72: =365/((분기재무제표DB!I35+분기재무제표DB!H35+분기재무제표DB!G35+분기재무제표DB!F35+분기재무제표DB!I13-분기재무제표DB!E13)/((분기재무제표DB!I25+분기재무제표DB!E25)/2)) -> 16.82397557 | O72: =365/((분기재무제표DB!J35+분기재무제표DB!I35+분기재무제표DB!H35+분기재무제표DB!G35+분기재무제표DB!J13-분기재무제표DB!F13)/((분기재무제표DB!J25+분기재무제표DB!F25)/2)) -> 13.58574579 | P72: =365/((분기재무제표DB!K35+분기재무제표DB!J35+분기재무제표DB!I35+분기재무제표DB!H35+분기재무제표DB!K13-분기재무제표DB!G13)/((분기재무제표DB!K25+분기재무제표DB!G25)/2)) -> 20.99507179 | Q72: =365/((분기재무제표DB!L35+분기재무제표DB!K35+분기재무제표DB!J35+분기재무제표DB!I35+분기재무제표DB!L13-분기재무제표DB!H13)/((분기재무제표DB!L25+분기재무제표DB!H25)/2)) -> 24.17568719 | R72: =365/((분기재무제표DB!M35+분기재무제표DB!L35+분기재무제표DB!K35+분기재무제표DB!J35+분기재무제표DB!M13-분기재무제표DB!I13)/((분기재무제표DB!M25+분기재무제표DB!I25)/2)) -> 18.06788946 | S72: =365/((분기재무제표DB!N35+분기재무제표DB!M35+분기재무제표DB!L35+분기재무제표DB!K35+분기재무제표DB!N13-분기재무제표DB!J13)/((분기재무제표DB!N25+분기재무제표DB!J25)/2)) -> 19.80639696 | T72: =365/((분기재무제표DB!O35+분기재무제표DB!N35+분기재무제표DB!M35+분기재무제표DB!L35+분기재무제표DB!O13-분기재무제표DB!K13)/((분기재무제표DB!O25+분기재무제표DB!K25)/2)) -> 20.95791005 | U72: =365/((분기재무제표DB!P35+분기재무제표DB!O35+분기재무제표DB!N35+분기재무제표DB!M35+분기재무제표DB!P13-분기재무제표DB!L13)/((분기재무제표DB!P25+분기재무제표DB!L25)/2)) -> 17.71124677 | V72: =365/((분기재무제표DB!Q35+분기재무제표DB!P35+분기재무제표DB!O35+분기재무제표DB!N35+분기재무제표DB!Q13-분기재무제표DB!M13)/((분기재무제표DB!Q25+분기재무제표DB!M25)/2)) -> 15.66703923 | W72: =365/((분기재무제표DB!R35+분기재무제표DB!Q35+분기재무제표DB!P35+분기재무제표DB!O35+분기재무제표DB!R13-분기재무제표DB!N13)/((분기재무제표DB!R25+분기재무제표DB!N25)/2)) -> 19.66496929 | X72: =365/((분기재무제표DB!S35+분기재무제표DB!R35+분기재무제표DB!Q35+분기재무제표DB!P35+분기재무제표DB!S13-분기재무제표DB!O13)/((분기재무제표DB!S25+분기재무제표DB!O25)/2)) -> 16.91679183 | Y72: =365/((분기재무제표DB!T35+분기재무제표DB!S35+분기재무제표DB!R35+분기재무제표DB!Q35+분기재무제표DB!T13-분기재무제표DB!P13)/((분기재무제표DB!T25+분기재무제표DB!P25)/2)) -> 16.79560257 | Z72: =365/((분기재무제표DB!U35+분기재무제표DB!T35+분기재무제표DB!S35+분기재무제표DB!R35+분기재무제표DB!U13-분기재무제표DB!Q13)/((분기재무제표DB!U25+분기재무제표DB!Q25)/2)) -> 16.77417392 | AA72: =365/((분기재무제표DB!V35+분기재무제표DB!U35+분기재무제표DB!T35+분기재무제표DB!S35+분기재무제표DB!V13-분기재무제표DB!R13)/((분기재무제표DB!V25+분기재무제표DB!R25)/2)) -> 14.72645455 | AB72: =365/((분기재무제표DB!W35+분기재무제표DB!V35+분기재무제표DB!U35+분기재무제표DB!T35+분기재무제표DB!W13-분기재무제표DB!S13)/((분기재무제표DB!W25+분기재무제표DB!S25)/2)) -> 14.94201308 | AC72: =365/((분기재무제표DB!X35+분기재무제표DB!W35+분기재무제표DB!V35+분기재무제표DB!U35+분기재무제표DB!X13-분기재무제표DB!T13)/((분기재무제표DB!X25+분기재무제표DB!T25)/2)) -> 14.44860489 | AD72: =365/((분기재무제표DB!Y35+분기재무제표DB!X35+분기재무제표DB!W35+분기재무제표DB!V35+분기재무제표DB!Y13-분기재무제표DB!U13)/((분기재무제표DB!Y25+분기재무제표DB!U25)/2)) -> 14.93057599 | AE72: =365/((분기재무제표DB!Z35+분기재무제표DB!Y35+분기재무제표DB!X35+분기재무제표DB!W35+분기재무제표DB!Z13-분기재무제표DB!V13)/((분기재무제표DB!Z25+분기재무제표DB!V25)/2)) -> 13.72722943 | AF72: =365/((분기재무제표DB!AA35+분기재무제표DB!Z35+분기재무제표DB!Y35+분기재무제표DB!X35+분기재무제표DB!AA13-분기재무제표DB!W13)/((분기재무제표DB!AA25+분기재무제표DB!W25)/2)) -> 12.49318996 | AG72: =365/((분기재무제표DB!AB35+분기재무제표DB!AA35+분기재무제표DB!Z35+분기재무제표DB!Y35+분기재무제표DB!AB13-분기재무제표DB!X13)/((분기재무제표DB!AB25+분기재무제표DB!X25)/2)) -> 12.93466166
C73: 재고자산 빨리(산업비교) | F73: .
B74: 41) | C74: -재고자산/매출액 대비 (↓) | D74: 4 | F74: 재고자산(25%이하) | G74: . | H74: . | I74: . | J74: . | K74: =(분기재무제표DB!F13)/(분기재무제표DB!F34+분기재무제표DB!E34+분기재무제표DB!D34+분기재무제표DB!C34) -> 0.158854577 | L74: =(분기재무제표DB!G13)/(분기재무제표DB!G34+분기재무제표DB!F34+분기재무제표DB!E34+분기재무제표DB!D34) -> 0.1691102327 | M74: =(분기재무제표DB!H13)/(분기재무제표DB!H34+분기재무제표DB!G34+분기재무제표DB!F34+분기재무제표DB!E34) -> 0.1701682278 | N74: =(분기재무제표DB!I13)/(분기재무제표DB!I34+분기재무제표DB!H34+분기재무제표DB!G34+분기재무제표DB!F34) -> 0.1595113183 | O74: =(분기재무제표DB!J13)/(분기재무제표DB!J34+분기재무제표DB!I34+분기재무제표DB!H34+분기재무제표DB!G34) -> 0.1415371487 | P74: =(분기재무제표DB!K13)/(분기재무제표DB!K34+분기재무제표DB!J34+분기재무제표DB!I34+분기재무제표DB!H34) -> 0.158121364 | Q74: =(분기재무제표DB!L13)/(분기재무제표DB!L34+분기재무제표DB!K34+분기재무제표DB!J34+분기재무제표DB!I34) -> 0.1647018936 | R74: =(분기재무제표DB!M13)/(분기재무제표DB!M34+분기재무제표DB!L34+분기재무제표DB!K34+분기재무제표DB!J34) -> 0.1556885966 | S74: =(분기재무제표DB!N13)/(분기재무제표DB!N34+분기재무제표DB!M34+분기재무제표DB!L34+분기재무제표DB!K34) -> 0.2182974246 | T74: =(분기재무제표DB!O13)/(분기재무제표DB!O34+분기재무제표DB!N34+분기재무제표DB!M34+분기재무제표DB!L34) -> 0.2100143023 | U74: =(분기재무제표DB!P13)/(분기재무제표DB!P34+분기재무제표DB!O34+분기재무제표DB!N34+분기재무제표DB!M34) -> 0.2144553417 | V74: =(분기재무제표DB!Q13)/(분기재무제표DB!Q34+분기재무제표DB!P34+분기재무제표DB!O34+분기재무제표DB!N34) -> 0.1930395959 | W74: =(분기재무제표DB!R13)/(분기재무제표DB!R34+분기재무제표DB!Q34+분기재무제표DB!P34+분기재무제표DB!O34) -> 0.185249303 | X74: =(분기재무제표DB!S13)/(분기재무제표DB!S34+분기재무제표DB!R34+분기재무제표DB!Q34+분기재무제표DB!P34) -> 0.1629045162 | Y74: =(분기재무제표DB!T13)/(분기재무제표DB!T34+분기재무제표DB!S34+분기재무제표DB!R34+분기재무제표DB!Q34) -> 0.1438377712 | Z74: =(분기재무제표DB!U13)/(분기재무제표DB!U34+분기재무제표DB!T34+분기재무제표DB!S34+분기재무제표DB!R34) -> 0.1262978974 | AA74: =(분기재무제표DB!V13)/(분기재무제표DB!V34+분기재무제표DB!U34+분기재무제표DB!T34+분기재무제표DB!S34) -> 0.1400025208 | AB74: =(분기재무제표DB!W13)/(분기재무제표DB!W34+분기재무제표DB!V34+분기재무제표DB!U34+분기재무제표DB!T34) -> 0.1276264161 | AC74: =(분기재무제표DB!X13)/(분기재무제표DB!X34+분기재무제표DB!W34+분기재무제표DB!V34+분기재무제표DB!U34) -> 0.1135132859 | AD74: =(분기재무제표DB!Y13)/(분기재무제표DB!Y34+분기재무제표DB!X34+분기재무제표DB!W34+분기재무제표DB!V34) -> 0.1186653585 | AE74: =(분기재무제표DB!Z13)/(분기재무제표DB!Z34+분기재무제표DB!Y34+분기재무제표DB!X34+분기재무제표DB!W34) -> 0.1370301395 | AF74: =(분기재무제표DB!AA13)/(분기재무제표DB!AA34+분기재무제표DB!Z34+분기재무제표DB!Y34+분기재무제표DB!X34) -> 0.1247945233 | AG74: =(분기재무제표DB!AB13)/(분기재무제표DB!AB34+분기재무제표DB!AA34+분기재무제표DB!Z34+분기재무제표DB!Y34) -> 0.1405666922
B75: 42) | C75: -일정유지금액 유지(↔) | D75: 2 | O75: =(O74-K74)/K74 -> -0.1090143492 | P75: -0.06498050727 | Q75: -0.03212311848 | R75: -0.02396520714 | S75: 0.5423330669 | T75: 0.3281842316 | U75: 0.3020818216 | V75: 0.2399083825 | W75: -0.1513903413 | X75: -0.2243170374 | Y75: -0.3292879999 | Z75: -0.345740977 | AA75: -0.2442480565 | AB75: -0.216556919 | AC75: -0.2108242154 | AD75: -0.06043282669 | AE75: -0.02123091272 | AF75: -0.02218892337 | AG75: 0.238328105
B76: 43) | C76: -재고자산보유기간(산업비교)(일)(↓) | D76: 4 | F76: 재고자산보유(짧게) | G76: . | H76: . | I76: . | J76: . | K76: =365/((분기재무제표DB!F35+분기재무제표DB!E35+분기재무제표DB!D35+분기재무제표DB!C35)/((분기재무제표DB!F13+분기재무제표DB!B13)/2)) -> 74.3280035 | L76: =365/((분기재무제표DB!G35+분기재무제표DB!F35+분기재무제표DB!E35+분기재무제표DB!D35)/((분기재무제표DB!G13+분기재무제표DB!C13)/2)) -> 69.07163412 | M76: =365/((분기재무제표DB!H35+분기재무제표DB!G35+분기재무제표DB!F35+분기재무제표DB!E35)/((분기재무제표DB!H13+분기재무제표DB!D13)/2)) -> 64.70453269 | N76: =365/((분기재무제표DB!I35+분기재무제표DB!H35+분기재무제표DB!G35+분기재무제표DB!F35)/((분기재무제표DB!I13+분기재무제표DB!E13)/2)) -> 61.68590593 | O76: =365/((분기재무제표DB!J35+분기재무제표DB!I35+분기재무제표DB!H35+분기재무제표DB!G35)/((분기재무제표DB!J13+분기재무제표DB!F13)/2)) -> 59.01760691 | P76: =365/((분기재무제표DB!K35+분기재무제표DB!J35+분기재무제표DB!I35+분기재무제표DB!H35)/((분기재무제표DB!K13+분기재무제표DB!G13)/2)) -> 67.12490006 | Q76: =365/((분기재무제표DB!L35+분기재무제표DB!K35+분기재무제표DB!J35+분기재무제표DB!I35)/((분기재무제표DB!L13+분기재무제표DB!H13)/2)) -> 72.77974152 | R76: =365/((분기재무제표DB!M35+분기재무제표DB!L35+분기재무제표DB!K35+분기재무제표DB!J35)/((분기재무제표DB!M13+분기재무제표DB!I13)/2)) -> 69.56736322 | S76: =365/((분기재무제표DB!N35+분기재무제표DB!M35+분기재무제표DB!L35+분기재무제표DB!K35)/((분기재무제표DB!N13+분기재무제표DB!J13)/2)) -> 81.84758787 | T76: =365/((분기재무제표DB!O35+분기재무제표DB!N35+분기재무제표DB!M35+분기재무제표DB!L35)/((분기재무제표DB!O13+분기재무제표DB!K13)/2)) -> 83.70407037 | U76: =365/((분기재무제표DB!P35+분기재무제표DB!O35+분기재무제표DB!N35+분기재무제표DB!M35)/((분기재무제표DB!P13+분기재무제표DB!L13)/2)) -> 83.7458632 | V76: =365/((분기재무제표DB!Q35+분기재무제표DB!P35+분기재무제표DB!O35+분기재무제표DB!N35)/((분기재무제표DB!Q13+분기재무제표DB!M13)/2)) -> 75.10076275 | W76: =365/((분기재무제표DB!R35+분기재무제표DB!Q35+분기재무제표DB!P35+분기재무제표DB!O35)/((분기재무제표DB!R13+분기재무제표DB!N13)/2)) -> 81.7326586 | X76: =365/((분기재무제표DB!S35+분기재무제표DB!R35+분기재무제표DB!Q35+분기재무제표DB!P35)/((분기재무제표DB!S13+분기재무제표DB!O13)/2)) -> 72.10564011 | Y76: =365/((분기재무제표DB!T35+분기재무제표DB!S35+분기재무제표DB!R35+분기재무제표DB!Q35)/((분기재무제표DB!T13+분기재무제표DB!P13)/2)) -> 68.69143396 | Z76: =365/((분기재무제표DB!U35+분기재무제표DB!T35+분기재무제표DB!S35+분기재무제표DB!R35)/((분기재무제표DB!U13+분기재무제표DB!Q13)/2)) -> 61.15924092 | AA76: =365/((분기재무제표DB!V35+분기재무제표DB!U35+분기재무제표DB!T35+분기재무제표DB!S35)/((분기재무제표DB!V13+분기재무제표DB!R13)/2)) -> 65.16452055 | AB76: =365/((분기재무제표DB!W35+분기재무제표DB!V35+분기재무제표DB!U35+분기재무제표DB!T35)/((분기재무제표DB!W13+분기재무제표DB!S13)/2)) -> 58.90871124 | AC76: =365/((분기재무제표DB!X35+분기재무제표DB!W35+분기재무제표DB!V35+분기재무제표DB!U35)/((분기재무제표DB!X13+분기재무제표DB!T13)/2)) -> 52.13395746 | AD76: =365/((분기재무제표DB!Y35+분기재무제표DB!X35+분기재무제표DB!W35+분기재무제표DB!V35)/((분기재무제표DB!Y13+분기재무제표DB!U13)/2)) -> 50.09058063 | AE76: =365/((분기재무제표DB!Z35+분기재무제표DB!Y35+분기재무제표DB!X35+분기재무제표DB!W35)/((분기재무제표DB!Z13+분기재무제표DB!V13)/2)) -> 58.82543617 | AF76: =365/((분기재무제표DB!AA35+분기재무제표DB!Z35+분기재무제표DB!Y35+분기재무제표DB!X35)/((분기재무제표DB!AA13+분기재무제표DB!W13)/2)) -> 54.21307068 | AG76: =365/((분기재무제표DB!AB35+분기재무제표DB!AA35+분기재무제표DB!Z35+분기재무제표DB!Y35)/((분기재무제표DB!AB13+분기재무제표DB!X13)/2)) -> 58.6182628
C77: CCC(낮을수록 현금이 잘돔) | F77: .
B78: 44) | C78: -매출채권+재고자산-매입채무(↓) | D78: 4 | F78: CCC(100일이하) | G78: . | H78: . | I78: . | J78: . | K78: =K68-K72+K76 -> 139.1795634 | L78: 123.8524818 | M78: 113.4408803 | N78: 110.502481 | O78: 111.8022767 | P78: 112.9658358 | Q78: 118.2147622 | R78: 112.1988227 | S78: 128.5184079 | T78: 129.3644162 | U78: 135.7279343 | V78: 123.11927 | W78: 123.5412749 | X78: 117.4891695 | Y78: 114.5982654 | Z78: 104.2218737 | AA78: 117.386588 | AB78: 110.5201758 | AC78: 99.72166465 | AD78: 94.06979551 | AE78: 112.0118819 | AF78: 107.1232681 | AG78: 115.8314068
A79: 수익성 | C79: 포괄손익계산서 분석 | F79: .
B80: 45) | C80: -매출액/자본 (200%이상)(↑) | D80: 1 | F80: 매출/자본(200%이상) | G80: . | H80: . | I80: . | J80: . | K80: =분기재무제표DB!F69/((분기재무제표DB!F30+분기재무제표DB!B30)/2) -> 1.47862361 | L80: =분기재무제표DB!G69/((분기재무제표DB!G30+분기재무제표DB!C30)/2) -> 1.559084936 | M80: =분기재무제표DB!H69/((분기재무제표DB!H30+분기재무제표DB!D30)/2) -> 1.639703993 | N80: =분기재무제표DB!I69/((분기재무제표DB!I30+분기재무제표DB!E30)/2) -> 1.672919811 | O80: =분기재무제표DB!J69/((분기재무제표DB!J30+분기재무제표DB!F30)/2) -> 1.866280532 | P80: =분기재무제표DB!K69/((분기재무제표DB!K30+분기재무제표DB!G30)/2) -> 1.778389399 | Q80: =분기재무제표DB!L69/((분기재무제표DB!L30+분기재무제표DB!H30)/2) -> 1.520357796 | R80: =분기재무제표DB!M69/((분기재무제표DB!M30+분기재무제표DB!I30)/2) -> 1.520351222 | S80: =분기재무제표DB!N69/((분기재무제표DB!N30+분기재무제표DB!J30)/2) -> 1.507649718 | T80: =분기재무제표DB!O69/((분기재무제표DB!O30+분기재무제표DB!K30)/2) -> 1.544343659 | U80: =분기재무제표DB!P69/((분기재무제표DB!P30+분기재무제표DB!L30)/2) -> 1.446661 | V80: =분기재무제표DB!Q69/((분기재무제표DB!Q30+분기재무제표DB!M30)/2) -> 1.429585071 | W80: =분기재무제표DB!R69/((분기재무제표DB!R30+분기재무제표DB!N30)/2) -> 1.825646648 | X80: =분기재무제표DB!S69/((분기재무제표DB!S30+분기재무제표DB!O30)/2) -> 1.829024286 | Y80: =분기재무제표DB!T69/((분기재무제표DB!T30+분기재무제표DB!P30)/2) -> 1.832874255 | Z80: =분기재무제표DB!U69/((분기재무제표DB!U30+분기재무제표DB!Q30)/2) -> 1.861078564 | AA80: =분기재무제표DB!V69/((분기재무제표DB!V30+분기재무제표DB!R30)/2) -> 2.125721465 | AB80: =분기재무제표DB!W69/((분기재무제표DB!W30+분기재무제표DB!S30)/2) -> 2.16003073 | AC80: =분기재무제표DB!X69/((분기재무제표DB!X30+분기재무제표DB!T30)/2) -> 2.132817377 | AD80: =분기재무제표DB!Y69/((분기재무제표DB!Y30+분기재무제표DB!U30)/2) -> 1.845512551 | AE80: =분기재무제표DB!Z69/((분기재무제표DB!Z30+분기재무제표DB!V30)/2) -> 1.38552423 | AF80: =분기재무제표DB!AA69/((분기재무제표DB!AA30+분기재무제표DB!W30)/2) -> 1.713502987 | AG80: =분기재무제표DB!AB69/((분기재무제표DB!AB30+분기재무제표DB!X30)/2) -> 1.600855804
B81: 46) | C81: -매출총이익률 (60%이상)(↑) | D81: 2 | F81: 매출총이익율(60%이상) | G81: =분기재무제표DB!B36/분기재무제표DB!B34 -> 0.2540851509 | H81: =분기재무제표DB!C36/분기재무제표DB!C34 -> 0.2822209618 | I81: =분기재무제표DB!D36/분기재무제표DB!D34 -> 0.2838649441 | J81: =분기재무제표DB!E36/분기재무제표DB!E34 -> 0.2694584628 | K81: =분기재무제표DB!F36/분기재무제표DB!F34 -> 0.2264316824 | L81: =분기재무제표DB!G36/분기재무제표DB!G34 -> 0.1963820923 | M81: =분기재무제표DB!H36/분기재무제표DB!H34 -> 0.181085931 | N81: =분기재무제표DB!I36/분기재무제표DB!I34 -> 0.2150113954 | O81: =분기재무제표DB!J36/분기재무제표DB!J34 -> 0.2056360095 | P81: =분기재무제표DB!K36/분기재무제표DB!K34 -> 0.2122227209 | Q81: =분기재무제표DB!L36/분기재무제표DB!L34 -> 0.2020981132 | R81: =분기재무제표DB!M36/분기재무제표DB!M34 -> 0.2268481002 | S81: =분기재무제표DB!N36/분기재무제표DB!N34 -> 0.1989875251 | T81: =분기재무제표DB!O36/분기재무제표DB!O34 -> 0.2096313976 | U81: =분기재무제표DB!P36/분기재무제표DB!P34 -> 0.2001694799 | V81: =분기재무제표DB!Q36/분기재무제표DB!Q34 -> 0.17959103 | W81: =분기재무제표DB!R36/분기재무제표DB!R34 -> 0.1995308258 | X81: =분기재무제표DB!S36/분기재무제표DB!S34 -> 0.1916479726 | Y81: =분기재무제표DB!T36/분기재무제표DB!T34 -> 0.1987543899 | Z81: =분기재무제표DB!U36/분기재무제표DB!U34 -> 0.1677416158 | AA81: =분기재무제표DB!V36/분기재무제표DB!V34 -> 0.2293289129 | AB81: =분기재무제표DB!W36/분기재무제표DB!W34 -> 0.2080668951 | AC81: =분기재무제표DB!X36/분기재무제표DB!X34 -> 0.2141650296 | AD81: =분기재무제표DB!Y36/분기재무제표DB!Y34 -> 0.1888503401 | AE81: =분기재무제표DB!Z36/분기재무제표DB!Z34 -> 0.2088797991 | AF81: =분기재무제표DB!AA36/분기재무제표DB!AA34 -> 0.198629015 | AG81: =분기재무제표DB!AB36/분기재무제표DB!AB34 -> 0.2392891735
B82: 47) | C82: -영업이익률(20%이상)(↑) | D82: 1 | F82: 영익(20%이상) | G82: =분기재무제표DB!B38/분기재무제표DB!B34 -> 0.03255116373 | H82: =분기재무제표DB!C38/분기재무제표DB!C34 -> 0.04153650147 | I82: =분기재무제표DB!D38/분기재무제표DB!D34 -> 0.06574304366 | J82: =분기재무제표DB!E38/분기재무제표DB!E34 -> 0.09372254864 | K82: =분기재무제표DB!F38/분기재무제표DB!F34 -> 0.04277288375 | L82: =분기재무제표DB!G38/분기재무제표DB!G34 -> 0.03848445748 | M82: =분기재무제표DB!H38/분기재무제표DB!H34 -> 0.02028982921 | N82: =분기재무제표DB!I38/분기재무제표DB!I34 -> 0.02783510329 | O82: =분기재무제표DB!J38/분기재무제표DB!J34 -> 0.03541653705 | P82: =분기재무제표DB!K38/분기재무제표DB!K34 -> 0.04429650213 | Q82: =분기재무제표DB!L38/분기재무제표DB!L34 -> 0.01902324963 | R82: =분기재무제표DB!M38/분기재무제표DB!M34 -> 0.04565588888 | S82: =분기재무제표DB!N38/분기재무제표DB!N34 -> 0.02178105586 | T82: =분기재무제표DB!O38/분기재무제표DB!O34 -> 0.03283679656 | U82: =분기재무제표DB!P38/분기재무제표DB!P34 -> 0.02864898195 | V82: =분기재무제표DB!Q38/분기재무제표DB!Q34 -> 0.01013673203 | W82: =분기재무제표DB!R38/분기재무제표DB!R34 -> 0.06626836831 | X82: =분기재무제표DB!S38/분기재무제표DB!S34 -> 0.05531902264 | Y82: =분기재무제표DB!T38/분기재무제표DB!T34 -> 0.07621796703 | Z82: =분기재무제표DB!U38/분기재무제표DB!U34 -> 0.03568715704 | AA82: =분기재무제표DB!V38/분기재무제표DB!V34 -> 0.1105822553 | AB82: =분기재무제표DB!W38/분기재무제표DB!W34 -> 0.0923312335 | AC82: =분기재무제표DB!X38/분기재무제표DB!X34 -> 0.09269392197 | AD82: =분기재무제표DB!Y38/분기재무제표DB!Y34 -> 0.06008979966 | AE82: =분기재무제표DB!Z38/분기재무제표DB!Z34 -> 0.09121751966 | AF82: =분기재무제표DB!AA38/분기재무제표DB!AA34 -> 0.0862411262 | AG82: =분기재무제표DB!AB38/분기재무제표DB!AB34 -> 0.08934281626
B83: 48) | C83: -영익/당순 (100%이하) (↔) | D83: 5 | F83: 당순/영익(100%이하) | G83: =분기재무제표DB!B46/분기재무제표DB!B38 -> 0.2673007476 | H83: =분기재무제표DB!C46/분기재무제표DB!C38 -> -0.105549077 | I83: =분기재무제표DB!D46/분기재무제표DB!D38 -> 0.3244492235 | J83: =분기재무제표DB!E46/분기재무제표DB!E38 -> 0.1695556099 | K83: =분기재무제표DB!F46/분기재무제표DB!F38 -> 0.2284827182 | L83: =분기재무제표DB!G46/분기재무제표DB!G38 -> 0.3628754918 | M83: =분기재무제표DB!H46/분기재무제표DB!H38 -> 0.2000127766 | N83: =분기재무제표DB!I46/분기재무제표DB!I38 -> -13.30220853 | O83: =분기재무제표DB!J46/분기재무제표DB!J38 -> 0.004733164433 | P83: =분기재무제표DB!K46/분기재무제표DB!K38 -> 0.2595580207 | Q83: =분기재무제표DB!L46/분기재무제표DB!L38 -> -0.6212186504 | R83: =분기재무제표DB!M46/분기재무제표DB!M38 -> 0.3187161827 | S83: =분기재무제표DB!N46/분기재무제표DB!N38 -> 0.1222344466 | T83: =분기재무제표DB!O46/분기재무제표DB!O38 -> -0.4408522474 | U83: =분기재무제표DB!P46/분기재무제표DB!P38 -> -0.07223128984 | V83: =분기재무제표DB!Q46/분기재무제표DB!Q38 -> -1.577592635 | W83: =분기재무제표DB!R46/분기재무제표DB!R38 -> 0.689320463 | X83: =분기재무제표DB!S46/분기재무제표DB!S38 -> 0.5743400371 | Y83: =분기재무제표DB!T46/분기재무제표DB!T38 -> 0.7490394087 | Z83: =분기재무제표DB!U46/분기재무제표DB!U38 -> -0.08057883717 | AA83: =분기재무제표DB!V46/분기재무제표DB!V38 -> 0.9654645543 | AB83: =분기재무제표DB!W46/분기재무제표DB!W38 -> 0.86098887 | AC83: =분기재무제표DB!X46/분기재무제표DB!X38 -> 0.9105572851 | AD83: =분기재무제표DB!Y46/분기재무제표DB!Y38 -> 3.17825122 | AE83: =분기재무제표DB!Z46/분기재무제표DB!Z38 -> 0.6409595334 | AF83: =분기재무제표DB!AA46/분기재무제표DB!AA38 -> 0.6319407413 | AG83: =분기재무제표DB!AB46/분기재무제표DB!AB38 -> 0.9274432256
B84: 49) | C84: -매출액/유무형자산(??)(↑) | D84: 0 | F84: 매출액/유무형(1200%이상) | G84: . | H84: . | I84: . | J84: . | K84: =분기재무제표DB!F69/((분기재무제표DB!F17+분기재무제표DB!F18+분기재무제표DB!B17+분기재무제표DB!B18)/2) -> 0.856618765 | L84: =분기재무제표DB!G69/((분기재무제표DB!G17+분기재무제표DB!G18+분기재무제표DB!C17+분기재무제표DB!C18)/2) -> 0.9156691089 | M84: =분기재무제표DB!H69/((분기재무제표DB!H17+분기재무제표DB!H18+분기재무제표DB!D17+분기재무제표DB!D18)/2) -> 0.9533745379 | N84: =분기재무제표DB!I69/((분기재무제표DB!I17+분기재무제표DB!I18+분기재무제표DB!E17+분기재무제표DB!E18)/2) -> 0.9922251862 | O84: =분기재무제표DB!J69/((분기재무제표DB!J17+분기재무제표DB!J18+분기재무제표DB!F17+분기재무제표DB!F18)/2) -> 1.100081539 | P84: =분기재무제표DB!K69/((분기재무제표DB!K17+분기재무제표DB!K18+분기재무제표DB!G17+분기재무제표DB!G18)/2) -> 1.080279185 | Q84: =분기재무제표DB!L69/((분기재무제표DB!L17+분기재무제표DB!L18+분기재무제표DB!H17+분기재무제표DB!H18)/2) -> 1.03636105 | R84: =분기재무제표DB!M69/((분기재무제표DB!M17+분기재무제표DB!M18+분기재무제표DB!I17+분기재무제표DB!I18)/2) -> 0.9891566739 | S84: =분기재무제표DB!N69/((분기재무제표DB!N17+분기재무제표DB!N18+분기재무제표DB!J17+분기재무제표DB!J18)/2) -> 0.9653871499 | T84: =분기재무제표DB!O69/((분기재무제표DB!O17+분기재무제표DB!O18+분기재무제표DB!K17+분기재무제표DB!K18)/2) -> 0.9607788072 | U84: =분기재무제표DB!P69/((분기재무제표DB!P17+분기재무제표DB!P18+분기재무제표DB!L17+분기재무제표DB!L18)/2) -> 0.9959476315 | V84: =분기재무제표DB!Q69/((분기재무제표DB!Q17+분기재무제표DB!Q18+분기재무제표DB!M17+분기재무제표DB!M18)/2) -> 0.9462158292 | W84: =분기재무제표DB!R69/((분기재무제표DB!R17+분기재무제표DB!R18+분기재무제표DB!N17+분기재무제표DB!N18)/2) -> 1.204791493 | X84: =분기재무제표DB!S69/((분기재무제표DB!S17+분기재무제표DB!S18+분기재무제표DB!O17+분기재무제표DB!O18)/2) -> 1.1713938 | Y84: =분기재무제표DB!T69/((분기재무제표DB!T17+분기재무제표DB!T18+분기재무제표DB!P17+분기재무제표DB!P18)/2) -> 1.173457763 | Z84: =분기재무제표DB!U69/((분기재무제표DB!U17+분기재무제표DB!U18+분기재무제표DB!Q17+분기재무제표DB!Q18)/2) -> 1.169491167 | AA84: =분기재무제표DB!V69/((분기재무제표DB!V17+분기재무제표DB!V18+분기재무제표DB!R17+분기재무제표DB!R18)/2) -> 1.37083709 | AB84: =분기재무제표DB!W69/((분기재무제표DB!W17+분기재무제표DB!W18+분기재무제표DB!S17+분기재무제표DB!S18)/2) -> 1.392092312 | AC84: =분기재무제표DB!X69/((분기재무제표DB!X17+분기재무제표DB!X18+분기재무제표DB!T17+분기재무제표DB!T18)/2) -> 1.390804071 | AD84: =분기재무제표DB!Y69/((분기재무제표DB!Y17+분기재무제표DB!Y18+분기재무제표DB!U17+분기재무제표DB!U18)/2) -> 1.286443946 | AE84: =분기재무제표DB!Z69/((분기재무제표DB!Z17+분기재무제표DB!Z18+분기재무제표DB!V17+분기재무제표DB!V18)/2) -> 0.9638217086 | AF84: =분기재무제표DB!AA69/((분기재무제표DB!AA17+분기재무제표DB!AA18+분기재무제표DB!W17+분기재무제표DB!W18)/2) -> 1.183886659 | AG84: =분기재무제표DB!AB69/((분기재무제표DB!AB17+분기재무제표DB!AB18+분기재무제표DB!X17+분기재무제표DB!X18)/2) -> 1.069657663
C85: 영업이익 관련 분석 | F85: .
B86: 50) | C86: -영익 대비 영업외수익 비율 (↔) | D86: 2 | F86: 영업외수익/영익(일정) | G86: =분기재무제표DB!B64/분기재무제표DB!B38 -> 1.242828726 | H86: =분기재무제표DB!C64/분기재무제표DB!C38 -> 0.9677791934 | I86: =분기재무제표DB!D64/분기재무제표DB!D38 -> 0.8923552628 | J86: =분기재무제표DB!E64/분기재무제표DB!E38 -> 0.2222576743 | K86: =분기재무제표DB!F64/분기재무제표DB!F38 -> 1.152174319 | L86: =분기재무제표DB!G64/분기재무제표DB!G38 -> 0.2932169798 | M86: =분기재무제표DB!H64/분기재무제표DB!H38 -> 0.9271496939 | N86: =분기재무제표DB!I64/분기재무제표DB!I38 -> 1.102207798 | O86: =분기재무제표DB!J64/분기재무제표DB!J38 -> 0.4710388014 | P86: =분기재무제표DB!K64/분기재무제표DB!K38 -> 0.6720144542 | Q86: =분기재무제표DB!L64/분기재무제표DB!L38 -> 0.5099689473 | R86: =분기재무제표DB!M64/분기재무제표DB!M38 -> 0.3541514108 | S86: =분기재무제표DB!N64/분기재무제표DB!N38 -> 1.30989364 | T86: =분기재무제표DB!O64/분기재무제표DB!O38 -> 0.4886061672 | U86: =분기재무제표DB!P64/분기재무제표DB!P38 -> 0.7817502711 | V86: =분기재무제표DB!Q64/분기재무제표DB!Q38 -> 0.6622086991 | W86: =분기재무제표DB!R64/분기재무제표DB!R38 -> 0.5588458801 | X86: =분기재무제표DB!S64/분기재무제표DB!S38 -> 0.1574132345 | Y86: =분기재무제표DB!T64/분기재무제표DB!T38 -> 0.1326351089 | Z86: =분기재무제표DB!U64/분기재무제표DB!U38 -> 0.6995637363 | AA86: =분기재무제표DB!V64/분기재무제표DB!V38 -> 0.4128262881 | AB86: =분기재무제표DB!W64/분기재무제표DB!W38 -> 0.1623475335 | AC86: =분기재무제표DB!X64/분기재무제표DB!X38 -> 0.3301748826 | AD86: =분기재무제표DB!Y64/분기재무제표DB!Y38 -> 0.1162788972 | AE86: =분기재무제표DB!Z64/분기재무제표DB!Z38 -> 0.3509052595 | AF86: =분기재무제표DB!AA64/분기재무제표DB!AA38 -> 0.4243284561 | AG86: =분기재무제표DB!AB64/분기재무제표DB!AB38 -> 0.9721266372
B87: 51) | C87: -영익 대비 영업외비용 비율 (↓) | D87: 1 | F87: 영업외비용/영익(15%이하) | G87: =분기재무제표DB!B65/분기재무제표DB!B38 -> 1.999463323 | H87: =분기재무제표DB!C65/분기재무제표DB!C38 -> 2.085003583 | I87: =분기재무제표DB!D65/분기재무제표DB!D38 -> 1.47177038 | J87: =분기재무제표DB!E65/분기재무제표DB!E38 -> 0.9793924123 | K87: =분기재무제표DB!F65/분기재무제표DB!F38 -> 1.90360836 | L87: =분기재무제표DB!G65/분기재무제표DB!G38 -> 0.8859602545 | M87: =분기재무제표DB!H65/분기재무제표DB!H38 -> 1.694365731 | N87: 2.3 | O87: =분기재무제표DB!J65/분기재무제표DB!J38 -> 1.427767997 | P87: =분기재무제표DB!K65/분기재무제표DB!K38 -> 1.38424551 | Q87: =분기재무제표DB!L65/분기재무제표DB!L38 -> 2.118276328 | R87: =분기재무제표DB!M65/분기재무제표DB!M38 -> 0.9722109464 | S87: =분기재무제표DB!N65/분기재무제표DB!N38 -> 2.107466574 | T87: =분기재무제표DB!O65/분기재무제표DB!O38 -> 1.912074591 | U87: =분기재무제표DB!P65/분기재무제표DB!P38 -> 1.749757559 | V87: =분기재무제표DB!Q65/분기재무제표DB!Q38 -> 2.888222307 | W87: =분기재무제표DB!R65/분기재무제표DB!R38 -> 0.8365231065 | X87: =분기재무제표DB!S65/분기재무제표DB!S38 -> 0.513002634 | Y87: =분기재무제표DB!T65/분기재무제표DB!T38 -> 0.2897179781 | Z87: =분기재무제표DB!U65/분기재무제표DB!U38 -> 1.705206584 | AA87: =분기재무제표DB!V65/분기재무제표DB!V38 -> 0.2805949421 | AB87: =분기재무제표DB!W65/분기재무제표DB!W38 -> 0.2422071453 | AC87: =분기재무제표DB!X65/분기재무제표DB!X38 -> 0.356109994 | AD87: =분기재무제표DB!Y65/분기재무제표DB!Y38 -> 0.5274075727 | AE87: =분기재무제표DB!Z65/분기재무제표DB!Z38 -> 0.6804755771 | AF87: =분기재무제표DB!AA65/분기재무제표DB!AA38 -> 0.5020767507 | AG87: =분기재무제표DB!AB65/분기재무제표DB!AB38 -> 0.8797258602
B88: 52) | C88: -영익감소&영업외수익은 증가(↓) | D88: 2 | F88: . | G88: . | H88: . | I88: . | J88: . | K88: . | L88: =IF(AND(L86>K86,K86>J86,J86>I86,I86>H86,H86>G86),"0",IF(AND(L86>K86,K86>J86,J86>I86,I86>H86),"1",IF(AND(L86>K86,K86>J86,J86>I86),"2",IF(AND(L86>K86,K86>J86),"3",IF(AND(L86>K86),"4","5"))))) -> 5 | M88: =IF(AND(M86>L86,L86>K86,K86>J86,J86>I86,I86>H86),"0",IF(AND(M86>L86,L86>K86,K86>J86,J86>I86),"1",IF(AND(M86>L86,L86>K86,K86>J86),"2",IF(AND(M86>L86,L86>K86),"3",IF(AND(M86>L86),"4","5"))))) -> 4 | N88: 3 | O88: 5 | P88: 4 | Q88: 5 | R88: 5 | S88: 4 | T88: =IF(AND(T86>S86,S86>R86,R86>Q86,Q86>P86,P86>O86),"0",IF(AND(T86>S86,S86>R86,R86>Q86,Q86>P86),"1",IF(AND(T86>S86,S86>R86,R86>Q86),"2",IF(AND(T86>S86,S86>R86),"3",IF(AND(T86>S86),"4","5"))))) -> 5 | U88: 4 | V88: 5 | W88: 5 | X88: 5 | Y88: 5 | Z88: 4 | AA88: 5 | AB88: 5 | AC88: 4 | AD88: 5 | AE88: 4 | AF88: 3 | AG88: 2
C89: PER(산업비교) | F89: .
B90: 53) | C90: -시총/영업이익(↓) | D90: 0 | F90: 영익PER(15이하) | G90: =분기재무제표DB!B91/분기재무제표DB!B70 -> 19.66999965 | H90: =분기재무제표DB!C91/분기재무제표DB!C70 -> 15.8439422 | I90: =분기재무제표DB!D91/분기재무제표DB!D70 -> 9.807904541 | J90: =분기재무제표DB!E91/분기재무제표DB!E70 -> 13.70254804 | K90: =분기재무제표DB!F91/분기재무제표DB!F70 -> 17.74313975 | L90: =분기재무제표DB!G91/분기재무제표DB!G70 -> 29.18784074 | M90: =분기재무제표DB!H91/분기재무제표DB!H70 -> 35.59911401 | N90: =분기재무제표DB!I91/분기재무제표DB!I70 -> 70.8632546 | O90: =분기재무제표DB!J91/분기재무제표DB!J70 -> 80.66542347 | P90: =분기재무제표DB!K91/분기재무제표DB!K70 -> 112.3720047 | Q90: =분기재무제표DB!L91/분기재무제표DB!L70 -> 73.54641952 | R90: =분기재무제표DB!M91/분기재무제표DB!M70 -> 80.5232386 | S90: =분기재무제표DB!N91/분기재무제표DB!N70 -> 105.429057 | T90: =분기재무제표DB!O91/분기재무제표DB!O70 -> 95.43343778 | U90: =분기재무제표DB!P91/분기재무제표DB!P70 -> 85.65547446 | V90: =분기재무제표DB!Q91/분기재무제표DB!Q70 -> 92.33823551 | W90: =분기재무제표DB!R91/분기재무제표DB!R70 -> 26.89390251 | X90: =분기재무제표DB!S91/분기재무제표DB!S70 -> 71.42258269 | Y90: =분기재무제표DB!T91/분기재무제표DB!T70 -> 54.6192291 | Z90: =분기재무제표DB!U91/분기재무제표DB!U70 -> 68.73874778 | AA90: =분기재무제표DB!V91/분기재무제표DB!V70 -> 37.59082703 | AB90: =분기재무제표DB!W91/분기재무제표DB!W70 -> 45.4033198 | AC90: =분기재무제표DB!X91/분기재무제표DB!X70 -> 83.28008686 | AD90: =분기재무제표DB!Y91/분기재무제표DB!Y70 -> 78.03603977 | AE90: =분기재무제표DB!Z91/분기재무제표DB!Z70 -> 90.74527747 | AF90: =분기재무제표DB!AA91/분기재무제표DB!AA70 -> 68.27621074 | AG90: =분기재무제표DB!AB91/분기재무제표DB!AB70 -> 86.49101418
B91: 54) | C91: -시총/영업활동현금흐름 (↓) | D91: 0 | F91: 현금PER(15이하) | G91: . | H91: . | I91: . | J91: . | K91: =분기재무제표DB!F91/(분기재무제표DB!C72+분기재무제표DB!D72+분기재무제표DB!E72+분기재무제표DB!F72) -> 13.63734128 | L91: =분기재무제표DB!G91/(분기재무제표DB!D72+분기재무제표DB!E72+분기재무제표DB!F72+분기재무제표DB!G72) -> 44.29755148 | M91: =분기재무제표DB!H91/(분기재무제표DB!E72+분기재무제표DB!F72+분기재무제표DB!G72+분기재무제표DB!H72) -> 49.78388771 | N91: =분기재무제표DB!I91/(분기재무제표DB!F72+분기재무제표DB!G72+분기재무제표DB!H72+분기재무제표DB!I72) -> 225.8791351 | O91: =분기재무제표DB!J91/(분기재무제표DB!G72+분기재무제표DB!H72+분기재무제표DB!I72+분기재무제표DB!J72) -> 351.5195328 | P91: =분기재무제표DB!K91/(분기재무제표DB!H72+분기재무제표DB!I72+분기재무제표DB!J72+분기재무제표DB!K72) -> 438.521034 | Q91: =분기재무제표DB!L91/(분기재무제표DB!I72+분기재무제표DB!J72+분기재무제표DB!K72+분기재무제표DB!L72) -> 135.0697151 | R91: =분기재무제표DB!M91/(분기재무제표DB!J72+분기재무제표DB!K72+분기재무제표DB!L72+분기재무제표DB!M72) -> 116.1354964 | S91: =분기재무제표DB!N91/(분기재무제표DB!K72+분기재무제표DB!L72+분기재무제표DB!M72+분기재무제표DB!N72) -> -135.7061963 | T91: =분기재무제표DB!O91/(분기재무제표DB!L72+분기재무제표DB!M72+분기재무제표DB!N72+분기재무제표DB!O72) -> -116.1179481 | U91: =분기재무제표DB!P91/(분기재무제표DB!M72+분기재무제표DB!N72+분기재무제표DB!O72+분기재무제표DB!P72) -> -37.56245759 | V91: =분기재무제표DB!Q91/(분기재무제표DB!N72+분기재무제표DB!O72+분기재무제표DB!P72+분기재무제표DB!Q72) -> -37.97662934 | W91: =분기재무제표DB!R91/(분기재무제표DB!O72+분기재무제표DB!P72+분기재무제표DB!Q72+분기재무제표DB!R72) -> 157.2173328 | X91: =분기재무제표DB!S91/(분기재무제표DB!P72+분기재무제표DB!Q72+분기재무제표DB!R72+분기재무제표DB!S72) -> -386.5322307 | Y91: =분기재무제표DB!T91/(분기재무제표DB!Q72+분기재무제표DB!R72+분기재무제표DB!S72+분기재무제표DB!T72) -> 60.758458 | Z91: =분기재무제표DB!U91/(분기재무제표DB!R72+분기재무제표DB!S72+분기재무제표DB!T72+분기재무제표DB!U72) -> 61.37615459 | AA91: =분기재무제표DB!V91/(분기재무제표DB!S72+분기재무제표DB!T72+분기재무제표DB!U72+분기재무제표DB!V72) -> 255.1183523 | AB91: =분기재무제표DB!W91/(분기재무제표DB!T72+분기재무제표DB!U72+분기재무제표DB!V72+분기재무제표DB!W72) -> 91.71650474 | AC91: =분기재무제표DB!X91/(분기재무제표DB!U72+분기재무제표DB!V72+분기재무제표DB!W72+분기재무제표DB!X72) -> 168.5664258 | AD91: =분기재무제표DB!Y91/(분기재무제표DB!V72+분기재무제표DB!W72+분기재무제표DB!X72+분기재무제표DB!Y72) -> 182.0617696 | AE91: =분기재무제표DB!Z91/(분기재무제표DB!W72+분기재무제표DB!X72+분기재무제표DB!Y72+분기재무제표DB!Z72) -> 63.73154592 | AF91: =분기재무제표DB!AA91/(분기재무제표DB!X72+분기재무제표DB!Y72+분기재무제표DB!Z72+분기재무제표DB!AA72) -> 59.37321727 | AG91: =분기재무제표DB!AB91/(분기재무제표DB!Y72+분기재무제표DB!Z72+분기재무제표DB!AA72+분기재무제표DB!AB72) -> 63.95654237
B92: 55) | C92: -시총/당기순이익(↓) | D92: 0 | E92: 87.44 | F92: 당순PER(20이하) | G92: =분기재무제표DB!B97 -> 73.58752203 | H92: =분기재무제표DB!C97 -> 313.5561218 | I92: =분기재무제표DB!D97 -> 54.76282538 | J92: =분기재무제표DB!E97 -> 78.28294957 | K92: =분기재무제표DB!F97 -> 77.65637545 | L92: =분기재무제표DB!G97 -> 98.21276346 | M92: =분기재무제표DB!H97 -> 129.0218247 | N92: =분기재무제표DB!I97 -> -26.33822087 | O92: =분기재무제표DB!J97 -> 17042.59901 | P92: =분기재무제표DB!K97 -> 773.1926742 | Q92: =분기재무제표DB!L97 -> 29823.77843 | R92: =분기재무제표DB!M97 -> 763.6448043 | S92: =분기재무제표DB!N97 -> 862.5151091 | T92: =분기재무제표DB!O97 -> -432.6688771 | U92: =분기재무제표DB!P97 -> -524.1558122 | V92: =분기재무제표DB!Q97 -> -271.9889491 | W92: =분기재무제표DB!R97 -> 39.01509379 | X92: =분기재무제표DB!S97 -> 112.1083023 | Y92: =분기재무제표DB!T97 -> 80.14141348 | Z92: =분기재무제표DB!U97 -> 122.0792625 | AA92: =분기재무제표DB!V97 -> 38.93548122 | AB92: =분기재무제표DB!W97 -> 49.58754648 | AC92: =분기재무제표DB!X97 -> 91.12299736 | AD92: =분기재무제표DB!Y97 -> 60.03224406 | AE92: =분기재무제표DB!Z97 -> 141.5772334 | AF92: =분기재무제표DB!AA97 -> 107.4156865 | AG92: =분기재무제표DB!AB97 -> 119.8118834
B93: 56) | C93: -역대평균PER 대비 낮은가? (↓) | D93: 0 | F93: . | G93: =(G92/$E$92)-1 -> -0.1584226666 | H93: 2.585957477 | I93: -0.3737096822 | J93: -0.1047238156 | K93: -0.1118895763 | L93: 0.1232017779 | M93: 0.4755469429 | N93: -1.301214786 | O93: 193.90621 | P93: 7.842551169 | Q93: 340.0770635 | R93: 7.73335778 | S93: 8.864079473 | T93: -5.948180205 | U93: -6.994462628 | V93: -4.110578101 | W93: -0.5538072531 | X93: 0.282116906 | Y93: -0.08346965367 | Z93: 0.3961489309 | AA93: -0.5547177353 | AB93: -0.432896312 | AC93: 0.04212028084 | AD93: -0.3134464311 | AE93: 0.6191357894 | AF93: 0.2284502116 | AG93: 0.3702182452
B94: 57) | C94: -업종평균PER 대비 낮은가? (↓) | D94: 0 | E94: =D3 -> 41 | F94: . | G94: =(G92/$E$94)-1 -> 0.7948176105 | H94: =(H92/$E$94)-1 -> 6.647710288 | I94: 0.3356786679 | J94: 0.9093402333 | K94: 0.8940579378 | L94: 1.395433255 | M94: 2.146873773 | N94: -1.642395631 | O94: 414.6731465 | P94: 17.85835791 | Q94: 726.40923 | R94: 17.62548303 | S94: 20.03695388 | T94: =(T92/$E$94)-1 -> -11.55289944 | U94: -13.7842881 | V94: -7.633876808 | W94: -0.04841234661 | X94: 1.734348836 | Y94: 0.9546686215 | Z94: 1.977542988 | AA94: -0.05035411651 | AB94: 0.2094523531 | AC94: 1.222512131 | AD94: 0.4642010747 | AE94: 2.453103254 | AF94: 1.619894793 | AG94: 1.922241057
C95: PSR
B96: 58) | C96: -시총/매출액 (↓) | D96: 0 | E96: 3.32 | F96: PSR(3이하) | G96: =분기재무제표DB!B91/분기재무제표DB!B69 -> 0.6402813791 | H96: =분기재무제표DB!C91/분기재무제표DB!C69 -> 0.5899337848 | I96: =분기재무제표DB!D91/분기재무제표DB!D69 -> 0.4585117218 | J96: =분기재무제표DB!E91/분기재무제표DB!E69 -> 0.8141637429 | K96: =분기재무제표DB!F91/분기재무제표DB!F69 -> 0.7589252538 | L96: =분기재무제표DB!G91/분기재무제표DB!G69 -> 1.181158666 | M96: =분기재무제표DB!H91/분기재무제표DB!H69 -> 1.183041801 | N96: =분기재무제표DB!I91/분기재무제표DB!I69 -> 2.259246393 | O96: =분기재무제표DB!J91/분기재무제표DB!J69 -> 2.856889959 | P96: =분기재무제표DB!K91/분기재무제표DB!K69 -> 4.474778948 | Q96: =분기재무제표DB!L91/분기재무제표DB!L69 -> 2.432950497 | R96: =분기재무제표DB!M91/분기재무제표DB!M69 -> 2.926199768 | S96: =분기재무제표DB!N91/분기재무제표DB!N69 -> 2.296356181 | T96: =분기재무제표DB!O91/분기재무제표DB!O69 -> 2.614554953 | U96: =분기재무제표DB!P91/분기재무제표DB!P69 -> 2.386872329 | V96: =분기재무제표DB!Q91/분기재무제표DB!Q69 -> 2.112962736 | W96: =분기재무제표DB!R91/분기재무제표DB!R69 -> 1.782215037 | X96: =분기재무제표DB!S91/분기재무제표DB!S69 -> 4.342578657 | Y96: =분기재무제표DB!T91/분기재무제표DB!T69 -> 3.610906303 | Z96: =분기재무제표DB!U91/분기재무제표DB!U69 -> 4.012606019 | AA96: =분기재무제표DB!V91/분기재무제표DB!V69 -> 4.156878432 | AB96: =분기재무제표DB!W91/분기재무제표DB!W69 -> 4.588108471 | AC96: =분기재무제표DB!X91/분기재무제표DB!X69 -> 8.169856686 | AD96: =분기재무제표DB!Y91/분기재무제표DB!Y69 -> 6.910293883 | AE96: =분기재무제표DB!Z91/분기재무제표DB!Z69 -> 8.277559132 | AF96: =분기재무제표DB!AA91/분기재무제표DB!AA69 -> 6.022475068 | AG96: =분기재무제표DB!AB91/분기재무제표DB!AB69 -> 7.657923731
B97: 59) | C97: -역대평균PSR 대비 낮은가? (↓) | D97: 0 | F97: . | G97: =(G96/$E$96)-1 -> -0.8071441629 | H97: =(H96/$E$96)-1 -> -0.822309101 | I97: =(I96/$E$96)-1 -> -0.8618940597 | J97: -0.7547699569 | K97: -0.7714080561 | L97: -0.6442293176 | M97: -0.6436621082 | N97: -0.3195040986 | O97: -0.1394909762 | P97: 0.3478249844 | Q97: -0.2671835851 | R97: -0.1186145277 | S97: -0.3083264516 | T97: =(T96/$E$96)-1 -> -0.2124834478 | U97: -0.2810625516 | V97: -0.363565441 | W97: -0.4631882418 | X97: 0.3080056195 | Y97: 0.08762238036 | Z97: 0.2086162708 | AA97: 0.252071817 | AB97: 0.3819603829 | AC97: 1.460800207 | AD97: 1.08141382 | AE97: 1.493240702 | AF97: 0.8139985145 | AG97: 1.306603533
B98: 60) | C98: -업종평균PSR 대비 낮은가? (↓) | D98: 0 | E98: =D4 -> 5.1 | F98: . | G98: =(G96/$E$98)-1 -> -0.8744546315 | H98: =(H96/$E$98)-1 -> -0.8843267089 | I98: -0.9100957408 | J98: -0.8403600504 | K98: -0.8511911267 | L98: -0.7684002616 | M98: -0.7680310195 | N98: -0.5570105112 | O98: -0.4398254982 | P98: -0.1225923631 | Q98: -0.5229508829 | R98: -0.4262353396 | S98: -0.5497340822 | T98: =(T96/$E$98)-1 -> -0.487342166 | U98: -0.5319858179 | V98: -0.5856935812 | W98: -0.6505460711 | X98: -0.1485139889 | Y98: -0.2919791563 | Z98: -0.2132145061 | AA98: -0.1849257976 | AB98: -0.100370888 | AC98: 0.6019326835 | AD98: 0.3549595849 | AE98: 0.6230508102 | AF98: 0.1808774643 | AG98: 0.5015536727
C99: ROE, ROA, ROA
B100: 61) | C100: -ROE(당기순이익/자본)(↑) | D100: 1 | F100: ROE(20이상) | G100: . | H100: . | I100: . | J100: . | K100: =(분기재무제표DB!F71*100)/((분기재무제표DB!F30+분기재무제표DB!B30)/2) -> 1.445038855 | L100: =(분기재무제표DB!G71*100)/((분기재무제표DB!G30+분기재무제표DB!C30)/2) -> 1.875038047 | M100: =(분기재무제표DB!H71*100)/((분기재무제표DB!H30+분기재무제표DB!D30)/2) -> 1.503496303 | N100: =(분기재무제표DB!I71*100)/((분기재무제표DB!I30+분기재무제표DB!E30)/2) -> -14.35001274 | O100: =(분기재무제표DB!J71*100)/((분기재무제표DB!J30+분기재무제표DB!F30)/2) -> 0.03128488859 | P100: =(분기재무제표DB!K71*100)/((분기재무제표DB!K30+분기재무제표DB!G30)/2) -> 1.029225924 | Q100: =(분기재무제표DB!L71*100)/((분기재무제표DB!L30+분기재무제표DB!H30)/2) -> 0.01240270499 | R100: =(분기재무제표DB!M71*100)/((분기재무제표DB!M30+분기재무제표DB!I30)/2) -> 0.582581243 | S100: =(분기재무제표DB!N71*100)/((분기재무제표DB!N30+분기재무제표DB!J30)/2) -> 0.4013959538 | T100: =(분기재무제표DB!O71*100)/((분기재무제표DB!O30+분기재무제표DB!K30)/2) -> -0.9332243611 | U100: =(분기재무제표DB!P71*100)/((분기재무제표DB!P30+분기재무제표DB!L30)/2) -> -0.6587726452 | V100: =(분기재무제표DB!Q71*100)/((분기재무제표DB!Q30+분기재무제표DB!M30)/2) -> -1.110581879 | W100: =(분기재무제표DB!R71*100)/((분기재무제표DB!R30+분기재무제표DB!N30)/2) -> 8.339579873 | X100: =(분기재무제표DB!S71*100)/((분기재무제표DB!S30+분기재무제표DB!O30)/2) -> 7.084829282 | Y100: =(분기재무제표DB!T71*100)/((분기재무제표DB!T30+분기재무제표DB!P30)/2) -> 8.258323523 | Z100: =(분기재무제표DB!U71*100)/((분기재무제표DB!U30+분기재무제표DB!Q30)/2) -> 6.117152819 | AA100: =(분기재무제표DB!V71*100)/((분기재무제표DB!V30+분기재무제표DB!R30)/2) -> 22.69489277 | AB100: =(분기재무제표DB!W71*100)/((분기재무제표DB!W30+분기재무제표DB!S30)/2) -> 19.98577465 | AC100: =(분기재무제표DB!X71*100)/((분기재무제표DB!X30+분기재무제표DB!T30)/2) -> 19.12229932 | AD100: =(분기재무제표DB!Y71*100)/((분기재무제표DB!Y30+분기재무제표DB!U30)/2) -> 21.24364046 | AE100: =(분기재무제표DB!Z71*100)/((분기재무제표DB!Z30+분기재무제표DB!V30)/2) -> 8.100708331 | AF100: =(분기재무제표DB!AA71*100)/((분기재무제표DB!AA30+분기재무제표DB!W30)/2) -> 9.607096836 | AG100: =(분기재무제표DB!AB71*100)/((분기재무제표DB!AB30+분기재무제표DB!X30)/2) -> 10.23206656
B101: 62) | C101: -ROA(영업이익/자산)(↑) | D101: 1 | F101: 영익ROA(20이상) | G101: . | H101: . | I101: . | J101: . | K101: =(분기재무제표DB!F70*100)/((분기재무제표DB!F6+분기재무제표DB!B6)/2) -> 2.585964671 | L101: =(분기재무제표DB!G70*100)/((분기재무제표DB!G6+분기재무제표DB!C6)/2) -> 2.579918351 | M101: =(분기재무제표DB!H70*100)/((분기재무제표DB!H6+분기재무제표DB!D6)/2) -> 2.195588877 | N101: =(분기재무제표DB!I70*100)/((분기재무제표DB!I6+분기재무제표DB!E6)/2) -> 2.164682306 | O101: =(분기재무제표DB!J70*100)/((분기재무제표DB!J6+분기재무제표DB!F6)/2) -> 2.677452908 | P101: =(분기재무제표DB!K70*100)/((분기재무제표DB!K6+분기재무제표DB!G6)/2) -> 2.883455642 | Q101: =(분기재무제표DB!L70*100)/((분기재무제표DB!L6+분기재무제표DB!H6)/2) -> 2.234827857 | R101: =(분기재무제표DB!M70*100)/((분기재무제표DB!M6+분기재무제표DB!I6)/2) -> 2.434886841 | S101: =(분기재무제표DB!N70*100)/((분기재무제표DB!N6+분기재무제표DB!J6)/2) -> 1.423360549 | T101: =(분기재무제표DB!O70*100)/((분기재무제표DB!O6+분기재무제표DB!K6)/2) -> 1.807000367 | U101: =(분기재무제표DB!P70*100)/((분기재무제표DB!P6+분기재무제표DB!L6)/2) -> 1.831498995 | V101: =(분기재무제표DB!Q70*100)/((분기재무제표DB!Q6+분기재무제표DB!M6)/2) -> 1.460804496 | W101: =(분기재무제표DB!R70*100)/((분기재무제표DB!R6+분기재무제표DB!N6)/2) -> 5.385404533 | X101: =(분기재무제표DB!S70*100)/((분기재무제표DB!S6+분기재무제표DB!O6)/2) -> 4.858558512 | Y101: =(분기재무제표DB!T70*100)/((분기재무제표DB!T6+분기재무제표DB!P6)/2) -> 5.190367693 | Z101: =(분기재무제표DB!U70*100)/((분기재무제표DB!U6+분기재무제표DB!Q6)/2) -> 4.542105347 | AA101: =(분기재무제표DB!V70*100)/((분기재무제표DB!V6+분기재무제표DB!R6)/2) -> 9.890535208 | AB101: =(분기재무제표DB!W70*100)/((분기재무제표DB!W6+분기재무제표DB!S6)/2) -> 9.054689858 | AC101: =(분기재무제표DB!X70*100)/((분기재무제표DB!X6+분기재무제표DB!T6)/2) -> 8.774176333 | AD101: =(분기재무제표DB!Y70*100)/((분기재무제표DB!Y6+분기재무제표DB!U6)/2) -> 6.977082027 | AE101: =(분기재무제표DB!Z70*100)/((분기재무제표DB!Z6+분기재무제표DB!V6)/2) -> 5.380833604 | AF101: =(분기재무제표DB!AA70*100)/((분기재무제표DB!AA6+분기재무제표DB!W6)/2) -> 6.476309007 | AG101: =(분기재무제표DB!AB70*100)/((분기재무제표DB!AB6+분기재무제표DB!X6)/2) -> 6.077886734
B102: 63) | C102: -ROA(당기순이익/자산)(↑) | D102: 1 | F102: 당순ROA(15아상) | G102: . | H102: . | I102: . | J102: . | K102: =(분기재무제표DB!F71*100)/((분기재무제표DB!F6+분기재무제표DB!B6)/2) -> 0.5908482372 | L102: =(분기재무제표DB!G71*100)/((분기재무제표DB!G6+분기재무제표DB!C6)/2) -> 0.7667256605 | M102: =(분기재무제표DB!H71*100)/((분기재무제표DB!H6+분기재무제표DB!D6)/2) -> 0.6057968791 | N102: =(분기재무제표DB!I71*100)/((분기재무제표DB!I6+분기재무제표DB!E6)/2) -> -5.824100046 | O102: =(분기재무제표DB!J71*100)/((분기재무제표DB!J6+분기재무제표DB!F6)/2) -> 0.01267282487 | P102: =(분기재무제표DB!K71*100)/((분기재무제표DB!K6+분기재무제표DB!G6)/2) -> 0.4190672025 | Q102: =(분기재무제표DB!L71*100)/((분기재무제표DB!L6+분기재무제표DB!H6)/2) -> 0.005511159074 | R102: =(분기재무제표DB!M71*100)/((분기재무제표DB!M6+분기재무제표DB!I6)/2) -> 0.2567489138 | S102: =(분기재무제표DB!N71*100)/((분기재무제표DB!N6+분기재무제표DB!J6)/2) -> 0.173983689 | T102: =(분기재무제표DB!O71*100)/((분기재무제표DB!O6+분기재무제표DB!K6)/2) -> -0.3985686657 | U102: =(분기재무제표DB!P71*100)/((분기재무제표DB!P6+분기재무제표DB!L6)/2) -> -0.2992963385 | V102: =(분기재무제표DB!Q71*100)/((분기재무제표DB!Q6+분기재무제표DB!M6)/2) -> -0.4959323166 | W102: =(분기재무제표DB!R71*100)/((분기재무제표DB!R6+분기재무제표DB!N6)/2) -> 3.712269547 | X102: =(분기재무제표DB!S71*100)/((분기재무제표DB!S6+분기재무제표DB!O6)/2) -> 3.095317564 | Y102: =(분기재무제표DB!T71*100)/((분기재무제표DB!T6+분기재무제표DB!P6)/2) -> 3.53742054 | Z102: =(분기재무제표DB!U71*100)/((분기재무제표DB!U6+분기재무제표DB!Q6)/2) -> 2.557507536 | AA102: =(분기재무제표DB!V71*100)/((분기재무제표DB!V6+분기재무제표DB!R6)/2) -> 9.548961167 | AB102: =(분기재무제표DB!W71*100)/((분기재무제표DB!W6+분기재무제표DB!S6)/2) -> 8.290649739 | AC102: =(분기재무제표DB!X71*100)/((분기재무제표DB!X6+분기재무제표DB!T6)/2) -> 8.018987395 | AD102: =(분기재무제표DB!Y71*100)/((분기재무제표DB!Y6+분기재무제표DB!U6)/2) -> 9.069523537 | AE102: =(분기재무제표DB!Z71*100)/((분기재무제표DB!Z6+분기재무제표DB!V6)/2) -> 3.448896596 | AF102: =(분기재무제표DB!AA71*100)/((분기재무제표DB!AA6+분기재무제표DB!W6)/2) -> 4.116510847 | AG102: =(분기재무제표DB!AB71*100)/((분기재무제표DB!AB6+분기재무제표DB!X6)/2) -> 4.387566349
C103: 운전자본(산업비교) | F103: .
B104: 64) | C104: -20% 이하 (운전자본/매출액) (↓) | D104: 2 | F104: 운전자본(20%이하) | G104: =(분기재무제표DB!B61+분기재무제표DB!B13-분기재무제표DB!B25)/(분기재무제표DB!B69) -> 0.3734885787 | H104: =(분기재무제표DB!C61+분기재무제표DB!C13-분기재무제표DB!C25)/(분기재무제표DB!C69) -> 0.3358194561 | I104: =(분기재무제표DB!D61+분기재무제표DB!D13-분기재무제표DB!D25)/(분기재무제표DB!D69) -> 0.3391830027 | J104: =(분기재무제표DB!E61+분기재무제표DB!E13-분기재무제표DB!E25)/(분기재무제표DB!E69) -> 0.3573682328 | K104: =(분기재무제표DB!F61+분기재무제표DB!F13-분기재무제표DB!F25)/(분기재무제표DB!F69) -> 0.3055250998 | L104: =(분기재무제표DB!G61+분기재무제표DB!G13-분기재무제표DB!G25)/(분기재무제표DB!G69) -> 0.2937509428 | M104: =(분기재무제표DB!H61+분기재무제표DB!H13-분기재무제표DB!H25)/(분기재무제표DB!H69) -> 0.2948208329 | N104: =(분기재무제표DB!I61+분기재무제표DB!I13-분기재무제표DB!I25)/(분기재무제표DB!I69) -> 0.290976953 | O104: =(분기재무제표DB!J61+분기재무제표DB!J13-분기재무제표DB!J25)/(분기재무제표DB!J69) -> 0.2882553747 | P104: =(분기재무제표DB!K61+분기재무제표DB!K13-분기재무제표DB!K25)/(분기재무제표DB!K69) -> 0.2921490972 | Q104: =(분기재무제표DB!L61+분기재무제표DB!L13-분기재무제표DB!L25)/(분기재무제표DB!L69) -> 0.3077393014 | R104: =(분기재무제표DB!M61+분기재무제표DB!M13-분기재무제표DB!M25)/(분기재무제표DB!M69) -> 0.2899050793 | S104: =(분기재무제표DB!N61+분기재무제표DB!N13-분기재무제표DB!N25)/(분기재무제표DB!N69) -> 0.3312872617 | T104: =(분기재무제표DB!O61+분기재무제표DB!O13-분기재무제표DB!O25)/(분기재무제표DB!O69) -> 0.3367931926 | U104: =(분기재무제표DB!P61+분기재무제표DB!P13-분기재무제표DB!P25)/(분기재무제표DB!P69) -> 0.3741947293 | V104: =(분기재무제표DB!Q61+분기재무제표DB!Q13-분기재무제표DB!Q25)/(분기재무제표DB!Q69) -> 0.3495469325 | W104: =(분기재무제표DB!R61+분기재무제표DB!R13-분기재무제표DB!R25)/(분기재무제표DB!R69) -> 0.2915090622 | X104: =(분기재무제표DB!S61+분기재무제표DB!S13-분기재무제표DB!S25)/(분기재무제표DB!S69) -> 0.3071563252 | Y104: =(분기재무제표DB!T61+분기재무제표DB!T13-분기재무제표DB!T25)/(분기재무제표DB!T69) -> 0.2815613033 | Z104: =(분기재무제표DB!U61+분기재무제표DB!U13-분기재무제표DB!U25)/(분기재무제표DB!U69) -> 0.2635491044 | AA104: =(분기재무제표DB!V61+분기재무제표DB!V13-분기재무제표DB!V25)/(분기재무제표DB!V69) -> 0.2810717252 | AB104: =(분기재무제표DB!W61+분기재무제표DB!W13-분기재무제표DB!W25)/(분기재무제표DB!W69) -> 0.2659091442 | AC104: =(분기재무제표DB!X61+분기재무제표DB!X13-분기재무제표DB!X25)/(분기재무제표DB!X69) -> 0.259500139 | AD104: =(분기재무제표DB!Y61+분기재무제표DB!Y13-분기재무제표DB!Y25)/(분기재무제표DB!Y69) -> 0.2683910184 | AE104: =(분기재무제표DB!Z61+분기재무제표DB!Z13-분기재무제표DB!Z25)/(분기재무제표DB!Z69) -> 0.3629734357 | AF104: =(분기재무제표DB!AA61+분기재무제표DB!AA13-분기재무제표DB!AA25)/(분기재무제표DB!AA69) -> 0.2912117308 | AG104: =(분기재무제표DB!AB61+분기재무제표DB!AB13-분기재무제표DB!AB25)/(분기재무제표DB!AB69) -> 0.312774045
A105: 성장성 | C105: 매출액 우상향 | F105: .
C106: -QoQ 성장률 | F106: 매출QoQ | G106: . | H106: =(분기재무제표DB!C34-분기재무제표DB!B34)/ABS(분기재무제표DB!B34) -> 0.08841203437 | I106: =(분기재무제표DB!D34-분기재무제표DB!C34)/ABS(분기재무제표DB!C34) -> -0.03877101194 | J106: =(분기재무제표DB!E34-분기재무제표DB!D34)/ABS(분기재무제표DB!D34) -> 0.1063696492 | K106: =(분기재무제표DB!F34-분기재무제표DB!E34)/ABS(분기재무제표DB!E34) -> 0.1340155685 | L106: =(분기재무제표DB!G34-분기재무제표DB!F34)/ABS(분기재무제표DB!F34) -> 0.1625592602 | M106: =(분기재무제표DB!H34-분기재무제표DB!G34)/ABS(분기재무제표DB!G34) -> 0.03987731358 | N106: =(분기재무제표DB!I34-분기재무제표DB!H34)/ABS(분기재무제표DB!H34) -> -0.06923549194 | O106: =(분기재무제표DB!J34-분기재무제표DB!I34)/ABS(분기재무제표DB!I34) -> 0.1115496875 | P106: =(분기재무제표DB!K34-분기재무제표DB!J34)/ABS(분기재무제표DB!J34) -> -0.0158202326 | Q106: =(분기재무제표DB!L34-분기재무제표DB!K34)/ABS(분기재무제표DB!K34) -> -0.03326298523 | R106: =(분기재무제표DB!M34-분기재무제표DB!L34)/ABS(분기재무제표DB!L34) -> 0.07947997564 | S106: =(분기재무제표DB!N34-분기재무제표DB!M34)/ABS(분기재무제표DB!M34) -> -0.03510492661 | T106: =(분기재무제표DB!O34-분기재무제표DB!N34)/ABS(분기재무제표DB!N34) -> 0.0322444972 | U106: =(분기재무제표DB!P34-분기재무제표DB!O34)/ABS(분기재무제표DB!O34) -> 0.1800473264 | V106: =(분기재무제표DB!Q34-분기재무제표DB!P34)/ABS(분기재무제표DB!P34) -> 0.04320320441 | W106: =(분기재무제표DB!R34-분기재무제표DB!Q34)/ABS(분기재무제표DB!Q34) -> 0.1564828541 | X106: =(분기재무제표DB!S34-분기재무제표DB!R34)/ABS(분기재무제표DB!R34) -> -0.002737393379 | Y106: =(분기재무제표DB!T34-분기재무제표DB!S34)/ABS(분기재무제표DB!S34) -> 0.05202163501 | Z106: =(분기재무제표DB!U34-분기재무제표DB!T34)/ABS(분기재무제표DB!T34) -> -0.009919569473 | AA106: =(분기재무제표DB!V34-분기재무제표DB!U34)/ABS(분기재무제표DB!U34) -> 0.1704496323 | AB106: =(분기재무제표DB!W34-분기재무제표DB!V34)/ABS(분기재무제표DB!V34) -> 0.09275865274 | AC106: =(분기재무제표DB!X34-분기재무제표DB!W34)/ABS(분기재무제표DB!W34) -> 0.04532060981 | AD106: =(분기재무제표DB!Y34-분기재무제표DB!X34)/ABS(분기재무제표DB!X34) -> -0.04992549588 | AE106: =(분기재무제표DB!Z34-분기재무제표DB!Y34)/ABS(분기재무제표DB!Y34) -> -0.2328565582 | AF106: =(분기재무제표DB!AA34-분기재무제표DB!Z34)/ABS(분기재무제표DB!Z34) -> 0.5307236339 | AG106: =(분기재무제표DB!AB34-분기재무제표DB!AA34)/ABS(분기재무제표DB!AA34) -> -0.3149856759
B107: 65) | C107: -YoY 성장률. 역성장NO(↑) | D107: 0 | F107: 매출액YOY | G107: . | H107: . | I107: . | J107: . | K107: =(분기재무제표DB!F34-분기재무제표DB!B34)/ABS(분기재무제표DB!B34) -> 0.3126213527 | L107: =(분기재무제표DB!G34-분기재무제표DB!C34)/ABS(분기재무제표DB!C34) -> 0.4020426645 | M107: =(분기재무제표DB!H34-분기재무제표DB!D34)/ABS(분기재무제표DB!D34) -> 0.5167586263 | N107: =(분기재무제표DB!I34-분기재무제표DB!E34)/ABS(분기재무제표DB!E34) -> 0.276015749 | O107: =(분기재무제표DB!J34-분기재무제표DB!F34)/ABS(분기재무제표DB!F34) -> 0.2507367153 | P107: =(분기재무제표DB!K34-분기재무제표DB!G34)/ABS(분기재무제표DB!G34) -> 0.05882754679 | Q107: =(분기재무제표DB!L34-분기재무제표DB!H34)/ABS(분기재무제표DB!H34) -> -0.01564562629 | R107: =(분기재무제표DB!M34-분기재무제표DB!I34)/ABS(분기재무제표DB!I34) -> 0.1416323099 | S107: =(분기재무제표DB!N34-분기재무제표DB!J34)/ABS(분기재무제표DB!J34) -> -0.008991317408 | T107: =(분기재무제표DB!O34-분기재무제표DB!K34)/ABS(분기재무제표DB!K34) -> 0.0394069185 | U107: =(분기재무제표DB!P34-분기재무제표DB!L34)/ABS(분기재무제표DB!L34) -> 0.2687518285 | V107: =(분기재무제표DB!Q34-분기재무제표DB!M34)/ABS(분기재무제표DB!M34) -> 0.2261144282 | W107: =(분기재무제표DB!R34-분기재무제표DB!N34)/ABS(분기재무제표DB!N34) -> 0.4695694407 | X107: =(분기재무제표DB!S34-분기재무제표DB!O34)/ABS(분기재무제표DB!O34) -> 0.4197669787 | Y107: =(분기재무제표DB!T34-분기재무제표DB!P34)/ABS(분기재무제표DB!P34) -> 0.2657336235 | Z107: =(분기재무제표DB!U34-분기재무제표DB!Q34)/ABS(분기재무제표DB!Q34) -> 0.2012789891 | AA107: =(분기재무제표DB!V34-분기재무제표DB!R34)/ABS(분기재무제표DB!R34) -> 0.2157867678 | AB107: =(분기재무제표DB!W34-분기재무제표DB!S34)/ABS(분기재무제표DB!S34) -> 0.3322082885 | AC107: =(분기재무제표DB!X34-분기재무제표DB!T34)/ABS(분기재무제표DB!T34) -> 0.3237225682 | AD107: =(분기재무제표DB!Y34-분기재무제표DB!U34)/ABS(분기재무제표DB!U34) -> 0.2702352494 | AE107: =(분기재무제표DB!Z34-분기재무제표DB!V34)/ABS(분기재무제표DB!V34) -> -0.1674544429 | AF107: =(분기재무제표DB!AA34-분기재무제표DB!W34)/ABS(분기재무제표DB!W34) -> 0.1662201506 | AG107: =(분기재무제표DB!AB34-분기재무제표DB!X34)/ABS(분기재무제표DB!X34) -> -0.2357583878
B108: 66) | C108: -우상향(↑) | D108: 3 | F108: . | O108: =5-(COUNTIF(K107:O107,"<0")) -> 5 | P108: 5 | Q108: 4 | R108: 4 | S108: 3 | T108: 3 | U108: 3 | V108: 4 | W108: 4 | X108: 5 | Y108: 5 | Z108: 5 | AA108: 5 | AB108: 5 | AC108: 5 | AD108: 5 | AE108: 4 | AF108: 4 | AG108: 3
C109: 영업이익 우상향 | F109: .
C110: -QoQ 성장률 | F110: 영익QoQ | G110: . | H110: =(분기재무제표DB!C38-분기재무제표DB!B38)/ABS(분기재무제표DB!B38) -> 0.3888544339 | I110: =(분기재무제표DB!D38-분기재무제표DB!C38)/ABS(분기재무제표DB!C38) -> 0.5214117002 | J110: =(분기재무제표DB!E38-분기재무제표DB!D38)/ABS(분기재무제표DB!D38) -> 0.5772282129 | K110: =(분기재무제표DB!F38-분기재무제표DB!E38)/ABS(분기재무제표DB!E38) -> -0.4824605521 | L110: =(분기재무제표DB!G38-분기재무제표DB!F38)/ABS(분기재무제표DB!F38) -> 0.04600060834 | M110: =(분기재무제표DB!H38-분기재무제표DB!G38)/ABS(분기재무제표DB!G38) -> -0.451754436 | N110: =(분기재무제표DB!I38-분기재무제표DB!H38)/ABS(분기재무제표DB!H38) -> 0.2768922769 | O110: =(분기재무제표DB!J38-분기재무제표DB!I38)/ABS(분기재무제표DB!I38) -> 0.4143019438 | P110: =(분기재무제표DB!K38-분기재무제표DB!J38)/ABS(분기재무제표DB!J38) -> 0.2309425143 | Q110: =(분기재무제표DB!L38-분기재무제표DB!K38)/ABS(분기재무제표DB!K38) -> -0.5848322401 | R110: =(분기재무제표DB!M38-분기재무제표DB!L38)/ABS(분기재무제표DB!L38) -> 1.590757035 | S110: =(분기재무제표DB!N38-분기재무제표DB!M38)/ABS(분기재무제표DB!M38) -> -0.5396774872 | T110: =(분기재무제표DB!O38-분기재무제표DB!N38)/ABS(분기재무제표DB!N38) -> 0.5561964841 | U110: =(분기재무제표DB!P38-분기재무제표DB!O38)/ABS(분기재무제표DB!O38) -> 0.02955093385 | V110: =(분기재무제표DB!Q38-분기재무제표DB!P38)/ABS(분기재무제표DB!P38) -> -0.6308884081 | W110: =(분기재무제표DB!R38-분기재무제표DB!Q38)/ABS(분기재무제표DB!Q38) -> 6.560447636 | X110: =(분기재무제표DB!S38-분기재무제표DB!R38)/ABS(분기재무제표DB!R38) -> -0.1675124329 | Y110: =(분기재무제표DB!T38-분기재무제표DB!S38)/ABS(분기재무제표DB!S38) -> 0.4494643338 | Z110: =(분기재무제표DB!U38-분기재무제표DB!T38)/ABS(분기재무제표DB!T38) -> -0.5364195978 | AA110: =(분기재무제표DB!V38-분기재무제표DB!U38)/ABS(분기재무제표DB!U38) -> 2.626821827 | AB110: =(분기재무제표DB!W38-분기재무제표DB!V38)/ABS(분기재무제표DB!V38) -> -0.08759543728 | AC110: =(분기재무제표DB!X38-분기재무제표DB!W38)/ABS(분기재무제표DB!W38) -> 0.04942675803 | AD110: =(분기재무제표DB!Y38-분기재무제표DB!X38)/ABS(분기재무제표DB!X38) -> -0.3841043145 | AE110: =(분기재무제표DB!Z38-분기재무제표DB!Y38)/ABS(분기재무제표DB!Y38) -> 0.1645391129 | AF110: =(분기재무제표DB!AA38-분기재무제표DB!Z38)/ABS(분기재무제표DB!Z38) -> 0.4472146423 | AG110: =(분기재무제표DB!AB38-분기재무제표DB!AA38)/ABS(분기재무제표DB!AA38) -> -0.2903489137
B111: 67) | C111: -YoY 성장률. 역성장NO(↑) | D111: 0 | F111: 영익YOY | G111: . | H111: . | I111: . | J111: . | K111: =(분기재무제표DB!F38-분기재무제표DB!B38)/ABS(분기재무제표DB!B38) -> 0.7248108544 | L111: =(분기재무제표DB!G38-분기재무제표DB!C38)/ABS(분기재무제표DB!C38) -> 0.2990225318 | M111: =(분기재무제표DB!H38-분기재무제표DB!D38)/ABS(분기재무제표DB!D38) -> -0.5318930829 | N111: =(분기재무제표DB!I38-분기재무제표DB!E38)/ABS(분기재무제표DB!E38) -> -0.6210300435 | O111: =(분기재무제표DB!J38-분기재무제표DB!F38)/ABS(분기재무제표DB!F38) -> 0.03562723242 | P111: =(분기재무제표DB!K38-분기재무제표DB!G38)/ABS(분기재무제표DB!G38) -> 0.2187350363 | Q111: =(분기재무제표DB!L38-분기재무제표DB!H38)/ABS(분기재무제표DB!H38) -> -0.07709331702 | R111: =(분기재무제표DB!M38-분기재무제표DB!I38)/ABS(분기재무제표DB!I38) -> 0.8725361763 | S111: =(분기재무제표DB!N38-분기재무제표DB!J38)/ABS(분기재무제표DB!J38) -> -0.390532862 | T111: =(분기재무제표DB!O38-분기재무제표DB!K38)/ABS(분기재무제표DB!K38) -> -0.2294923554 | U111: =(분기재무제표DB!P38-분기재무제표DB!L38)/ABS(분기재무제표DB!L38) -> 0.91073812 | V111: =(분기재무제표DB!Q38-분기재무제표DB!M38)/ABS(분기재무제표DB!M38) -> -0.7277723925 | W111: =(분기재무제표DB!R38-분기재무제표DB!N38)/ABS(분기재무제표DB!N38) -> 3.471131684 | X111: =(분기재무제표DB!S38-분기재무제표DB!O38)/ABS(분기재무제표DB!O38) -> 1.391832635 | Y111: =(분기재무제표DB!T38-분기재무제표DB!P38)/ABS(분기재무제표DB!P38) -> 2.36736725 | Z111: =(분기재무제표DB!U38-분기재무제표DB!Q38)/ABS(분기재무제표DB!Q38) -> 3.22919653 | AA111: =(분기재무제표DB!V38-분기재무제표DB!R38)/ABS(분기재무제표DB!R38) -> 1.028787583 | AB111: =(분기재무제표DB!W38-분기재무제표DB!S38)/ABS(분기재무제표DB!S38) -> 1.223546778 | AC111: =(분기재무제표DB!X38-분기재무제표DB!T38)/ABS(분기재무제표DB!T38) -> 0.6098702344 | AD111: =(분기재무제표DB!Y38-분기재무제표DB!U38)/ABS(분기재무제표DB!U38) -> 1.138813735 | AE111: =(분기재무제표DB!Z38-분기재무제표DB!V38)/ABS(분기재무제표DB!V38) -> -0.3132465919 | AF111: =(분기재무제표DB!AA38-분기재무제표DB!W38)/ABS(분기재무제표DB!W38) -> 0.0892970382 | AG111: =(분기재무제표DB!AB38-분기재무제표DB!X38)/ABS(분기재무제표DB!X38) -> -0.2633875394
B112: 68) | C112: -우상향(↑) | D112: 3 | F112: . | O112: =5-(COUNTIF(K111:O111,"<0")) -> 3 | P112: 3 | Q112: 2 | R112: 3 | S112: 3 | T112: 2 | U112: 2 | V112: 2 | W112: 2 | X112: 3 | Y112: 4 | Z112: 4 | AA112: 5 | AB112: 5 | AC112: 5 | AD112: 5 | AE112: 4 | AF112: 4 | AG112: 3
C113: 당기순이익 우상향 | F113: .
C114: -QoQ 성장률 | F114: 당순QoQ | G114: . | H114: =(분기재무제표DB!C46-분기재무제표DB!B46)/ABS(분기재무제표DB!B46) -> -1.54841711 | I114: =(분기재무제표DB!D46-분기재무제표DB!C46)/ABS(분기재무제표DB!C46) -> 5.67669504 | J114: =(분기재무제표DB!E46-분기재무제표DB!D46)/ABS(분기재무제표DB!D46) -> -0.1757480918 | K114: =(분기재무제표DB!F46-분기재무제표DB!E46)/ABS(분기재무제표DB!E46) -> -0.3025956505 | L114: =(분기재무제표DB!G46-분기재무제표DB!F46)/ABS(분기재무제표DB!F46) -> 0.6612546808 | M114: =(분기재무제표DB!H46-분기재무제표DB!G46)/ABS(분기재무제표DB!G46) -> -0.6978133823 | N114: =(분기재무제표DB!I46-분기재무제표DB!H46)/ABS(분기재무제표DB!H46) -> -85.92201161 | O114: =(분기재무제표DB!J46-분기재무제표DB!I46)/ABS(분기재무제표DB!I46) -> 1.000503234 | P114: =(분기재무제표DB!K46-분기재무제표DB!J46)/ABS(분기재무제표DB!J46) -> 66.50262053 | Q114: =(분기재무제표DB!L46-분기재무제표DB!K46)/ABS(분기재무제표DB!K46) -> -1.993650494 | R114: =(분기재무제표DB!M46-분기재무제표DB!L46)/ABS(분기재무제표DB!L46) -> 2.329187705 | S114: =(분기재무제표DB!N46-분기재무제표DB!M46)/ABS(분기재무제표DB!M46) -> -0.8234565088 | T114: =(분기재무제표DB!O46-분기재무제표DB!N46)/ABS(분기재무제표DB!N46) -> -6.612597239 | U114: =(분기재무제표DB!P46-분기재무제표DB!O46)/ABS(분기재무제표DB!O46) -> 0.8313135697 | V114: =(분기재무제표DB!Q46-분기재무제표DB!P46)/ABS(분기재무제표DB!P46) -> -7.061710239 | W114: =(분기재무제표DB!R46-분기재무제표DB!Q46)/ABS(분기재무제표DB!Q46) -> 4.303496194 | X114: =(분기재무제표DB!S46-분기재무제표DB!R46)/ABS(분기재무제표DB!R46) -> -0.3063734999 | Y114: =(분기재무제표DB!T46-분기재무제표DB!S46)/ABS(분기재무제표DB!S46) -> 0.8903538623 | Z114: =(분기재무제표DB!U46-분기재무제표DB!T46)/ABS(분기재무제표DB!T46) -> -1.049870233 | AA114: =(분기재무제표DB!V46-분기재무제표DB!U46)/ABS(분기재무제표DB!U46) -> 44.45518056 | AB114: =(분기재무제표DB!W46-분기재무제표DB!V46)/ABS(분기재무제표DB!V46) -> -0.186329348 | AC114: =(분기재무제표DB!X46-분기재무제표DB!W46)/ABS(분기재무제표DB!W46) -> 0.1098438238 | AD114: =(분기재무제표DB!Y46-분기재무제표DB!X46)/ABS(분기재무제표DB!X46) -> 1.149750758 | AE114: =(분기재무제표DB!Z46-분기재무제표DB!Y46)/ABS(분기재무제표DB!Y46) -> -0.7651468073 | AF114: =(분기재무제표DB!AA46-분기재무제표DB!Z46)/ABS(분기재무제표DB!Z46) -> 0.4268512226 | AG114: =(분기재무제표DB!AB46-분기재무제표DB!AA46)/ABS(분기재무제표DB!AA46) -> 0.04149178792
B115: 69) | C115: -YoY 성장률. 역성장NO(↑) | D115: 0 | F115: 당순YOY | G115: . | H115: . | I115: . | J115: . | K115: =(분기재무제표DB!F46-분기재무제표DB!B46)/ABS(분기재무제표DB!B46) -> 0.4743298551 | L115: =(분기재무제표DB!G46-분기재무제표DB!C46)/ABS(분기재무제표DB!C46) -> 5.466011959 | M115: =(분기재무제표DB!H46-분기재무제표DB!D46)/ABS(분기재무제표DB!D46) -> -0.7114267582 | N115: =(분기재무제표DB!I46-분기재무제표DB!E46)/ABS(분기재무제표DB!E46) -> -30.73146916 | O115: =(분기재무제표DB!J46-분기재무제표DB!F46)/ABS(분기재무제표DB!F46) -> -0.978546325 | P115: =(분기재무제표DB!K46-분기재무제표DB!G46)/ABS(분기재무제표DB!G46) -> -0.1282617289 | Q115: =(분기재무제표DB!L46-분기재무제표DB!H46)/ABS(분기재무제표DB!H46) -> -3.866451103 | R115: =(분기재무제표DB!M46-분기재무제표DB!I46)/ABS(분기재무제표DB!I46) -> 1.0448653 | S115: =(분기재무제표DB!N46-분기재무제표DB!J46)/ABS(분기재무제표DB!J46) -> 14.73955001 | T115: =(분기재무제표DB!O46-분기재무제표DB!K46)/ABS(분기재무제표DB!K46) -> -2.308686304 | U115: =(분기재무제표DB!P46-분기재무제표DB!L46)/ABS(분기재무제표DB!L46) -> 0.7778317202 | V115: =(분기재무제표DB!Q46-분기재무제표DB!M46)/ABS(분기재무제표DB!M46) -> -2.347481841 | W115: =(분기재무제표DB!R46-분기재무제표DB!N46)/ABS(분기재무제표DB!N46) -> 24.21419001 | X115: =(분기재무제표DB!S46-분기재무제표DB!O46)/ABS(분기재무제표DB!O46) -> 4.116067237 | Y115: =(분기재무제표DB!T46-분기재무제표DB!P46)/ABS(분기재무제표DB!P46) -> 35.91964188 | Z115: =(분기재무제표DB!U46-분기재무제표DB!Q46)/ABS(분기재무제표DB!Q46) -> 0.7839849584 | AA115: =(분기재무제표DB!V46-분기재무제표DB!R46)/ABS(분기재무제표DB!R46) -> 1.841526699 | AB115: =(분기재무제표DB!W46-분기재무제표DB!S46)/ABS(분기재무제표DB!S46) -> 2.333302406 | AC115: =(분기재무제표DB!X46-분기재무제표DB!T46)/ABS(분기재무제표DB!T46) -> 0.9570119449 | AD115: =(분기재무제표DB!Y46-분기재무제표DB!U46)/ABS(분기재무제표DB!U46) -> 85.36070317 | AE115: =(분기재무제표DB!Z46-분기재무제표DB!V46)/ABS(분기재무제표DB!V46) -> -0.5440732215 | AF115: =(분기재무제표DB!AA46-분기재무제표DB!W46)/ABS(분기재무제표DB!W46) -> -0.2004877162 | AG115: =(분기재무제표DB!AB46-분기재무제표DB!X46)/ABS(분기재무제표DB!X46) -> -0.2497273399
B116: 70) | C116: -우상향(↑) | D116: 2 | F116: . | O116: =5-(COUNTIF(K115:O115,"<0")) -> 2 | P116: 1 | Q116: 0 | R116: 1 | S116: 2 | T116: 2 | U116: 3 | V116: 3 | W116: 3 | X116: 3 | Y116: 4 | Z116: 4 | AA116: 5 | AB116: 5 | AC116: 5 | AD116: 5 | AE116: 4 | AF116: 3 | AG116: 2
C117: EPS증가율 | F117: EPS | K117: =(분기재무제표DB!F94-분기재무제표DB!B94)/ABS(분기재무제표DB!B94) -> 0.05424868008 | L117: =(분기재무제표DB!G94-분기재무제표DB!C94)/ABS(분기재무제표DB!C94) -> 4.869701859 | M117: =(분기재무제표DB!H94-분기재무제표DB!D94)/ABS(분기재무제표DB!D94) -> 0.04452524295 | N117: =(분기재무제표DB!I94-분기재무제표DB!E94)/ABS(분기재무제표DB!E94) -> -11.33505263 | O117: =(분기재무제표DB!J94-분기재무제표DB!F94)/ABS(분기재무제표DB!F94) -> -0.9804511625 | P117: =(분기재무제표DB!K94-분기재무제표DB!G94)/ABS(분기재무제표DB!G94) -> -0.4673797583 | Q117: =(분기재무제표DB!L94-분기재무제표DB!H94)/ABS(분기재무제표DB!H94) -> -0.990655099 | R117: =(분기재무제표DB!M94-분기재무제표DB!I94)/ABS(분기재무제표DB!I94) -> 1.049237657 | S117: =(분기재무제표DB!N94-분기재무제표DB!J94)/ABS(분기재무제표DB!J94) -> 14.73955001 | T117: =(분기재무제표DB!O94-분기재무제표DB!K94)/ABS(분기재무제표DB!K94) -> -2.059816462 | U117: =(분기재무제표DB!P94-분기재무제표DB!L94)/ABS(분기재무제표DB!L94) -> -62.24976498 | V117: =(분기재무제표DB!Q94-분기재무제표DB!M94)/ABS(분기재무제표DB!M94) -> -3.292221076 | W117: =(분기재무제표DB!R94-분기재무제표DB!N94)/ABS(분기재무제표DB!N94) -> 23.89612643 | X117: =(분기재무제표DB!S94-분기재무제표DB!O94)/ABS(분기재무제표DB!O94) -> 10.08392012 | Y117: =(분기재무제표DB!T94-분기재무제표DB!P94)/ABS(분기재무제표DB!P94) -> 14.04503302 | Z117: =(분기재무제표DB!U94-분기재무제표DB!Q94)/ABS(분기재무제표DB!Q94) -> 6.312851824 | AA117: =(분기재무제표DB!V94-분기재무제표DB!R94)/ABS(분기재무제표DB!R94) -> 1.72140017 | AB117: =(분기재무제표DB!W94-분기재무제표DB!S94)/ABS(분기재무제표DB!S94) -> 1.93267389 | AC117: =(분기재무제표DB!X94-분기재무제표DB!T94)/ABS(분기재무제표DB!T94) -> 1.522799977 | AD117: =(분기재무제표DB!Y94-분기재무제표DB!U94)/ABS(분기재무제표DB!U94) -> 3.475853805 | AE117: =(분기재무제표DB!Z94-분기재무제표DB!V94)/ABS(분기재무제표DB!V94) -> -0.5468107095 | AF117: =(분기재무제표DB!AA94-분기재무제표DB!W94)/ABS(분기재무제표DB!W94) -> -0.393592777 | AG117: =(분기재무제표DB!AB94-분기재무제표DB!X94)/ABS(분기재무제표DB!X94) -> -0.3433259559
B118: 71) | C118: -우상향(↑) | D118: 2 | F118: . | G118: . | H118: . | I118: . | J118: . | K118: . | L118: . | M118: . | N118: . | O118: =5-(COUNTIF(K117:O117,"<0")) -> 3 | P118: 2 | Q118: 1 | R118: 1 | S118: 2 | T118: 2 | U118: 2 | V118: 2 | W118: 2 | X118: 2 | Y118: 3 | Z118: 4 | AA118: 5 | AB118: 5 | AC118: 5 | AD118: 5 | AE118: 4 | AF118: 3 | AG118: 2
C119: PEG(이익성장률) PER/EPS | F119: .
B120: 72) | C120: -1이하 저평가 추정 (↓) | D120: 0 | F120: PEG(1이하) | G120: . | H120: . | I120: . | J120: . | K120: =분기재무제표DB!F102 -> 14.31488754 | L120: =분기재무제표DB!G102 -> 0.2016812657 | M120: =분기재무제표DB!H102 -> 28.97723092 | N120: =분기재무제표DB!I102 -> 0.02323608166 | O120: =분기재무제표DB!J102 -> -173.8240481 | P120: =분기재무제표DB!K102 -> -16.54313565 | Q120: =분기재무제표DB!L102 -> -301.0510768 | R120: =분기재무제표DB!M102 -> 7.278091854 | S120: =분기재무제표DB!N102 -> 0.5851705841 | T120: =분기재무제표DB!O102 -> 2.100521503 | U120: =분기재무제표DB!P102 -> 0.08420205479 | V120: =분기재무제표DB!Q102 -> 0.8261563936 | W120: =분기재무제표DB!R102 -> 0.0163269532 | X120: =분기재무제표DB!S102 -> 0.1111753177 | Y120: =분기재무제표DB!T102 -> 0.05706032402 | Z120: =분기재무제표DB!U102 -> 0.1933821131 | AA120: =분기재무제표DB!V102 -> 0.2261849505 | AB120: =분기재무제표DB!W102 -> 0.2565748249 | AC120: =분기재무제표DB!X102 -> 0.5983911132 | AD120: =분기재무제표DB!Y102 -> 0.1727122239 | AE120: =분기재무제표DB!Z102 -> -2.589145219 | AF120: =분기재무제표DB!AA102 -> -2.729107158 | AG120: =분기재무제표DB!AB102 -> -3.489741492
C121: 매출 영익 성장률 비교 | F121: .
B122: 73) | C122: -영업이익성장률>매출액성장률 (↑) | D122: 2 | F122: . | G122: . | H122: . | I122: . | J122: . | K122: =K111/K107 -> 2.318494396 | L122: =L111/L107 -> 0.7437582082 | M122: -1.029287284 | N122: -2.249980466 | O122: 0.1420902096 | P122: 3.718241678 | Q122: 4.927467624 | R122: 6.160572942 | S122: 43.43444284 | T122: =T111/T107 -> -5.823656458 | U122: 3.388769948 | V122: -3.218602184 | W122: 7.392158395 | X122: 3.315726833 | Y122: 8.908798289 | Z122: 16.04338607 | AA122: 4.767611998 | AB122: 3.683071195 | AC122: 1.883928691 | AD122: 4.214156879 | AE122: 1.870637688 | AF122: 0.5372214976 | AG122: 1.117192656
C123: GP/A(매출총이익/자산총액) | F123: .
B124: 74) | C124: -GP/A(↑) | D124: 1 | F124: GPA(30이상) | G124: . | H124: . | I124: . | J124: . | K124: =(분기재무제표DB!F36*4)/((분기재무제표DB!F6+분기재무제표DB!B6)/2) -> 0.1368961547 | L124: =(분기재무제표DB!G36*4)/((분기재무제표DB!G6+분기재무제표DB!C6)/2) -> 0.1346104109 | M124: =(분기재무제표DB!H36*4)/((분기재무제표DB!H6+분기재무제표DB!D6)/2) -> 0.1286983343 | N124: =(분기재무제표DB!I36*4)/((분기재무제표DB!I6+분기재무제표DB!E6)/2) -> 0.1461223039 | O124: =(분기재무제표DB!J36*4)/((분기재무제표DB!J6+분기재무제표DB!F6)/2) -> 0.1554586578 | P124: =(분기재무제표DB!K36*4)/((분기재무제표DB!K6+분기재무제표DB!G6)/2) -> 0.1524456748 | Q124: =(분기재무제표DB!L36*4)/((분기재무제표DB!L6+분기재무제표DB!H6)/2) -> 0.1327511779 | R124: =(분기재무제표DB!M36*4)/((분기재무제표DB!M6+분기재무제표DB!I6)/2) -> 0.1575791823 | S124: =(분기재무제표DB!N36*4)/((분기재무제표DB!N6+분기재무제표DB!J6)/2) -> 0.1300354743 | T124: =(분기재무제표DB!O36*4)/((분기재무제표DB!O6+분기재무제표DB!K6)/2) -> 0.1404604258 | U124: =(분기재무제표DB!P36*4)/((분기재무제표DB!P6+분기재무제표DB!L6)/2) -> 0.1479124384 | V124: =(분기재무제표DB!Q36*4)/((분기재무제표DB!Q6+분기재무제표DB!M6)/2) -> 0.1288951669 | W124: =(분기재무제표DB!R36*4)/((분기재무제표DB!R6+분기재무제표DB!N6)/2) -> 0.1621519047 | X124: =(분기재무제표DB!S36*4)/((분기재무제표DB!S6+분기재무제표DB!O6)/2) -> 0.1529339421 | Y124: =(분기재무제표DB!T36*4)/((분기재무제표DB!T6+분기재무제표DB!P6)/2) -> 0.1612174703 | Z124: =(분기재무제표DB!U36*4)/((분기재무제표DB!U6+분기재무제표DB!Q6)/2) -> 0.1327488999 | AA124: =(분기재무제표DB!V36*4)/((분기재무제표DB!V6+분기재무제표DB!R6)/2) -> 0.2051129885 | AB124: =(분기재무제표DB!W36*4)/((분기재무제표DB!W6+분기재무제표DB!S6)/2) -> 0.194699843 | AC124: =(분기재무제표DB!X36*4)/((분기재무제표DB!X6+분기재무제표DB!T6)/2) -> 0.20290688 | AD124: =(분기재무제표DB!Y36*4)/((분기재무제표DB!Y6+분기재무제표DB!U6)/2) -> 0.1495093092 | AE124: =(분기재무제표DB!Z36*4)/((분기재무제표DB!Z6+분기재무제표DB!V6)/2) -> 0.1232161811 | AF124: =(분기재무제표DB!AA36*4)/((분기재무제표DB!AA6+분기재무제표DB!W6)/2) -> 0.1764195512 | AG124: =(분기재무제표DB!AB36*4)/((분기재무제표DB!AB6+분기재무제표DB!X6)/2) -> 0.1443631207
C125: PIR (당기이익-전기이익 / 시총) | F125: .
B126: 75) | C126: -POIR (영업이익)(↑) | D126: 1 | F126: 영익(5이상) | G126: . | H126: . | I126: . | J126: . | K126: =(분기재무제표DB!F38-분기재무제표DB!B38)*400/분기재무제표DB!F91 -> 2.368387382 | L126: =(분기재무제표DB!G38-분기재무제표DB!C38)*400/분기재무제표DB!G91 -> 0.8063831358 | M126: =(분기재무제표DB!H38-분기재무제표DB!D38)*400/분기재무제표DB!H91 -> -2.096310839 | N126: =(분기재무제표DB!I38-분기재무제표DB!E38)*400/분기재무제표DB!I91 -> -2.020879589 | O126: =(분기재무제표DB!J38-분기재무제표DB!F38)*400/분기재무제표DB!J91 -> 0.04264726718 | P126: =(분기재무제표DB!K38-분기재무제표DB!G38)*400/분기재무제표DB!K91 -> 0.1762504826 | Q126: =(분기재무제표DB!L38-분기재무제표DB!H38)*400/분기재무제표DB!L91 -> -0.06350591263 | R126: =(분기재무제표DB!M38-분기재무제표DB!I38)*400/분기재무제표DB!M91 -> 0.7537263668 | S126: =(분기재무제표DB!N38-분기재무제표DB!J38)*400/분기재무제표DB!N91 -> -0.6077807884 | T126: =(분기재무제표DB!O38-분기재무제표DB!K38)*400/분기재무제표DB!O91 -> -0.3800063861 | U126: =(분기재무제표DB!P38-분기재무제표DB!L38)*400/분기재무제표DB!P91 -> 0.6432007866 | V126: =(분기재무제표DB!Q38-분기재무제표DB!M38)*400/분기재무제표DB!Q91 -> -1.441915134 | W126: =(분기재무제표DB!R38-분기재무제표DB!N38)*400/분기재무제표DB!R91 -> 2.886687705 | X126: =(분기재무제표DB!S38-분기재무제표DB!O38)*400/분기재무제표DB!S91 -> 0.7402653008 | Y126: =(분기재무제표DB!T38-분기재무제표DB!P38)*400/분기재무제표DB!T91 -> 1.533148398 | Z126: =(분기재무제표DB!U38-분기재무제표DB!Q38)*400/분기재무제표DB!U91 -> 0.6906847247 | AA126: =(분기재무제표DB!V38-분기재무제표DB!R38)*400/분기재무제표DB!V91 -> 1.348985418 | AB126: =(분기재무제표DB!W38-분기재무제표DB!S38)*400/분기재무제표DB!W91 -> 1.156443372 | AC126: =(분기재무제표DB!X38-분기재무제표DB!T38)*400/분기재무제표DB!X91 -> 0.4553009041 | AD126: =(분기재무제표DB!Y38-분기재무제표DB!U38)*400/분기재무제표DB!Y91 -> 0.4652237756 | AE126: =(분기재무제표DB!Z38-분기재무제표DB!V38)*400/분기재무제표DB!Z91 -> -0.5026451523 | AF126: =(분기재무제표DB!AA38-분기재무제표DB!W38)*400/분기재무제표DB!AA91 -> 0.142007801 | AG126: =(분기재무제표DB!AB38-분기재무제표DB!X38)*400/분기재무제표DB!AB91 -> -0.3666278247
B127: 76) | C127: -PEIR (당기순이익)(↑) | D127: 1 | F127: 당순(5이상) | G127: . | H127: . | I127: . | J127: . | K127: =(분기재무제표DB!F46-분기재무제표DB!B46)*400/분기재무제표DB!F91 -> 0.4142940388 | L127: =(분기재무제표DB!G46-분기재무제표DB!C46)*400/분기재무제표DB!G91 -> 1.555831427 | M127: =(분기재무제표DB!H46-분기재무제표DB!D46)*400/분기재무제표DB!H91 -> -0.9097211094 | N127: =(분기재무제표DB!I46-분기재무제표DB!E46)*400/분기재무제표DB!I91 -> -16.9559963 | O127: =(분기재무제표DB!J46-분기재무제표DB!F46)*400/분기재무제표DB!J91 -> -0.2676355912 | P127: =(분기재무제표DB!K46-분기재무제표DB!G46)*400/분기재무제표DB!K91 -> -0.03750305866 | Q127: =(분기재무제표DB!L46-분기재무제표DB!H46)*400/분기재무제표DB!L91 -> -0.637041449 | R127: =(분기재무제표DB!M46-분기재무제표DB!I46)*400/분기재무제표DB!M91 -> 12.00644191 | S127: =(분기재무제표DB!N46-분기재무제표DB!J46)*400/분기재무제표DB!N91 -> 0.1085738409 | T127: =(분기재무제표DB!O46-분기재무제표DB!K46)*400/분기재무제표DB!O91 -> -0.9922521578 | U127: =(분기재무제표DB!P46-분기재무제표DB!L46)*400/분기재무제표DB!P91 -> 0.3412582722 | V127: =(분기재무제표DB!Q46-분기재무제표DB!M46)*400/분기재무제표DB!Q91 -> -1.482349052 | W127: =(분기재무제표DB!R46-분기재무제표DB!N46)*400/분기재무제표DB!R91 -> 2.461457091 | X127: =(분기재무제표DB!S46-분기재무제표DB!O46)*400/분기재무제표DB!S91 -> 0.9651079584 | Y127: =(분기재무제표DB!T46-분기재무제표DB!P46)*400/분기재무제표DB!T91 -> 1.680257824 | Z127: =(분기재무제표DB!U46-분기재무제표DB!Q46)*400/분기재무제표DB!U91 -> 0.2645379444 | AA127: =(분기재무제표DB!V46-분기재무제표DB!R46)*400/분기재무제표DB!V91 -> 1.664488243 | AB127: =(분기재무제표DB!W46-분기재무제표DB!S46)*400/분기재무제표DB!W91 -> 1.266612923 | AC127: =(분기재무제표DB!X46-분기재무제표DB!T46)*400/분기재무제표DB!X91 -> 0.5351593298 | AD127: =(분기재무제표DB!Y46-분기재무제표DB!U46)*400/분기재무제표DB!Y91 -> 2.809882663 | AE127: =(분기재무제표DB!Z46-분기재무제표DB!V46)*400/분기재무제표DB!Z91 -> -0.8428859773 | AF127: =(분기재무제표DB!AA46-분기재무제표DB!W46)*400/분기재무제표DB!AA91 -> -0.2745114439 | AG127: =(분기재무제표DB!AB46-분기재무제표DB!X46)*400/분기재무제표DB!AB91 -> -0.3165217524
B128: 77) | C128: -PCIR (현금흐름)(↑) | D128: 2 | F128: 현금(15이상) | G128: . | H128: . | I128: . | J128: . | K128: =(분기재무제표DB!F72-분기재무제표DB!B72)*400/분기재무제표DB!F91 -> 3.187779916 | L128: =(분기재무제표DB!G72-분기재무제표DB!C72)*400/분기재무제표DB!G91 -> -8.399579123 | M128: =(분기재무제표DB!H72-분기재무제표DB!D72)*400/분기재무제표DB!H91 -> -0.6394300183 | N128: =(분기재무제표DB!I72-분기재무제표DB!E72)*400/분기재무제표DB!I91 -> -2.435178894 | O128: =(분기재무제표DB!J72-분기재무제표DB!F72)*400/분기재무제표DB!J91 -> -0.1207816349 | P128: =(분기재무제표DB!K72-분기재무제표DB!G72)*400/분기재무제표DB!K91 -> 0.1798697445 | Q128: =(분기재무제표DB!L72-분기재무제표DB!H72)*400/분기재무제표DB!L91 -> 1.260529262 | R128: =(분기재무제표DB!M72-분기재무제표DB!I72)*400/분기재무제표DB!M91 -> 1.012157453 | S128: =(분기재무제표DB!N72-분기재무제표DB!J72)*400/분기재무제표DB!N91 -> -7.3349922 | T128: =(분기재무제표DB!O72-분기재무제표DB!K72)*400/분기재무제표DB!O91 -> -0.8970289911 | U128: =(분기재무제표DB!P72-분기재무제표DB!L72)*400/분기재무제표DB!P91 -> -7.110037768 | V128: =(분기재무제표DB!Q72-분기재무제표DB!M72)*400/분기재무제표DB!Q91 -> 0.9982967753 | W128: =(분기재무제표DB!R72-분기재무제표DB!N72)*400/분기재무제표DB!R91 -> 12.14855388 | X128: =(분기재무제표DB!S72-분기재무제표DB!O72)*400/분기재무제표DB!S91 -> -2.080445506 | Y128: =(분기재무제표DB!T72-분기재무제표DB!P72)*400/분기재무제표DB!T91 -> 7.807341852 | Z128: =(분기재무제표DB!U72-분기재무제표DB!Q72)*400/분기재무제표DB!U91 -> 0.6265503999 | AA128: =(분기재무제표DB!V72-분기재무제표DB!R72)*400/분기재무제표DB!V91 -> -3.716661963 | AB128: =(분기재무제표DB!W72-분기재무제표DB!S72)*400/분기재무제표DB!W91 -> 3.003693464 | AC128: =(분기재무제표DB!X72-분기재무제표DB!T72)*400/분기재무제표DB!X91 -> -0.003681881667 | AD128: =(분기재무제표DB!Y72-분기재무제표DB!U72)*400/분기재무제표DB!Y91 -> -0.603936155 | AE128: =(분기재무제표DB!Z72-분기재무제표DB!V72)*400/분기재무제표DB!Z91 -> 3.896852725 | AF128: =(분기재무제표DB!AA72-분기재무제표DB!W72)*400/분기재무제표DB!AA91 -> -0.08034490538 | AG128: =(분기재무제표DB!AB72-분기재무제표DB!X72)*400/분기재무제표DB!AB91 -> 0.6350748172
B129: 78) | C129: -PGIR (매출총이익)(↑) | D129: 1 | F129: 매출총이익(15이상) | G129: . | H129: . | I129: . | J129: . | K129: =(분기재무제표DB!F36-분기재무제표DB!B36)*400/분기재무제표DB!F91 -> 4.329924873 | L129: =(분기재무제표DB!G36-분기재무제표DB!C36)*400/분기재무제표DB!G91 -> -0.4469969954 | M129: =(분기재무제표DB!H36-분기재무제표DB!D36)*400/분기재무제표DB!H91 -> -0.55160798 | N129: =(분기재무제표DB!I36-분기재무제표DB!E36)*400/분기재무제표DB!I91 -> 0.1701109629 | O129: =(분기재무제표DB!J36-분기재무제표DB!F36)*400/분기재무제표DB!J91 -> 0.8609839054 | P129: =(분기재무제표DB!K36-분기재무제표DB!G36)*400/분기재무제표DB!K91 -> 0.5930606757 | Q129: =(분기재무제표DB!L36-분기재무제표DB!H36)*400/분기재무제표DB!L91 -> 0.7247076902 | R129: =(분기재무제표DB!M36-분기재무제표DB!I36)*400/분기재무제표DB!M91 -> 1.364431289 | S129: =(분기재무제표DB!N36-분기재무제표DB!J36)*400/분기재무제표DB!N91 -> -0.3707699318 | T129: =(분기재무제표DB!O36-분기재무제표DB!K36)*400/분기재무제표DB!O91 -> 0.2119366071 | U129: =(분기재무제표DB!P36-분기재무제표DB!L36)*400/분기재무제표DB!P91 -> 1.925581133 | V129: =(분기재무제표DB!Q36-분기재무제표DB!M36)*400/분기재무제표DB!Q91 -> -0.2885361288 | W129: =(분기재무제표DB!R36-분기재무제표DB!N36)*400/분기재무제표DB!R91 -> 3.598078868 | X129: =(분기재무제표DB!S36-분기재무제표DB!O36)*400/분기재무제표DB!S91 -> 1.011742146 | Y129: =(분기재무제표DB!T36-분기재무제표DB!P36)*400/분기재무제표DB!T91 -> 1.16192432 | Z129: =(분기재무제표DB!U36-분기재무제표DB!Q36)*400/분기재무제표DB!U91 -> 0.4623790412 | AA129: =(분기재무제표DB!V36-분기재무제표DB!R36)*400/분기재무제표DB!V91 -> 1.568780155 | AB129: =(분기재무제표DB!W36-분기재무제표DB!S36)*400/분기재무제표DB!W91 -> 1.461507087 | AC129: =(분기재무제표DB!X36-분기재무제표DB!T36)*400/분기재무제표DB!X91 -> 0.8300337021 | AD129: =(분기재무제표DB!Y36-분기재무제표DB!U36)*400/분기재무제표DB!Y91 -> 0.8258285704 | AE129: =(분기재무제표DB!Z36-분기재무제표DB!V36)*400/분기재무제표DB!Z91 -> -0.8042865255 | AF129: =(분기재무제표DB!AA36-분기재무제표DB!W36)*400/분기재무제표DB!AA91 -> 0.4061050104 | AG129: =(분기재무제표DB!AB36-분기재무제표DB!X36)*400/분기재무제표DB!AB91 -> -0.469881633
C130: IP/A (당기이익-전기이익 / 자산총계) | F130: .
B131: 79) | C131: -OIPA (영업이익)(↑) | D131: 1 | F131: 영익(5이상) | G131: . | H131: . | I131: . | J131: . | K131: =(분기재무제표DB!F38-분기재무제표DB!B38)*400/((분기재무제표DB!F6+분기재무제표DB!B6)/2) -> 1.086690322 | L131: =(분기재무제표DB!G38-분기재무제표DB!C38)*400/((분기재무제표DB!G6+분기재무제표DB!C6)/2) -> 0.607224612 | M131: =(분기재무제표DB!H38-분기재무제표DB!D38)*400/((분기재무제표DB!H6+분기재무제표DB!D6)/2) -> -1.638497907 | N131: =(분기재무제표DB!I38-분기재무제표DB!E38)*400/((분기재무제표DB!I6+분기재무제표DB!E6)/2) -> -3.099957213 | O131: =(분기재무제표DB!J38-분기재무제표DB!F38)*400/((분기재무제표DB!J6+분기재무제표DB!F6)/2) -> 0.09210866038 | P131: =(분기재무제표DB!K38-분기재무제표DB!G38)*400/((분기재무제표DB!K6+분기재무제표DB!G6)/2) -> 0.5710862692 | Q131: =(분기재무제표DB!L38-분기재무제표DB!H38)*400/((분기재무제표DB!L6+분기재무제표DB!H6)/2) -> -0.104380596 | R131: =(분기재무제표DB!M38-분기재무제표DB!I38)*400/((분기재무제표DB!M6+분기재무제표DB!I6)/2) -> 1.477793405 | S131: =(분기재무제표DB!N38-분기재무제표DB!J38)*400/((분기재무제표DB!N6+분기재무제표DB!J6)/2) -> -0.9120574912 | T131: =(분기재무제표DB!O38-분기재무제표DB!K38)*400/((분기재무제표DB!O6+분기재무제표DB!K6)/2) -> -0.6553143895 | U131: =(분기재무제표DB!P38-분기재무제표DB!L38)*400/((분기재무제표DB!P6+분기재무제표DB!L6)/2) -> 1.009039986 | V131: =(분기재무제표DB!Q38-분기재무제표DB!M38)*400/((분기재무제표DB!Q6+분기재무제표DB!M6)/2) -> -1.944972067 | W131: =(분기재무제표DB!R38-분기재무제표DB!N38)*400/((분기재무제표DB!R6+분기재무제표DB!N6)/2) -> 4.18092099 | X131: =(분기재무제표DB!S38-분기재무제표DB!O38)*400/((분기재무제표DB!S6+분기재무제표DB!O6)/2) -> 2.568800521 | Y131: =(분기재무제표DB!T38-분기재무제표DB!P38)*400/((분기재무제표DB!T6+분기재무제표DB!P6)/2) -> 4.346381912 | Z131: =(분기재무제표DB!U38-분기재무제표DB!Q38)*400/((분기재무제표DB!U6+분기재무제표DB!Q6)/2) -> 2.156446412 | AA131: =(분기재무제표DB!V38-분기재무제표DB!R38)*400/((분기재무제표DB!V6+분기재무제표DB!R6)/2) -> 5.015438727 | AB131: =(분기재무제표DB!W38-분기재무제표DB!S38)*400/((분기재무제표DB!W6+분기재무제표DB!S6)/2) -> 4.754288802 | AC131: =(분기재무제표DB!X38-분기재무제표DB!T38)*400/((분기재무제표DB!X6+분기재무제표DB!T6)/2) -> 3.326948209 | AD131: =(분기재무제표DB!Y38-분기재무제표DB!U38)*400/((분기재무제표DB!Y6+분기재무제표DB!U6)/2) -> 2.532975282 | AE131: =(분기재무제표DB!Z38-분기재무제표DB!V38)*400/((분기재무제표DB!Z6+분기재무제표DB!V6)/2) -> -2.45434208 | AF131: =(분기재무제표DB!AA38-분기재무제표DB!W38)*400/((분기재무제표DB!AA6+분기재무제표DB!W6)/2) -> 0.6279270253 | AG131: =(분기재무제표DB!AB38-분기재무제표DB!X38)*400/((분기재무제표DB!AB6+분기재무제표DB!X6)/2) -> -1.927298636
B132: 80) | C132: -EIPA (당기순이익)(↑) | D132: 1 | F132: 당순(5이상) | G132: . | H132: . | I132: . | J132: . | K132: =(분기재무제표DB!F46-분기재무제표DB!B46)*400/((분기재무제표DB!F6+분기재무제표DB!B6)/2) -> 0.1900910829 | L132: =(분기재무제표DB!G46-분기재무제표DB!C46)*400/((분기재무제표DB!G6+분기재무제표DB!C6)/2) -> 1.171576007 | M132: =(분기재무제표DB!H46-분기재무제표DB!D46)*400/((분기재무제표DB!H6+분기재무제표DB!D6)/2) -> -0.7110472868 | N132: =(분기재무제표DB!I46-분기재무제표DB!E46)*400/((분기재무제표DB!I6+분기재무제표DB!E6)/2) -> -26.00989357 | O132: =(분기재무제표DB!J46-분기재무제표DB!F46)*400/((분기재무제표DB!J6+분기재무제표DB!F6)/2) -> -0.5780336563 | P132: =(분기재무제표DB!K46-분기재무제표DB!G46)*400/((분기재무제표DB!K6+분기재무제표DB!G6)/2) -> -0.1215172948 | Q132: =(분기재무제표DB!L46-분기재무제표DB!H46)*400/((분기재무제표DB!L6+분기재무제표DB!H6)/2) -> -1.047064177 | R132: =(분기재무제표DB!M46-분기재무제표DB!I46)*400/((분기재무제표DB!M6+분기재무제표DB!I6)/2) -> 23.54042722 | S132: =(분기재무제표DB!N46-분기재무제표DB!J46)*400/((분기재무제표DB!N6+분기재무제표DB!J6)/2) -> 0.1629297714 | T132: =(분기재무제표DB!O46-분기재무제표DB!K46)*400/((분기재무제표DB!O6+분기재무제표DB!K6)/2) -> -1.711121552 | U132: =(분기재무제표DB!P46-분기재무제표DB!L46)*400/((분기재무제표DB!P6+분기재무제표DB!L6)/2) -> 0.5353588635 | V132: =(분기재무제표DB!Q46-분기재무제표DB!M46)*400/((분기재무제표DB!Q6+분기재무제표DB!M6)/2) -> -1.999512614 | W132: =(분기재무제표DB!R46-분기재무제표DB!N46)*400/((분기재무제표DB!R6+분기재무제표DB!N6)/2) -> 3.565040167 | X132: =(분기재무제표DB!S46-분기재무제표DB!O46)*400/((분기재무제표DB!S6+분기재무제표DB!O6)/2) -> 3.349028819 | Y132: =(분기재무제표DB!T46-분기재무제표DB!P46)*400/((분기재무제표DB!T6+분기재무제표DB!P6)/2) -> 4.763428136 | Z132: =(분기재무제표DB!U46-분기재무제표DB!Q46)*400/((분기재무제표DB!U6+분기재무제표DB!Q6)/2) -> 0.8259367559 | AA132: =(분기재무제표DB!V46-분기재무제표DB!R46)*400/((분기재무제표DB!V6+분기재무제표DB!R6)/2) -> 6.188457403 | AB132: =(분기재무제표DB!W46-분기재무제표DB!S46)*400/((분기재무제표DB!W6+분기재무제표DB!S6)/2) -> 5.207210122 | AC132: =(분기재무제표DB!X46-분기재무제표DB!T46)*400/((분기재무제표DB!X6+분기재무제표DB!T6)/2) -> 3.91048504 | AD132: =(분기재무제표DB!Y46-분기재무제표DB!U46)*400/((분기재무제표DB!Y6+분기재무제표DB!U6)/2) -> 15.29879534 | AE132: =(분기재무제표DB!Z46-분기재무제표DB!V46)*400/((분기재무제표DB!Z6+분기재무제표DB!V6)/2) -> -4.115687804 | AF132: =(분기재무제표DB!AA46-분기재무제표DB!W46)*400/((분기재무제표DB!AA6+분기재무제표DB!W6)/2) -> -1.213828769 | AG132: =(분기재무제표DB!AB46-분기재무제표DB!X46)*400/((분기재무제표DB!AB6+분기재무제표DB!X6)/2) -> -1.663899739
B133: 81) | C133: -CIPA (현금흐름)(↑) | D133: 2 | F133: 현금(12이상) | G133: . | H133: . | I133: . | J133: . | K133: =(분기재무제표DB!F72-분기재무제표DB!B72)*400/((분기재무제표DB!F6+분기재무제표DB!B6)/2) -> 1.462653284 | L133: =(분기재무제표DB!G72-분기재무제표DB!C72)*400/((분기재무제표DB!G6+분기재무제표DB!C6)/2) -> -6.325071729 | M133: =(분기재무제표DB!H72-분기재무제표DB!D72)*400/((분기재무제표DB!H6+분기재무제표DB!D6)/2) -> -0.4997850164 | N133: =(분기재무제표DB!I72-분기재무제표DB!E72)*400/((분기재무제표DB!I6+분기재무제표DB!E6)/2) -> -3.735477569 | O133: =(분기재무제표DB!J72-분기재무제표DB!F72)*400/((분기재무제표DB!J6+분기재무제표DB!F6)/2) -> -0.2608616055 | P133: =(분기재무제표DB!K72-분기재무제표DB!G72)*400/((분기재무제표DB!K6+분기재무제표DB!G6)/2) -> 0.5828133904 | Q133: =(분기재무제표DB!L72-분기재무제표DB!H72)*400/((분기재무제표DB!L6+분기재무제표DB!H6)/2) -> 2.071851113 | R133: =(분기재무제표DB!M72-분기재무제표DB!I72)*400/((분기재무제표DB!M6+분기재무제표DB!I6)/2) -> 1.984486248 | S133: =(분기재무제표DB!N72-분기재무제표DB!J72)*400/((분기재무제표DB!N6+분기재무제표DB!J6)/2) -> -11.00715046 | T133: =(분기재무제표DB!O72-분기재무제표DB!K72)*400/((분기재무제표DB!O6+분기재무제표DB!K6)/2) -> -1.54691086 | U133: =(분기재무제표DB!P72-분기재무제표DB!L72)*400/((분기재무제표DB!P6+분기재무제표DB!L6)/2) -> -11.15407903 | V133: =(분기재무제표DB!Q72-분기재무제표DB!M72)*400/((분기재무제표DB!Q6+분기재무제표DB!M6)/2) -> 1.346583649 | W133: =(분기재무제표DB!R72-분기재무제표DB!N72)*400/((분기재무제표DB!R6+분기재무제표DB!N6)/2) -> 17.59530267 | X133: =(분기재무제표DB!S72-분기재무제표DB!O72)*400/((분기재무제표DB!S6+분기재무제표DB!O6)/2) -> -7.219370534 | Y133: =(분기재무제표DB!T72-분기재무제표DB!P72)*400/((분기재무제표DB!T6+분기재무제표DB!P6)/2) -> 22.13333651 | Z133: =(분기재무제표DB!U72-분기재무제표DB!Q72)*400/((분기재무제표DB!U6+분기재무제표DB!Q6)/2) -> 1.956207099 | AA133: =(분기재무제표DB!V72-분기재무제표DB!R72)*400/((분기재무제표DB!V6+분기재무제표DB!R6)/2) -> -13.81830381 | AB133: =(분기재무제표DB!W72-분기재무제표DB!S72)*400/((분기재무제표DB!W6+분기재무제표DB!S6)/2) -> 12.34857369 | AC133: =(분기재무제표DB!X72-분기재무제표DB!T72)*400/((분기재무제표DB!X6+분기재무제표DB!T6)/2) -> -0.02690403096 | AD133: =(분기재무제표DB!Y72-분기재무제표DB!U72)*400/((분기재무제표DB!Y6+분기재무제표DB!U6)/2) -> -3.288214044 | AE133: =(분기재무제표DB!Z72-분기재무제표DB!V72)*400/((분기재무제표DB!Z6+분기재무제표DB!V6)/2) -> 19.02775662 | AF133: =(분기재무제표DB!AA72-분기재무제표DB!W72)*400/((분기재무제표DB!AA6+분기재무제표DB!W6)/2) -> -0.355267366 | AG133: =(분기재무제표DB!AB72-분기재무제표DB!X72)*400/((분기재무제표DB!AB6+분기재무제표DB!X6)/2) -> 3.338477733
B134: 82) | C134: -GIPA (매출총이익)(↑) | D134: 1 | F134: 매출총이익(12이상) | G134: . | H134: . | I134: . | J134: . | K134: =(분기재무제표DB!F36-분기재무제표DB!B36)*400/((분기재무제표DB!F6+분기재무제표DB!B6)/2) -> 1.986705168 | L134: =(분기재무제표DB!G36-분기재무제표DB!C36)*400/((분기재무제표DB!G6+분기재무제표DB!C6)/2) -> -0.3365987768 | M134: =(분기재무제표DB!H36-분기재무제표DB!D36)*400/((분기재무제표DB!H6+분기재무제표DB!D6)/2) -> -0.4311424166 | N134: =(분기재무제표DB!I36-분기재무제표DB!E36)*400/((분기재무제표DB!I6+분기재무제표DB!E6)/2) -> 0.2609441499 | O134: =(분기재무제표DB!J36-분기재무제표DB!F36)*400/((분기재무제표DB!J6+분기재무제표DB!F6)/2) -> 1.859534722 | P134: =(분기재무제표DB!K36-분기재무제표DB!G36)*400/((분기재무제표DB!K6+분기재무제표DB!G6)/2) -> 1.921633369 | Q134: =(분기재무제표DB!L36-분기재무제표DB!H36)*400/((분기재무제표DB!L6+분기재무제표DB!H6)/2) -> 1.191155556 | R134: =(분기재무제표DB!M36-분기재무제표DB!I36)*400/((분기재무제표DB!M6+분기재무제표DB!I6)/2) -> 2.675171853 | S134: =(분기재무제표DB!N36-분기재무제표DB!J36)*400/((분기재무제표DB!N6+분기재무제표DB!J6)/2) -> -0.556390561 | T134: =(분기재무제표DB!O36-분기재무제표DB!K36)*400/((분기재무제표DB!O6+분기재무제표DB!K6)/2) -> 0.365480985 | U134: =(분기재무제표DB!P36-분기재무제표DB!L36)*400/((분기재무제표DB!P6+분기재무제표DB!L6)/2) -> 3.020811541 | V134: =(분기재무제표DB!Q36-분기재무제표DB!M36)*400/((분기재무제표DB!Q6+분기재무제표DB!M6)/2) -> -0.3892009297 | W134: =(분기재무제표DB!R36-분기재무제표DB!N36)*400/((분기재무제표DB!R6+분기재무제표DB!N6)/2) -> 5.211261141 | X134: =(분기재무제표DB!S36-분기재무제표DB!O36)*400/((분기재무제표DB!S6+분기재무제표DB!O6)/2) -> 3.510854485 | Y134: =(분기재무제표DB!T36-분기재무제표DB!P36)*400/((분기재무제표DB!T6+분기재무제표DB!P6)/2) -> 3.293984361 | Z134: =(분기재무제표DB!U36-분기재무제표DB!Q36)*400/((분기재무제표DB!U6+분기재무제표DB!Q6)/2) -> 1.443633526 | AA134: =(분기재무제표DB!V36-분기재무제표DB!R36)*400/((분기재무제표DB!V6+분기재무제표DB!R6)/2) -> 5.832621048 | AB134: =(분기재무제표DB!W36-분기재무제표DB!S36)*400/((분기재무제표DB!W6+분기재무제표DB!S6)/2) -> 6.008445326 | AC134: =(분기재무제표DB!X36-분기재무제표DB!T36)*400/((분기재무제표DB!X6+분기재무제표DB!T6)/2) -> 6.065173853 | AD134: =(분기재무제표DB!Y36-분기재무제표DB!U36)*400/((분기재무제표DB!Y6+분기재무제표DB!U6)/2) -> 4.496338033 | AE134: =(분기재무제표DB!Z36-분기재무제표DB!V36)*400/((분기재무제표DB!Z6+분기재무제표DB!V6)/2) -> -3.927212379 | AF134: =(분기재무제표DB!AA36-분기재무제표DB!W36)*400/((분기재무제표DB!AA6+분기재무제표DB!W6)/2) -> 1.795706358 | AG134: =(분기재무제표DB!AB36-분기재무제표DB!X36)*400/((분기재무제표DB!AB6+분기재무제표DB!X6)/2) -> -2.470085927
A135: 보너스 | B135: 83) | C135: 일인당 영업이익(백만원)(↑) | D135: 1 | F135: . | G135: =분기재무제표DB!B106/1000000 -> 12.7169321 | H135: =분기재무제표DB!C106/1000000 -> 16.18875572 | I135: =분기재무제표DB!D106/1000000 -> 20.3388242 | J135: =분기재무제표DB!E106/1000000 -> 23.0576726 | K135: =분기재무제표DB!F106/1000000 -> 19.74087227 | L135: =분기재무제표DB!G106/1000000 -> 18.93273594 | M135: =분기재무제표DB!H106/1000000 -> 16.32964415 | N135: =분기재무제표DB!I106/1000000 -> 16.09439794 | O135: =분기재무제표DB!J106/1000000 -> 18.8715553 | P135: =분기재무제표DB!K106/1000000 -> 20.22109417 | Q135: =분기재무제표DB!L106/1000000 -> 15.71712725 | R135: =분기재무제표DB!M106/1000000 -> 17.00301692 | S135: =분기재무제표DB!N106/1000000 -> 9.463335848 | T135: =분기재무제표DB!O106/1000000 -> 11.89432481 | U135: =분기재무제표DB!P106/1000000 -> 13.22901956 | V135: =분기재무제표DB!Q106/1000000 -> 11.00498167 | W135: =분기재무제표DB!R106/1000000 -> 39.95179887 | X135: =분기재무제표DB!S106/1000000 -> 36.7520097 | Y135: =분기재무제표DB!T106/1000000 -> 42.505276 | Z135: =분기재무제표DB!U106/1000000 -> 33.78814106 | AA135: =분기재무제표DB!V106/1000000 -> 74.2499346 | AB135: =분기재무제표DB!W106/1000000 -> 65.94386501 | AC135: =분기재무제표DB!X106/1000000 -> 62.17972077 | AD135: =분기재무제표DB!Y106/1000000 -> 60.67614679 | AE135: =분기재무제표DB!Z106/1000000 -> 48.68168085 | AF135: =분기재무제표DB!AA106/1000000 -> 59.56726109 | AG135: =분기재무제표DB!AB106/1000000 -> 54.84828059
B136: 84) | C136: 임원급여/직원급여(↓) | D136: 4 | F136: . | G136: =분기재무제표DB!B105 -> 3.316377171 | H136: =분기재무제표DB!C105 -> 2.688503112 | I136: =분기재무제표DB!D105 -> 2.368093062 | J136: =분기재무제표DB!E105 -> 2.712213849 | K136: =분기재무제표DB!F105 -> 4.667318982 | L136: =분기재무제표DB!G105 -> 4.854197349 | M136: =분기재무제표DB!H105 -> 5.666666667 | N136: =분기재무제표DB!I105 -> 5.023325359 | O136: =분기재무제표DB!J105 -> 3.498905908 | P136: =분기재무제표DB!K105 -> 3.973466725 | Q136: =분기재무제표DB!L105 -> 4.190870225 | R136: =분기재무제표DB!M105 -> 4.532843737 | S136: =분기재무제표DB!N105 -> 3.717013297 | T136: =분기재무제표DB!O105 -> 3.855661041 | U136: =분기재무제표DB!P105 -> 4.694603904 | V136: =분기재무제표DB!Q105 -> 4.605279312 | W136: =분기재무제표DB!R105 -> 3.907177861 | X136: =분기재무제표DB!S105 -> 4.42687747 | Y136: =분기재무제표DB!T105 -> 4.134861907 | Z136: =분기재무제표DB!U105 -> 5.03696319 | AA136: =분기재무제표DB!V105 -> 4.411807758 | AB136: =분기재무제표DB!W105 -> 4.701502286 | AC136: =분기재무제표DB!X105 -> 4.763558396 | AD136: =분기재무제표DB!Y105 -> 4.471162997 | AE136: =분기재무제표DB!Z105 -> 4.578885168 | AF136: =분기재무제표DB!AA105 -> 4.571794586 | AG136: =분기재무제표DB!AB105 -> 4.688622297
B137: 85) | C137: 배당성향 (↑) | D137: 5 | F137: . | G137: =분기재무제표DB!B81 -> - | H137: =분기재무제표DB!C81 -> - | I137: =분기재무제표DB!D81 -> - | J137: =분기재무제표DB!E81 -> - | K137: =분기재무제표DB!F81 -> - | L137: =분기재무제표DB!G81 -> - | M137: =분기재무제표DB!H81 -> - | N137: =분기재무제표DB!I81 -> - | O137: =분기재무제표DB!J81 -> - | P137: =분기재무제표DB!K81 -> - | Q137: =분기재무제표DB!L81 -> - | R137: =분기재무제표DB!M81 -> - | S137: =분기재무제표DB!N81 -> - | T137: =분기재무제표DB!O81 -> - | U137: =분기재무제표DB!P81 -> - | V137: =분기재무제표DB!Q81 -> - | W137: =분기재무제표DB!R81 -> 15 | X137: =분기재무제표DB!S81 -> 15 | Y137: =분기재무제표DB!T81 -> 15 | Z137: =분기재무제표DB!U81 -> 15 | AA137: =분기재무제표DB!V81 -> 6.5 | AB137: =분기재무제표DB!W81 -> 6.5 | AC137: =분기재무제표DB!X81 -> 6.5 | AD137: =분기재무제표DB!Y81 -> 6.5 | AE137: =분기재무제표DB!Z81 -> - | AF137: =분기재무제표DB!AA81 -> - | AG137: =분기재무제표DB!AB81 -> -
B138: 86) | C138: 배당률 (↑) | D138: 0 | F138: . | G138: =분기재무제표DB!B93 -> 0 | H138: =분기재무제표DB!C93 -> 0 | I138: =분기재무제표DB!D93 -> 0 | J138: =분기재무제표DB!E93 -> 0 | K138: =분기재무제표DB!F93 -> 0 | L138: =분기재무제표DB!G93 -> 0 | M138: =분기재무제표DB!H93 -> 0 | N138: =분기재무제표DB!I93 -> 0 | O138: =분기재무제표DB!J93 -> 0 | P138: =분기재무제표DB!K93 -> 0 | Q138: =분기재무제표DB!L93 -> 0 | R138: =분기재무제표DB!M93 -> 0 | S138: =분기재무제표DB!N93 -> 0 | T138: =분기재무제표DB!O93 -> 0 | U138: =분기재무제표DB!P93 -> 0 | V138: =분기재무제표DB!Q93 -> 0 | W138: =분기재무제표DB!R93 -> 0.2732240437 | X138: =분기재무제표DB!S93 -> 0.1129943503 | Y138: =분기재무제표DB!T93 -> 0.1369863014 | Z138: =분기재무제표DB!U93 -> 0.1240694789 | AA138: =분기재무제표DB!V93 -> 0.2012072435 | AB138: =분기재무제표DB!W93 -> 0.1742160279 | AC138: =분기재무제표DB!X93 -> 0.09551098376 | AD138: =분기재무제표DB!Y93 -> 0.1127395716 | AE138: =분기재무제표DB!Z93 -> 0.1221001221 | AF138: =분기재무제표DB!AA93 -> 0.1326259947 | AG138: =분기재무제표DB!AB93 -> 0.110619469
B139: 87) | C139: 최대주주 (↑) | D139: 0 | F139: . | G139: =분기재무제표DB!B83 -> 9.98 | H139: =분기재무제표DB!C83 -> 9.98 | I139: =분기재무제표DB!D83 -> 9.98 | J139: =분기재무제표DB!E83 -> 8.88 | K139: =분기재무제표DB!F83 -> 9.12 | L139: =분기재무제표DB!G83 -> 8.62 | M139: =분기재무제표DB!H83 -> 8.66 | N139: =분기재무제표DB!I83 -> 8.35 | O139: =분기재무제표DB!J83 -> 8.35 | P139: =분기재무제표DB!K83 -> 8.35 | Q139: =분기재무제표DB!L83 -> 8.35 | R139: =분기재무제표DB!M83 -> 8.35 | S139: =분기재무제표DB!N83 -> 8.35 | T139: =분기재무제표DB!O83 -> 8.35 | U139: =분기재무제표DB!P83 -> 8.35 | V139: =분기재무제표DB!Q83 -> 8.47 | W139: =분기재무제표DB!R83 -> 8.37 | X139: =분기재무제표DB!S83 -> 5.21 | Y139: =분기재무제표DB!T83 -> 4.77 | Z139: =분기재무제표DB!U83 -> 4.72 | AA139: =분기재무제표DB!V83 -> 4.72 | AB139: =분기재무제표DB!W83 -> 4.72 | AC139: =분기재무제표DB!X83 -> 4.69 | AD139: =분기재무제표DB!Y83 -> 4.69 | AE139: =분기재무제표DB!Z83 -> 4.69 | AF139: =분기재무제표DB!AA83 -> 4.69 | AG139: =분기재무제표DB!AB83 -> 4.69
B140: 88) | C140: 특수관계인 (↑) | D140: 2 | F140: . | G140: =분기재무제표DB!B84 -> 35.98 | H140: =분기재무제표DB!C84 -> 35.98 | I140: =분기재무제표DB!D84 -> 35.92 | J140: =분기재무제표DB!E84 -> 32.9 | K140: =분기재무제표DB!F84 -> 33.22 | L140: =분기재무제표DB!G84 -> 31.61 | M140: =분기재무제표DB!H84 -> 31.61 | N140: =분기재무제표DB!I84 -> 30.4 | O140: =분기재무제표DB!J84 -> 30.4 | P140: =분기재무제표DB!K84 -> 30.39 | Q140: =분기재무제표DB!L84 -> 30.39 | R140: =분기재무제표DB!M84 -> 30.36 | S140: =분기재무제표DB!N84 -> 30.36 | T140: =분기재무제표DB!O84 -> 30.36 | U140: =분기재무제표DB!P84 -> 30.36 | V140: =분기재무제표DB!Q84 -> 30.48 | W140: =분기재무제표DB!R84 -> 30.31 | X140: =분기재무제표DB!S84 -> 29.3 | Y140: =분기재무제표DB!T84 -> 28.3 | Z140: =분기재무제표DB!U84 -> 27.79 | AA140: =분기재무제표DB!V84 -> 27.79 | AB140: =분기재무제표DB!W84 -> 27.79 | AC140: =분기재무제표DB!X84 -> 27.56 | AD140: =분기재무제표DB!Y84 -> 27.56 | AE140: =분기재무제표DB!Z84 -> 27.43 | AF140: =분기재무제표DB!AA84 -> 27.43 | AG140: =분기재무제표DB!AB84 -> 27.43
C145: 안정성: | D145: =SUM(D5:D32) -> 36 | Z145: 23 | AA145: 38 | AB145: 34 | AC145: 35 | AD145: 40 | AE145: 32 | AF145: 40 | AG145: 36
C146: 유동성: | D146: =SUM(D33:D54) -> 46 | Z146: 39 | AA146: 28 | AB146: 40 | AC146: 42 | AD146: 45 | AE146: 51 | AF146: 42 | AG146: 46
C147: 활동성: | D147: =SUM(D55:D78) -> 41 | Z147: 48 | AA147: 46 | AB147: 45 | AC147: 47 | AD147: 46 | AE147: 43 | AF147: 42 | AG147: 41
C148: 수익성: | D148: =SUM(D79:D104) -> 19 | Z148: 28 | AA148: 55 | AB148: 43 | AC148: 31 | AD148: 22 | AE148: 21 | AF148: 22 | AG148: 19
C149: 성장성: | D149: =SUM(D105:D134) -> 23 | Z149: 64 | AA149: 63 | AB149: 68 | AC149: 61 | AD149: 64 | AE149: 30 | AF149: 32 | AG149: 23
C150: 보너스: | D150: =SUM(D135:D140) -> 12 | Z150: 7 | AA150: 8 | AB150: 8 | AC150: 8 | AD150: 8 | AE150: 11 | AF150: 12 | AG150: 12
C151: 합 계 : | D151: =SUM(D145:D150) -> 177 | Z151: 209 | AA151: 238 | AB151: 238 | AC151: 224 | AD151: 225 | AE151: 188 | AF151: 190 | AG151: 177
G186: 자산총계
G220: 유보율
G254: 부채비율
G288: PBR
G322: 매출원가율
G356: 자산구성
G390: 잉여금축척
G424: 비용부담
G458: 유동비율
G492: 차입금
G526: 현금시총
G560: 현금흐름
G594: 자산자본회전
G628: 운전자본회전율
G662: 유형자산회전율
G696: CCC/매출액
G730: CCC
G764: 매출액/지본
G798: 매출액/유무형
G832: 이익률
G866: 영업외
G900: PER
G934: PSR
G968: ROE
G1002: 운전자본
G1036: QoQ
G1070: YoY
G1104: PEG
G1138: GPA
G1172: PIR
G1206: IPA

Sheet 연간재무제표DB
B1: 7번.현금흐름
B2: 10번.당순.영업현금
A4: home
B5: 12년도 | C5: 13년도 | D5: 14년도 | E5: 15년도 | F5: 16년도 | G5: 17년도 | H5: 18년도 | I5: 19년도 | J5: 20년도 | K5: 21년도
A6: 자산총계 | B6: 116114699481 | C6: 117106052267 | D6: 115153817991 | E6: 134905044854 | F6: 141234468637 | G6: 133860274911 | H6: 173395377410 | I6: 191226386788 | J6: 206009387091 | K6: 298387221700 | L6: 331474690699
A7: 유동자산 | B7: 41363123348 | C7: 43449393319 | D7: 34586452117 | E7: 36716318768 | F7: 42773820025 | G7: 42246907740 | H7: 55049228629 | I7: 61613274560 | J7: 69476701372 | K7: 116634646697
A8: 현금성자산 | B8: 6548283872 | C8: 11574013029 | D8: 10240956321 | E8: 9903916207 | F8: 10945110545 | G8: 6812883512 | H8: 15143262419 | I8: 11420713307 | J8: 18819723334 | K8: 34262742362
A9: 단기금융 | B9: 0 | C9: 2240000000 | D9: 941697525 | E9: 206000000 | F9: 2126723039 | G9: 897846721 | H9: 4211657086 | I9: 1821482584 | J9: 712803977 | K9: 13555831200
A10: 단기투자
A11: 매출채권 | B11: 13306949074 | C11: 13113444798 | D11: 13133889094 | E11: 14491044861 | F11: 17005140485 | G11: 16585115028 | H11: 17651206331 | I11: 22962482173 | J11: 27708135246 | K11: 36433393581
A12: 계약자산
A13: 재고자산 | B13: 19298110561 | C13: 12734115994 | D13: 9297201395 | E13: 9678510665 | F13: 10242268052 | G13: 14896885003 | H13: 16025911265 | I13: 22466779484 | J13: 19518515174 | K13: 23579720373
A14: 선급금
A15: 미수금
A16: 비유동자산 | B16: 74751576133 | C16: 73656658948 | D16: 80567365874 | E16: 98188726086 | F16: 98460648612 | G16: 91613367171 | H16: 118346148781 | I16: 129613112228 | J16: 136532685719 | K16: 181752575003
A17: 유형자산 | B17: 62194836417 | C17: 61102301929 | D17: 70441668165 | E17: 87737347337 | F17: 87413455611 | G17: 88193690121 | H17: 114913337416 | I17: 127401881870 | J17: 134096595745 | K17: 172161328931
A18: 무형자산 | B18: 10517421282 | C18: 11613176957 | D18: 8794369647 | E18: 9469218011 | F18: 9915725685 | G18: 2722241288 | H18: 2298888947 | I18: 1385383271 | J18: 1407949516 | K18: 1259671886
B19: 190000000 | C19: 472585074 | D19: 714206074 | E19: 70057306 | F19: 70057306 | G19: 70057306 | H19: 435570327 | I19: 70057306 | J19: 70057306 | K19: 244810886
A20: 부채총계 | B20: 70012934335 | C20: 68766729056 | D20: 72799140185 | E20: 81873720511 | F20: 82763178179 | G20: 79398696853 | H20: 89812840256 | I20: 109060209500 | J20: 118766378477 | K20: 166476198434 | L20: 207199235333
A21: 유동부채 | B21: 51820882607 | C21: 50937033041 | D21: 50219884329 | E21: 52256857915 | F21: 55183489555 | G21: 51580365257 | H21: 43315086562 | I21: 58773715747 | J21: 64808541827 | K21: 80529391692
A22: 단기차입금 | B22: 2771137030 | C22: 2524469177 | D22: 1918790877 | E22: 1582647694 | F22: 1992642452 | G22: 3014794655 | H22: 5026660205 | I22: 5082607895 | J22: 4320768920 | K22: 7451055179
A23: 유동성장기차입금
A24: 유동성사채 | B24: 0 | C24: 0 | D24: 0 | E24: 0 | F24: 0 | G24: 0 | H24: 0
A25: 매입채무 | B25: 4002602568 | C25: 3327042813 | D25: 2541914491 | E25: 2039968901 | F25: 2978008692 | G25: 4307438046 | H25: 3835541662 | I25: 4747484354 | J25: 6496857615 | K25: 6681752160
A26: 선수금
A27: 비유동부채 | B27: 18192051728 | C27: 17829696015 | D27: 22579255856 | E27: 29616862596 | F27: 27579688624 | G27: 27818331596 | H27: 46497753694 | I27: 50286493753 | J27: 53957836650 | K27: 85946806742
A28: 장기차입금 | B28: 39135945048 | C28: 41564906729 | D28: 45295366560 | E28: 48150770041 | F28: 44419871044 | G28: 20432500139 | H28: 1208630671 | I28: 1173757874 | J28: 1130454742 | K28: 64498022879
A29: 자본총계 | B29: 46101765146 | C29: 48339323211 | D29: 42354677806 | E29: 53031324343 | F29: 58471290458 | G29: 54461578058 | H29: 83582537154 | I29: 82166177288 | J29: 87243008614 | K29: 131911023266 | L29: 124275455366
A30: 지배기업자본 | B30: 46101765146 | C30: 48339323211 | D30: 42354677806 | E30: 53031324343 | F30: 58471290458 | G30: 53178736486 | H30: 82231656387 | I30: 80590841982 | J30: 85488625904 | K30: 129852851168
A31: 자본금 | B31: 4245046000 | C31: 4550511500 | D31: 4550511500 | E31: 4740642500 | F31: 6629622500 | G31: 7275612500 | H31: 7647414500 | I31: 7647414500 | J31: 7731002000 | K31: 7740296500 | L31: 7740296500
A32: 자본잉여금 | B32: 9541724767 | C32: 14958640224 | D32: 14948055651 | E32: 16512806608 | F32: 18824279881 | G32: 23538776297 | H32: 43103818601 | I32: 43103818601 | J32: 43007710900 | K32: 52593779857
A33: 이익잉여금 | B33: 25824421793 | C33: 24100216098 | D33: 17849441312 | E33: 13046688098 | F33: 13752985599 | G33: 5742089056 | H33: 6136526831 | I33: 5213798152 | J33: 11617882048 | K33: 33728051677
A34: 매출액 | B34: 105162273298 | C34: 79627554419 | D34: 70649625267 | E34: 57523292056 | F34: 67911463916 | G34: 93390771002 | H34: 102935678142 | I34: 116384306423 | J34: 154543468825 | K34: 198707699319 | L34: 174098407326
A35: 매출원가 | B35: 81323272708 | C35: 63565213270 | D35: 55911607493 | E35: 45709762484 | F35: 49397122792 | G35: 74375100165 | H35: 81121521042 | I35: 93539876357 | J35: 125284685678 | K35: 157024092932
A36: 매출총이익 | B36: 23839000590 | C36: 16062341149 | D36: 14738017774 | E36: 11813529572 | F36: 18514341124 | G36: 19015670837 | H36: 21814157100 | I36: 22844430066 | J36: 29258783147 | K36: 41683606387
A37: 판관비 | B37: 15335060419 | C37: 14684041517 | D37: 14411458392 | E37: 14136609652 | F37: 14479248419 | G37: 16038207218 | H37: 18073493377 | I37: 20181224503 | J37: 20237349484 | K37: 24087523819
A38: 영업이익 | B38: 8503940171 | C38: 1378299632 | D38: 326559382 | E38: -2323080080 | F38: 4035092705 | G38: 2977463619 | H38: 3740663723 | I38: 2663205563 | J38: 9021433663 | K38: 17596082568 | L38: 11970916445
A39: 금융수익 | B39: 710358721 | C39: 779154547 | D39: 726309373 | E39: 728555645 | F39: 1328104457 | G39: 1633961246 | H39: 1078732328 | I39: 1633979545 | J39: 2464115930 | K39: 3650357165
A40: 금융비용 | B40: -4200063436 | C40: -2253624107 | D40: -1988481701 | E40: -2232069133 | F40: -3673830842 | G40: 4154974857 | H40: 3733169700 | I40: 4383515756 | J40: 6210958608 | K40: 4754660666
A41: 기타수익 | B41: 311474000 | C41: 698134492 | D41: 826785662 | E41: 727009810 | F41: 1356889358 | G41: 851312441 | H41: 786787755 | I41: 448687776 | J41: 647695101 | K41: 1159424670
A42: 기타손실 | B42: -830483183 | C42: -1402192648 | D42: -6020427333 | E42: -1623257694 | F42: -2130181053 | G42: 9163121806 | H42: 1328093007 | I42: 996153129 | J42: 224569514 | K42: 1112612805
A43: 관계기업손익 | B43: 0 | C43: 0 | D43: 0 | E43: 0 | F43: 0 | G43: 0 | H43: 0 | I43: 0 | J43: 0 | K43: 0
A44: 법인세 | B44: 37479663 | C44: 178917875 | D44: 232272180 | E44: -155785928 | F44: -210362619 | G44: 61819321 | H44: 73803961 | I44: 67159197 | J44: 446707640 | K44: -6430714283
A45: 당기순이익 | B45: 4457746610 | C45: -979145959 | D45: -6361526797 | E45: -4878627380 | F45: 705712006 | G45: -7917178678 | H45: 471117138 | I45: -700955198 | J45: 5251008932 | K45: 22969305215 | L45: 4383480381
A46: 주주당기순이익 | B46: 4701247137 | C46: -807487021 | D46: -6349324036 | E46: -4802753214 | F46: 706297501 | G46: -8010896543 | H46: 394437775 | I46: -904138581 | J46: 5079667426 | K46: 22873184578 | L46: 4383480381
A47: 누적매출액 | B47: 105162273298 | C47: 79627554419 | D47: 70649625267 | E47: 57523292056 | F47: 67911463916 | G47: 93390771002 | H47: 102935678142 | I47: 116384306423 | J47: 154543468825 | K47: 198707699319
A48: 누적영업이익 | B48: 8503940171 | C48: 1378299632 | D48: 326559382 | E48: -2323080080 | F48: 4035092705 | G48: 2977463619 | H48: 3740663723 | I48: 2663205563 | J48: 9021433663 | K48: 17596082568
A49: 누적당기순이익 | B49: 4701247137 | C49: -807487021 | D49: -6349324036 | E49: -4802753214 | F49: 706297501 | G49: -8010896543 | H49: 394437775 | I49: -904138581 | J49: 5079667426 | K49: 22873184578
A50: 주당이익 | B50: 609 | C50: -108 | D50: -759 | E50: -579 | F50: 80 | G50: -604 | H50: 27 | I50: -65 | J50: 345 | K50: 1540
A51: 영업활동현금흐름 | B51: 19410587798 | C51: 9457935572 | D51: 7304683012 | E51: -1090733362 | F51: 4120711719 | G51: 934095849 | H51: 2593611487 | I51: -6475448368 | J51: 10103631570 | K51: 7542102891
A52: 투자활동현금흐름 | B52: -22034631317 | C52: -5598720728 | D52: -14731454208 | E52: -8907895562 | F52: -6856446228 | G52: -4947831882 | H52: -15942806709 | I52: -13608766284 | J52: -11065608014 | K52: -44432167432
A53: 재무활동현금흐름 | B53: 3317502470 | C53: 1043177487 | D53: 5941776199 | E53: 9566589844 | F53: 3930547699 | G53: 26889610 | H53: 21727961713 | I53: 16363637058 | J53: 8601072237 | K53: 52116995573
A54: 기말현금성자산 | B54: 6548283872 | C54: 11574013029 | D54: 10240956321 | E54: 9903916207 | F54: 10945110545 | G54: 6812883512 | H54: 15143262419 | I54: 11420713307 | J54: 18819723334 | K54: 34262742362
A55: 이자비용 | B55: -2109069279 | C55: -2477280077 | D55: -1361462831 | E55: -1883288605 | F55: -2394515766 | G55: -4109313240 | H55: -2561587033 | I55: -2422950967 | J55: -2613453989 | K55: -2572596611
A56: 유형자산취득 | B56: 18492135360 | C56: 2153614883 | D56: 3666080251 | E56: 6144009825 | F56: 4486074112 | G56: -5532836116 | H56: -12651346132 | I56: -15179521950 | J56: -11642864013 | K56: -25282718676
A57: 무형자산취득 | B57: 1842453149 | C57: 2198606793 | D57: 3663740828 | E57: 2348683477 | F57: 1594150797 | G57: -1195460673 | H57: -53747944 | I57: -752375818 | J57: -323539936 | K57: -34242921
A58: 유형자산처분 | B58: 41012669 | C58: 78045082 | D58: 47213720 | E58: 171779184 | F58: 1466823259 | G58: 297451511 | H58: 176933850 | I58: 218839100 | J58: 132979320 | K58: 1215198071
A59: 무형자산처분 | B59: 0 | C59: 0 | D59: 0 | E59: 0 | F59: 0 | G59: 0 | H59: 0 | I59: 0 | J59: 0 | K59: 0
A60: 단기 현금+금융+투자 | B60: =B8+B9+B10 -> 6548283872 | C60: =C8+C9+C10 -> 13814013029 | D60: 11182653846 | E60: 10109916207 | F60: 13071833584 | G60: 7710730233 | H60: 19354919505 | I60: =I8+I9+I10 -> 13242195891 | J60: 19532527311 | K60: 47818573562
A61: 매출채권+계약자산 | B61: =B11+B12 -> 13306949074 | C61: 13113444798 | D61: 13133889094 | E61: 14491044861 | F61: 17005140485 | G61: 16585115028 | H61: 17651206331 | I61: 22962482173 | J61: 27708135246 | K61: 36433393581
A62: 단기차입금+유동성사채 | B62: =B22+B23+B24 -> 2771137030 | C62: 2524469177 | D62: 1918790877 | E62: 1582647694 | F62: 1992642452 | G62: 3014794655 | H62: 5026660205 | I62: 5082607895 | J62: 4320768920 | K62: 7451055179
A63: 자본+이익 잉여금 | B63: =B32+B33 -> 35366146560 | C63: 39058856322 | D63: 32797496963 | E63: 29559494706 | F63: 32577265480 | G63: 29280865353 | H63: 49240345432 | I63: 48317616753 | J63: 54625592948 | K63: 86321831534
A64: 영업외수익 | B64: =B39+B41 -> 1021832721 | C64: 1477289039 | D64: 1553095035 | E64: 1455565455 | F64: 2684993815 | G64: 2485273687 | H64: 1865520083 | I64: 2082667321 | J64: 3111811031 | K64: 4809781835 | AD64: =AD39+AD41 -> 0
A65: 영업외비용 | B65: =B40+B42 -> -5030546619 | C65: -3655816755 | D65: -8008909034 | E65: -3855326827 | F65: -5804011895 | G65: 13318096663 | H65: 5061262707 | I65: 5379668885 | J65: 6435528122 | K65: 5867273471 | AD65: =AD40+AD42 -> 0
A66: 유형자산(연간) | B66: =B17 -> 62194836417 | C66: 61102301929 | D66: 70441668165 | E66: 87737347337 | F66: 87413455611 | G66: 88193690121 | H66: 114913337416 | I66: 127401881870 | J66: 134096595745 | K66: 172161328931
A67: CAPEX | B67: =B56+B57+B58+B59 -> 20375601178 | C67: 4430266758 | D67: 7377034799 | E67: 8664472486 | F67: 7547048168 | G67: -6430845278 | H67: -12528160226 | I67: -15713058668 | J67: -11833424629 | K67: -24101763526
A68: CAPEX(연간)-양수전환 | B68: =-(B67) -> -20375601178 | C68: -4430266758 | D68: -7377034799 | E68: -8664472486 | F68: -7547048168 | G68: 6430845278 | H68: 12528160226 | I68: 15713058668 | J68: 11833424629 | K68: 24101763526
A69: 매출액 연간환산 | B69: =B34 -> 105162273298 | C69: 79627554419 | D69: 70649625267 | E69: 57523292056 | F69: 67911463916 | G69: 93390771002 | H69: 102935678142 | I69: 116384306423 | J69: 154543468825 | K69: 198707699319
A70: 영업이익 연간환산 | B70: =B38 -> 8503940171 | C70: 1378299632 | D70: 326559382 | E70: -2323080080 | F70: 4035092705 | G70: 2977463619 | H70: 3740663723 | I70: 2663205563 | J70: 9021433663 | K70: 17596082568
A71: 당기순이익 연간환산 | B71: =B46 -> 4701247137 | C71: -807487021 | D71: -6349324036 | E71: -4802753214 | F71: 706297501 | G71: -8010896543 | H71: 394437775 | I71: -904138581 | J71: 5079667426 | K71: 22873184578
A72: 영업활동현금흐름(연간) | B72: =B51 -> 19410587798 | C72: 9457935572 | D72: 7304683012 | E72: -1090733362 | F72: 4120711719 | G72: 934095849 | H72: 2593611487 | I72: -6475448368 | J72: 10103631570 | K72: 7542102891 | AD72: =AD51 -> 0 | AE72: =AE51-AD51 -> 0 | AF72: =AF51-AE51 -> 0 | AG72: =AG51-AF51 -> 0
A73: 투자활동현금흐름(연간) | B73: =B52 -> -22034631317 | C73: -5598720728 | D73: -14731454208 | E73: -8907895562 | F73: -6856446228 | G73: -4947831882 | H73: -15942806709 | I73: -13608766284 | J73: -11065608014 | K73: -44432167432
A74: 재무활동현금흐름(연간) | B74: =B53 -> 3317502470 | C74: 1043177487 | D74: 5941776199 | E74: 9566589844 | F74: 3930547699 | G74: 26889610 | H74: 21727961713 | I74: 16363637058 | J74: 8601072237 | K74: 52116995573
A75: (보통주)발행주식총수 | B75: 8490092 | C75: 9101023 | D75: 9101023 | E75: 9481285 | F75: 13259245 | G75: 14551225 | H75: 14551225 | I75: 14551225 | J75: 15387644 | K75: 15480593
A76: (보통주)자기주식수 | B76: 545800 | C76: 739200 | D76: 739200 | E76: 905247 | F76: 612307 | G76: 580307 | H76: 573507 | I76: 573507 | J76: 573507 | K76: 591091
A77: (보통주)유통주식수 | B77: 7944292 | C77: 8361823 | D77: 8361823 | E77: 8576038 | F77: 12646938 | G77: 13970918 | H77: 13977718 | I77: 13977718 | J77: 14814137 | K77: 14889502
A78: (우선주)발행주식총수 | C78: - | D78: - | E78: - | F78: - | G78: - | H78: 743604 | I78: 743604 | J78: 74360 | K78: -
A79: (우선주)자기주식수 | C79: - | D79: - | E79: - | F79: - | G79: - | H79: - | I79: - | J79: - | K79: -
A80: (우선주)유통주식수 | C80: - | D80: - | E80: - | F80: - | G80: - | H80: 743604 | I80: 743604 | J80: 74360 | K80: -
A81: 현금배당성향% | B81: 11.86 | C81: - | D81: - | E81: - | F81: - | G81: - | H81: 3.95 | I81: - | J81: 15 | K81: 6.5
A82: 현금배당금 | B82: 100 | C82: - | D82: - | E82: - | F82: - | G82: - | H82: - | I82: - | J82: 50 | K82: 100
A83: 최대주주 | B83: 6.02 | C83: 5.66 | D83: 5.99 | E83: 9.8 | F83: 8.88 | G83: 8.35 | H83: 8.35 | I83: 8.47 | J83: 4.72 | K83: 4.69
A84: 최대 및 특수관계인 | B84: 34.9 | C84: 36.19 | D84: 36.6 | E84: 35.59 | F84: 32.9 | G84: 30.4 | H84: 30.36 | I84: 30.48 | J84: 27.79 | K84: 27.56
A85: 직원수 | C85: 187 | D85: 138 | E85: 140 | F85: 175 | G85: 185 | H85: 220 | I85: 242 | J85: 267 | K85: 290
A86: 근속연수 | C86: 4.4 | D86: 5.4 | E86: 6 | F86: 5.2 | G86: - | H86: 4.833333 | I86: 5.5 | J86: 7 | K86: 5.72
A87: 평균연봉 | C87: 42192513.37 | D87: 44782608.7 | E87: 42685714.29 | F87: 40188571.43 | G87: 45189189.19 | H87: 44563636.36 | I87: 47119834.71 | J87: 48838951.31 | K87: 54348275.86
A88: 임원수 | C88: 9 | D88: 9 | E88: 8 | F88: 8 | G88: 5 | H88: 5 | I88: 6 | J88: 6 | K88: 6
A89: 임원평균연봉 | C89: 122000000 | D89: 122000000 | E89: 129000000 | F89: 109000000 | G89: 227000000 | H89: 202000000 | I89: 217000000 | J89: 246000000 | K89: 243000000
A90: 주가 | B90: 8105 | C90: 7234 | D90: 4137 | E90: 3628 | F90: 4170 | G90: 14500 | H90: 20700 | I90: 16900 | J90: 40300 | K90: 88700
A91: 시가총액 | B91: =B90*B75 -> 68812195660 | C91: =C90*C75 -> 65836800382 | D91: 37650932151 | E91: 34398101980 | F91: =F90*F75 -> 55291051650 | G91: 210992762500 | H91: 301210357500 | I91: =I90*I75 -> 245915702500 | J91: =J90*J75 -> 620122053200 | K91: =K90*K75 -> 1373128599100
A92: 자사주비율 | B92: =IFERROR(B76/B75,0) -> 0.06428670031 | C92: =IFERROR(C76/C75,0) -> 0.08122163849 | D92: 0.08122163849 | E92: 0.09547724807 | F92: 0.04617962787 | G92: 0.03988028499 | H92: 0.03941297039 | I92: 0.03941297039 | J92: =IFERROR(J76/J75,0) -> 0.03727061791 | K92: =IFERROR(K76/K75,0) -> 0.03818271044
A93: 배당률 | B93: =IFERROR((B82/B90)*100,0) -> 1.233806292 | C93: =IFERROR((C82/C90)*100,0) -> 0 | D93: 0 | E93: 0 | F93: 0 | G93: 0 | H93: 0 | I93: 0 | J93: =IFERROR((J82/J90)*100,0) -> 0.1240694789 | K93: =IFERROR((K82/K90)*100,0) -> 0.1127395716
A94: EPS(주당순이익) | B94: =B71/B75 -> 553.7333561 | C94: -88.72486324 | D94: -697.649488 | E94: -506.5508751 | F94: 53.26830457 | G94: -550.5307315 | H94: 27.10684324 | I94: -62.13487737 | J94: 330.1133966 | K94: 1477.539302
A95: ROE(자본대비순이익) | B95: =B71*100/B30 -> 10.19754259 | C95: =C71*100/C30 -> -1.670455785 | D95: -14.99084485 | E95: -9.056445928 | F95: 1.207938965 | G95: -15.06409718 | H95: 0.4796665814 | I95: =I71*100/I30 -> -1.121887498 | J95: =J71*100/J30 -> 5.941921948 | K95: =K71*100/K30 -> 17.61469569
A96: 영업이익율 | B96: =B38*100/B34 -> 8.086493287 | C96: =C38*100/C34 -> 1.730933019 | D96: 0.4622237992 | E96: -4.038503356 | F96: 5.941695956 | G96: 3.188177576 | H96: 3.633981716 | I96: =I38*100/I34 -> 2.288285805 | J96: =J38*100/J34 -> 5.837473257 | K96: =K38*100/K34 -> 8.855259574
A97: PER(시총/당기순이익) | B97: =B91/B71 -> 14.63700879 | C97: =C91/C71 -> -81.53295182 | D97: -5.929911899 | E97: -7.162163128 | F97: 78.28294957 | G97: -26.33822087 | H97: 763.6448043 | I97: =I91/I71 -> -271.9889491 | J97: =J91/J71 -> 122.0792625 | K97: =K91/K71 -> 60.03224406
A98: 당기순이익/영업이익 | B98: =B46*100/B38 -> 55.28316336 | C98: =C46*100/C38 -> -58.58573871 | D98: -1944.309178 | E98: =E46*100/E38 -> 206.7407514 | F98: 17.50387296 | G98: -269.0510303 | H98: 10.54459326 | I98: =I46*100/I38 -> -33.94926 | J98: =J46*100/J38 -> 56.30665386 | K98: =K46*100/K38 -> 129.9902094
A99: 주당순자산(자본/1주당) | B99: =B30/B75 -> 5430.066617 | C99: =C30/C75 -> 5311.416443 | D99: 4653.837025 | E99: 5593.263397 | F99: 4409.850671 | G99: 3654.58829 | H99: 5651.184446 | I99: =I30/I75 -> 5538.42319 | J99: =J30/J75 -> 5555.666995 | K99: =K30/K75 -> 8388.105751
A100: PBR(주가/주당순자산) | B100: =B90/B99 -> 1.492615206 | C100: =C90/C99 -> 1.36197191 | D100: 0.8889438924 | E100: 0.6486374309 | F100: 0.9456102511 | G100: 3.967615187 | H100: 3.662948927 | I100: =I90/I99 -> 3.051410017 | J100: =J90/J99 -> 7.253854494 | K100: =K90/K99 -> 10.57449711
A101: EPS증가율(%) | B101: =(B94-A94)*100/ABS(A94) ->  | C101: =(C94-B94)*100/ABS(B94) -> -116.0230303 | D101: -686.3066366 | E101: 27.39177999 | F101: 110.5158844 | G101: -1133.505263 | H101: 104.9237657 | I101: -329.2221076 | J101: =(J94-I94)*100/ABS(I94) -> 631.2851824 | K101: =(K94-J94)*100/ABS(J94) -> 347.5853805
A102: PEG(PER/EPS) | B102: =B97/B101 ->  | C102: 0.7027307565 | D102: 0.008640324284 | E102: -0.2614712563 | F102: 0.7083411582 | G102: 0.02323608166 | H102: 7.278091854 | I102: 0.8261563936 | J102: 0.1933821131 | K102: 0.1727122239
A103: 매출원가율 | B103: =B35*100/B34 -> 77.3312236 | C103: =C35*100/C34 -> 79.82816217 | D103: 79.13928387 | E103: 79.46305027 | F103: 72.73753199 | G103: 79.63859744 | H103: 78.80797262 | I103: =I35*100/I34 -> 80.37155458 | J103: =J35*100/J34 -> 81.06760294 | K103: =K35*100/K34 -> 79.0226516
A104: 판관비율 | B104: =B37*100/B34 -> 14.58228311 | C104: =C37*100/C34 -> 18.44090482 | D104: 20.39849233 | E104: 24.57545308 | F104: 21.32077205 | G104: 17.17322498 | H104: 17.55804567 | I104: =I37*100/I34 -> 17.34015962 | J104: =J37*100/J34 -> 13.0949238 | K104: =K37*100/K34 -> 12.12208883
A105: 임원급여/직원급여 | B105: =B89/B87 ->  | C105: =C89/C87 -> 2.891508238 | D105: 2.724271845 | E105: 3.022088353 | F105: 2.712213849 | G105: 5.023325359 | H105: 4.532843737 | I105: =I89/I87 -> 4.605279312 | J105: =J89/J87 -> 5.03696319 | K105: =K89/K87 -> 4.471162997
A106: 영업이익/직원수 | B106: =B70/B85 ->  | C106: =C70/C85 -> 7370586.267 | D106: 2366372.333 | E106: -16593429.14 | F106: 23057672.6 | G106: 16094397.94 | H106: 17003016.92 | I106: 11004981.67 | J106: =J70/J85 -> 33788141.06 | K106: =K70/K85 -> 60676146.79
A107: 매출액5년 GAGR | F107: =IFERROR(RATE(4,0,-B34,F34),0) -> -0.1035609191 | G107: 0.04066307666 | H107: 0.09866178051 | I107: 0.1926490663 | J107: 0.2282220529 | K107: 0.2077517726
A108: 매출액7년 GAGR | H108: =IFERROR(RATE(6,0,-B34,H34),0) -> -0.003560364824 | I108: =IFERROR(RATE(6,0,-C34,I34),0) -> 0.06529978869 | J108: =IFERROR(RATE(6,0,-D34,J34),0) -> 0 | K108: =IFERROR(RATE(6,0,-E34,K34),0) -> 0.2294998886
A109: 자본5년 GAGR | F109: =IFERROR(RATE(4,0,-B29,F29),0) -> 0.06122208923 | G109: 0.03026136469 | H109: 0.1852324734 | I109: 0.115681296 | J109: 0.1052155554 | K109: 0.247520575
A110: 자본7년 GAGR | H110: =IFERROR(RATE(6,0,-B29,H29),0) -> 0.104247266 | I110: =IFERROR(RATE(6,0,-C29,I29),0) -> 0.09244291588 | J110: =IFERROR(RATE(6,0,-D29,J29),0) -> 0.127989028 | K110: =IFERROR(RATE(6,0,-E29,K29),0) -> 0
A111: 영익5년 GAGR | F111: =IFERROR(RATE(4,0,-B38,F38),0) -> -0.1700377675 | G111: 0.2123435489 | H111: 0.8396983786 | I111: 0 | J111: 0.2228002272 | K111: 0.5591660938
A112: 영익7년 GAGR | H112: =IFERROR(RATE(6,0,-B38,H38),0) -> -0.1279231754 | I112: =IFERROR(RATE(6,0,-C38,I38),0) -> 0.1160324991 | J112: =IFERROR(RATE(6,0,-D38,J38),0) -> 0.7386769598 | K112: =IFERROR(RATE(6,0,-E38,K38),0) -> 0
A113: 현금흐름 5년 GAGR | F113: =IFERROR(RATE(4,0,-B72,F72),0) -> -0.3212132028 | G113: -0.4394055773 | H113: -0.2280736133 | I113: 0.5609457585 | J113: 0.2513428519 | K113: 0.6856804603
A114: 현금흐름 7년 GAGR | H114: =IFERROR(RATE(6,0,-B72,H72),0) -> -0.2849917728 | I114: =IFERROR(RATE(6,0,-C72,I72),0) -> 0 | J114: =IFERROR(RATE(6,0,-D72,J72),0) -> 0.05555132314 | K114: =IFERROR(RATE(6,0,-E72,K72),0) -> 0
A115: EV(시총+(총차입-현금성))

Sheet 연간재무제표분석
A1: home | C1: PBR | D1: =분기재무제표분석!D1 -> 6.6
C2: 매출원가 | D2: =분기재무제표분석!D2 -> 81.7
A3: go to score | C3: PER | D3: =분기재무제표분석!D3 -> 41
C4: PSR | D4: =분기재무제표분석!D4 -> 5.1 | E4: 평균 | G4: =연간재무제표DB!B5 -> 12년도 | H4: =연간재무제표DB!C5 -> 13년도 | I4: =연간재무제표DB!D5 -> 14년도 | J4: =연간재무제표DB!E5 -> 15년도 | K4: =연간재무제표DB!F5 -> 16년도 | L4: =연간재무제표DB!G5 -> 17년도 | M4: =연간재무제표DB!H5 -> 18년도 | N4: =연간재무제표DB!I5 -> 19년도 | O4: =연간재무제표DB!J5 -> 20년도 | P4: =연간재무제표DB!K5 -> 21년도
A5: 안정성 | C5: 자산총계 우상향 | F5: 자산총계 | H5: =(연간재무제표DB!C6-연간재무제표DB!B6)/연간재무제표DB!B6 -> 0.008537702724 | I5: =(연간재무제표DB!D6-연간재무제표DB!C6)/연간재무제표DB!C6 -> -0.01667065227 | J5: =(연간재무제표DB!E6-연간재무제표DB!D6)/연간재무제표DB!D6 -> 0.1715203821 | K5: =(연간재무제표DB!F6-연간재무제표DB!E6)/연간재무제표DB!E6 -> 0.04691762113 | L5: =(연간재무제표DB!G6-연간재무제표DB!F6)/연간재무제표DB!F6 -> -0.05221242234 | M5: =(연간재무제표DB!H6-연간재무제표DB!G6)/연간재무제표DB!G6 -> 0.2953460429 | N5: =(연간재무제표DB!I6-연간재무제표DB!H6)/연간재무제표DB!H6 -> 0.1028343987 | O5: =(연간재무제표DB!J6-연간재무제표DB!I6)/연간재무제표DB!I6 -> 0.07730627844 | P5: =(연간재무제표DB!K6-연간재무제표DB!J6)/연간재무제표DB!J6 -> 0.4484156567
B6: 1) | C6: -우상향(↑) | D6: 3 | F6: . | J6: =IF(COUNTIF(H5:J5,"<0")=0,"5",IF(COUNTIF(H5:J5,"<0")=1,"3",IF(COUNTIF(H5:J5,"<0")=2,"1","0"))) -> 3 | K6: 3 | L6: 3 | M6: 3 | N6: 3 | O6: 5 | P6: 5
C7: 자본총계 우상향 | F7: 자본총계 | H7: =(연간재무제표DB!C29-연간재무제표DB!B29)/연간재무제표DB!B29 -> 0.04853519291 | I7: =(연간재무제표DB!D29-연간재무제표DB!C29)/연간재무제표DB!C29 -> -0.1238049068 | J7: =(연간재무제표DB!E29-연간재무제표DB!D29)/연간재무제표DB!D29 -> 0.2520771516 | K7: =(연간재무제표DB!F29-연간재무제표DB!E29)/연간재무제표DB!E29 -> 0.1025802426 | L7: =(연간재무제표DB!G29-연간재무제표DB!F29)/연간재무제표DB!F29 -> -0.06857574664 | M7: =(연간재무제표DB!H29-연간재무제표DB!G29)/연간재무제표DB!G29 -> 0.5347064873 | N7: =(연간재무제표DB!I29-연간재무제표DB!H29)/연간재무제표DB!H29 -> -0.01694564336 | O7: =(연간재무제표DB!J29-연간재무제표DB!I29)/연간재무제표DB!I29 -> 0.06178736183 | P7: =(연간재무제표DB!K29-연간재무제표DB!J29)/연간재무제표DB!J29 -> 0.5119953491
B8: 2) | C8: -우상향(↑) | D8: 3 | F8: . | J8: =IF(COUNTIF(H7:J7,"<0")=0,"5",IF(COUNTIF(H7:J7,"<0")=1,"3",IF(COUNTIF(H7:J7,"<0")=2,"1","0"))) -> 3 | K8: 3 | L8: 3 | M8: 3 | N8: 1 | O8: 3 | P8: 3
C9: 유보율(잉여금/자본) | F9: .
B10: 3) | C10: -유보율(↑) | D10: 1 | F10: 유보율(+) | G10: =연간재무제표DB!B63/연간재무제표DB!B30 -> 0.7671321575 | H10: =연간재무제표DB!C63/연간재무제표DB!C30 -> 0.8080141327 | I10: =연간재무제표DB!D63/연간재무제표DB!D30 -> 0.7743535936 | J10: =연간재무제표DB!E63/연간재무제표DB!E30 -> 0.5573968795 | K10: =연간재무제표DB!F63/연간재무제표DB!F30 -> 0.5571497606 | L10: =연간재무제표DB!G63/연간재무제표DB!G30 -> 0.5506122802 | M10: =연간재무제표DB!H63/연간재무제표DB!H30 -> 0.5988003598 | N10: =연간재무제표DB!I63/연간재무제표DB!I30 -> 0.5995422751 | O10: =연간재무제표DB!J63/연간재무제표DB!J30 -> 0.6389808278 | P10: =연간재무제표DB!K63/연간재무제표DB!K30 -> 0.6647665473
B11: 4) | C11: -일정유지금액 유지(↔) | D11: 5 | F11: 일정유지 | H11: =(H10-G10)/G10 -> 0.05329195872 | I11: -0.04165835451 | J11: -0.2801778359 | K11: -0.0004433446754 | L11: -0.01173379383 | M11: 0.08751726283 | N11: 0.001239002729 | O11: 0.06578110395 | P11: 0.04035444949
C12: 자기자본비율(자본/자산) | F12: .
B13: 5) | C13: -60%이상 유지(↑) | D13: 2 | F13: 자기자본비율(60이상) | G13: =연간재무제표DB!B30/연간재무제표DB!B6 -> 0.3970364248 | H13: =연간재무제표DB!C30/연간재무제표DB!C6 -> 0.4127824504 | I13: =연간재무제표DB!D30/연간재무제표DB!D6 -> 0.3678095833 | J13: =연간재무제표DB!E30/연간재무제표DB!E6 -> 0.3931011209 | K13: =연간재무제표DB!F30/연간재무제표DB!F6 -> 0.4140015608 | L13: =연간재무제표DB!G30/연간재무제표DB!G6 -> 0.3972704861 | M13: =연간재무제표DB!H30/연간재무제표DB!H6 -> 0.4742436483 | N13: =연간재무제표DB!I30/연간재무제표DB!I6 -> 0.4214420579 | O13: =연간재무제표DB!J30/연간재무제표DB!J6 -> 0.4149744199 | P13: =연간재무제표DB!K30/연간재무제표DB!K6 -> 0.435182346
C14: 부채비율 | F14: .
B15: 6) | C15: -100%이하로 일정금액 유지(↓) | D15: 1 | F15: 부채비율(100%이하) | G15: =연간재무제표DB!B20/연간재무제표DB!B30 -> 1.5186606 | H15: =연간재무제표DB!C20/연간재무제표DB!C30 -> 1.422583613 | I15: =연간재무제표DB!D20/연간재무제표DB!D30 -> 1.718798111 | J15: =연간재무제표DB!E20/연간재무제표DB!E30 -> 1.54387471 | K15: =연간재무제표DB!F20/연간재무제표DB!F30 -> 1.415449831 | L15: =연간재무제표DB!G20/연간재무제표DB!G30 -> 1.493053466 | M15: =연간재무제표DB!H20/연간재무제표DB!H30 -> 1.092193009 | N15: =연간재무제표DB!I20/연간재무제표DB!I30 -> 1.353258098 | O15: =연간재무제표DB!J20/연간재무제표DB!J30 -> 1.389265264 | P15: =연간재무제표DB!K20/연간재무제표DB!K30 -> 1.282037298
B16: 7) | C16: -차입금의존도 30%(↓) | D16: 1 | F16: 차입금(30%이하) | G16: =(연간재무제표DB!B28+연간재무제표DB!B62)/연간재무제표DB!B6 -> 0.3609110842 | H16: =(연간재무제표DB!C28+연간재무제표DB!C62)/연간재무제표DB!C6 -> 0.3764910101 | I16: =(연간재무제표DB!D28+연간재무제표DB!D62)/연간재무제표DB!D6 -> 0.4100094835 | J16: =(연간재무제표DB!E28+연간재무제표DB!E62)/연간재무제표DB!E6 -> 0.3686549883 | K16: =(연간재무제표DB!F28+연간재무제표DB!F62)/연간재무제표DB!F6 -> 0.3286203003 | L16: =(연간재무제표DB!G28+연간재무제표DB!G62)/연간재무제표DB!G6 -> 0.1751624581 | M16: =(연간재무제표DB!H28+연간재무제표DB!H62)/연간재무제표DB!H6 -> 0.03595996023 | N16: =(연간재무제표DB!I28+연간재무제표DB!I62)/연간재무제표DB!I6 -> 0.03271706313 | O16: =(연간재무제표DB!J28+연간재무제표DB!J62)/연간재무제표DB!J6 -> 0.026461045 | P16: =(연간재무제표DB!K28+연간재무제표DB!K62)/연간재무제표DB!K6 -> 0.241126539
C17: PBR | F17: .
B18: 8) | C18: -1.5이하 (저평가 or 성장끝)(↓) | D18: 4 | E18: 3.38 | F18: PBR(1.5이하) | G18: =연간재무제표DB!B100 -> 1.492615206 | H18: =연간재무제표DB!C100 -> 1.36197191 | I18: =연간재무제표DB!D100 -> 0.8889438924 | J18: =연간재무제표DB!E100 -> 0.6486374309 | K18: =연간재무제표DB!F100 -> 0.9456102511 | L18: =연간재무제표DB!G100 -> 3.967615187 | M18: =연간재무제표DB!H100 -> 3.662948927 | N18: =연간재무제표DB!I100 -> 3.051410017 | O18: =연간재무제표DB!J100 -> 7.253854494 | P18: =연간재무제표DB!K100 -> 10.57449711
B19: 9) | C19: -역대평균PBR 대비 낮은가?(↓) | D19: 5 | F19: . | G19: =(G18/$E$18)-1 -> -0.5583978682 | H19: -0.5970497306 | I19: -0.7369988484 | J19: -0.8080954346 | K19: -0.7202336535 | L19: 0.173850647 | M19: 0.08371270019 | N19: -0.09721597131 | O19: 1.146110797 | P19: 2.12854944
B20: 10) | C20: -업종평균PBR 대비 낮은가?(↓) | D20: 5 | E20: =D1 -> 6.6 | F20: . | G20: =(G18/$E$20)-1 -> -0.773846181 | H20: -0.7936406196 | I20: -0.8653115315 | J20: -0.9017216014 | K20: -0.8567257195 | L20: -0.3988461838 | M20: -0.4450077384 | N20: -0.5376651489 | O20: 0.09906886273 | P20: 0.6021965315
C21: 매출원가율 (매출원가/매출액) | F21: .
B22: 11) | C22: -50% 이하(↓) | D22: 2 | F22: 매출원가율(50%이하) | G22: =연간재무제표DB!B35/연간재무제표DB!B34 -> 0.773312236 | H22: =연간재무제표DB!C35/연간재무제표DB!C34 -> 0.7982816217 | I22: =연간재무제표DB!D35/연간재무제표DB!D34 -> 0.7913928387 | J22: =연간재무제표DB!E35/연간재무제표DB!E34 -> 0.7946305027 | K22: =연간재무제표DB!F35/연간재무제표DB!F34 -> 0.7273753199 | L22: =연간재무제표DB!G35/연간재무제표DB!G34 -> 0.7963859744 | M22: =연간재무제표DB!H35/연간재무제표DB!H34 -> 0.7880797262 | N22: =연간재무제표DB!I35/연간재무제표DB!I34 -> 0.8037155458 | O22: =연간재무제표DB!J35/연간재무제표DB!J34 -> 0.8106760294 | P22: =연간재무제표DB!K35/연간재무제표DB!K34 -> 0.790226516
B23: 12) | C23: -업종평균대비 낮은가?(↓) | D23: 2 | E23: =D2/100 -> 0.817 | F23: . | G23: =G22-$E$23 -> -0.04368776399 | H23: -0.01871837835 | I23: -0.0256071613 | J23: -0.02236949729 | K23: -0.08962468008 | L23: -0.02061402559 | M23: -0.02892027384 | N23: -0.01328445422 | O23: -0.006323970592 | P23: -0.02677348402
C24: 자산 구성 | F24: .
B25: 13) | C25: -현금성자산(↑) | D25: 1 | F25: 현금성자산(50%이상) | G25: =(연간재무제표DB!B6-(연간재무제표DB!B11+연간재무제표DB!B12+연간재무제표DB!B13+연간재무제표DB!B17+연간재무제표DB!B18))/연간재무제표DB!B6 -> 0.09298893418 | H25: =(연간재무제표DB!C6-(연간재무제표DB!C11+연간재무제표DB!C12+연간재무제표DB!C13+연간재무제표DB!C17+연간재무제표DB!C18))/연간재무제표DB!C6 -> 0.1583437596 | I25: =(연간재무제표DB!D6-(연간재무제표DB!D11+연간재무제표DB!D12+연간재무제표DB!D13+연간재무제표DB!D17+연간재무제표DB!D18))/연간재무제표DB!D6 -> 0.1171189104 | J25: =(연간재무제표DB!E6-(연간재무제표DB!E11+연간재무제표DB!E12+연간재무제표DB!E13+연간재무제표DB!E17+연간재무제표DB!E18))/연간재무제표DB!E6 -> 0.1002847892 | K25: =(연간재무제표DB!F6-(연간재무제표DB!F11+연간재무제표DB!F12+연간재무제표DB!F13+연간재무제표DB!F17+연간재무제표DB!F18))/연간재무제표DB!F6 -> 0.1179448541 | L25: =(연간재무제표DB!G6-(연간재무제표DB!G11+연간재무제표DB!G12+연간재무제표DB!G13+연간재무제표DB!G17+연간재무제표DB!G18))/연간재무제표DB!G6 -> 0.08562916428 | M25: =(연간재무제표DB!H6-(연간재무제표DB!H11+연간재무제표DB!H12+연간재무제표DB!H13+연간재무제표DB!H17+연간재무제표DB!H18))/연간재무제표DB!H6 -> 0.1297960406 | N25: =(연간재무제표DB!I6-(연간재무제표DB!I11+연간재무제표DB!I12+연간재무제표DB!I13+연간재무제표DB!I17+연간재무제표DB!I18))/연간재무제표DB!I6 -> 0.08895142703 | O25: =(연간재무제표DB!J6-(연간재무제표DB!J11+연간재무제표DB!J12+연간재무제표DB!J13+연간재무제표DB!J17+연간재무제표DB!J18))/연간재무제표DB!J6 -> 0.1129957801 | P25: =(연간재무제표DB!K6-(연간재무제표DB!K11+연간재무제표DB!K12+연간재무제표DB!K13+연간재무제표DB!K17+연간재무제표DB!K18))/연간재무제표DB!K6 -> 0.2176805915
B26: 14) | C26: -사업자산통한 영업이익 창출(↑) | D26: 0 | F26: 영익/사업자산(60%이상) | G26: =연간재무제표DB!B38/((연간재무제표DB!B11+연간재무제표DB!B12+연간재무제표DB!B13+연간재무제표DB!B17+연간재무제표DB!B18)) -> 0.08074588668 | H26: =연간재무제표DB!C38/((연간재무제표DB!C11+연간재무제표DB!C12+연간재무제표DB!C13+연간재무제표DB!C17+연간재무제표DB!C18)) -> 0.01398393999 | I26: =연간재무제표DB!D38/((연간재무제표DB!D11+연간재무제표DB!D12+연간재무제표DB!D13+연간재무제표DB!D17+연간재무제표DB!D18)) -> 0.00321204491 | J26: =연간재무제표DB!E38/((연간재무제표DB!E11+연간재무제표DB!E12+연간재무제표DB!E13+연간재무제표DB!E17+연간재무제표DB!E18)) -> -0.01913951495 | K26: =연간재무제표DB!F38/((연간재무제표DB!F11+연간재무제표DB!F12+연간재무제표DB!F13+연간재무제표DB!F17+연간재무제표DB!F18)) -> 0.03239045723 | L26: =연간재무제표DB!G38/((연간재무제표DB!G11+연간재무제표DB!G12+연간재무제표DB!G13+연간재무제표DB!G17+연간재무제표DB!G18)) -> 0.02432609427 | M26: =연간재무제표DB!H38/((연간재무제표DB!H11+연간재무제표DB!H12+연간재무제표DB!H13+연간재무제표DB!H17+연간재무제표DB!H18)) -> 0.02479077465 | N26: =연간재무제표DB!I38/((연간재무제표DB!I11+연간재무제표DB!I12+연간재무제표DB!I13+연간재무제표DB!I17+연간재무제표DB!I18)) -> 0.01528675615 | O26: =연간재무제표DB!J38/((연간재무제표DB!J11+연간재무제표DB!J12+연간재무제표DB!J13+연간재무제표DB!J17+연간재무제표DB!J18)) -> 0.04936997008 | P26: =연간재무제표DB!K38/((연간재무제표DB!K11+연간재무제표DB!K12+연간재무제표DB!K13+연간재무제표DB!K17+연간재무제표DB!K18)) -> 0.07537922461
C27: 잉여금/당기순이익 | F27: .
B28: 15) | C28: -높은비율로 잉여금 축척 (↑) | D28: 0 | F28: 잉여금축척 | G28: . | H28: =(연간재무제표DB!C63-연간재무제표DB!B63)/연간재무제표DB!C46 -> -4.573088689 | I28: =(연간재무제표DB!D63-연간재무제표DB!C63)/연간재무제표DB!D46 -> 0.9861458202 | J28: =(연간재무제표DB!E63-연간재무제표DB!D63)/연간재무제표DB!E46 -> 0.6741970934 | K28: =(연간재무제표DB!F63-연간재무제표DB!E63)/연간재무제표DB!F46 -> 4.272662398 | L28: =(연간재무제표DB!G63-연간재무제표DB!F63)/연간재무제표DB!G46 -> 0.4114895392 | M28: =(연간재무제표DB!H63-연간재무제표DB!G63)/연간재무제표DB!H46 -> 50.6023544 | N28: =(연간재무제표DB!I63-연간재무제표DB!H63)/연간재무제표DB!I46 -> 1.020561116 | O28: =(연간재무제표DB!J63-연간재무제표DB!I63)/연간재무제표DB!J46 -> 1.241808895 | P28: =(연간재무제표DB!K63-연간재무제표DB!J63)/연간재무제표DB!K46 -> 1.385737892
C29: 비용 부담율 | F29: .
B30: 16) | C30: -금융비용 부담율(↓) | D30: 0 | F30: 금융비용부담(3%이하) | G30: =연간재무제표DB!B40/연간재무제표DB!B34 -> -0.03993888021 | H30: =연간재무제표DB!C40/연간재무제표DB!C34 -> -0.02830206357 | I30: =연간재무제표DB!D40/연간재무제표DB!D34 -> -0.02814567938 | J30: =연간재무제표DB!E40/연간재무제표DB!E34 -> -0.03880287538 | K30: =연간재무제표DB!F40/연간재무제표DB!F34 -> -0.05409735898 | L30: =연간재무제표DB!G40/연간재무제표DB!G34 -> 0.04449020832 | M30: =연간재무제표DB!H40/연간재무제표DB!H34 -> 0.03626701419 | N30: =연간재무제표DB!I40/연간재무제표DB!I34 -> 0.03766414812 | O30: =연간재무제표DB!J40/연간재무제표DB!J34 -> 0.04018907208 | P30: =연간재무제표DB!K40/연간재무제표DB!K34 -> 0.02392791363
B31: 17) | C31: -영업현금/이자비용 > 1(↑) | D31: 1 | F31: 영업현금/이자(1이상) | G31: =IFERROR(연간재무제표DB!B51/ABS(연간재무제표DB!B55),500) -> 9.203390325 | H31: =IFERROR(연간재무제표DB!C51/ABS(연간재무제표DB!C55),500) -> 3.817870922 | I31: =IFERROR(연간재무제표DB!D51/ABS(연간재무제표DB!D55),500) -> 5.365319453 | J31: =IFERROR(연간재무제표DB!E51/ABS(연간재무제표DB!E55),500) -> -0.5791642126 | K31: =IFERROR(연간재무제표DB!F51/ABS(연간재무제표DB!F55),500) -> 1.720895631 | L31: =IFERROR(연간재무제표DB!G51/ABS(연간재무제표DB!G55),500) -> 0.2273119119 | M31: =IFERROR(연간재무제표DB!H51/ABS(연간재무제표DB!H55),500) -> 1.012501802 | N31: =IFERROR(연간재무제표DB!I51/ABS(연간재무제표DB!I55),500) -> -2.672546187 | O31: =IFERROR(연간재무제표DB!J51/ABS(연간재무제표DB!J55),500) -> 3.866007059 | P31: =IFERROR(연간재무제표DB!K51/ABS(연간재무제표DB!K55),500) -> 2.931708321
B32: 18) | C32: -영업이익/이자비용 > 10(↑) | D32: 0 | F32: 영업이익/이자(10이상) | G32: =IFERROR(연간재무제표DB!B48/ABS(연간재무제표DB!B55),1600) -> 4.03208195 | H32: =IFERROR(연간재무제표DB!C48/ABS(연간재무제표DB!C55),1600) -> 0.5563761824 | I32: =IFERROR(연간재무제표DB!D48/ABS(연간재무제표DB!D55),1600) -> 0.2398591974 | J32: =IFERROR(연간재무제표DB!E48/ABS(연간재무제표DB!E55),1600) -> -1.233523143 | K32: =IFERROR(연간재무제표DB!F48/ABS(연간재무제표DB!F55),1600) -> 1.685139335 | L32: =IFERROR(연간재무제표DB!G48/ABS(연간재무제표DB!G55),1600) -> 0.724564774 | M32: =IFERROR(연간재무제표DB!H48/ABS(연간재무제표DB!H55),1600) -> 1.460291481 | N32: =IFERROR(연간재무제표DB!I48/ABS(연간재무제표DB!I55),1600) -> 1.099157845 | O32: =IFERROR(연간재무제표DB!J48/ABS(연간재무제표DB!J55),1600) -> 3.451919835 | P32: =IFERROR(연간재무제표DB!K48/ABS(연간재무제표DB!K55),1600) -> 6.839814098
A33: 유동성 | C33: 유동비율(유동자산/유동부채) | F33: .
B34: 19) | C34: -120%이상 유지(↑) | D34: 0 | F34: 유동비율(120%이상) | G34: =연간재무제표DB!B7/연간재무제표DB!B21 -> 0.7981941115 | H34: =연간재무제표DB!C7/연간재무제표DB!C21 -> 0.8530020444 | I34: =연간재무제표DB!D7/연간재무제표DB!D21 -> 0.688700354 | J34: =연간재무제표DB!E7/연간재무제표DB!E21 -> 0.7026124462 | K34: =연간재무제표DB!F7/연간재무제표DB!F21 -> 0.775119884 | L34: =연간재무제표DB!G7/연간재무제표DB!G21 -> 0.8190501857 | M34: =연간재무제표DB!H7/연간재무제표DB!H21 -> 1.270901965 | N34: =연간재무제표DB!I7/연간재무제표DB!I21 -> 1.048313413 | O34: =연간재무제표DB!J7/연간재무제표DB!J21 -> 1.072030004 | P34: =연간재무제표DB!K7/연간재무제표DB!K21 -> 1.448348786
C35: 당좌비율(당좌자산/유동부채) | F35: .
B36: 20) | C36: -70%이상 유지(↑) | D36: 2 | F36: 당좌비율(70%이상) | G36: =(연간재무제표DB!B60+연간재무제표DB!B61)/연간재무제표DB!B21 -> 0.3831511921 | H36: =(연간재무제표DB!C60+연간재무제표DB!C61)/연간재무제표DB!C21 -> 0.5286420551 | I36: =(연간재무제표DB!D60+연간재무제표DB!D61)/연간재무제표DB!D21 -> 0.4842014924 | J36: =(연간재무제표DB!E60+연간재무제표DB!E61)/연간재무제표DB!E21 -> 0.4707700013 | K36: =(연간재무제표DB!F60+연간재무제표DB!F61)/연간재무제표DB!F21 -> 0.5450357401 | L36: =(연간재무제표DB!G60+연간재무제표DB!G61)/연간재무제표DB!G21 -> 0.4710289495 | M36: =(연간재무제표DB!H60+연간재무제표DB!H61)/연간재무제표DB!H21 -> 0.8543472673 | N36: =(연간재무제표DB!I60+연간재무제표DB!I61)/연간재무제표DB!I21 -> 0.6160011768 | O36: =(연간재무제표DB!J60+연간재무제표DB!J61)/연간재무제표DB!J21 -> 0.7289264845 | P36: =(연간재무제표DB!K60+연간재무제표DB!K61)/연간재무제표DB!K21 -> 1.046226295
C37: 현금비율(현금/유동자산) | F37: .
B38: 21) | C38: -20%이상 유지(↑) | D38: 4 | F38: 현금비율(20%이상) | G38: =연간재무제표DB!B60/연간재무제표DB!B7 -> 0.158312123 | H38: =연간재무제표DB!C60/연간재무제표DB!C7 -> 0.3179333927 | I38: =연간재무제표DB!D60/연간재무제표DB!D7 -> 0.3233246882 | J38: =연간재무제표DB!E60/연간재무제표DB!E7 -> 0.2753521199 | K38: =연간재무제표DB!F60/연간재무제표DB!F7 -> 0.3056036046 | L38: =연간재무제표DB!G60/연간재무제표DB!G7 -> 0.182515849 | M38: =연간재무제표DB!H60/연간재무제표DB!H7 -> 0.3515929285 | N38: =연간재무제표DB!I60/연간재무제표DB!I7 -> 0.2149243971 | O38: =연간재무제표DB!J60/연간재무제표DB!J7 -> 0.2811378048 | P38: =연간재무제표DB!K60/연간재무제표DB!K7 -> 0.4099860112
C39: 단기차입금 비율(단기차입금/유동부채) | F39: .
B40: 22) | C40: -40%이하로 유지(↓) | D40: 10 | F40: 단기차입금(40%이하) | G40: =연간재무제표DB!B62/연간재무제표DB!B21 -> 0.05347529588 | H40: =연간재무제표DB!C62/연간재무제표DB!C21 -> 0.04956058542 | I40: =연간재무제표DB!D62/연간재무제표DB!D21 -> 0.03820779165 | J40: =연간재무제표DB!E62/연간재무제표DB!E21 -> 0.03028593293 | K40: =연간재무제표DB!F62/연간재무제표DB!F21 -> 0.03610939555 | L40: =연간재무제표DB!G62/연간재무제표DB!G21 -> 0.05844849372 | M40: =연간재무제표DB!H62/연간재무제표DB!H21 -> 0.1160487166 | N40: =연간재무제표DB!I62/연간재무제표DB!I21 -> 0.08647756621 | O40: =연간재무제표DB!J62/연간재무제표DB!J21 -> 0.06666974442 | P40: =연간재무제표DB!K62/연간재무제표DB!K21 -> 0.09252590914
C41: 보유현금과 시가총액비교 | F41: .
B42: 23) | C42: -80~120% (↔) | D42: 4 | F42: 현금/시총(80~120) | G42: =연간재무제표DB!B60/연간재무제표DB!B91 -> 0.09516167605 | H42: =연간재무제표DB!C60/연간재무제표DB!C91 -> 0.2098220592 | I42: =연간재무제표DB!D60/연간재무제표DB!D91 -> 0.297008685 | J42: =연간재무제표DB!E60/연간재무제표DB!E91 -> 0.2939091294 | K42: =연간재무제표DB!F60/연간재무제표DB!F91 -> 0.2364186101 | L42: =연간재무제표DB!G60/연간재무제표DB!G91 -> 0.03654499871 | M42: =연간재무제표DB!H60/연간재무제표DB!H91 -> 0.06425715127 | N42: =연간재무제표DB!I60/연간재무제표DB!I91 -> 0.05384851702 | O42: =연간재무제표DB!J60/연간재무제표DB!J91 -> 0.03149787564 | P42: =연간재무제표DB!K60/연간재무제표DB!K91 -> 0.03482454127
C43: 유동현금과 시가총액비교 | F43: .
B44: 24) | C44: -80~120% (↔) | D44: 0 | F44: 유동현금/시총(80~120) | G44: =(연간재무제표DB!B7-연간재무제표DB!B21)/연간재무제표DB!B91 -> -0.1519753753 | H44: =(연간재무제표DB!C7-연간재무제표DB!C21)/연간재무제표DB!C91 -> -0.1137303101 | I44: =(연간재무제표DB!D7-연간재무제표DB!D21)/연간재무제표DB!D91 -> -0.4152203231 | J44: =(연간재무제표DB!E7-연간재무제표DB!E21)/연간재무제표DB!E91 -> -0.4517847861 | K44: =(연간재무제표DB!F7-연간재무제표DB!F21)/연간재무제표DB!F91 -> -0.2244426387 | L44: =(연간재무제표DB!G7-연간재무제표DB!G21)/연간재무제표DB!G91 -> -0.04423591315 | M44: =(연간재무제표DB!H7-연간재무제표DB!H21)/연간재무제표DB!H91 -> 0.03895663537 | N44: =(연간재무제표DB!I7-연간재무제표DB!I21)/연간재무제표DB!I91 -> 0.0115468788 | O44: =(연간재무제표DB!J7-연간재무제표DB!J21)/연간재무제표DB!J91 -> 0.007527807664 | P44: =(연간재무제표DB!K7-연간재무제표DB!K21)/연간재무제표DB!K91 -> 0.02629415412
C45: 차입금과 시가총액비교 | F45: .
B46: 25) | C46: -5% 이하(↓) | D46: 10 | F46: 차입금/시총(5%이하) | G46: =연간재무제표DB!B62/연간재무제표DB!B91 -> 0.04027101596 | H46: =연간재무제표DB!C62/연간재무제표DB!C91 -> 0.03834434788 | I46: =연간재무제표DB!D62/연간재무제표DB!D91 -> 0.05096263937 | J46: =연간재무제표DB!E62/연간재무제표DB!E91 -> 0.04600973899 | K46: =연간재무제표DB!F62/연간재무제표DB!F91 -> 0.03603914906 | L46: =연간재무제표DB!G62/연간재무제표DB!G91 -> 0.01428861644 | M46: =연간재무제표DB!H62/연간재무제표DB!H91 -> 0.01668820504 | N46: =연간재무제표DB!I62/연간재무제표DB!I91 -> 0.02066809009 | O46: =연간재무제표DB!J62/연간재무제표DB!J91 -> 0.006967610485 | P46: =연간재무제표DB!K62/연간재무제표DB!K91 -> 0.005426334565
C47: 현금흐름 관련 부석 | F47: .
C48: -영업활동현금흐름 (+) | F48: . | G48: =IF(연간재무제표DB!B72>0,"+","-") -> + | H48: =IF(연간재무제표DB!C72>0,"+","-") -> + | I48: =IF(연간재무제표DB!D72>0,"+","-") -> + | J48: =IF(연간재무제표DB!E72>0,"+","-") -> - | K48: =IF(연간재무제표DB!F72>0,"+","-") -> + | L48: =IF(연간재무제표DB!G72>0,"+","-") -> + | M48: =IF(연간재무제표DB!H72>0,"+","-") -> + | N48: =IF(연간재무제표DB!I72>0,"+","-") -> - | O48: =IF(연간재무제표DB!J72>0,"+","-") -> + | P48: =IF(연간재무제표DB!K72>0,"+","-") -> +
C49: -투자활동현금흐흠 (-) | F49: . | G49: =IF(연간재무제표DB!B73>0,"+","-") -> - | H49: =IF(연간재무제표DB!C73>0,"+","-") -> - | I49: =IF(연간재무제표DB!D73>0,"+","-") -> - | J49: =IF(연간재무제표DB!E73>0,"+","-") -> - | K49: =IF(연간재무제표DB!F73>0,"+","-") -> - | L49: =IF(연간재무제표DB!G73>0,"+","-") -> - | M49: =IF(연간재무제표DB!H73>0,"+","-") -> - | N49: =IF(연간재무제표DB!I73>0,"+","-") -> - | O49: =IF(연간재무제표DB!J73>0,"+","-") -> - | P49: =IF(연간재무제표DB!K73>0,"+","-") -> -
C50: -재무활동현금흐름 (+ or -) | F50: . | G50: =IF(연간재무제표DB!B74>0,"+","-") -> + | H50: =IF(연간재무제표DB!C74>0,"+","-") -> + | I50: =IF(연간재무제표DB!D74>0,"+","-") -> + | J50: =IF(연간재무제표DB!E74>0,"+","-") -> + | K50: =IF(연간재무제표DB!F74>0,"+","-") -> + | L50: =IF(연간재무제표DB!G74>0,"+","-") -> + | M50: =IF(연간재무제표DB!H74>0,"+","-") -> + | N50: =IF(연간재무제표DB!I74>0,"+","-") -> + | O50: =IF(연간재무제표DB!J74>0,"+","-") -> + | P50: =IF(연간재무제표DB!K74>0,"+","-") -> +
B51: 26) | C51: : (+,-,+):성장기업 / (+,-,-)우량기업 | D51: 10 | F51: . | G51: =IF(AND(G48="+",G49="+",G50="+"),"전환",IF(AND(G48="+",G49="+",G50="-"),"성숙",IF(AND(G48="+",G49="-",G50="+"),"성장",IF(AND(G48="+",G49="-",G50="-"),"우량",IF(AND(G48="-",G49="-",G50="+"),"초기"))))) -> 성장 | H51: 성장 | I51: 성장 | J51: 초기 | K51: 성장 | L51: 성장 | M51: 성장 | N51: 초기 | O51: 성장 | P51: 성장
B52: 27) | C52: -영업현금/당기순이익(↑) | D52: 5 | F52: 당순/영업현금(150%이상) | G52: =연간재무제표DB!B72/연간재무제표DB!B46 -> 4.128816723 | H52: =연간재무제표DB!C72/연간재무제표DB!C46 -> -11.71280197 | I52: =연간재무제표DB!D72/연간재무제표DB!D46 -> -1.15046625 | J52: =연간재무제표DB!E72/연간재무제표DB!E46 -> 0.2271058523 | K52: =연간재무제표DB!F72/연간재무제표DB!F46 -> 5.834243662 | L52: =연간재무제표DB!G72/연간재무제표DB!G46 -> -0.1166031597 | M52: =연간재무제표DB!H72/연간재무제표DB!H46 -> 6.575464247 | N52: =연간재무제표DB!I72/연간재무제표DB!I46 -> 7.162008683 | O52: =연간재무제표DB!J72/연간재무제표DB!J46 -> 1.989034069 | P52: =연간재무제표DB!K72/연간재무제표DB!K46 -> 0.3297355847
B53: 28) | C53: -영업현금/매출액 비율(↑) | D53: 1 | F53: 매출/영업현금(15%이상) | G53: =연간재무제표DB!B72/연간재무제표DB!B34 -> 0.1845774838 | H53: =연간재무제표DB!C72/연간재무제표DB!C34 -> 0.1187771701 | I53: =연간재무제표DB!D72/연간재무제표DB!D34 -> 0.1033930893 | J53: =연간재무제표DB!E72/연간재무제표DB!E34 -> -0.01896159491 | K53: =연간재무제표DB!F72/연간재무제표DB!F34 -> 0.0606777042 | L53: =연간재무제표DB!G72/연간재무제표DB!G34 -> 0.01000201454 | M53: =연간재무제표DB!H72/연간재무제표DB!H34 -> 0.02519642882 | N53: =연간재무제표DB!I72/연간재무제표DB!I34 -> -0.05563850116 | O53: =연간재무제표DB!J72/연간재무제표DB!J34 -> 0.06537727959 | P53: =연간재무제표DB!K72/연간재무제표DB!K34 -> 0.03795576576
B54: 29) | C54: -영업현금/유동부채 비율(↑) | D54: 2 | F54: 영업현금/부채(80%이상) | G54: =연간재무제표DB!B72/(연간재무제표DB!B21) -> 0.374570768 | H54: =연간재무제표DB!C72/(연간재무제표DB!C21) -> 0.1856789649 | I54: =연간재무제표DB!D72/(연간재무제표DB!D21) -> 0.1454539991 | J54: =연간재무제표DB!E72/(연간재무제표DB!E21) -> -0.02087254009 | K54: =연간재무제표DB!F72/(연간재무제표DB!F21) -> 0.07467290946 | L54: =연간재무제표DB!G72/(연간재무제표DB!G21) -> 0.01810952374 | M54: =연간재무제표DB!H72/(연간재무제표DB!H21) -> 0.05987778608 | N54: =연간재무제표DB!I72/(연간재무제표DB!I21) -> -0.1101759228 | O54: =연간재무제표DB!J72/(연간재무제표DB!J21) -> 0.1558996898 | P54: =연간재무제표DB!K72/(연간재무제표DB!K21) -> 0.09365652382
A55: 활동성 | C55: 총 자산 회전율 | F55: .
B56: 30) | C56: -매출액/총자산, 80%이상(↑) | D56: 2 | F56: 자산회전율(80%이상) | G56: . | H56: =연간재무제표DB!C34/((연간재무제표DB!C6+연간재무제표DB!B6)/2) -> 0.6828513657 | I56: =연간재무제표DB!D34/((연간재무제표DB!D6+연간재무제표DB!C6)/2) -> 0.6083670432 | J56: =연간재무제표DB!E34/((연간재무제표DB!E6+연간재무제표DB!D6)/2) -> 0.4600780104 | K56: =연간재무제표DB!F34/((연간재무제표DB!F6+연간재무제표DB!E6)/2) -> 0.4918634284 | L56: =연간재무제표DB!G34/((연간재무제표DB!G6+연간재무제표DB!F6)/2) -> 0.6789716866 | M56: =연간재무제표DB!H34/((연간재무제표DB!H6+연간재무제표DB!G6)/2) -> 0.6700327715 | N56: =연간재무제표DB!I34/((연간재무제표DB!I6+연간재무제표DB!H6)/2) -> 0.6383837601 | O56: =연간재무제표DB!J34/((연간재무제표DB!J6+연간재무제표DB!I6)/2) -> 0.7780944164 | P56: =연간재무제표DB!K34/((연간재무제표DB!K6+연간재무제표DB!J6)/2) -> 0.7879025983
C57: 총 자본 회전율 | F57: .
B58: 31) | C58: -매출액/총자본, 160%이상(↑) | D58: 4 | F58: 자본회전율(160%이상) | G58: . | H58: =연간재무제표DB!C34/((연간재무제표DB!C29+연간재무제표DB!B29)/2) -> 1.686290487 | I58: =연간재무제표DB!D34/((연간재무제표DB!D29+연간재무제표DB!C29)/2) -> 1.557977914 | J58: =연간재무제표DB!E34/((연간재무제표DB!E29+연간재무제표DB!D29)/2) -> 1.206116008 | K58: =연간재무제표DB!F34/((연간재무제표DB!F29+연간재무제표DB!E29)/2) -> 1.218114284 | L58: =연간재무제표DB!G34/((연간재무제표DB!G29+연간재무제표DB!F29)/2) -> 1.653916565 | M58: =연간재무제표DB!H34/((연간재무제표DB!H29+연간재무제표DB!G29)/2) -> 1.491344676 | N58: =연간재무제표DB!I34/((연간재무제표DB!I29+연간재무제표DB!H29)/2) -> 1.404346415 | O58: =연간재무제표DB!J34/((연간재무제표DB!J29+연간재무제표DB!I29)/2) -> 1.82449928 | P58: =연간재무제표DB!K34/((연간재무제표DB!K29+연간재무제표DB!J29)/2) -> 1.813406741
C59: 순 운전자본 회전율 | F59: .
B60: 32) | C60: -매출액/순운전자본, 300%이상(↑) | D60: 2 | F60: 운전회전율(300%이상) | G60: . | H60: =연간재무제표DB!C34/((연간재무제표DB!C60+연간재무제표DB!B60+연간재무제표DB!C61+연간재무제표DB!B61+연간재무제표DB!C13+연간재무제표DB!B13-연간재무제표DB!C25-연간재무제표DB!B25)/2) -> 2.227803077 | I60: =연간재무제표DB!D34/((연간재무제표DB!D60+연간재무제표DB!C60+연간재무제표DB!D61+연간재무제표DB!C61+연간재무제표DB!D13+연간재무제표DB!C13-연간재무제표DB!D25-연간재무제표DB!C25)/2) -> 2.096230218 | J60: =연간재무제표DB!E34/((연간재무제표DB!E60+연간재무제표DB!D60+연간재무제표DB!E61+연간재무제표DB!D61+연간재무제표DB!E13+연간재무제표DB!D13-연간재무제표DB!E25-연간재무제표DB!D25)/2) -> 1.817156254 | K60: =연간재무제표DB!F34/((연간재무제표DB!F60+연간재무제표DB!E60+연간재무제표DB!F61+연간재무제표DB!E61+연간재무제표DB!F13+연간재무제표DB!E13-연간재무제표DB!F25-연간재무제표DB!E25)/2) -> 1.952019124 | L60: =연간재무제표DB!G34/((연간재무제표DB!G60+연간재무제표DB!F60+연간재무제표DB!G61+연간재무제표DB!F61+연간재무제표DB!G13+연간재무제표DB!F13-연간재무제표DB!G25-연간재무제표DB!F25)/2) -> 2.586051874 | M60: =연간재무제표DB!H34/((연간재무제표DB!H60+연간재무제표DB!G60+연간재무제표DB!H61+연간재무제표DB!G61+연간재무제표DB!H13+연간재무제표DB!G13-연간재무제표DB!H25-연간재무제표DB!G25)/2) -> 2.4484655 | N60: =연간재무제표DB!I34/((연간재무제표DB!I60+연간재무제표DB!H60+연간재무제표DB!I61+연간재무제표DB!H61+연간재무제표DB!I13+연간재무제표DB!H13-연간재무제표DB!I25-연간재무제표DB!H25)/2) -> 2.25724937 | O60: =연간재무제표DB!J34/((연간재무제표DB!J60+연간재무제표DB!I60+연간재무제표DB!J61+연간재무제표DB!I61+연간재무제표DB!J13+연간재무제표DB!I13-연간재무제표DB!J25-연간재무제표DB!I25)/2) -> 2.706865498 | P60: =연간재무제표DB!K34/((연간재무제표DB!K60+연간재무제표DB!J60+연간재무제표DB!K61+연간재무제표DB!J61+연간재무제표DB!K13+연간재무제표DB!J13-연간재무제표DB!K25-연간재무제표DB!J25)/2) -> 2.462114153
C61: 유형자산 회전율 (산업비교) | F61: .
B62: 33) | C62: -매출액/유형자산, 280%이상(↑) | D62: 0 | F62: 유형자산회전율(280%이상) | G62: . | H62: =연간재무제표DB!C34/((연간재무제표DB!C17+연간재무제표DB!B17)/2) -> 1.2916367 | I62: =연간재무제표DB!D34/((연간재무제표DB!D17+연간재무제표DB!C17)/2) -> 1.074159845 | J62: =연간재무제표DB!E34/((연간재무제표DB!E17+연간재무제표DB!D17)/2) -> 0.7273188782 | K62: =연간재무제표DB!F34/((연간재무제표DB!F17+연간재무제표DB!E17)/2) -> 0.7754627758 | L62: =연간재무제표DB!G34/((연간재무제표DB!G17+연간재무제표DB!F17)/2) -> 1.063632925 | M62: =연간재무제표DB!H34/((연간재무제표DB!H17+연간재무제표DB!G17)/2) -> 1.013610207 | N62: =연간재무제표DB!I34/((연간재무제표DB!I17+연간재무제표DB!H17)/2) -> 0.9606025306 | O62: =연간재무제표DB!J34/((연간재무제표DB!J17+연간재무제표DB!I17)/2) -> 1.181983698 | P62: =연간재무제표DB!K34/((연간재무제표DB!K17+연간재무제표DB!J17)/2) -> 1.297649356
C63: 시가총액<운전자본 | F63: .
B64: 34) | C64: - 1보다 작으면 저평가(↓) | D64: 5 | F64: 시총/운전자본(1이하) | G64: =연간재무제표DB!B91/(연간재무제표DB!B60+연간재무제표DB!B61+연간재무제표DB!B11-연간재무제표DB!B25) -> 2.3598487 | H64: =연간재무제표DB!C91/(연간재무제표DB!C60+연간재무제표DB!C61+연간재무제표DB!C11-연간재무제표DB!C25) -> 1.793241046 | I64: =연간재무제표DB!D91/(연간재무제표DB!D60+연간재무제표DB!D61+연간재무제표DB!D11-연간재무제표DB!D25) -> 1.078560042 | J64: =연간재무제표DB!E91/(연간재무제표DB!E60+연간재무제표DB!E61+연간재무제표DB!E11-연간재무제표DB!E25) -> 0.9283727627 | K64: =연간재무제표DB!F91/(연간재무제표DB!F60+연간재무제표DB!F61+연간재무제표DB!F11-연간재무제표DB!F25) -> 1.253648625 | L64: =연간재무제표DB!G91/(연간재무제표DB!G60+연간재무제표DB!G61+연간재무제표DB!G11-연간재무제표DB!G25) -> 5.769003081 | M64: =연간재무제표DB!H91/(연간재무제표DB!H60+연간재무제표DB!H61+연간재무제표DB!H11-연간재무제표DB!H25) -> 5.926795465 | N64: =연간재무제표DB!I91/(연간재무제표DB!I60+연간재무제표DB!I61+연간재무제표DB!I11-연간재무제표DB!I25) -> 4.51887481 | O64: =연간재무제표DB!J91/(연간재무제표DB!J60+연간재무제표DB!J61+연간재무제표DB!J11-연간재무제표DB!J25) -> 9.059232675 | P64: =연간재무제표DB!K91/(연간재무제표DB!K60+연간재무제표DB!K61+연간재무제표DB!K11-연간재무제표DB!K25) -> 12.04460645
C65: 매출채권(외상판매) 빨리 (산업비교) | F65: .
B66: 35) | C66: -매출채권/매출액 대비 (↑) | D66: 5 | F66: 매출채권(20%이상) | G66: . | H66: =(연간재무제표DB!C61)/연간재무제표DB!C34 -> 0.1646847614 | I66: =(연간재무제표DB!D61)/연간재무제표DB!D34 -> 0.1859017517 | J66: =(연간재무제표DB!E61)/연간재무제표DB!E34 -> 0.2519161255 | K66: =(연간재무제표DB!F61)/연간재무제표DB!F34 -> 0.2504016186 | L66: =(연간재무제표DB!G61)/연간재무제표DB!G34 -> 0.1775883725 | M66: =(연간재무제표DB!H61)/연간재무제표DB!H34 -> 0.1714780205 | N66: =(연간재무제표DB!I61)/연간재무제표DB!I34 -> 0.1972987843 | O66: =(연간재무제표DB!J61)/연간재무제표DB!J34 -> 0.1792902376 | P66: =(연간재무제표DB!K61)/연간재무제표DB!K34 -> 0.1833516955
B67: 36) | C67: -일정유지금액 유지(↔) | D67: 2 | I67: =(I66-H66)/H66 -> 0.1288339622 | J67: 0.3551035598 | K67: -0.006011949084 | L67: -0.2907858444 | M67: -0.03440738751 | N67: 0.1505776875 | O67: -0.09127550781 | P67: 0.02265297854
B68: 37) | C68: -매출채권회수기간(산업비교)(일)(↓) | D68: 1 | F68: 매출채권회수(빨리) | G68: . | H68: =365/(연간재무제표DB!C34/((연간재무제표DB!C61+연간재무제표DB!B61)/2)) -> 60.55343426 | I68: =365/(연간재무제표DB!D34/((연간재무제표DB!D61+연간재무제표DB!C61)/2)) -> 67.80132828 | J68: =365/(연간재무제표DB!E34/((연간재무제표DB!E61+연간재무제표DB!D61)/2)) -> 87.64363559 | K68: =365/(연간재무제표DB!F34/((연간재무제표DB!F61+연간재무제표DB!E61)/2)) -> 84.64040523 | L68: =365/(연간재무제표DB!G34/((연간재무제표DB!G61+연간재무제표DB!F61)/2)) -> 65.64055062 | M68: =365/(연간재무제표DB!H34/((연간재무제표DB!H61+연간재무제표DB!G61)/2)) -> 60.69934896 | N68: =365/(연간재무제표DB!I34/((연간재무제표DB!I61+연간재무제표DB!H61)/2)) -> 63.68554644 | O68: =365/(연간재무제표DB!J34/((연간재무제표DB!J61+연간재무제표DB!I61)/2)) -> 59.83680675 | P68: =365/(연간재무제표DB!K34/((연간재무제표DB!K61+연간재무제표DB!J61)/2)) -> 58.90979087
C69: 매입채무(외상구입) 늦게 (산업비교) | F69: .
B70: 38) | C70: -매입채무/매출액 대비 (↔) | D70: 5 | F70: 매입채무(5~10/45~50) | G70: . | H70: =(연간재무제표DB!C25)/(연간재무제표DB!C34) -> 0.04178255677 | I70: =(연간재무제표DB!D25)/(연간재무제표DB!D34) -> 0.03597916452 | J70: =(연간재무제표DB!E25)/(연간재무제표DB!E34) -> 0.03546335455 | K70: =(연간재무제표DB!F25)/(연간재무제표DB!F34) -> 0.04385133997 | L70: =(연간재무제표DB!G25)/(연간재무제표DB!G34) -> 0.04612273782 | M70: =(연간재무제표DB!H25)/(연간재무제표DB!H34) -> 0.0372615378 | N70: =(연간재무제표DB!I25)/(연간재무제표DB!I34) -> 0.04079144775 | O70: =(연간재무제표DB!J25)/(연간재무제표DB!J34) -> 0.0420390306 | P70: =(연간재무제표DB!K25)/(연간재무제표DB!K34) -> 0.03362603554
B71: 39) | C71: -일정유지금액 유지(↔) | D71: 3 | I71: =(I70-H70)/H70 -> -0.1388950963 | J71: -0.0143363522 | K71: 0.2365254367 | L71: 0.05179768406 | M71: -0.1921221602 | N71: 0.09473334048 | O71: 0.03058442204 | P71: -0.2001234314
B72: 40) | C72: -매입채무결제기간(산업비교)(일)(↑) | D72: 1 | F72: 매입채무결제(늦게) | G72: . | H72: =365/((연간재무제표DB!C35+연간재무제표DB!C13-연간재무제표DB!B13)/((연간재무제표DB!C25+연간재무제표DB!B25)/2)) -> 23.4672225 | I72: =365/((연간재무제표DB!D35+연간재무제표DB!D13-연간재무제표DB!C13)/((연간재무제표DB!D25+연간재무제표DB!C25)/2)) -> 20.41145262 | J72: =365/((연간재무제표DB!E35+연간재무제표DB!E13-연간재무제표DB!D13)/((연간재무제표DB!E25+연간재무제표DB!D25)/2)) -> 18.14220601 | K72: =365/((연간재무제표DB!F35+연간재무제표DB!F13-연간재무제표DB!E13)/((연간재무제표DB!F25+연간재무제표DB!E25)/2)) -> 18.32995951 | L72: =365/((연간재무제표DB!G35+연간재무제표DB!G13-연간재무제표DB!F13)/((연간재무제표DB!G25+연간재무제표DB!F25)/2)) -> 16.82397557 | M72: =365/((연간재무제표DB!H35+연간재무제표DB!H13-연간재무제표DB!G13)/((연간재무제표DB!H25+연간재무제표DB!G25)/2)) -> 18.06788946 | N72: =365/((연간재무제표DB!I35+연간재무제표DB!I13-연간재무제표DB!H13)/((연간재무제표DB!I25+연간재무제표DB!H25)/2)) -> 15.66703923 | O72: =365/((연간재무제표DB!J35+연간재무제표DB!J13-연간재무제표DB!I13)/((연간재무제표DB!J25+연간재무제표DB!I25)/2)) -> 16.77417392 | P72: =365/((연간재무제표DB!K35+연간재무제표DB!K13-연간재무제표DB!J13)/((연간재무제표DB!K25+연간재무제표DB!J25)/2)) -> 14.93057599
C73: 재고자산 빨리(산업비교) | F73: .
B74: 41) | C74: -재고자산/매출액 대비 (↓) | D74: 4 | F74: 재고자산(25%이하) | G74: . | H74: =(연간재무제표DB!C13)/연간재무제표DB!C34 -> 0.1599209732 | I74: =(연간재무제표DB!D13)/연간재무제표DB!D34 -> 0.1315959053 | J74: =(연간재무제표DB!E13)/연간재무제표DB!E34 -> 0.1682537685 | K74: =(연간재무제표DB!F13)/연간재무제표DB!F34 -> 0.1508179542 | L74: =(연간재무제표DB!G13)/연간재무제표DB!G34 -> 0.1595113183 | M74: =(연간재무제표DB!H13)/연간재무제표DB!H34 -> 0.1556885966 | N74: =(연간재무제표DB!I13)/연간재무제표DB!I34 -> 0.1930395959 | O74: =(연간재무제표DB!J13)/연간재무제표DB!J34 -> 0.1262978974 | P74: =(연간재무제표DB!K13)/연간재무제표DB!K34 -> 0.1186653585
B75: 42) | C75: -일정유지금액 유지(↔) | D75: 4 | I75: =(I74-H74)/H74 -> -0.1771191566 | J75: 0.2785638591 | K75: -0.1036280762 | L75: 0.05764144078 | M75: -0.02396520714 | N75: 0.2399083825 | O75: -0.345740977 | P75: -0.06043282669
B76: 43) | C76: -재고자산보유기간(산업비교)(일)(↓) | D76: 4 | F76: 재고자산보유(짧게) | G76: . | H76: =365/(연간재무제표DB!C35/((연간재무제표DB!C13+연간재무제표DB!B13)/2)) -> 91.96667557 | I76: =365/(연간재무제표DB!D35/((연간재무제표DB!D13+연간재무제표DB!C13)/2)) -> 71.91199831 | J76: =365/(연간재무제표DB!E35/((연간재무제표DB!E13+연간재무제표DB!D13)/2)) -> 75.76209682 | K76: =365/(연간재무제표DB!F35/((연간재무제표DB!F13+연간재무제표DB!E13)/2)) -> 73.59825655 | L76: =365/(연간재무제표DB!G35/((연간재무제표DB!G13+연간재무제표DB!F13)/2)) -> 61.68590593 | M76: =365/(연간재무제표DB!H35/((연간재무제표DB!H13+연간재무제표DB!G13)/2)) -> 69.56736322 | N76: =365/(연간재무제표DB!I35/((연간재무제표DB!I13+연간재무제표DB!H13)/2)) -> 75.10076275 | O76: =365/(연간재무제표DB!J35/((연간재무제표DB!J13+연간재무제표DB!I13)/2)) -> 61.15924092 | P76: =365/(연간재무제표DB!K35/((연간재무제표DB!K13+연간재무제표DB!J13)/2)) -> 50.09058063
C77: CCC(낮을수록 현금이 잘돔) | F77: .
B78: 44) | C78: -매출채권+재고자산-매입채무(↓) | D78: 2 | F78: CCC(100일이하) | G78: . | H78: =H68-H72+H76 -> 129.0528873 | I78: 119.301874 | J78: 145.2635264 | K78: 139.9087023 | L78: 110.502481 | M78: 112.1988227 | N78: 123.11927 | O78: 104.2218737 | P78: 94.06979551
A79: 수익성 | C79: 포괄손익계산서 분석 | F79: .
B80: 45) | C80: -매출액/자본 (200%이상)(↑) | D80: 1 | F80: 매출/자본(200%이상) | G80: . | H80: =연간재무제표DB!C69/((연간재무제표DB!C30+연간재무제표DB!B30)/2) -> 1.686290487 | I80: =연간재무제표DB!D69/((연간재무제표DB!D30+연간재무제표DB!C30)/2) -> 1.557977914 | J80: =연간재무제표DB!E69/((연간재무제표DB!E30+연간재무제표DB!D30)/2) -> 1.206116008 | K80: =연간재무제표DB!F69/((연간재무제표DB!F30+연간재무제표DB!E30)/2) -> 1.218114284 | L80: =연간재무제표DB!G69/((연간재무제표DB!G30+연간재무제표DB!F30)/2) -> 1.672919811 | M80: =연간재무제표DB!H69/((연간재무제표DB!H30+연간재무제표DB!G30)/2) -> 1.520351222 | N80: =연간재무제표DB!I69/((연간재무제표DB!I30+연간재무제표DB!H30)/2) -> 1.429585071 | O80: =연간재무제표DB!J69/((연간재무제표DB!J30+연간재무제표DB!I30)/2) -> 1.861078564 | P80: =연간재무제표DB!K69/((연간재무제표DB!K30+연간재무제표DB!J30)/2) -> 1.845512551
B81: 46) | C81: -매출총이익률 (60%이상)(↑) | D81: 2 | F81: 매출총이익율(60%이상) | G81: =연간재무제표DB!B36/연간재무제표DB!B34 -> 0.226687764 | H81: =연간재무제표DB!C36/연간재무제표DB!C34 -> 0.2017183783 | I81: =연간재무제표DB!D36/연간재무제표DB!D34 -> 0.2086071613 | J81: =연간재무제표DB!E36/연간재무제표DB!E34 -> 0.2053694973 | K81: =연간재무제표DB!F36/연간재무제표DB!F34 -> 0.2726246801 | L81: =연간재무제표DB!G36/연간재무제표DB!G34 -> 0.2036140256 | M81: =연간재무제표DB!H36/연간재무제표DB!H34 -> 0.2119202738 | N81: =연간재무제표DB!I36/연간재무제표DB!I34 -> 0.1962844542 | O81: =연간재무제표DB!J36/연간재무제표DB!J34 -> 0.1893239706 | P81: =연간재무제표DB!K36/연간재무제표DB!K34 -> 0.209773484
B82: 47) | C82: -영업이익률(20%이상)(↑) | D82: 1 | F82: 영익(20%이상) | G82: =연간재무제표DB!B38/연간재무제표DB!B34 -> 0.08086493287 | H82: =연간재무제표DB!C38/연간재무제표DB!C34 -> 0.01730933019 | I82: =연간재무제표DB!D38/연간재무제표DB!D34 -> 0.004622237992 | J82: =연간재무제표DB!E38/연간재무제표DB!E34 -> -0.04038503356 | K82: =연간재무제표DB!F38/연간재무제표DB!F34 -> 0.05941695956 | L82: =연간재무제표DB!G38/연간재무제표DB!G34 -> 0.03188177576 | M82: =연간재무제표DB!H38/연간재무제표DB!H34 -> 0.03633981716 | N82: =연간재무제표DB!I38/연간재무제표DB!I34 -> 0.02288285805 | O82: =연간재무제표DB!J38/연간재무제표DB!J34 -> 0.05837473257 | P82: =연간재무제표DB!K38/연간재무제표DB!K34 -> 0.08855259574
B83: 48) | C83: -영익/당순 (100%이하) (↔) | D83: 0 | F83: 당순/영익(100%이하) | G83: =연간재무제표DB!B46/연간재무제표DB!B38 -> 0.5528316336 | H83: =연간재무제표DB!C46/연간재무제표DB!C38 -> -0.5858573871 | I83: =연간재무제표DB!D46/연간재무제표DB!D38 -> -19.44309178 | J83: =연간재무제표DB!E46/연간재무제표DB!E38 -> 2.067407514 | K83: =연간재무제표DB!F46/연간재무제표DB!F38 -> 0.1750387296 | L83: =연간재무제표DB!G46/연간재무제표DB!G38 -> -2.690510303 | M83: =연간재무제표DB!H46/연간재무제표DB!H38 -> 0.1054459326 | N83: =연간재무제표DB!I46/연간재무제표DB!I38 -> -0.3394926 | O83: =연간재무제표DB!J46/연간재무제표DB!J38 -> 0.5630665386 | P83: =연간재무제표DB!K46/연간재무제표DB!K38 -> 1.299902094
B84: 49) | C84: -매출액/유무형자산(??)(↑) | D84: 0 | F84: 매출액/유무형(1200%이상) | G84: . | H84: =연간재무제표DB!C69/((연간재무제표DB!C17+연간재무제표DB!C18+연간재무제표DB!B17+연간재무제표DB!B18)/2) -> 1.095080709 | I84: =연간재무제표DB!D69/((연간재무제표DB!D17+연간재무제표DB!D18+연간재무제표DB!C17+연간재무제표DB!C18)/2) -> 0.9298969408 | J84: =연간재무제표DB!E69/((연간재무제표DB!E17+연간재무제표DB!E18+연간재무제표DB!D17+연간재무제표DB!D18)/2) -> 0.6520340442 | K84: =연간재무제표DB!F69/((연간재무제표DB!F17+연간재무제표DB!F18+연간재무제표DB!E17+연간재무제표DB!E18)/2) -> 0.6981900765 | L84: =연간재무제표DB!G69/((연간재무제표DB!G17+연간재무제표DB!G18+연간재무제표DB!F17+연간재무제표DB!F18)/2) -> 0.9922251862 | M84: =연간재무제표DB!H69/((연간재무제표DB!H17+연간재무제표DB!H18+연간재무제표DB!G17+연간재무제표DB!G18)/2) -> 0.9891566739 | N84: =연간재무제표DB!I69/((연간재무제표DB!I17+연간재무제표DB!I18+연간재무제표DB!H17+연간재무제표DB!H18)/2) -> 0.9462158292 | O84: =연간재무제표DB!J69/((연간재무제표DB!J17+연간재무제표DB!J18+연간재무제표DB!I17+연간재무제표DB!I18)/2) -> 1.169491167 | P84: =연간재무제표DB!K69/((연간재무제표DB!K17+연간재무제표DB!K18+연간재무제표DB!J17+연간재무제표DB!J18)/2) -> 1.286443946
C85: 영업이익 관련 분석 | F85: .
B86: 50) | C86: -영익 대비 영업외수익 비율 (↔) | D86: 3 | F86: 영업외수익/영익(일정) | G86: =연간재무제표DB!B64/연간재무제표DB!B38 -> 0.1201599142 | H86: =연간재무제표DB!C64/연간재무제표DB!C38 -> 1.071819947 | I86: =연간재무제표DB!D64/연간재무제표DB!D38 -> 4.755934512 | J86: =연간재무제표DB!E64/연간재무제표DB!E38 -> -0.6265670596 | K86: =연간재무제표DB!F64/연간재무제표DB!F38 -> 0.6654106885 | L86: =연간재무제표DB!G64/연간재무제표DB!G38 -> 0.8346948964 | M86: =연간재무제표DB!H64/연간재무제표DB!H38 -> 0.4987136565 | N86: =연간재무제표DB!I64/연간재무제표DB!I38 -> 0.7820152338 | O86: =연간재무제표DB!J64/연간재무제표DB!J38 -> 0.3449353115 | P86: =연간재무제표DB!K64/연간재무제표DB!K38 -> 0.2733439001
B87: 51) | C87: -영익 대비 영업외비용 비율 (↓) | D87: 0 | F87: 영업외비용/영익(15%이하) | G87: =연간재무제표DB!B65/연간재무제표DB!B38 -> -0.5915547991 | H87: =연간재무제표DB!C65/연간재무제표DB!C38 -> -2.652410746 | I87: =연간재무제표DB!D65/연간재무제표DB!D38 -> -24.52512307 | J87: =연간재무제표DB!E65/연간재무제표DB!E38 -> 1.659575518 | K87: =연간재무제표DB!F65/연간재무제표DB!F38 -> -1.438383779 | L87: =연간재무제표DB!G65/연간재무제표DB!G38 -> 4.472967051 | M87: =연간재무제표DB!H65/연간재무제표DB!H38 -> 1.35303868 | N87: =연간재무제표DB!I65/연간재무제표DB!I38 -> 2.019997615 | O87: =연간재무제표DB!J65/연간재무제표DB!J38 -> 0.7133598009 | P87: =연간재무제표DB!K65/연간재무제표DB!K38 -> 0.3334420288
B88: 52) | C88: -영익감소&영업외수익은 증가(↓) | D88: 5 | F88: . | J88: =IF(AND(J87>I87,I87>H87,H87>G87),"0",IF(AND(J87>I87,I87>H87),"1",IF(AND(J87>I87),"3","5"))) -> 3 | K88: 5 | L88: 3 | M88: 5 | N88: 3 | O88: 5 | P88: 5
C89: PER(산업비교) | F89: .
B90: 53) | C90: -시총/영업이익(↓) | D90: 4 | F90: 영익PER(15이하) | G90: =연간재무제표DB!B91/연간재무제표DB!B70 -> 8.09180148 | H90: =연간재무제표DB!C91/연간재무제표DB!C70 -> 47.76668212 | I90: =연간재무제표DB!D91/연간재무제표DB!D70 -> 115.2958213 | J90: =연간재무제표DB!E91/연간재무제표DB!E70 -> -14.80710987 | K90: =연간재무제표DB!F91/연간재무제표DB!F70 -> 13.70254804 | L90: =연간재무제표DB!G91/연간재무제표DB!G70 -> 70.8632546 | M90: =연간재무제표DB!H91/연간재무제표DB!H70 -> 80.5232386 | N90: =연간재무제표DB!I91/연간재무제표DB!I70 -> 92.33823551 | O90: =연간재무제표DB!J91/연간재무제표DB!J70 -> 68.73874778 | P90: =연간재무제표DB!K91/연간재무제표DB!K70 -> 78.03603977
B91: 54) | C91: -시총/영업활동현금흐름 (↓) | D91: 4 | F91: 현금PER(15이하) | G91: =연간재무제표DB!B91/연간재무제표DB!B72 -> 3.545085619 | H91: =연간재무제표DB!C91/연간재무제표DB!C72 -> 6.961011722 | I91: =연간재무제표DB!D91/연간재무제표DB!D72 -> 5.154355376 | J91: =연간재무제표DB!E91/연간재무제표DB!E72 -> -31.53667356 | K91: =연간재무제표DB!F91/연간재무제표DB!F72 -> 13.41784027 | L91: =연간재무제표DB!G91/연간재무제표DB!G72 -> 225.8791351 | M91: =연간재무제표DB!H91/연간재무제표DB!H72 -> 116.1354964 | N91: =연간재무제표DB!I91/연간재무제표DB!I72 -> -37.97662934 | O91: =연간재무제표DB!J91/연간재무제표DB!J72 -> 61.37615459 | P91: =연간재무제표DB!K91/연간재무제표DB!K72 -> 182.0617696
B92: 55) | C92: -시총/당기순이익(↓) | D92: 0 | E92: 64.57 | F92: 당순PER(20이하) | G92: =연간재무제표DB!B97 -> 14.63700879 | H92: =연간재무제표DB!C97 -> -81.53295182 | I92: =연간재무제표DB!D97 -> -5.929911899 | J92: =연간재무제표DB!E97 -> -7.162163128 | K92: =연간재무제표DB!F97 -> 78.28294957 | L92: =연간재무제표DB!G97 -> -26.33822087 | M92: =연간재무제표DB!H97 -> 763.6448043 | N92: =연간재무제표DB!I97 -> -271.9889491 | O92: =연간재무제표DB!J97 -> 122.0792625 | P92: =연간재무제표DB!K97 -> 60.03224406
B93: 56) | C93: -역대평균PER 대비 낮은가? (↓) | D93: 0 | F93: . | G93: =(G92/$E$92)-1 -> -0.7733156452 | H93: -2.262706393 | I93: -1.091836951 | J93: -1.11092091 | K93: 0.2123733865 | L93: -1.407901825 | M93: 10.82661924 | N93: -5.212311431 | O93: 0.8906498764 | P93: -0.07027653611
B94: 57) | C94: -업종평균PER 대비 낮은가? (↓) | D94: 0 | E94: =D3 -> 41 | F94: . | G94: =(G92/$E$94)-1 -> -0.6429997857 | H94: -2.988608581 | I94: -1.144631998 | J94: -1.174686906 | K94: 0.9093402333 | L94: -1.642395631 | M94: 17.62548303 | N94: -7.633876808 | O94: 1.977542988 | P94: 0.4642010747
C95: PSR
B96: 58) | C96: -시총/매출액 (↓) | D96: 5 | E96: 2.16 | F96: PSR(3이하) | G96: =연간재무제표DB!B91/연간재무제표DB!B69 -> 0.6543429835 | H96: =연간재무제표DB!C91/연간재무제표DB!C69 -> 0.826809273 | I96: =연간재무제표DB!D91/연간재무제표DB!D69 -> 0.5329247255 | J96: =연간재무제표DB!E91/연간재무제표DB!E69 -> 0.597985629 | K96: =연간재무제표DB!F91/연간재무제표DB!F69 -> 0.8141637429 | L96: =연간재무제표DB!G91/연간재무제표DB!G69 -> 2.259246393 | M96: =연간재무제표DB!H91/연간재무제표DB!H69 -> 2.926199768 | N96: =연간재무제표DB!I91/연간재무제표DB!I69 -> 2.112962736 | O96: =연간재무제표DB!J91/연간재무제표DB!J69 -> 4.012606019 | P96: =연간재무제표DB!K91/연간재무제표DB!K69 -> 6.910293883
B97: 59) | C97: -역대평균PSR 대비 낮은가? (↓) | D97: 5 | F97: . | G97: =G96-$E$96 -> -1.505657017 | H97: -1.333190727 | I97: -1.627075275 | J97: -1.562014371 | K97: -1.345836257 | L97: 0.09924639272 | M97: 0.766199768 | N97: -0.04703726423 | O97: 1.852606019 | P97: 4.750293883
B98: 60) | C98: -업종평균PSR 대비 낮은가? (↓) | D98: 5 | E98: =D4 -> 5.1 | F98: . | G98: =G96-$E$98 -> -4.445657017 | H98: -4.273190727 | I98: -4.567075275 | J98: -4.502014371 | K98: -4.285836257 | L98: -2.840753607 | M98: -2.173800232 | N98: -2.987037264 | O98: -1.087393981 | P98: 1.810293883
C99: ROE, ROA, ROA
B100: 61) | C100: -ROE(당기순이익/자본)(↑) | D100: 0 | F100: ROE(20이상) | G100: . | H100: =(연간재무제표DB!C71*100)/((연간재무제표DB!C30+연간재무제표DB!B30)/2) -> -1.710033281 | I100: =(연간재무제표DB!D71*100)/((연간재무제표DB!D30+연간재무제표DB!C30)/2) -> -14.0016406 | J100: =(연간재무제표DB!E71*100)/((연간재무제표DB!E30+연간재무제표DB!D30)/2) -> -10.07014259 | K100: =(연간재무제표DB!F71*100)/((연간재무제표DB!F30+연간재무제표DB!E30)/2) -> 1.266871638 | L100: =(연간재무제표DB!G71*100)/((연간재무제표DB!G30+연간재무제표DB!F30)/2) -> -14.35001274 | M100: =(연간재무제표DB!H71*100)/((연간재무제표DB!H30+연간재무제표DB!G30)/2) -> 0.582581243 | N100: =(연간재무제표DB!I71*100)/((연간재무제표DB!I30+연간재무제표DB!H30)/2) -> -1.110581879 | O100: =(연간재무제표DB!J71*100)/((연간재무제표DB!J30+연간재무제표DB!I30)/2) -> 6.117152819 | P100: =(연간재무제표DB!K71*100)/((연간재무제표DB!K30+연간재무제표DB!J30)/2) -> 21.24364046
B101: 62) | C101: -ROA(영업이익/자산)(↑) | D101: 1 | F101: 영익ROA(20이상) | G101: . | H101: =(연간재무제표DB!C70*100)/((연간재무제표DB!C6+연간재무제표DB!B6)/2) -> 1.181969976 | I101: =(연간재무제표DB!D70*100)/((연간재무제표DB!D6+연간재무제표DB!C6)/2) -> 0.281201726 | J101: =(연간재무제표DB!E70*100)/((연간재무제표DB!E6+연간재무제표DB!D6)/2) -> -1.858026589 | K101: =(연간재무제표DB!F70*100)/((연간재무제표DB!F6+연간재무제표DB!E6)/2) -> 2.922502944 | L101: =(연간재무제표DB!G70*100)/((연간재무제표DB!G6+연간재무제표DB!F6)/2) -> 2.164682306 | M101: =(연간재무제표DB!H70*100)/((연간재무제표DB!H6+연간재무제표DB!G6)/2) -> 2.434886841 | N101: =(연간재무제표DB!I70*100)/((연간재무제표DB!I6+연간재무제표DB!H6)/2) -> 1.460804496 | O101: =(연간재무제표DB!J70*100)/((연간재무제표DB!J6+연간재무제표DB!I6)/2) -> 4.542105347 | P101: =(연간재무제표DB!K70*100)/((연간재무제표DB!K6+연간재무제표DB!J6)/2) -> 6.977082027
B102: 63) | C102: -ROA(당기순이익/자산)(↑) | D102: 0 | F102: 당순ROA(15아상) | G102: . | H102: =(연간재무제표DB!C71*100)/((연간재무제표DB!C6+연간재무제표DB!B6)/2) -> -0.6924658419 | I102: =(연간재무제표DB!D71*100)/((연간재무제표DB!D6+연간재무제표DB!C6)/2) -> -5.467430968 | J102: =(연간재무제표DB!E71*100)/((연간재무제표DB!E6+연간재무제표DB!D6)/2) -> -3.841298132 | K102: =(연간재무제표DB!F71*100)/((연간재무제표DB!F6+연간재무제표DB!E6)/2) -> 0.5115512026 | L102: =(연간재무제표DB!G71*100)/((연간재무제표DB!G6+연간재무제표DB!F6)/2) -> -5.824100046 | M102: =(연간재무제표DB!H71*100)/((연간재무제표DB!H6+연간재무제표DB!G6)/2) -> 0.2567489138 | N102: =(연간재무제표DB!I71*100)/((연간재무제표DB!I6+연간재무제표DB!H6)/2) -> -0.4959323166 | O102: =(연간재무제표DB!J71*100)/((연간재무제표DB!J6+연간재무제표DB!I6)/2) -> 2.557507536 | P102: =(연간재무제표DB!K71*100)/((연간재무제표DB!K6+연간재무제표DB!J6)/2) -> 9.069523537
C103: 운전자본(산업비교) | F103: .
B104: 64) | C104: -10% 이하 (운전자본/매출액) (↓) | D104: 2 | F104: 운전자본(20%이하) | G104: =(연간재무제표DB!B61+연간재무제표DB!B13-연간재무제표DB!B25)/(연간재무제표DB!B69) -> 0.2719840126 | H104: =(연간재무제표DB!C61+연간재무제표DB!C13-연간재무제표DB!C25)/(연간재무제표DB!C69) -> 0.2828231778 | I104: =(연간재무제표DB!D61+연간재무제표DB!D13-연간재무제표DB!D25)/(연간재무제표DB!D69) -> 0.2815184925 | J104: =(연간재무제표DB!E61+연간재무제표DB!E13-연간재무제표DB!E25)/(연간재무제표DB!E69) -> 0.3847065395 | K104: =(연간재무제표DB!F61+연간재무제표DB!F13-연간재무제표DB!F25)/(연간재무제표DB!F69) -> 0.3573682328 | L104: =(연간재무제표DB!G61+연간재무제표DB!G13-연간재무제표DB!G25)/(연간재무제표DB!G69) -> 0.290976953 | M104: =(연간재무제표DB!H61+연간재무제표DB!H13-연간재무제표DB!H25)/(연간재무제표DB!H69) -> 0.2899050793 | N104: =(연간재무제표DB!I61+연간재무제표DB!I13-연간재무제표DB!I25)/(연간재무제표DB!I69) -> 0.3495469325 | O104: =(연간재무제표DB!J61+연간재무제표DB!J13-연간재무제표DB!J25)/(연간재무제표DB!J69) -> 0.2635491044 | P104: =(연간재무제표DB!K61+연간재무제표DB!K13-연간재무제표DB!K25)/(연간재무제표DB!K69) -> 0.2683910184
A105: 성장성 | C105: 매출액 우상향 | F105: .
C106: -QoQ 성장률 | F106: 매출QoQ | G106: .
B107: 65) | C107: -YoY 성장률. 역성장NO(↑) | D107: 3 | F107: 매출액YOY | G107: . | H107: =(연간재무제표DB!C34-연간재무제표DB!B34)/ABS(연간재무제표DB!B34) -> -0.2428125418 | I107: =(연간재무제표DB!D34-연간재무제표DB!C34)/ABS(연간재무제표DB!C34) -> -0.1127490254 | J107: =(연간재무제표DB!E34-연간재무제표DB!D34)/ABS(연간재무제표DB!D34) -> -0.185794803 | K107: =(연간재무제표DB!F34-연간재무제표DB!E34)/ABS(연간재무제표DB!E34) -> 0.1805907049 | L107: =(연간재무제표DB!G34-연간재무제표DB!F34)/ABS(연간재무제표DB!F34) -> 0.3751841827 | M107: =(연간재무제표DB!H34-연간재무제표DB!G34)/ABS(연간재무제표DB!G34) -> 0.1022039655 | N107: =(연간재무제표DB!I34-연간재무제표DB!H34)/ABS(연간재무제표DB!H34) -> 0.130650796 | O107: =(연간재무제표DB!J34-연간재무제표DB!I34)/ABS(연간재무제표DB!I34) -> 0.3278720609 | P107: =(연간재무제표DB!K34-연간재무제표DB!J34)/ABS(연간재무제표DB!J34) -> 0.2857722221
B108: 66) | C108: -우상향(↑) | D108: 1 | F108: . | J108: =IF(COUNTIF(H107:J107,"<0")=0,"5",IF(COUNTIF(H107:J107,"<0")=1,"3",IF(COUNTIF(H107:J107,"<0")=2,"1","0"))) -> 0 | K108: 1 | L108: 3 | M108: 5 | N108: 5 | O108: 5 | P108: 5
C109: 영업이익 우상향 | F109: .
C110: -QoQ 성장률 | F110: 영익QoQ | G110: .
B111: 67) | C111: -YoY 성장률. 역성장NO(↑) | D111: 5 | F111: 영익YOY | G111: . | H111: =(연간재무제표DB!C38-연간재무제표DB!B38)/ABS(연간재무제표DB!B38) -> -0.8379222332 | I111: =(연간재무제표DB!D38-연간재무제표DB!C38)/ABS(연간재무제표DB!C38) -> -0.7630708342 | J111: =(연간재무제표DB!E38-연간재무제표DB!D38)/ABS(연간재무제표DB!D38) -> -8.113805966 | K111: =(연간재무제표DB!F38-연간재무제표DB!E38)/ABS(연간재무제표DB!E38) -> 2.736958076 | L111: =(연간재무제표DB!G38-연간재무제표DB!F38)/ABS(연간재무제표DB!F38) -> -0.262107754 | M111: =(연간재무제표DB!H38-연간재무제표DB!G38)/ABS(연간재무제표DB!G38) -> 0.256325585 | N111: =(연간재무제표DB!I38-연간재무제표DB!H38)/ABS(연간재무제표DB!H38) -> -0.2880392999 | O111: =(연간재무제표DB!J38-연간재무제표DB!I38)/ABS(연간재무제표DB!I38) -> 2.387434222 | P111: =(연간재무제표DB!K38-연간재무제표DB!J38)/ABS(연간재무제표DB!J38) -> 0.9504751933
B112: 68) | C112: -우상향(↑) | D112: 1 | F112: . | J112: =IF(COUNTIF(H111:J111,"<0")=0,"5",IF(COUNTIF(H111:J111,"<0")=1,"3",IF(COUNTIF(H111:J111,"<0")=2,"1","0"))) -> 0 | K112: 1 | L112: 1 | M112: 3 | N112: 1 | O112: 3 | P112: 3
C113: 당기순이익 우상향 | F113: .
C114: -QoQ 성장률 | F114: 당순QoQ | G114: .
B115: 69) | C115: -YoY 성장률. 역성장NO(↑) | D115: 5 | F115: 당순YOY | G115: . | H115: =(연간재무제표DB!C46-연간재무제표DB!B46)/ABS(연간재무제표DB!B46) -> -1.171760173 | I115: =(연간재무제표DB!D46-연간재무제표DB!C46)/ABS(연간재무제표DB!C46) -> -6.863066366 | J115: =(연간재무제표DB!E46-연간재무제표DB!D46)/ABS(연간재무제표DB!D46) -> 0.2435803895 | K115: =(연간재무제표DB!F46-연간재무제표DB!E46)/ABS(연간재무제표DB!E46) -> 1.147060961 | L115: =(연간재무제표DB!G46-연간재무제표DB!F46)/ABS(연간재무제표DB!F46) -> -12.34209951 | M115: =(연간재무제표DB!H46-연간재무제표DB!G46)/ABS(연간재무제표DB!G46) -> 1.049237657 | N115: =(연간재무제표DB!I46-연간재무제표DB!H46)/ABS(연간재무제표DB!H46) -> -3.292221076 | O115: =(연간재무제표DB!J46-연간재무제표DB!I46)/ABS(연간재무제표DB!I46) -> 6.618239872 | P115: =(연간재무제표DB!K46-연간재무제표DB!J46)/ABS(연간재무제표DB!J46) -> 3.502890182
B116: 70) | C116: -우상향(↑) | D116: 3 | F116: . | J116: =IF(COUNTIF(H115:J115,"<0")=0,"5",IF(COUNTIF(H115:J115,"<0")=1,"3",IF(COUNTIF(H115:J115,"<0")=2,"1","0"))) -> 1 | K116: 3 | L116: 3 | M116: 3 | N116: 1 | O116: 3 | P116: 3
C117: EPS증가율 | F117: EPS | H117: =(연간재무제표DB!C94-연간재무제표DB!B94)/ABS(연간재무제표DB!B94) -> -1.160230303 | I117: =(연간재무제표DB!D94-연간재무제표DB!C94)/ABS(연간재무제표DB!C94) -> -6.863066366 | J117: =(연간재무제표DB!E94-연간재무제표DB!D94)/ABS(연간재무제표DB!D94) -> 0.2739177999 | K117: =(연간재무제표DB!F94-연간재무제표DB!E94)/ABS(연간재무제표DB!E94) -> 1.105158844 | L117: =(연간재무제표DB!G94-연간재무제표DB!F94)/ABS(연간재무제표DB!F94) -> -11.33505263 | M117: =(연간재무제표DB!H94-연간재무제표DB!G94)/ABS(연간재무제표DB!G94) -> 1.049237657 | N117: =(연간재무제표DB!I94-연간재무제표DB!H94)/ABS(연간재무제표DB!H94) -> -3.292221076 | O117: =(연간재무제표DB!J94-연간재무제표DB!I94)/ABS(연간재무제표DB!I94) -> 6.312851824 | P117: =(연간재무제표DB!K94-연간재무제표DB!J94)/ABS(연간재무제표DB!J94) -> 3.475853805
B118: 71) | C118: -우상향(↑) | D118: 3 | F118: . | J118: =IF(COUNTIF(H117:J117,"<0")=0,"5",IF(COUNTIF(H117:J117,"<0")=1,"3",IF(COUNTIF(H117:J117,"<0")=2,"1","0"))) -> 1 | K118: 3 | L118: 3 | M118: 3 | N118: 1 | O118: 3 | P118: 3
C119: PEG(이익성장률) PER/EPS | F119: .
B120: 72) | C120: -1이하 저평가 추정 (↓) | D120: 6 | F120: PEG(1이하) | G120: . | H120: =연간재무제표DB!C102 -> 0.7027307565 | I120: =연간재무제표DB!D102 -> 0.008640324284 | J120: =연간재무제표DB!E102 -> -0.2614712563 | K120: =연간재무제표DB!F102 -> 0.7083411582 | L120: =연간재무제표DB!G102 -> 0.02323608166 | M120: =연간재무제표DB!H102 -> 7.278091854 | N120: =연간재무제표DB!I102 -> 0.8261563936 | O120: =연간재무제표DB!J102 -> 0.1933821131 | P120: =연간재무제표DB!K102 -> 0.1727122239
C121: 매출 영익 성장률 비교 | F121: .
B122: 73) | C122: -영업이익성장률>매출액성장률 (↑) | D122: 8 | F122: . | G122: . | H122: =H111/H107 -> 3.450901782 | I122: 6.767870781 | J122: 43.67079075 | K122: 15.15558665 | L122: -0.6986108852 | M122: 2.507980818 | N122: -2.204650173 | O122: 7.28160312 | P122: 3.325988742
C123: GP/A(매출총이익/자산총액) | F123: .
B124: 74) | C124: -GP/A(↑) | D124: 1 | F124: GPA(30이상) | G124: . | H124: =연간재무제표DB!C36/((연간재무제표DB!C6+연간재무제표DB!B6)/2) -> 0.1377436701 | I124: =연간재무제표DB!D36/((연간재무제표DB!D6+연간재무제표DB!C6)/2) -> 0.1269097219 | J124: =연간재무제표DB!E36/((연간재무제표DB!E6+연간재무제표DB!D6)/2) -> 0.09448598972 | K124: =연간재무제표DB!F36/((연간재무제표DB!F6+연간재무제표DB!E6)/2) -> 0.1340941098 | L124: =연간재무제표DB!G36/((연간재무제표DB!G6+연간재무제표DB!F6)/2) -> 0.1382481584 | M124: =연간재무제표DB!H36/((연간재무제표DB!H6+연간재무제표DB!G6)/2) -> 0.1419935284 | N124: =연간재무제표DB!I36/((연간재무제표DB!I6+연간재무제표DB!H6)/2) -> 0.1253048079 | O124: =연간재무제표DB!J36/((연간재무제표DB!J6+연간재무제표DB!I6)/2) -> 0.1473119244 | P124: =연간재무제표DB!K36/((연간재무제표DB!K6+연간재무제표DB!J6)/2) -> 0.1652810731
C125: PIR (당기이익-전기이익 / 시총) | F125: .
B126: 75) | C126: -POIR (영업이익)(↑) | D126: 5 | F126: 영익(5이상) | G126: . | H126: =(연간재무제표DB!C38-연간재무제표DB!B38)*100/연간재무제표DB!C91 -> -10.82318779 | I126: =(연간재무제표DB!D38-연간재무제표DB!C38)*100/연간재무제표DB!D91 -> -2.79339764 | J126: =(연간재무제표DB!E38-연간재무제표DB!D38)*100/연간재무제표DB!E91 -> -7.702865302 | K126: =(연간재무제표DB!F38-연간재무제표DB!E38)*100/연간재무제표DB!F91 -> 11.49946075 | L126: =(연간재무제표DB!G38-연간재무제표DB!F38)*100/연간재무제표DB!G91 -> -0.5012632061 | M126: =(연간재무제표DB!H38-연간재무제표DB!G38)*100/연간재무제표DB!H91 -> 0.2533777757 | N126: =(연간재무제표DB!I38-연간재무제표DB!H38)*100/연간재무제표DB!I91 -> -0.438141261 | O126: =(연간재무제표DB!J38-연간재무제표DB!I38)*100/연간재무제표DB!J91 -> 1.025318817 | P126: =(연간재무제표DB!K38-연간재무제표DB!J38)*100/연간재무제표DB!K91 -> 0.6244607323
B127: 76) | C127: -PEIR (당기순이익)(↑) | D127: 5 | F127: 당순(5이상) | G127: . | H127: =(연간재무제표DB!C46-연간재무제표DB!B46)*100/연간재무제표DB!C91 -> -8.367256802 | I127: =(연간재무제표DB!D46-연간재무제표DB!C46)*100/연간재무제표DB!D91 -> -14.7189902 | J127: =(연간재무제표DB!E46-연간재무제표DB!D46)*100/연간재무제표DB!E91 -> 4.496093485 | K127: =(연간재무제표DB!F46-연간재무제표DB!E46)*100/연간재무제표DB!F91 -> 9.963729303 | L127: =(연간재무제표DB!G46-연간재무제표DB!F46)*100/연간재무제표DB!G91 -> -4.1315133 | M127: =(연간재무제표DB!H46-연간재무제표DB!G46)*100/연간재무제표DB!H91 -> 2.790519685 | N127: =(연간재무제표DB!I46-연간재무제표DB!H46)*100/연간재무제표DB!I91 -> -0.5280575184 | O127: =(연간재무제표DB!J46-연간재무제표DB!I46)*100/연간재무제표DB!J91 -> 0.964940043 | P127: =(연간재무제표DB!K46-연간재무제표DB!J46)*100/연간재무제표DB!K91 -> 1.295837634
B128: 77) | C128: -PCIR (현금흐름)(↑) | D128: 3 | F128: 현금(15이상) | G128: . | H128: =(연간재무제표DB!C72-연간재무제표DB!B72)*100/연간재무제표DB!C91 -> -15.11715662 | I128: =(연간재무제표DB!D72-연간재무제표DB!C72)*100/연간재무제표DB!D91 -> -5.718988713 | J128: =(연간재무제표DB!E72-연간재무제표DB!D72)*100/연간재무제표DB!E91 -> -24.40662679 | K128: =(연간재무제표DB!F72-연간재무제표DB!E72)*100/연간재무제표DB!F91 -> 9.425476502 | L128: =(연간재무제표DB!G72-연간재무제표DB!F72)*100/연간재무제표DB!G91 -> -1.510296293 | M128: =(연간재무제표DB!H72-연간재무제표DB!G72)*100/연간재무제표DB!H91 -> 0.5509490616 | N128: =(연간재무제표DB!I72-연간재무제표DB!H72)*100/연간재무제표DB!I91 -> -3.687873431 | O128: =(연간재무제표DB!J72-연간재무제표DB!I72)*100/연간재무제표DB!J91 -> 2.673518842 | P128: =(연간재무제표DB!K72-연간재무제표DB!J72)*100/연간재무제표DB!K91 -> -0.1865468887
B129: 78) | C129: -PGIR (매출총이익)(↑) | D129: 3 | F129: 매출총이익(15이상) | G129: . | H129: =(연간재무제표DB!C36-연간재무제표DB!B36)*100/연간재무제표DB!C91 -> -11.81202518 | I129: =(연간재무제표DB!D36-연간재무제표DB!C36)*100/연간재무제표DB!D91 -> -3.517372079 | J129: =(연간재무제표DB!E36-연간재무제표DB!D36)*100/연간재무제표DB!E91 -> -8.501888284 | K129: =(연간재무제표DB!F36-연간재무제표DB!E36)*100/연간재무제표DB!F91 -> 12.11916097 | L129: =(연간재무제표DB!G36-연간재무제표DB!F36)*100/연간재무제표DB!G91 -> 0.2376051705 | M129: =(연간재무제표DB!H36-연간재무제표DB!G36)*100/연간재무제표DB!H91 -> 0.9290803564 | N129: =(연간재무제표DB!I36-연간재무제표DB!H36)*100/연간재무제표DB!I91 -> 0.4189537128 | O129: =(연간재무제표DB!J36-연간재무제표DB!I36)*100/연간재무제표DB!J91 -> 1.034369452 | P129: =(연간재무제표DB!K36-연간재무제표DB!J36)*100/연간재무제표DB!K91 -> 0.9048550331
C130: IP/A (당기이익-전기이익 / 자산총계) | F130: .
B131: 79) | C131: -OIPA (영업이익)(↑) | D131: 3 | F131: 영익(5이상) | G131: . | H131: =(연간재무제표DB!C38-연간재무제표DB!B38)*100/((연간재무제표DB!C6+연간재무제표DB!B6)/2) -> -6.110640229 | I131: =(연간재무제표DB!D38-연간재무제표DB!C38)*100/((연간재무제표DB!D6+연간재무제표DB!C6)/2) -> -0.905658174 | J131: =(연간재무제표DB!E38-연간재무제표DB!D38)*100/((연간재무제표DB!E6+연간재무제표DB!D6)/2) -> -2.119212598 | K131: =(연간재무제표DB!F38-연간재무제표DB!E38)*100/((연간재무제표DB!F6+연간재무제표DB!E6)/2) -> 4.605043809 | L131: =(연간재무제표DB!G38-연간재무제표DB!F38)*100/((연간재무제표DB!G6+연간재무제표DB!F6)/2) -> -0.76891988 | M131: =(연간재무제표DB!H38-연간재무제표DB!G38)*100/((연간재무제표DB!H6+연간재무제표DB!G6)/2) -> 0.4967850702 | N131: =(연간재무제표DB!I38-연간재무제표DB!H38)*100/((연간재무제표DB!I6+연간재무제표DB!H6)/2) -> -0.5910004645 | O131: =(연간재무제표DB!J38-연간재무제표DB!I38)*100/((연간재무제표DB!J6+연간재무제표DB!I6)/2) -> 3.201236403 | P131: =(연간재무제표DB!K38-연간재무제표DB!J38)*100/((연간재무제표DB!K6+연간재무제표DB!J6)/2) -> 3.399962948
B132: 80) | C132: -EIPA (당기순이익)(↑) | D132: 3 | F132: 당순(5이상) | G132: . | H132: =(연간재무제표DB!C46-연간재무제표DB!B46)*100/((연간재무제표DB!C6+연간재무제표DB!B6)/2) -> -4.724051455 | I132: =(연간재무제표DB!D46-연간재무제표DB!C46)*100/((연간재무제표DB!D6+연간재무제표DB!C6)/2) -> -4.772100328 | J132: =(연간재무제표DB!E46-연간재무제표DB!D46)*100/((연간재무제표DB!E6+연간재무제표DB!D6)/2) -> 1.236965412 | K132: =(연간재무제표DB!F46-연간재무제표DB!E46)*100/((연간재무제표DB!F6+연간재무제표DB!E6)/2) -> 3.990048831 | L132: =(연간재무제표DB!G46-연간재무제표DB!F46)*100/((연간재무제표DB!G6+연간재무제표DB!F6)/2) -> -6.337594046 | M132: =(연간재무제표DB!H46-연간재무제표DB!G46)*100/((연간재무제표DB!H6+연간재무제표DB!G6)/2) -> 5.471231695 | N132: =(연간재무제표DB!I46-연간재무제표DB!H46)*100/((연간재무제표DB!I6+연간재무제표DB!H6)/2) -> -0.7122868043 | O132: =(연간재무제표DB!J46-연간재무제표DB!I46)*100/((연간재무제표DB!J6+연간재무제표DB!I6)/2) -> 3.01272262 | P132: =(연간재무제표DB!K46-연간재무제표DB!J46)*100/((연간재무제표DB!K6+연간재무제표DB!J6)/2) -> 7.055367479
B133: 81) | C133: -CIPA (현금흐름)(↑) | D133: 2 | F133: 현금(12이상) | G133: . | H133: =(연간재무제표DB!C72-연간재무제표DB!B72)*100/((연간재무제표DB!C6+연간재무제표DB!B6)/2) -> -8.534962821 | I133: =(연간재무제표DB!D72-연간재무제표DB!C72)*100/((연간재무제표DB!D6+연간재무제표DB!C6)/2) -> -1.854175289 | J133: =(연간재무제표DB!E72-연간재무제표DB!D72)*100/((연간재무제표DB!E6+연간재무제표DB!D6)/2) -> -6.714752102 | K133: =(연간재무제표DB!F72-연간재무제표DB!E72)*100/((연간재무제표DB!F6+연간재무제표DB!E6)/2) -> 3.77450153 | L133: =(연간재무제표DB!G72-연간재무제표DB!F72)*100/((연간재무제표DB!G6+연간재무제표DB!F6)/2) -> -2.316740646 | M133: =(연간재무제표DB!H72-연간재무제표DB!G72)*100/((연간재무제표DB!H6+연간재무제표DB!G6)/2) -> 1.080218135 | N133: =(연간재무제표DB!I72-연간재무제표DB!H72)*100/((연간재무제표DB!I6+연간재무제표DB!H6)/2) -> -4.974502756 | O133: =(연간재무제표DB!J72-연간재무제표DB!I72)*100/((연간재무제표DB!J6+연간재무제표DB!I6)/2) -> 8.347224006 | P133: =(연간재무제표DB!K72-연간재무제표DB!J72)*100/((연간재무제표DB!K6+연간재무제표DB!J6)/2) -> -1.015680373
B134: 82) | C134: -GIPA (매출총이익)(↑) | D134: 2 | F134: 매출총이익(12이상) | G134: . | H134: =(연간재무제표DB!C36-연간재무제표DB!B36)*100/((연간재무제표DB!C6+연간재무제표DB!B6)/2) -> -6.668925799 | I134: =(연간재무제표DB!D36-연간재무제표DB!C36)*100/((연간재무제표DB!D6+연간재무제표DB!C6)/2) -> -1.140380707 | J134: =(연간재무제표DB!E36-연간재무제표DB!D36)*100/((연간재무제표DB!E6+연간재무제표DB!D6)/2) -> -2.339039831 | K134: =(연간재무제표DB!F36-연간재무제표DB!E36)*100/((연간재무제표DB!F6+연간재무제표DB!E6)/2) -> 4.853207328 | L134: =(연간재무제표DB!G36-연간재무제표DB!F36)*100/((연간재무제표DB!G6+연간재무제표DB!F6)/2) -> 0.364477857 | M134: =(연간재무제표DB!H36-연간재무제표DB!G36)*100/((연간재무제표DB!H6+연간재무제표DB!G6)/2) -> 1.82160116 | N134: =(연간재무제표DB!I36-연간재무제표DB!H36)*100/((연간재무제표DB!I6+연간재무제표DB!H6)/2) -> 0.5651187434 | O134: =(연간재무제표DB!J36-연간재무제표DB!I36)*100/((연간재무제표DB!J6+연간재무제표DB!I6)/2) -> 3.229494171 | P134: =(연간재무제표DB!K36-연간재무제표DB!J36)*100/((연간재무제표DB!K6+연간재무제표DB!J6)/2) -> 4.926608555
A135: 보너스 | B135: 83) | C135: 일인당 영업이익(백만원)(↑) | D135: 0 | F135: . | G135: =연간재무제표DB!B106/1000000 ->  | H135: =연간재무제표DB!C106/1000000 -> 7.370586267 | I135: =연간재무제표DB!D106/1000000 -> 2.366372333 | J135: =연간재무제표DB!E106/1000000 -> -16.59342914 | K135: =연간재무제표DB!F106/1000000 -> 23.0576726 | L135: =연간재무제표DB!G106/1000000 -> 16.09439794 | M135: =연간재무제표DB!H106/1000000 -> 17.00301692 | N135: =연간재무제표DB!I106/1000000 -> 11.00498167 | O135: =연간재무제표DB!J106/1000000 -> 33.78814106 | P135: =연간재무제표DB!K106/1000000 -> 60.67614679
B136: 84) | C136: 임원급여/직원급여(↓) | D136: 5 | F136: . | G136: =연간재무제표DB!B105 ->  | H136: =연간재무제표DB!C105 -> 2.891508238 | I136: =연간재무제표DB!D105 -> 2.724271845 | J136: =연간재무제표DB!E105 -> 3.022088353 | K136: =연간재무제표DB!F105 -> 2.712213849 | L136: =연간재무제표DB!G105 -> 5.023325359 | M136: =연간재무제표DB!H105 -> 4.532843737 | N136: =연간재무제표DB!I105 -> 4.605279312 | O136: =연간재무제표DB!J105 -> 5.03696319 | P136: =연간재무제표DB!K105 -> 4.471162997
B137: 85) | C137: 배당성향 (↑) | D137: 5 | F137: . | G137: =연간재무제표DB!B81 -> 11.86 | H137: =연간재무제표DB!C81 -> - | I137: =연간재무제표DB!D81 -> - | J137: =연간재무제표DB!E81 -> - | K137: =연간재무제표DB!F81 -> - | L137: =연간재무제표DB!G81 -> - | M137: =연간재무제표DB!H81 -> 3.95 | N137: =연간재무제표DB!I81 -> - | O137: =연간재무제표DB!J81 -> 15 | P137: =연간재무제표DB!K81 -> 6.5
B138: 86) | C138: 배당률 (↑) | D138: 0 | F138: . | G138: =연간재무제표DB!B93 -> 1.233806292 | H138: =연간재무제표DB!C93 -> 0 | I138: =연간재무제표DB!D93 -> 0 | J138: =연간재무제표DB!E93 -> 0 | K138: =연간재무제표DB!F93 -> 0 | L138: =연간재무제표DB!G93 -> 0 | M138: =연간재무제표DB!H93 -> 0 | N138: =연간재무제표DB!I93 -> 0 | O138: =연간재무제표DB!J93 -> 0.1240694789 | P138: =연간재무제표DB!K93 -> 0.1127395716
B139: 87) | C139: 최대주주 (↑) | D139: 0 | F139: . | G139: =연간재무제표DB!B83 -> 6.02 | H139: =연간재무제표DB!C83 -> 5.66 | I139: =연간재무제표DB!D83 -> 5.99 | J139: =연간재무제표DB!E83 -> 9.8 | K139: =연간재무제표DB!F83 -> 8.88 | L139: =연간재무제표DB!G83 -> 8.35 | M139: =연간재무제표DB!H83 -> 8.35 | N139: =연간재무제표DB!I83 -> 8.47 | O139: =연간재무제표DB!J83 -> 4.72 | P139: =연간재무제표DB!K83 -> 4.69
B140: 88) | C140: 특수관계인 (↑) | D140: 3 | F140: . | G140: =연간재무제표DB!B84 -> 34.9 | H140: =연간재무제표DB!C84 -> 36.19 | I140: =연간재무제표DB!D84 -> 36.6 | J140: =연간재무제표DB!E84 -> 35.59 | K140: =연간재무제표DB!F84 -> 32.9 | L140: =연간재무제표DB!G84 -> 30.4 | M140: =연간재무제표DB!H84 -> 30.36 | N140: =연간재무제표DB!I84 -> 30.48 | O140: =연간재무제표DB!J84 -> 27.79 | P140: =연간재무제표DB!K84 -> 27.56
C145: 안정성: | D145: =SUM(D5:D32) -> 36 | H145: 25 | I145: 33 | J145: 34 | K145: 36 | L145: 31 | M145: 31 | N145: 46 | O145: 34 | P145: 38
C146: 유동성: | D146: =SUM(D33:D54) -> 48 | H146: 46 | I146: 42 | J146: 30 | K146: 48 | L146: 37 | M146: 48 | N146: 35 | O146: 43 | P146: 47
C147: 활동성: | D147: =SUM(D55:D78) -> 44 | H147: 46 | I147: 50 | J147: 43 | K147: 44 | L147: 46 | M147: 46 | N147: 45 | O147: 48 | P147: 46
C148: 수익성: | D148: =SUM(D79:D104) -> 38 | H148: 40 | I148: 37 | J148: 33 | K148: 38 | L148: 31 | M148: 26 | N148: 31 | O148: 27 | P148: 30
C149: 성장성: | D149: =SUM(D105:D134) -> 62 | H149: 10 | I149: 21 | J149: 14 | K149: 62 | L149: 34 | M149: 43 | N149: 27 | O149: 63 | P149: 59
C150: 보너스: | D150: =SUM(D135:D140) -> 13 | H150: 14 | I150: 14 | J150: 13 | K150: 13 | L150: 11 | M150: 7 | N150: 12 | O150: 7 | P150: 8
C151: 합 계 : | D151: =SUM(D145:D150) -> 241 | H151: 181 | I151: 197 | J151: 167 | K151: 241 | L151: 190 | M151: 201 | N151: 196 | O151: 222 | P151: 228
G186: 자산총계
G220: 유보율
G254: 부채비율
G288: PBR
G322: 매출원가율
G356: 자산구성
G390: 잉여금축척
G424: 비용부담
G458: 유동비율
G492: 차입금
G526: 현금시총
G560: 현금흐름
G594: 자산자본회전
G628: 운전자본회전율
G662: 유형자산회전율
G696: CCC/매출액
G730: CCC
G764: 매출액/지본
G798: 매출액/유무형
G832: 이익률
G866: 영업외
G900: PER
G934: PSR
G968: ROE
G1002: 운전자본
G1036: QoQ
G1070: YoY
G1104: PEG
G1138: GPA
G1172: PIR
G1206: IPA

Sheet DART보고서
C1: 숫자로변환
C2: alt+a+e+f
C3: 열넓이 15
C4: home
C5: 사업부 | D5: =연간재무제표DB!E5 -> 15년도 | E5: =연간재무제표DB!F5 -> 16년도 | F5: =연간재무제표DB!G5 -> 17년도 | G5: =연간재무제표DB!H5 -> 18년도 | H5: =분기재무제표DB!N5 -> 19.1Q | I5: =분기재무제표DB!O5 -> 19.2Q | J5: =분기재무제표DB!P5 -> 19.3Q | K5: =분기재무제표DB!Q5 -> 19.4Q | L5: =분기재무제표DB!R5 -> 20.1Q | M5: =분기재무제표DB!S5 -> 20.2Q | N5: =분기재무제표DB!T5 -> 20.3Q | O5: =분기재무제표DB!U5 -> 20.4Q | P5: =분기재무제표DB!V5 -> 21.1Q | Q5: =분기재무제표DB!W5 -> 21.2Q | R5: =분기재무제표DB!X5 -> 21.3Q | S5: =분기재무제표DB!Y5 -> 21.4Q | T5: =분기재무제표DB!Z5 -> 22.1Q | U5: =분기재무제표DB!AA5 -> 22.2Q | V5: =분기재무제표DB!AB5 -> 22.3Q
C6: 매출액 | D6: 14380823014 | E6: 16977865979 | F6: 2.334769275e+10 | G6: 2.573391954e+10 | H6: =분기재무제표DB!N34 -> 25742675313 | I6: =분기재무제표DB!O34 -> 26572734935 | J6: =분기재무제표DB!P34 -> 31357084815 | K6: =분기재무제표DB!Q34 -> 32711811360 | L6: =분기재무제표DB!R34 -> 37830648963 | M6: =분기재무제표DB!S34 -> 37727091595 | N6: =분기재무제표DB!T34 -> 39689716584 | O6: =분기재무제표DB!U34 -> 39296011683 | P6: =분기재무제표DB!V34 -> 45994002425 | Q6: =분기재무제표DB!W34 -> 50260344124 | R6: =분기재무제표DB!X34 -> 52538173569 | S6: =분기재무제표DB!Y34 -> 49915179201 | T6: =분기재무제표DB!Z34 -> 38292102371 | U6: =분기재무제표DB!AA34 -> 58614626091 | V6: =분기재무제표DB!AB34 -> 40151858473
C7: 직전분기대비 | E7: =(E6-D6)/ABS(D6) -> 0.1805907049 | F7: 0.3751841827 | G7: 0.1022039655 | H7: 0.0003402426703 | I7: 0.0322444972 | J7: 0.1800473264 | K7: 0.04320320441 | L7: =(L6-K6)/ABS(K6) -> 0.1564828541 | M7: -0.002737393379 | N7: 0.05202163501 | O7: -0.009919569473 | P7: 0.1704496323 | Q7: 0.09275865274 | R7: 0.04532060981 | S7: -0.04992549588 | T7: -0.2328565582 | U7: 0.5307236339 | V7: =(V6-U6)/ABS(U6) -> -0.3149856759
C8: 전년동기대비 | H8: =(H6-D6)/ABS(D6) -> 0.7900696843 | I8: =(I6-E6)/ABS(E6) -> 0.565139869 | J8: =(J6-F6)/ABS(F6) -> 0.3430485466 | K8: =(K6-G6)/ABS(G6) -> 0.2711554225 | L8: =(L6-H6)/ABS(H6) -> 0.4695694407 | M8: 0.4197669787 | N8: 0.2657336235 | O8: 0.2012789891 | P8: 0.2157867678 | Q8: 0.3322082885 | R8: 0.3237225682 | S8: 0.2702352494 | T8: -0.1674544429 | U8: 0.1662201506 | V8: =(V6-R6)/ABS(R6) -> -0.2357583878
C9: 영업이익 | D9: -580770020 | E9: 1008773176 | F9: 744365904.8 | G9: 935165930.8 | H9: =분기재무제표DB!N38 -> 560702649 | I9: =분기재무제표DB!O38 -> 872563491 | J9: =분기재무제표DB!P38 -> 898348557 | K9: =분기재무제표DB!Q38 -> 331590866 | L9: =분기재무제표DB!R38 -> 2506975379 | M9: =분기재무제표DB!S38 -> 2087025834 | N9: =분기재무제표DB!T38 -> 3025069510 | O9: =분기재무제표DB!U38 -> 1402362940 | P9: =분기재무제표DB!V38 -> 5086120520 | Q9: =분기재무제표DB!W38 -> 4640599569 | R9: =분기재무제표DB!X38 -> 4869969361 | S9: =분기재무제표DB!Y38 -> 2999393118 | T9: =분기재무제표DB!Z38 -> 3492910601 | U9: =분기재무제표DB!AA38 -> 5054991366 | V9: =분기재무제표DB!AB38 -> 3587280114
C10: 직전분기대비 | E10: =(E9-D9)/ABS(D9) -> 2.736958076 | F10: -0.262107754 | G10: 0.256325585 | H10: -0.4004244268 | I10: 0.5561964841 | J10: 0.02955093385 | K10: -0.6308884081 | L10: =(L9-K9)/ABS(K9) -> 6.560447636 | M10: -0.1675124329 | N10: 0.4494643338 | O10: -0.5364195978 | P10: 2.626821827 | Q10: -0.08759543728 | R10: 0.04942675803 | S10: -0.3841043145 | T10: 0.1645391129 | U10: 0.4472146423 | V10: =(V9-U9)/ABS(U9) -> -0.2903489137
C11: 전년동기대비 | H11: =(H9-D9)/ABS(D9) -> 1.965446958 | I11: =(I9-E9)/ABS(E9) -> -0.1350250864 | J11: =(J9-F9)/ABS(F9) -> 0.2068641931 | K11: =(K9-G9)/ABS(G9) -> -0.6454202884 | L11: =(L9-H9)/ABS(H9) -> 3.471131684 | M11: 1.391832635 | N11: 2.36736725 | O11: 3.22919653 | P11: 1.028787583 | Q11: 1.223546778 | R11: 0.6098702344 | S11: 1.138813735 | T11: -0.3132465919 | U11: 0.0892970382 | V11: =(V9-R9)/ABS(R9) -> -0.2633875394
C12: 당기순이익 | D12: 1088614 | E12: 73484297.75 | F12: -73017708.75 | G12: 97054240.75 | H12: =분기재무제표DB!N46 -> 68537178 | I12: =분기재무제표DB!O46 -> -384671576 | J12: =분기재무제표DB!P46 -> -64888875 | K12: =분기재무제표DB!Q46 -> -523115308 | L12: =분기재무제표DB!R46 -> 1728109429 | M12: =분기재무제표DB!S46 -> 1198662495 | N12: =분기재무제표DB!T46 -> 2265896277 | O12: =분기재무제표DB!U46 -> -113000775 | P12: =분기재무제표DB!V46 -> 4910469081 | Q12: =분기재무제표DB!W46 -> 3995504579 | R12: =분기재무제표DB!X46 -> 4434386080 | S12: =분기재무제표DB!Y46 -> 9532824838 | T12: =분기재무제표DB!Z46 -> 2238814349 | U12: =분기재무제표DB!AA46 -> 3194454991 | V12: =분기재무제표DB!AB46 -> 3326998640
C13: 직전분기대비 | E13: =(E12-D12)/ABS(D12) -> 66.50262053 | F13: -1.993650494 | G13: 2.329187705 | H13: -0.2938260351 | I13: -6.612597239 | J13: 0.8313135697 | K13: -7.061710239 | L13: =(L12-K12)/ABS(K12) -> 4.303496194 | M13: -0.3063734999 | N13: 0.8903538623 | O13: -1.049870233 | P13: 44.45518056 | Q13: -0.186329348 | R13: 0.1098438238 | S13: 1.149750758 | T13: -0.7651468073 | U13: 0.4268512226 | V13: =(V12-U12)/ABS(U12) -> 0.04149178792
C14: 전년동기대비 | H14: =(H12-D12)/ABS(D12) -> 61.95820006 | I14: =(I12-E12)/ABS(E12) -> -6.234745215 | J14: =(J12-F12)/ABS(F12) -> 0.1113268807 | K14: =(K12-G12)/ABS(G12) -> -6.389927364 | L14: =(L12-H12)/ABS(H12) -> 24.21419001 | M14: 4.116067237 | N14: 35.91964188 | O14: 0.7839849584 | P14: 1.841526699 | Q14: 2.333302406 | R14: 0.9570119449 | S14: 85.36070317 | T14: -0.5440732215 | U14: -0.2004877162 | V14: =(V12-R12)/ABS(R12) -> -0.2497273399
A16: [주석DB] - 포맷유지
C18: 매출채권 및 손실충당금
C19: (천원) | D19: =D5 -> 15년도 | E19: 16년도 | F19: 17년도 | G19: 18년도 | H19: 19.1Q | I19: 19.2Q | J19: 19.3Q | K19: 19.4Q | L19: =L5 -> 20.1Q | M19: 20.2Q | N19: 20.3Q | O19: 20.4Q | P19: 21.1Q | Q19: 21.2Q | R19: 21.3Q | S19: 21.4Q | T19: 22.1Q | U19: 22.2Q | V19: =V5 -> 22.3Q
C20: 매출채권 | D20: =D252+D253 -> 16558253 | E20: =E252+E253 -> 18510034 | F20: 17541072 | G20: 18598313 | H20: 18688505 | I20: 19664367 | J20: 24444918 | K20: 23834067 | L20: 26410441 | M20: 29901509 | N20: 28214928 | O20: 28499277 | P20: 35141040 | Q20: 35969091 | R20: 37594915 | S20: 37246358 | T20: 36672492 | U20: 37313705 | V20: 36262669
C21: 손실충당금 | D21: =D254 -> -2067208 | E21: =E254 -> -1504894 | F21: -955957 | G21: -947106 | H21: -886707 | I21: -900709 | J21: -937561 | K21: -871585 | L21: -937434 | M21: -1000595 | N21: -887183 | O21: -791142 | P21: -926478 | Q21: -964052 | R21: -986667 | S21: -812965 | T21: -854724 | U21: -873129 | V21: -1003523
C22: 매출채권(순액) | D22: =D255 -> 14491045 | E22: =E255 -> 17005140 | F22: 16585115 | G22: 17651206 | H22: 17801797 | I22: 18763658 | J22: 23507357 | K22: 22962482 | L22: 25473007 | M22: 28900914 | N22: 27327746 | O22: 27708135 | P22: 34214562 | Q22: 35005039 | R22: 36608248 | S22: 36433394 | T22: 35817767 | U22: 36440575 | V22: 35259146
C23: 매출채권충당률 | D23: =ABS(D21)/D20 -> 0.1248445715 | E23: 0.08130152543 | F23: 0.05449820855 | G23: 0.0509242962 | H23: 0.04744665237 | I23: 0.04580411869 | J23: 0.03835402516 | K23: 0.03656887429 | L23: =ABS(L21)/L20 -> 0.0354948257 | M23: 0.0334630269 | N23: 0.03144374496 | O23: 0.02776007265 | P23: 0.02636455836 | Q23: 0.02680223417 | R23: 0.02624469293 | S23: 0.02182669779 | T23: 0.02330695171 | U23: 0.02339968652 | V23: 0.02767372142
C25: 재고자산 및 충당금
C26: (천원) | D26: =D5 -> 15년도 | E26: 16년도 | F26: 17년도 | G26: 18년도 | H26: 19.1Q | I26: 19.2Q | J26: 19.3Q | K26: 19.4Q | L26: =L5 -> 20.1Q | M26: 20.2Q | N26: 20.3Q | O26: 20.4Q | P26: 21.1Q | Q26: 21.2Q | R26: 21.3Q | S26: 21.4Q | T26: 22.1Q | U26: 22.2Q | V26: 22.3Q
C27: 평가전금액 | D27: =D282 -> 9678511 | E27: =E282 -> 10242268 | F27: 14896885 | G27: 16025912 | H27: 22419608 | I27: 21780492 | J27: 23665521 | K27: 23059902 | L27: 25877169 | M27: =M282 -> 23214166 | N27: 21819232 | O27: 20863587 | P27: 24214224 | Q27: 23743804 | R27: 22126885 | S27: 24110336 | T27: 26522650 | U27: 25266258 | V27: 26999280
C28: 평가충당금 | D28: =D283 -> 0 | E28: =E283 -> 0 | F28: 0 | G28: 0 | H28: 0 | I28: 0 | J28: 0 | K28: -593123 | L28: -2077769 | M28: =M283 -> -468357 | N28: -537101 | O28: -1345072 | P28: -1434859 | Q28: -1378541 | R28: -776338 | S28: -530616 | T28: -349098 | U28: -387212 | V28: -716996
C29: 장부금액 | D29: =D284 -> 9678511 | E29: =E284 -> 10242268 | F29: 14896885 | G29: 16025912 | H29: 22419608 | I29: 21780492 | J29: 23665521 | K29: 22466779 | L29: 23799400 | M29: =M284 -> 22745809 | N29: 21282131 | O29: 19518515 | P29: 22779365 | Q29: 22365263 | R29: 21350547 | S29: 23579720 | T29: 26173551 | U29: 24879046 | V29: 26282284
C30: 재고자산충당률 | D30: =ABS(D28)/D27 -> 0 | E30: 0 | F30: 0 | G30: 0 | H30: 0 | I30: 0 | J30: 0 | K30: 0.02572096794 | L30: =ABS(L28)/L27 -> 0.08029352052 | M30: 0.0201754825 | N30: 0.02461594432 | O30: 0.06446983445 | P30: 0.05925686489 | Q30: 0.05805897825 | R30: 0.03508573394 | S30: 0.0220078227 | T30: 0.01316225943 | U30: 0.01532526107 | V30: 0.02655611557
C32: 유형자산
C33: (천원) | D33: =D5 -> 15년도 | E33: 16년도 | F33: 17년도 | G33: 18년도 | H33: 19.1Q | I33: 19.2Q | J33: 19.3Q | K33: 19.4Q | L33: =L5 -> 20.1Q | M33: 20.2Q | N33: 20.3Q | O33: 20.4Q | P33: 21.1Q | Q33: 21.2Q | R33: 21.3Q | S33: 21.4Q | T33: 22.1Q | U33: 22.2Q | V33: 22.3Q
C34: 기초자산(전분기) | D34: 70441668 | E34: =D268 -> 87737347 | F34: =E268 -> 87413455 | G34: 88193691 | H34: 114913334 | I34: 118851052 | J34: 122464223 | K34: 124072731 | L34: 127401882 | M34: 128762673 | N34: 131915530 | O34: 134305806 | P34: 134096596 | Q34: 136946460 | R34: 141851039 | S34: 148247324 | T34: 190398601 | U34: 190398601 | V34: 190398601
C35: 취득 | D35: =D269 -> 5246621.25 | E35: =E269 -> 1119515.5 | F35: =F269 -> 1167180.25 | G35: 7642791.75 | H35: 4630213 | I35: 5631266 | J35: 2753495 | K35: 2063509 | L35: 2074875 | M35: 4459883 | N35: 3393121 | O35: 1301045 | P35: 4162346 | Q35: 6181214 | R35: 7765902 | S35: 25493424 | T35: 7362380 | U35: 6300713 | V35: 9331376
C36: 처분,손상 | D36: =-D270 -> 53921.5 | E36: =-E270 -> 307230.75 | F36: 51945.75 | G36: 65423.25 | H36: 9340 | I36: 1194945 | J36: 95726 | K36: -1028538 | L36: 0 | M36: 0 | N36: 7025 | O36: 34484 | P36: 408137 | Q36: 187957 | R36: 554535 | S36: 411875 | T36: 22936 | U36: -4969 | V36: 735545
C37: 감가상각비 | D37: =-D271 -> 881043 | E37: =-E271 -> 859825.5 | F37: 830114.5 | G37: 886151.5 | H37: 970855 | I37: 1068092 | J37: 1070330 | K37: 1196265 | L37: 1122291 | M37: 1138525 | N37: 1132938 | O37: 1176737 | P37: 1231232 | Q37: 1268096 | R37: 1295984 | S37: 1358040 | T37: 1419712 | U37: 1672236 | V37: 1850308
C38: 기말금액(당분기) | D38: =D268 -> 87737347 | E38: =E268 -> 87413455 | F38: =F268 -> 88193691 | G38: 114913334 | H38: 118851052 | I38: 122464223 | J38: 124072731 | K38: 127401882 | L38: 128762673 | M38: 131915530 | N38: 134305806 | O38: 134096596 | P38: 136946460 | Q38: 141851039 | R38: 148247324 | S38: 190398601 | T38: 190398601 | U38: 190398601 | V38: 190398601
C39: 건설중인자산 | D39: =D267 -> 184148 | E39: =E267 -> 2998673 | F39: =F267 -> 1734466 | G39: 10791191 | H39: 12676682 | I39: 15617588 | J39: 15862512 | K39: 3406977 | L39: 2972356 | M39: 6555524 | N39: 8670172 | O39: 4263271 | P39: 7628635 | Q39: 8703607 | R39: 14827471 | S39: 16392087 | T39: 16392087 | U39: 16392087 | V39: 16392087
C40: 유형자산상각율 | D40: =ABS(D37)/D34 -> 0.01250741252 | E40: =ABS(E37)/E34 -> 0.009799994294 | F40: =ABS(F37)/F34 -> 0.009496415626 | G40: 0.01004778789 | H40: 0.008448584391 | I40: 0.008986811492 | J40: 0.008739940317 | K40: 0.009641643175 | L40: 0.008809061392 | M40: 0.00884204229 | N40: 0.008588359536 | O40: 0.0087616242 | P40: 0.00918167975 | Q40: 0.009259793937 | R40: 0.009136231988 | S40: 0.00916063753 | T40: 0.007456525376 | U40: 0.008782816634 | V40: 0.009718075607
C43: 무형자산
C44: (천원) | D44: =D5 -> 15년도 | E44: 16년도 | F44: 17년도 | G44: 18년도 | H44: 19.1Q | I44: 19.2Q | J44: 19.3Q | K44: 19.4Q | L44: =L5 -> 20.1Q | M44: 20.2Q | N44: 20.3Q | O44: 20.4Q | P44: 21.1Q | Q44: 21.2Q | R44: 21.3Q | S44: 21.4Q | T44: 22.1Q | U44: 22.2Q | V44: 22.3Q
C45: 기초자산(전분기) | D45: 8794370 | E45: =D293 -> 8794370 | F45: =E293 -> 9469219 | G45: 9915727 | H45: 2722244 | I45: 2298892 | J45: 2298890 | K45: 2298892 | L45: 751517 | M45: 1385384 | N45: 1385384 | O45: 1385384 | P45: 1385384 | Q45: 1407949 | R45: 1407949 | S45: 1407949 | T45: 1407949 | U45: 1259672 | V45: 1259672
C46: 취득 | D46: =D294 -> 587170.75 | E46: =E294 -> 398537.25 | F46: =F294 -> 298865.25 | G46: 13437 | H46: 6407 | I46: 20719 | J46: 51540 | K46: 995210 | L46: 21634 | M46: 222488 | N46: 29065 | O46: 50353 | P46: 34574 | Q46: 37821 | R46: 58084 | S46: 44694 | T46: 38209 | U46: 9404 | V46: 702088
C47: 처분,손상 | D47: 0 | E47: 0 | F47: 0 | G47: 0 | H47: 0 | I47: 0 | J47: 0 | K47: 0 | L47: 0 | M47: 0 | N47: 0 | O47: 0 | P47: 0 | Q47: 0 | R47: 0 | S47: 0 | T47: 0 | U47: 0 | V47: 0
C48: 감가상각비 | D48: =-D295 -> 321764.25 | E48: =-E295 -> 120521 | F48: 325374.5 | G48: 115754.25 | H48: 113920 | I48: 116879 | J48: 117187 | K48: 92022 | L48: 67546 | M48: 77872 | N48: 77860 | O48: 77696 | P48: 77016 | Q48: 79376 | R48: 82213 | S48: 84845 | T48: 86327 | U48: 85100 | V48: 95342
C49: 기말금액(당분기) | D49: =D296 -> 9469218 | E49: =E296 -> 9915725 | F49: =F296 -> 2722244 | G49: 2298892 | H49: 2248104 | I49: 2145858 | J49: 2084435 | K49: 1385384 | L49: 1339470 | M49: 1484088 | N49: 1435291 | O49: 1407949 | P49: 1365507 | Q49: 1323952 | R49: 1299823 | S49: 1259672 | T49: 1211553 | U49: 1135858 | V49: 1742604
C50: 건설중인자산
C51: 무형자산상각율 | D51: =ABS(D48)/D45 -> 0.03658752702 | E51: =ABS(E48)/E45 -> 0.01370433584 | F51: =ABS(F48)/F45 -> 0.03436128154 | G51: 0.01167380365 | H51: 0.04184782848 | I51: 0.05084144884 | J51: 0.05097547077 | K51: 0.04002884868 | L51: 0.08987953699 | M51: 0.05620968627 | N51: 0.05620102441 | O51: 0.05608264568 | P51: 0.05559180704 | Q51: 0.05637704207 | R51: 0.05839202982 | S51: 0.06026141572 | T51: 0.06131401066 | U51: 0.06755726888 | V51: 0.07568795686
C54: 유무형감가상각비
C55: (원) | D55: =D5 -> 15년도 | E55: 16년도 | F55: 17년도 | G55: 18년도 | H55: 19.1Q | I55: 19.2Q | J55: 19.3Q | K55: 19.4Q | L55: =L5 -> 20.1Q | M55: 20.2Q | N55: 20.3Q | O55: 20.4Q | P55: 21.1Q | Q55: 21.2Q | R55: 21.3Q | S55: 21.4Q | T55: 22.1Q | U55: 22.2Q | V55: 22.3Q
C56: 감가상각비 | D56: =-(D37+D48)*1000 -> -1202807250 | E56: =-(E37+E48)*1000 -> -980346500 | F56: -1155489000 | G56: -1001905750 | H56: -1084775000 | I56: -1184971000 | J56: -1187517000 | K56: -1288287000 | L56: -1189837000 | M56: -1216397000 | N56: -1210798000 | O56: -1254433000 | P56: -1308248000 | Q56: -1347472000 | R56: -1378197000 | S56: -1442885000 | T56: -1506039000 | U56: -1757336000 | V56: -1945650000
C57: 연간 감가상각비 | D57: =D56*4 -> -4811229000 | E57: =E56*4 -> -3921386000 | F57: =F56*4 -> -4621956000 | G57: =-(D37+E37+F37+G37+D48+E48+F48+G48)*1000 -> -4340548500 | H57: =-(E37+F37+G37+H37+E48+F48+G48+H48)*1000 -> -4222516250 | I57: -4427140750 | J57: -4459168750 | K57: -4745550000 | L57: -4850612000 | M57: -4882038000 | N57: -4905319000 | O57: -4871465000 | P57: -4989876000 | Q57: -5120951000 | R57: -5288350000 | S57: -5476802000 | T57: -5674593000 | U57: -6084457000 | V57: -6651910000
C58: 시가총액 | D58: =연간재무제표DB!E91 -> 34398101980 | E58: =연간재무제표DB!F91 -> 55291051650 | F58: =연간재무제표DB!G91 -> 210992762500 | G58: =연간재무제표DB!H91 -> 301210357500 | H58: =분기재무제표DB!N91 -> 236457406250 | I58: =분기재무제표DB!O91 -> 273563030000 | J58: =분기재무제표DB!P91 -> 266287417500 | K58: =분기재무제표DB!Q91 -> 245915702500 | L58: =분기재무제표DB!R91 -> 269689405800 | M58: =분기재무제표DB!S91 -> 656230863000 | N58: =분기재무제표DB!T91 -> 554863692500 | O58: =분기재무제표DB!U91 -> 620122053200 | P58: =분기재무제표DB!V91 -> 764765906800 | Q58: =분기재무제표DB!W91 -> 883250765600 | R58: =분기재무제표DB!X91 -> 1620818087100 | S58: =분기재무제표DB!Y91 -> 1373128599100 | T58: =분기재무제표DB!Z91 -> 1267860566700 | U58: =분기재무제표DB!AA91 -> 1167236712200 | V58: =분기재무제표DB!AB91 -> 1399445607200
C59: 총차입금 | D59: =연간재무제표DB!E62+연간재무제표DB!E28 -> 49733417735 | E59: =연간재무제표DB!F62+연간재무제표DB!F28 -> 46412513496 | F59: =연간재무제표DB!G62+연간재무제표DB!G28 -> 23447294794 | G59: =연간재무제표DB!H62+연간재무제표DB!H28 -> 6235290876 | H59: =분기재무제표DB!N62+분기재무제표DB!N28 -> 5638471258 | I59: =분기재무제표DB!O62+분기재무제표DB!O28 -> 42713275370 | J59: =분기재무제표DB!P62+분기재무제표DB!P28 -> 5416856474 | K59: =분기재무제표DB!Q62+분기재무제표DB!Q28 -> 6256365769 | L59: =분기재무제표DB!R62+분기재무제표DB!R28 -> 5977371888 | M59: =분기재무제표DB!S62+분기재무제표DB!S28 -> 59546413480 | N59: =분기재무제표DB!T62+분기재무제표DB!T28 -> 5623561252 | O59: =분기재무제표DB!U62+분기재무제표DB!U28 -> 5451223662 | P59: =분기재무제표DB!V62+분기재무제표DB!V28 -> 6016011215 | Q59: =분기재무제표DB!W62+분기재무제표DB!W28 -> 68404992286 | R59: =분기재무제표DB!X62+분기재무제표DB!X28 -> 72311921436 | S59: =분기재무제표DB!Y62+분기재무제표DB!Y28 -> 71949078058 | T59: =분기재무제표DB!Z62+분기재무제표DB!Z28 -> 73888811760 | U59: =분기재무제표DB!AA62+분기재무제표DB!AA28 -> 68504026746 | V59: =분기재무제표DB!AB62+분기재무제표DB!AB28 -> 68615428432
C60: 현금성자산 | D60: =연간재무제표DB!E60 -> 10109916207 | E60: =연간재무제표DB!F60 -> 13071833584 | F60: =연간재무제표DB!G60 -> 7710730233 | G60: =연간재무제표DB!H60 -> 19354919505 | H60: =분기재무제표DB!N60 -> 11247060842 | I60: =분기재무제표DB!O60 -> 8062725504 | J60: =분기재무제표DB!P60 -> 8703561105 | K60: =분기재무제표DB!Q60 -> 13242195891 | L60: =분기재무제표DB!R60 -> 12223494527 | M60: =분기재무제표DB!S60 -> 11922053812 | N60: =분기재무제표DB!T60 -> 16876723090 | O60: =분기재무제표DB!U60 -> 19532527311 | P60: =분기재무제표DB!V60 -> 16015594470 | Q60: =분기재무제표DB!W60 -> 20148981114 | R60: =분기재무제표DB!X60 -> 19886872415 | S60: =분기재무제표DB!Y60 -> 47818573562 | T60: =분기재무제표DB!Z60 -> 47931205344 | U60: =분기재무제표DB!AA60 -> 43255463808 | V60: =분기재무제표DB!AB60 -> 31258646195
C61: 영업이익(연간환산) | D61: =연간재무제표DB!E70 -> -2323080080 | E61: =연간재무제표DB!F70 -> 4035092705 | F61: =연간재무제표DB!G70 -> 2977463619 | G61: =연간재무제표DB!H70 -> 3740663723 | H61: =분기재무제표DB!N70 -> 2242810596 | I61: =분기재무제표DB!O70 -> 2866532280 | J61: =분기재무제표DB!P70 -> 3108819596 | K61: =분기재무제표DB!Q70 -> 2663205563 | L61: =분기재무제표DB!R70 -> 10027901516 | M61: =분기재무제표DB!S70 -> 9188002426 | N61: =분기재무제표DB!T70 -> 10158760964 | O61: =분기재무제표DB!U70 -> 9021433663 | P61: =분기재무제표DB!V70 -> 20344482080 | Q61: =분기재무제표DB!W70 -> 19453440178 | R61: =분기재무제표DB!X70 -> 19462252600 | S61: =분기재무제표DB!Y70 -> 17596082568 | T61: =분기재무제표DB!Z70 -> 13971642404 | U61: =분기재무제표DB!AA70 -> 17095803934 | V61: =분기재무제표DB!AB70 -> 1.618024277e+10
C62: 감가상각비 | D62: =D57 -> -4811229000 | E62: -3921386000 | F62: -4621956000 | G62: -4340548500 | H62: -4222516250 | I62: -4427140750 | J62: -4459168750 | K62: =K57 -> -4745550000 | L62: =L57 -> -4850612000 | M62: -4882038000 | N62: -4905319000 | O62: -4871465000 | P62: -4989876000 | Q62: -5120951000 | R62: -5288350000 | S62: =S57 -> -5476802000 | T62: =T57 -> -5674593000 | U62: =U57 -> -6084457000 | V62: =V57 -> -6651910000
C63: EV/EBITDA | D63: =(D58+D59-D60)/(D61-D62) -> 29.74966768 | E63: 11.1395675 | F63: 29.83508458 | G63: 35.64944478 | H63: 35.70566843 | I63: 42.2576634 | J63: 34.75173333 | K63: 32.2496633 | L63: 17.70629054 | M63: 50.02510308 | N63: 36.08654043 | O63: 43.62234004 | P63: 29.7922024 | Q63: 37.9055892 | R63: 67.60413729 | S63: 60.55849235 | T63: 65.85578084 | U63: 51.44399705 | V63: =(V58+V59-V60)/(V61-V62) -> 62.92890572
C65: 판매비와관리비
C66: (천원) | D66: =D5 -> 15년도 | E66: 16년도 | F66: 17년도 | G66: 18년도 | H66: 19.1Q | I66: 19.2Q | J66: 19.3Q | K66: 19.4Q | L66: =L5 -> 20.1Q | M66: 20.2Q | N66: 20.3Q | O66: 20.4Q | P66: 21.1Q | Q66: 21.2Q | R66: 21.3Q | S66: 21.4Q | T66: 22.1Q | U66: 22.2Q | V66: 22.3Q
C67: 판매비와관리비 | D67: =D357 -> 3534152.5 | E67: =E357 -> 3619812.25 | F67: 4009551.75 | G67: 4518373.25 | H67: 4561769 | I67: 4695835 | J67: 5343512 | K67: 5580108 | L67: 5041405 | M67: 4949666 | N67: 5057065 | O67: 5189213 | P67: 5461634 | Q67: 5816914 | R67: 6381870 | S67: 6427106 | T67: 4505536 | U67: 6587574 | V67: 6020625
C68: 감가상각비 | D68: =D340 -> 138124.25 | E68: =E340 -> 110000 | F68: 110193.25 | G68: 132337.5 | H68: 94860 | I68: 151858 | J68: 134564 | K68: 212051 | L68: 274174 | M68: 243056 | N68: 146445 | O68: 163068 | P68: 151715 | Q68: 142317 | R68: 183569 | S68: 102228 | T68: 82489 | U68: 236967 | V68: 169269
C69: 무형자산상각비 | D69: =D353 -> 24435.75 | E69: =E353 -> 28257.25 | F69: 27460 | G69: 26026 | H69: 24191 | I69: 27151 | J69: 27459 | K69: 949 | L69: 65242 | M69: 73438 | N69: 73426 | O69: 73012 | P69: 72207 | Q69: 74567 | R69: 77404 | S69: 80078 | T69: 81643 | U69: 80416 | V69: 78905
C70: 대손상각비(환입) | D70: =D355 -> 136811.25 | E70: =E355 -> 105594.25 | F70: 0 | G70: 31175.5 | H70: -51672 | I70: 51672 | J70: 0 | K70: 22720 | L70: 103433 | M70: -103433 | N70: 69391 | O70: -76430 | P70: 105525 | Q70: 55360 | R70: -11314 | S70: -164218 | T70: 27263 | U70: 7446 | V70: 98971
C71: 판관비감가상각비 | D71: =(D68+D69)/D67 -> 0.04599688327 | E71: =(E68+E69)/E67 -> 0.03819459145 | F71: 0.03433133143 | G71: 0.03504878664 | H71: 0.02609755119 | I71: 0.0381208028 | J71: 0.03032144402 | K71: 0.03817130421 | L71: 0.06732567608 | M71: 0.06394249632 | N71: 0.04347798575 | O71: 0.04549437458 | P71: 0.04099908562 | Q71: 0.03728506215 | R71: 0.04089287309 | S71: 0.02836517711 | T71: 0.03642896206 | U71: 0.04817904133 | V71: 0.04122063739
C72: 대손상각비율 | D72: =D70/D67 -> 0.03871119031 | E72: =E70/E67 -> 0.02917119527 | F72: 0 | G72: 0.006899717725 | H72: -0.0113271847 | I72: 0.01100379379 | J72: 0 | K72: 0.004071605783 | L72: 0.0205167012 | M72: -0.02089696557 | N72: 0.01372159543 | O72: -0.01472863033 | P72: 0.01932114089 | Q72: 0.00951707383 | R72: -0.001772834608 | S72: -0.02555084668 | T72: 0.006051000369 | U72: 0.001130309883 | V72: 0.01643865878
C74: 비용의성격별
C75: (천원) | D75: =D5 -> 15년도 | E75: 16년도 | F75: 17년도 | G75: 18년도 | H75: 19.1Q | I75: 19.2Q | J75: 19.3Q | K75: 19.4Q | L75: =L5 -> 20.1Q | M75: 20.2Q | N75: 20.3Q | O75: 20.4Q | P75: 21.1Q | Q75: 21.2Q | R75: 21.3Q | S75: 21.4Q | T75: 22.1Q | U75: 22.2Q | V75: 22.3Q
C76: 손익분기점(BEP) | D76: =D381 -> 1.827409323e+10 | E76: =E381 -> 1.233070918e+10 | F76: 1.936847862e+10 | G76: 2.070305361e+10 | H76: 2.313693358e+10 | I76: 2.189013297e+10 | J76: 2.629504464e+10 | K76: 3.176748342e+10 | L76: 2.726458872e+10 | M76: 2.631479907e+10 | N76: 2.846471744e+10 | O76: 3.279191548e+10 | P76: 2.647351034e+10 | Q76: 3.127306742e+10 | R76: 3.194593935e+10 | S76: 5354381305 | T76: 2.602007609e+10 | U76: 3.632037539e+10 | V76: 5642266549
C77: 매출액 | D77: =D6 -> 14380823014 | E77: =E6 -> 16977865979 | F77: 2.334769275e+10 | G77: 2.573391954e+10 | H77: 25742675313 | I77: 26572734935 | J77: 31357084815 | K77: 32711811360 | L77: 37830648963 | M77: 37727091595 | N77: 39689716584 | O77: 39296011683 | P77: 45994002425 | Q77: 50260344124 | R77: 52538173569 | S77: 49915179201 | T77: 38292102371 | U77: 58614626091 | V77: 40151858473
